Workbook

Sheet Produktionsanlæg
A1: PRODUKTIONSANLÆG | B1: Enhed | C1: Standardlevetid | D1: Mængde | E1: Enhedspris | F1: Samlet værdi | G1: Afskrivning | I1: Postnr. | J1: Samlede afskrivninger
A2: Renseanlæg 1 | I2: 0 | J2: =SUM(G:G,Distributionsanlæg!G:G,Fællesfunktionsanlæg!G:G) -> 0
A3: Mindre anlæg
A4: Mindre anlæg < 5.000 PE uden mulighed for opdeling | B4: PE | C4: =Genanskaffelsespriser!$E$5 -> 40 | D4: 0 | E4: =IF(COUNTIF(D4:D4,"<>0")<=1,IF(SUM(D4:D4)=0,0,(IF(SUM(D4:D4)>0,IF(SUM(D4:D4)<400,(1.2675*45967*SUM(D4:D4)^(-0.4664)),(IF(SUM(D4:D4)<2000,(39128*SUM(D4:D4)^(-0.37661)),IF(SUM(D4:D4)<5000,18893*SUM(D4:D4)^(-0.28083),IF(SUM(D4:D4)<100000,29680*SUM(D4:D4)^(-0.24475),1773.1))))*100/115)*SUM(D4:D4)*1,0)*1.15*1.06)*(1+Genanskaffelsespriser!$D$389)/SUM(D4:D4)),"Fejl") -> 0 | F4: =D4*E4 -> 0 | G4: =F4/C4 -> 0
A5: Anlæg >= 5.000 PE, Vandbehandling
A6: =+Genanskaffelsespriser!$B$7 -> Indløb med riste, Konstruktioner | B6: PE | C6: =Genanskaffelsespriser!$E$7 -> 60 | D6: 0 | E6: =IF(COUNTIF(D6:D6,"<>0")<=1,IF(SUM(D6:D6)=0,0,(IF(SUM(D6:D6)>0,IF(SUM(D6:D6)<400,(1.2675*45967*SUM(D6:D6)^(-0.4664)),(IF(SUM(D6:D6)<2000,(39128*SUM(D6:D6)^(-0.37661)),IF(SUM(D6:D6)<5000,18893*SUM(D6:D6)^(-0.28083),IF(SUM(D6:D6)<100000,29680*SUM(D6:D6)^(-0.24475),1773.1))))*100/115)*SUM(D6:D6)*0.061,0)*1.15*1.06*0.55)*(1+Genanskaffelsespriser!$D$389)/SUM(D6:D6)),"Fejl") -> 0 | F6: =D6*E6 -> 0 | G6: =F6/C6 -> 0
A7: =+Genanskaffelsespriser!$B$8 -> Indløb med riste, Mek/EL | B7: PE | C7: =Genanskaffelsespriser!$E$8 -> 20 | D7: 0 | E7: =IF(COUNTIF(D7:D7,"<>0")<=1,IF(SUM(D7:D7)=0,0,(IF(SUM(D7:D7)>0,IF(SUM(D7:D7)<400,(1.2675*45967*SUM(D7:D7)^(-0.4664)),(IF(SUM(D7:D7)<2000,(39128*SUM(D7:D7)^(-0.37661)),IF(SUM(D7:D7)<5000,18893*SUM(D7:D7)^(-0.28083),IF(SUM(D7:D7)<100000,29680*SUM(D7:D7)^(-0.24475),1773.1))))*100/115)*SUM(D7:D7)*0.061,0)*1.15*1.06*0.43)/SUM(D7:D7)),"Fejl") -> 0 | F7: =D7*E7 -> 0 | G7: =F7/C7 -> 0
A8: =+Genanskaffelsespriser!$B$9 -> Indløb med riste, SRO | B8: PE | C8: =Genanskaffelsespriser!$E$9 -> 10 | D8: 0 | E8: =IF(COUNTIF(D8:D8,"<>0")<=1,IF(SUM(D8:D8)=0,0,(IF(SUM(D8:D8)>0,IF(SUM(D8:D8)<400,(1.2675*45967*SUM(D8:D8)^(-0.4664)),(IF(SUM(D8:D8)<2000,(39128*SUM(D8:D8)^(-0.37661)),IF(SUM(D8:D8)<5000,18893*SUM(D8:D8)^(-0.28083),IF(SUM(D8:D8)<100000,29680*SUM(D8:D8)^(-0.24475),1773.1))))*100/115)*SUM(D8:D8)*0.061,0)*1.15*1.06*0.02)/SUM(D8:D8)),"Fejl") -> 0 | F8: 0 | G8: 0
A9: =+Genanskaffelsespriser!$B$10 -> Sand- og fedtfang, Kontruktioner | B9: PE | C9: =Genanskaffelsespriser!$E$10 -> 60 | D9: 0 | E9: =IF(COUNTIF(D9:D9,"<>0")<=1,IF(SUM(D9:D9)=0,0,(IF(SUM(D9:D9)>0,IF(SUM(D9:D9)<400,(1.2675*45967*SUM(D9:D9)^(-0.4664)),(IF(SUM(D9:D9)<2000,(39128*SUM(D9:D9)^(-0.37661)),IF(SUM(D9:D9)<5000,18893*SUM(D9:D9)^(-0.28083),IF(SUM(D9:D9)<100000,29680*SUM(D9:D9)^(-0.24475),1773.1))))*100/115)*SUM(D9:D9)*0.0173,0)*1.15*1.06*0.55)*(1+Genanskaffelsespriser!$D$389)/SUM(D9:D9)),"Fejl") -> 0 | F9: 0 | G9: 0
A10: =+Genanskaffelsespriser!$B$11 -> Sand- og fedtfang, Mek/EL | B10: PE | C10: =Genanskaffelsespriser!$E$11 -> 20 | D10: 0 | E10: =IF(COUNTIF(D10:D10,"<>0")<=1,IF(SUM(D10:D10)=0,0,(IF(SUM(D10:D10)>0,IF(SUM(D10:D10)<400,(1.2675*45967*SUM(D10:D10)^(-0.4664)),(IF(SUM(D10:D10)<2000,(39128*SUM(D10:D10)^(-0.37661)),IF(SUM(D10:D10)<5000,18893*SUM(D10:D10)^(-0.28083),IF(SUM(D10:D10)<100000,29680*SUM(D10:D10)^(-0.24475),1773.1))))*100/115)*SUM(D10:D10)*0.0173,0)*1.15*1.06*0.43)/SUM(D10:D10)),"Fejl") -> 0 | F10: 0 | G10: 0
A11: =+Genanskaffelsespriser!$B$12 -> Sand- og fedtfang, SRO | B11: PE | C11: =Genanskaffelsespriser!$E$12 -> 10 | D11: 0 | E11: =IF(COUNTIF(D11:D11,"<>0")<=1,IF(SUM(D11:D11)=0,0,(IF(SUM(D11:D11)>0,IF(SUM(D11:D11)<400,(1.2675*45967*SUM(D11:D11)^(-0.4664)),(IF(SUM(D11:D11)<2000,(39128*SUM(D11:D11)^(-0.37661)),IF(SUM(D11:D11)<5000,18893*SUM(D11:D11)^(-0.28083),IF(SUM(D11:D11)<100000,29680*SUM(D11:D11)^(-0.24475),1773.1))))*100/115)*SUM(D11:D11)*0.0173,0)*1.15*1.06*0.02)/SUM(D11:D11)),"Fejl") -> 0 | F11: 0 | G11: 0
A12: =+Genanskaffelsespriser!$B$13 -> Forklaring, Konstruktioner | B12: PE | C12: =Genanskaffelsespriser!$E$13 -> 60 | D12: 0 | E12: =IF(COUNTIF(D12:D12,"<>0")<=1,IF(SUM(D12:D12)=0,0,(IF(SUM(D12:D12)>0,IF(SUM(D12:D12)<400,(1.2675*45967*SUM(D12:D12)^(-0.4664)),(IF(SUM(D12:D12)<2000,(39128*SUM(D12:D12)^(-0.37661)),IF(SUM(D12:D12)<5000,18893*SUM(D12:D12)^(-0.28083),IF(SUM(D12:D12)<100000,29680*SUM(D12:D12)^(-0.24475),1773.1))))*100/115)*SUM(D12:D12)*(IF(SUM(D12:D12)>0,0.0538,0)),0)*1.15*1.06*0.6)*(1+Genanskaffelsespriser!$D$389)/SUM(D12:D12)),"Fejl") -> 0 | F12: 0 | G12: 0
A13: =+Genanskaffelsespriser!$B$14 -> Forklaring, Mek/EL | B13: PE | C13: =Genanskaffelsespriser!$E$14 -> 20 | D13: 0 | E13: =IF(COUNTIF(D13:D13,"<>0")<=1,IF(SUM(D13:D13)=0,0,(IF(SUM(D13:D13)>0,IF(SUM(D13:D13)<400,(1.2675*45967*SUM(D13:D13)^(-0.4664)),(IF(SUM(D13:D13)<2000,(39128*SUM(D13:D13)^(-0.37661)),IF(SUM(D13:D13)<5000,18893*SUM(D13:D13)^(-0.28083),IF(SUM(D13:D13)<100000,29680*SUM(D13:D13)^(-0.24475),1773.1))))*100/115)*SUM(D13:D13)*(IF(SUM(D13:D13)>0,0.0538,0)),0)*1.15*1.06*0.39)/SUM(D13:D13)),"Fejl") -> 0 | F13: 0 | G13: 0
A14: =+Genanskaffelsespriser!$B$15 -> Forklaring, SRO | B14: PE | C14: =Genanskaffelsespriser!$E$15 -> 10 | D14: 0 | E14: =IF(COUNTIF(D14:D14,"<>0")<=1,IF(SUM(D14:D14)=0,0,(IF(SUM(D14:D14)>0,IF(SUM(D14:D14)<400,(1.2675*45967*SUM(D14:D14)^(-0.4664)),(IF(SUM(D14:D14)<2000,(39128*SUM(D14:D14)^(-0.37661)),IF(SUM(D14:D14)<5000,18893*SUM(D14:D14)^(-0.28083),IF(SUM(D14:D14)<100000,29680*SUM(D14:D14)^(-0.24475),1773.1))))*100/115)*SUM(D14:D14)*(IF(SUM(D14:D14)>0,0.0538,0)),0)*1.15*1.06*0.01)/SUM(D14:D14)),"Fejl") -> 0 | F14: 0 | G14: 0
A15: =+Genanskaffelsespriser!$B$16 -> Beluftningstanke, Konstruktioner | B15: PE | C15: =Genanskaffelsespriser!$E$16 -> 60 | D15: 0 | E15: =IF(COUNTIF(D15:D15,"<>0")<=1,IF(SUM(D15:D15)=0,0,(IF(SUM(D15:D15)>0,IF(SUM(D15:D15)<400,(1.2675*45967*SUM(D15:D15)^(-0.4664)),(IF(SUM(D15:D15)<2000,(39128*SUM(D15:D15)^(-0.37661)),IF(SUM(D15:D15)<5000,18893*SUM(D15:D15)^(-0.28083),IF(SUM(D15:D15)<100000,29680*SUM(D15:D15)^(-0.24475),1773.1))))*100/115)*SUM(D15:D15)*(IF(SUM(D12:D12)>0,0.3551,0.5283)),0)*1.15*1.06*0.54)*(1+Genanskaffelsespriser!$D$389)/SUM(D15:D15)),"Fejl") -> 0 | F15: 0 | G15: 0
A16: =+Genanskaffelsespriser!$B$17 -> Beluftningstanke, Mek/EL | B16: PE | C16: =Genanskaffelsespriser!$E$17 -> 20 | D16: 0 | E16: =IF(COUNTIF(D16:D16,"<>0")<=1,IF(SUM(D16:D16)=0,0,(IF(SUM(D16:D16)>0,IF(SUM(D16:D16)<400,(1.2675*45967*SUM(D16:D16)^(-0.4664)),(IF(SUM(D16:D16)<2000,(39128*SUM(D16:D16)^(-0.37661)),IF(SUM(D16:D16)<5000,18893*SUM(D16:D16)^(-0.28083),IF(SUM(D16:D16)<100000,29680*SUM(D16:D16)^(-0.24475),1773.1))))*100/115)*SUM(D16:D16)*(IF(SUM(D13:D13)>0,0.3551,0.5283)),0)*1.15*1.06*0.4)/SUM(D16:D16)),$A$73) -> 0 | F16: 0 | G16: 0
A17: =+Genanskaffelsespriser!$B$18 -> Beluftningstanke, SRO | B17: PE | C17: =Genanskaffelsespriser!$E$18 -> 10 | D17: 0 | E17: =IF(COUNTIF(D17:D17,"<>0")<=1,IF(SUM(D17:D17)=0,0,(IF(SUM(D17:D17)>0,IF(SUM(D17:D17)<400,(1.2675*45967*SUM(D17:D17)^(-0.4664)),(IF(SUM(D17:D17)<2000,(39128*SUM(D17:D17)^(-0.37661)),IF(SUM(D17:D17)<5000,18893*SUM(D17:D17)^(-0.28083),IF(SUM(D17:D17)<100000,29680*SUM(D17:D17)^(-0.24475),1773.1))))*100/115)*SUM(D17:D17)*(IF(SUM(D14:D14)>0,0.3551,0.5283)),0)*1.15*1.06*0.06)/SUM(D17:D17)),"FEJL") -> 0 | F17: 0 | G17: 0
A18: =+Genanskaffelsespriser!$B$19 -> Efterklaringstanke, Konstruktioner | B18: PE | C18: =Genanskaffelsespriser!$E$19 -> 60 | D18: 0 | E18: =IF(COUNTIF(D18:D18,"<>0")<=1,IF(SUM(D18:D18)=0,0,(IF(SUM(D18:D18)>0,IF(SUM(D18:D18)<400,(1.2675*45967*SUM(D18:D18)^(-0.4664)),(IF(SUM(D18:D18)<2000,(39128*SUM(D18:D18)^(-0.37661)),IF(SUM(D18:D18)<5000,18893*SUM(D18:D18)^(-0.28083),IF(SUM(D18:D18)<100000,29680*SUM(D18:D18)^(-0.24475),1773.1))))*100/115)*SUM(D18:D18)*(IF(SUM(D12:D12)>0,0.2965,0.2971)),0)*1.15*1.06*0.58)*(1+Genanskaffelsespriser!$D$389)/SUM(D18:D18)),"Fejl") -> 0 | F18: 0 | G18: 0
A19: =+Genanskaffelsespriser!$B$20 -> Efterklaringstanke, Mek/El | B19: PE | C19: =Genanskaffelsespriser!$E$20 -> 20 | D19: 0 | E19: =IF(COUNTIF(D19:D19,"<>0")<=1,IF(SUM(D19:D19)=0,0,(IF(SUM(D19:D19)>0,IF(SUM(D19:D19)<400,(1.2675*45967*SUM(D19:D19)^(-0.4664)),(IF(SUM(D19:D19)<2000,(39128*SUM(D19:D19)^(-0.37661)),IF(SUM(D19:D19)<5000,18893*SUM(D19:D19)^(-0.28083),IF(SUM(D19:D19)<100000,29680*SUM(D19:D19)^(-0.24475),1773.1))))*100/115)*SUM(D19:D19)*(IF(SUM(D13:D13)>0,0.2965,0.2971)),0)*1.15*1.06*0.37)/SUM(D19:D19)),"Fejl") -> 0 | F19: 0 | G19: 0
A20: =+Genanskaffelsespriser!$B$21 -> Efterklaringstanke, SRO | B20: PE | C20: =Genanskaffelsespriser!$E$21 -> 10 | D20: 0 | E20: =IF(COUNTIF(D20:D20,"<>0")<=1,IF(SUM(D20:D20)=0,0,(IF(SUM(D20:D20)>0,IF(SUM(D20:D20)<400,(1.2675*45967*SUM(D20:D20)^(-0.4664)),(IF(SUM(D20:D20)<2000,(39128*SUM(D20:D20)^(-0.37661)),IF(SUM(D20:D20)<5000,18893*SUM(D20:D20)^(-0.28083),IF(SUM(D20:D20)<100000,29680*SUM(D20:D20)^(-0.24475),1773.1))))*100/115)*SUM(D20:D20)*(IF(SUM(D14:D14)>0,0.2965,0.2971)),0)*1.15*1.06*0.05)/SUM(D20:D20)),"Fejl") -> 0 | F20: 0 | G20: 0
A21: =+Genanskaffelsespriser!$B$22 -> Efterbehandlingsanlæg (sandfilter), Konstruktioner | B21: PE | C21: =Genanskaffelsespriser!$E$22 -> 60 | D21: 0 | E21: =IF(COUNTIF(D21:D21,"<>0")<=1,IF(SUM(D21:D21)=0,0,(IF(SUM(D21:D21)>0,IF(SUM(D21:D21)<400,(1.2675*45967*SUM(D21:D21)^(-0.4664)),(IF(SUM(D21:D21)<2000,(39128*SUM(D21:D21)^(-0.37661)),IF(SUM(D21:D21)<5000,18893*SUM(D21:D21)^(-0.28083),IF(SUM(D21:D21)<100000,29680*SUM(D21:D21)^(-0.24475),1773.1))))*100/115)*SUM(D21:D21)*(0.246),0)*1.15*1.06*0.55)*(1+Genanskaffelsespriser!$D$389)/SUM(D21:D21)),"Fejl") -> 0 | F21: 0 | G21: 0
A22: =+Genanskaffelsespriser!$B$23 -> Efterbehandlingsanlæg (sandfilter), Mek/EL | B22: PE | C22: =Genanskaffelsespriser!$E$23 -> 20 | D22: 0 | E22: =IF(COUNTIF(D22:D22,"<>0")<=1,IF(SUM(D22:D22)=0,0,(IF(SUM(D22:D22)>0,IF(SUM(D22:D22)<400,(1.2675*45967*SUM(D22:D22)^(-0.4664)),(IF(SUM(D22:D22)<2000,(39128*SUM(D22:D22)^(-0.37661)),IF(SUM(D22:D22)<5000,18893*SUM(D22:D22)^(-0.28083),IF(SUM(D22:D22)<100000,29680*SUM(D22:D22)^(-0.24475),1773.1))))*100/115)*SUM(D22:D22)*(0.246),0)*1.15*1.06*0.4)/SUM(D22:D22)),"Fejl") -> 0 | F22: 0 | G22: 0
A23: =+Genanskaffelsespriser!$B$24 -> Efterbehandlingsanlæg (sandfilter), SRO | B23: PE | C23: =Genanskaffelsespriser!$E$24 -> 10 | D23: 0 | E23: =IF(COUNTIF(D23:D23,"<>0")<=1,IF(SUM(D23:D23)=0,0,(IF(SUM(D23:D23)>0,IF(SUM(D23:D23)<400,(1.2675*45967*SUM(D23:D23)^(-0.4664)),(IF(SUM(D23:D23)<2000,(39128*SUM(D23:D23)^(-0.37661)),IF(SUM(D23:D23)<5000,18893*SUM(D23:D23)^(-0.28083),IF(SUM(D23:D23)<100000,29680*SUM(D23:D23)^(-0.24475),1773.1))))*100/115)*SUM(D23:D23)*(0.246),0)*1.15*1.06*0.05)/SUM(D23:D23)),"Fejl") -> 0 | F23: 0 | G23: 0
A24: Anlæg >= 5.000 PE, Slambehandling
A25: =+Genanskaffelsespriser!$B$26 -> Forafvanding, slam, Konstruktion | B25: PE | C25: =Genanskaffelsespriser!$E$26 -> 60 | D25: 0 | E25: =IF(COUNTIF(D25:D25,"<>0")<=1,IF(SUM(D25:D25)=0,0,(IF(SUM(D25:D25)>0,IF(SUM(D25:D25)<400,(1.2675*45967*SUM(D25:D25)^(-0.4664)),(IF(SUM(D25:D25)<2000,(39128*SUM(D25:D25)^(-0.37661)),IF(SUM(D25:D25)<5000,18893*SUM(D25:D25)^(-0.28083),IF(SUM(D25:D25)<100000,29680*SUM(D25:D25)^(-0.24475),1773.1))))*100/115)*SUM(D25:D25)*(IF(SUM(D12:D12)>0,0.0238,0.0186)),0)*1.15*1.06*0.52)*(1+Genanskaffelsespriser!$D$389)/SUM(D25:D25)),"Fejl") -> 0 | F25: 0 | G25: 0
A26: =+Genanskaffelsespriser!$B$27 -> Forafvanding, slam, Mek/EL | B26: PE | C26: =Genanskaffelsespriser!$E$27 -> 20 | D26: 0 | E26: =IF(COUNTIF(D26:D26,"<>0")<=1,IF(SUM(D26:D26)=0,0,(IF(SUM(D26:D26)>0,IF(SUM(D26:D26)<400,(1.2675*45967*SUM(D26:D26)^(-0.4664)),(IF(SUM(D26:D26)<2000,(39128*SUM(D26:D26)^(-0.37661)),IF(SUM(D26:D26)<5000,18893*SUM(D26:D26)^(-0.28083),IF(SUM(D26:D26)<100000,29680*SUM(D26:D26)^(-0.24475),1773.1))))*100/115)*SUM(D26:D26)*(IF(SUM(D13:D13)>0,0.0238,0.0186)),0)*1.15*1.06*0.45)/SUM(D26:D26)),"Fejl") -> 0 | F26: 0 | G26: 0
A27: =+Genanskaffelsespriser!$B$28 -> Forafvanding, slam, SRO | B27: PE | C27: =Genanskaffelsespriser!$E$28 -> 10 | D27: 0 | E27: =IF(COUNTIF(D27:D27,"<>0")<=1,IF(SUM(D27:D27)=0,0,(IF(SUM(D27:D27)>0,IF(SUM(D27:D27)<400,(1.2675*45967*SUM(D27:D27)^(-0.4664)),(IF(SUM(D27:D27)<2000,(39128*SUM(D27:D27)^(-0.37661)),IF(SUM(D27:D27)<5000,18893*SUM(D27:D27)^(-0.28083),IF(SUM(D27:D27)<100000,29680*SUM(D27:D27)^(-0.24475),1773.1))))*100/115)*SUM(D27:D27)*(IF(SUM(D14:D14)>0,0.0238,0.0186)),0)*1.15*1.06*0.03)/SUM(D27:D27)),"Fejl") -> 0 | F27: 0 | G27: 0
A28: =+Genanskaffelsespriser!$B$29 -> Rådnetanke, slam, Konstruktioner | B28: PE | C28: =Genanskaffelsespriser!$E$29 -> 60 | D28: 0 | E28: =IF(COUNTIF(D28:D28,"<>0")<=1,IF(SUM(D28:D28)=0,0,(IF(SUM(D28:D28)>0,IF(SUM(D28:D28)<400,(1.2675*45967*SUM(D28:D28)^(-0.4664)),(IF(SUM(D28:D28)<2000,(39128*SUM(D28:D28)^(-0.37661)),IF(SUM(D28:D28)<5000,18893*SUM(D28:D28)^(-0.28083),IF(SUM(D28:D28)<100000,29680*SUM(D28:D28)^(-0.24475),1773.1))))*100/115)*SUM(D28:D28)*0.1638,0)*1.15*1.06*0.55)*(1+Genanskaffelsespriser!$D$389)/SUM(D28:D28)),"Fejl") -> 0 | F28: 0 | G28: 0
A29: =+Genanskaffelsespriser!$B$30 -> Rådnetanke, slam, Mek/EL | B29: PE | C29: =Genanskaffelsespriser!$E$30 -> 20 | D29: 0 | E29: =IF(COUNTIF(D29:D29,"<>0")<=1,IF(SUM(D29:D29)=0,0,(IF(SUM(D29:D29)>0,IF(SUM(D29:D29)<400,(1.2675*45967*SUM(D29:D29)^(-0.4664)),(IF(SUM(D29:D29)<2000,(39128*SUM(D29:D29)^(-0.37661)),IF(SUM(D29:D29)<5000,18893*SUM(D29:D29)^(-0.28083),IF(SUM(D29:D29)<100000,29680*SUM(D29:D29)^(-0.24475),1773.1))))*100/115)*SUM(D29:D29)*0.1638,0)*1.15*1.06*0.4)/SUM(D29:D29)),"Fejl") -> 0 | F29: 0 | G29: 0
A30: =+Genanskaffelsespriser!$B$31 -> Rådnetanke, slam, SRO | B30: PE | C30: =Genanskaffelsespriser!$E$31 -> 10 | D30: 0 | E30: =IF(COUNTIF(D30:D30,"<>0")<=1,IF(SUM(D30:D30)=0,0,(IF(SUM(D30:D30)>0,IF(SUM(D30:D30)<400,(1.2675*45967*SUM(D30:D30)^(-0.4664)),(IF(SUM(D30:D30)<2000,(39128*SUM(D30:D30)^(-0.37661)),IF(SUM(D30:D30)<5000,18893*SUM(D30:D30)^(-0.28083),IF(SUM(D30:D30)<100000,29680*SUM(D30:D30)^(-0.24475),1773.1))))*100/115)*SUM(D30:D30)*0.1638,0)*1.15*1.06*0.05)/SUM(D30:D30)),"Fejl") -> 0 | F30: 0 | G30: 0
A31: =+Genanskaffelsespriser!$B$32 -> Gasdisponering, Konstruktioner | B31: PE | C31: =Genanskaffelsespriser!$E$32 -> 60 | D31: 0 | E31: =IF(COUNTIF(D31:D31,"<>0")<=1,IF(SUM(D31:D31)=0,0,(IF(SUM(D31:D31)>0,IF(SUM(D31:D31)<400,(1.2675*45967*SUM(D31:D31)^(-0.4664)),(IF(SUM(D31:D31)<2000,(39128*SUM(D31:D31)^(-0.37661)),IF(SUM(D31:D31)<5000,18893*SUM(D31:D31)^(-0.28083),IF(SUM(D31:D31)<100000,29680*SUM(D31:D31)^(-0.24475),1773.1))))*100/115)*SUM(D31:D31)*(IF(SUM(D28:D28)>0,0.0257,0)),0)*1.15*1.06*0.94)*(1+Genanskaffelsespriser!$D$389)/SUM(D31:D31)),"Fejl") -> 0 | F31: 0 | G31: 0
A32: =+Genanskaffelsespriser!$B$33 -> Gasdisponering, Mek/EL | B32: PE | C32: =Genanskaffelsespriser!$E$33 -> 20 | D32: 0 | E32: =IF(COUNTIF(D32:D32,"<>0")<=1,IF(SUM(D32:D32)=0,0,(IF(SUM(D32:D32)>0,IF(SUM(D32:D32)<400,(1.2675*45967*SUM(D32:D32)^(-0.4664)),(IF(SUM(D32:D32)<2000,(39128*SUM(D32:D32)^(-0.37661)),IF(SUM(D32:D32)<5000,18893*SUM(D32:D32)^(-0.28083),IF(SUM(D32:D32)<100000,29680*SUM(D32:D32)^(-0.24475),1773.1))))*100/115)*SUM(D32:D32)*(IF(SUM(D29:D29)>0,0.0257,0)),0)*1.15*1.06*0.05)/SUM(D32:D32)),"Fejl") -> 0 | F32: 0 | G32: 0
A33: =+Genanskaffelsespriser!$B$34 -> Gasdisponering, SRO | B33: PE | C33: =Genanskaffelsespriser!$E$34 -> 10 | D33: 0 | E33: =IF(COUNTIF(D33:D33,"<>0")<=1,IF(SUM(D33:D33)=0,0,(IF(SUM(D33:D33)>0,IF(SUM(D33:D33)<400,(1.2675*45967*SUM(D33:D33)^(-0.4664)),(IF(SUM(D33:D33)<2000,(39128*SUM(D33:D33)^(-0.37661)),IF(SUM(D33:D33)<5000,18893*SUM(D33:D33)^(-0.28083),IF(SUM(D33:D33)<100000,29680*SUM(D33:D33)^(-0.24475),1773.1))))*100/115)*SUM(D33:D33)*(IF(SUM(D30:D30)>0,0.0257,0)),0)*1.15*1.06*0.01)/SUM(D33:D33)),"Fejl") -> 0 | F33: 0 | G33: 0
A34: =+Genanskaffelsespriser!$B$35 -> Gasdisponering - elproduktionsanlæg, Konstruktioner | B34: PE | C34: =Genanskaffelsespriser!$E$35 -> 60 | D34: 0 | E34: =IF(COUNTIF(D34:D34,"<>0")<=1,IF(SUM(D34:D34)=0,0,(IF(SUM(D34:D34)>0,IF(SUM(D34:D34)<400,(1.2675*45967*SUM(D34:D34)^(-0.4664)),(IF(SUM(D34:D34)<2000,(39128*SUM(D34:D34)^(-0.37661)),IF(SUM(D34:D34)<5000,18893*SUM(D34:D34)^(-0.28083),IF(SUM(D34:D34)<100000,29680*SUM(D34:D34)^(-0.24475),1773.1))))*100/115)*SUM(D34:D34)*(IF(SUM(D28:D28)>0,0.0257,0)),0)*1.15*1.06*0.25)*(1+Genanskaffelsespriser!$D$389)/SUM(D34:D34)),"Fejl") -> 0 | F34: 0 | G34: 0
A35: =+Genanskaffelsespriser!$B$36 -> Gasdisponering - elproduktionsanlæg, Mek/EL | B35: PE | C35: =Genanskaffelsespriser!$E$36 -> 20 | D35: 0 | E35: =IF(COUNTIF(D35:D35,"<>0")<=1,IF(SUM(D35:D35)=0,0,(IF(SUM(D35:D35)>0,IF(SUM(D35:D35)<400,(1.2675*45967*SUM(D35:D35)^(-0.4664)),(IF(SUM(D35:D35)<2000,(39128*SUM(D35:D35)^(-0.37661)),IF(SUM(D35:D35)<5000,18893*SUM(D35:D35)^(-0.28083),IF(SUM(D35:D35)<100000,29680*SUM(D35:D35)^(-0.24475),1773.1))))*100/115)*SUM(D35:D35)*(IF(SUM(D29:D29)>0,0.0257,0)),0)*1.15*1.06*0.72)/SUM(D35:D35)),"Fejl") -> 0 | F35: 0 | G35: 0
A36: =+Genanskaffelsespriser!$B$37 -> Gasdisponering - elproduktionsanlæg, SRO | B36: PE | C36: =Genanskaffelsespriser!$E$37 -> 10 | D36: 0 | E36: =IF(COUNTIF(D36:D36,"<>0")<=1,IF(SUM(D36:D36)=0,0,(IF(SUM(D36:D36)>0,IF(SUM(D36:D36)<400,(1.2675*45967*SUM(D36:D36)^(-0.4664)),(IF(SUM(D36:D36)<2000,(39128*SUM(D36:D36)^(-0.37661)),IF(SUM(D36:D36)<5000,18893*SUM(D36:D36)^(-0.28083),IF(SUM(D36:D36)<100000,29680*SUM(D36:D36)^(-0.24475),1773.1))))*100/115)*SUM(D36:D36)*(IF(SUM(D30:D30)>0,0.0257,0)),0)*1.15*1.06*0.03)/SUM(D36:D36)),"Fejl") -> 0 | F36: 0 | G36: 0
A37: =+Genanskaffelsespriser!$B$38 -> Slutafvanding, slam - lavteknologisk (slambede), Konstruktioner | B37: PE | C37: =Genanskaffelsespriser!$E$38 -> 60 | D37: 0 | E37: =IF(COUNTIF(D37:D37,"<>0")<=1,IF(SUM(D37:D37)=0,0,(IF(SUM(D37:D37)>0,IF(SUM(D37:D37)<400,(1.2675*45967*SUM(D37:D37)^(-0.4664)),(IF(SUM(D37:D37)<2000,(39128*SUM(D37:D37)^(-0.37661)),IF(SUM(D37:D37)<5000,18893*SUM(D37:D37)^(-0.28083),IF(SUM(D37:D37)<100000,29680*SUM(D37:D37)^(-0.24475),1773.1))))*100/115)*SUM(D37:D37)*(IF(SUM(D28:D28)>0,0.046,0.0531)),0)*1.15*1.06*0.85)*(1+Genanskaffelsespriser!$D$389)/SUM(D37:D37)),"Fejl") -> 0 | F37: 0 | G37: 0
A38: =+Genanskaffelsespriser!$B$39 -> Slutafvanding, slam - lavteknologisk (slambede), Mek/EL | B38: PE | C38: =Genanskaffelsespriser!$E$39 -> 20 | D38: 0 | E38: =IF(COUNTIF(D38:D38,"<>0")<=1,IF(SUM(D38:D38)=0,0,(IF(SUM(D38:D38)>0,IF(SUM(D38:D38)<400,(1.2675*45967*SUM(D38:D38)^(-0.4664)),(IF(SUM(D38:D38)<2000,(39128*SUM(D38:D38)^(-0.37661)),IF(SUM(D38:D38)<5000,18893*SUM(D38:D38)^(-0.28083),IF(SUM(D38:D38)<100000,29680*SUM(D38:D38)^(-0.24475),1773.1))))*100/115)*SUM(D38:D38)*(IF(SUM(D29:D29)>0,0.046,0.0531)),0)*1.15*1.06*0.14)/SUM(D38:D38)),"Fejl") -> 0 | F38: 0 | G38: 0
A39: =+Genanskaffelsespriser!$B$40 -> Slutafvanding, slam - lavteknologisk (slambede), SRO | B39: PE | C39: =Genanskaffelsespriser!$E$40 -> 10 | D39: 0 | E39: =IF(COUNTIF(D39:D39,"<>0")<=1,IF(SUM(D39:D39)=0,0,(IF(SUM(D39:D39)>0,IF(SUM(D39:D39)<400,(1.2675*45967*SUM(D39:D39)^(-0.4664)),(IF(SUM(D39:D39)<2000,(39128*SUM(D39:D39)^(-0.37661)),IF(SUM(D39:D39)<5000,18893*SUM(D39:D39)^(-0.28083),IF(SUM(D39:D39)<100000,29680*SUM(D39:D39)^(-0.24475),1773.1))))*100/115)*SUM(D39:D39)*(IF(SUM(D30:D30)>0,0.046,0.0531)),0)*1.15*1.06*0.01)/SUM(D39:D39)),"Fejl") -> 0 | F39: 0 | G39: 0
A40: =+Genanskaffelsespriser!$B$41 -> Slutafvanding, slam - højteknologisk (centrifuger), Konstruktioner | B40: PE | C40: =Genanskaffelsespriser!$E$41 -> 60 | D40: 0 | E40: =IF(COUNTIF(D40:D40,"<>0")<=1,IF(SUM(D40:D40)=0,0,(IF(SUM(D40:D40)>0,IF(SUM(D40:D40)<400,(1.2675*45967*SUM(D40:D40)^(-0.4664)),(IF(SUM(D40:D40)<2000,(39128*SUM(D40:D40)^(-0.37661)),IF(SUM(D40:D40)<5000,18893*SUM(D40:D40)^(-0.28083),IF(SUM(D40:D40)<100000,29680*SUM(D40:D40)^(-0.24475),1773.1))))*100/115)*SUM(D40:D40)*(IF(SUM(D28:D28)>0,0.0722,0.0776)),0)*1.15*1.06*0.49)*(1+Genanskaffelsespriser!$D$389)/SUM(D40:D40)),"Fejl") -> 0 | F40: 0 | G40: 0
A41: =+Genanskaffelsespriser!$B$42 -> Slutafvanding, slam - højteknologisk (centrifuger), Mek/El | B41: PE | C41: =Genanskaffelsespriser!$E$42 -> 20 | D41: 0 | E41: =IF(COUNTIF(D41:D41,"<>0")<=1,IF(SUM(D41:D41)=0,0,(IF(SUM(D41:D41)>0,IF(SUM(D41:D41)<400,(1.2675*45967*SUM(D41:D41)^(-0.4664)),(IF(SUM(D41:D41)<2000,(39128*SUM(D41:D41)^(-0.37661)),IF(SUM(D41:D41)<5000,18893*SUM(D41:D41)^(-0.28083),IF(SUM(D41:D41)<100000,29680*SUM(D41:D41)^(-0.24475),1773.1))))*100/115)*SUM(D41:D41)*(IF(SUM(D29:D29)>0,0.0722,0.0776)),0)*1.15*1.06*0.47)/SUM(D41:D41)),"Fejl") -> 0 | F41: 0 | G41: 0
A42: =+Genanskaffelsespriser!$B$43 -> Slutafvanding, slam - højteknologisk (centrifuger), SRO | B42: PE | C42: =Genanskaffelsespriser!$E$43 -> 10 | D42: 0 | E42: =IF(COUNTIF(D42:D42,"<>0")<=1,IF(SUM(D42:D42)=0,0,(IF(SUM(D42:D42)>0,IF(SUM(D42:D42)<400,(1.2675*45967*SUM(D42:D42)^(-0.4664)),(IF(SUM(D42:D42)<2000,(39128*SUM(D42:D42)^(-0.37661)),IF(SUM(D42:D42)<5000,18893*SUM(D42:D42)^(-0.28083),IF(SUM(D42:D42)<100000,29680*SUM(D42:D42)^(-0.24475),1773.1))))*100/115)*SUM(D42:D42)*(IF(SUM(D30:D30)>0,0.0722,0.0776)),0)*1.15*1.06*0.04)/SUM(D42:D42)),"Fejl") -> 0 | F42: 0 | G42: 0
A43: Anlæg >= 5.000 PE, Slamdisponering
A44: =+Genanskaffelsespriser!$B$45 -> Slutdisponering, slam - lavteknologisk (slammineralisering), Konstruktioner | B44: PE | C44: =Genanskaffelsespriser!$E$45 -> 60 | D44: 0 | E44: =IF(COUNTIF(D44:D44,"<>0")<=1,IF(SUM(D44:D44)=0,0,(IF(SUM(D44:D44)>0,IF(SUM(D44:D44)<400,(1.2675*45967*SUM(D44:D44)^(-0.4664)),(IF(SUM(D44:D44)<2000,(39128*SUM(D44:D44)^(-0.37661)),IF(SUM(D44:D44)<5000,18893*SUM(D44:D44)^(-0.28083),IF(SUM(D44:D44)<100000,29680*SUM(D44:D44)^(-0.24475),1773.1))))*100/115)*SUM(D44:D44)*(IF(SUM(D28:D28)>0,0.2191,0.2778)),0)*1.15*1.06*0.8)*(1+Genanskaffelsespriser!$D$389)/SUM(D44:D44)),"Fejl") -> 0 | F44: 0 | G44: 0
A45: =+Genanskaffelsespriser!$B$46 -> Slutdisponering, slam - lavteknologisk (slammineralisering), Mek/EL | B45: PE | C45: =Genanskaffelsespriser!$E$46 -> 20 | D45: 0 | E45: =IF(COUNTIF(D45:D45,"<>0")<=1,IF(SUM(D45:D45)=0,0,(IF(SUM(D45:D45)>0,IF(SUM(D45:D45)<400,(1.2675*45967*SUM(D45:D45)^(-0.4664)),(IF(SUM(D45:D45)<2000,(39128*SUM(D45:D45)^(-0.37661)),IF(SUM(D45:D45)<5000,18893*SUM(D45:D45)^(-0.28083),IF(SUM(D45:D45)<100000,29680*SUM(D45:D45)^(-0.24475),1773.1))))*100/115)*SUM(D45:D45)*(IF(SUM(D29:D29)>0,0.2191,0.2778)),0)*1.15*1.06*0.14)/SUM(D45:D45)),"Fejl") -> 0 | F45: 0 | G45: 0
A46: =+Genanskaffelsespriser!$B$47 -> Slutdisponering, slam - lavteknologisk (slammineralisering), SRO | B46: PE | C46: =Genanskaffelsespriser!$E$47 -> 10 | D46: 0 | E46: =IF(COUNTIF(D46:D46,"<>0")<=1,IF(SUM(D46:D46)=0,0,(IF(SUM(D46:D46)>0,IF(SUM(D46:D46)<400,(1.2675*45967*SUM(D46:D46)^(-0.4664)),(IF(SUM(D46:D46)<2000,(39128*SUM(D46:D46)^(-0.37661)),IF(SUM(D46:D46)<5000,18893*SUM(D46:D46)^(-0.28083),IF(SUM(D46:D46)<100000,29680*SUM(D46:D46)^(-0.24475),1773.1))))*100/115)*SUM(D46:D46)*(IF(SUM(D30:D30)>0,0.2191,0.2778)),0)*1.15*1.06*0.06)/SUM(D46:D46)),"Fejl") -> 0 | F46: 0 | G46: 0
A47: =+Genanskaffelsespriser!$B$48 -> Slutdisponering, slam - højteknologisk (slamtørring), Konstruktioner | B47: PE | C47: =Genanskaffelsespriser!$E$48 -> 60 | D47: 0 | E47: =IF(COUNTIF(D47:D47,"<>0")<=1,IF(SUM(D47:D47)=0,0,(IF(SUM(D47:D47)>0,IF(SUM(D47:D47)<400,(1.2675*45967*SUM(D47:D47)^(-0.4664)),(IF(SUM(D47:D47)<2000,(39128*SUM(D47:D47)^(-0.37661)),IF(SUM(D47:D47)<5000,18893*SUM(D47:D47)^(-0.28083),IF(SUM(D47:D47)<100000,29680*SUM(D47:D47)^(-0.24475),1773.1))))*100/115)*SUM(D47:D47)*(IF(SUM(D28:D28)>0,0.1922,0.2286)),0)*1.15*1.06*0.48)*(1+Genanskaffelsespriser!$D$389)/SUM(D47:D47)),"Fejl") -> 0 | F47: 0 | G47: 0
A48: =+Genanskaffelsespriser!$B$49 -> Slutdisponering, slam - højteknologisk (slamtørring), Mek/EL | B48: PE | C48: =Genanskaffelsespriser!$E$49 -> 20 | D48: 0 | E48: =IF(COUNTIF(D48:D48,"<>0")<=1,IF(SUM(D48:D48)=0,0,(IF(SUM(D48:D48)>0,IF(SUM(D48:D48)<400,(1.2675*45967*SUM(D48:D48)^(-0.4664)),(IF(SUM(D48:D48)<2000,(39128*SUM(D48:D48)^(-0.37661)),IF(SUM(D48:D48)<5000,18893*SUM(D48:D48)^(-0.28083),IF(SUM(D48:D48)<100000,29680*SUM(D48:D48)^(-0.24475),1773.1))))*100/115)*SUM(D48:D48)*(IF(SUM(D29:D29)>0,0.1922,0.2286)),0)*1.15*1.06*0.47)/SUM(D48:D48)),"Fejl") -> 0 | F48: 0 | G48: 0
A49: =+Genanskaffelsespriser!$B$50 -> Slutdisponering, slam - højteknologisk (slamtørring), SRO | B49: PE | C49: =Genanskaffelsespriser!$E$50 -> 10 | D49: 0 | E49: =IF(COUNTIF(D49:D49,"<>0")<=1,IF(SUM(D49:D49)=0,0,(IF(SUM(D49:D49)>0,IF(SUM(D49:D49)<400,(1.2675*45967*SUM(D49:D49)^(-0.4664)),(IF(SUM(D49:D49)<2000,(39128*SUM(D49:D49)^(-0.37661)),IF(SUM(D49:D49)<5000,18893*SUM(D49:D49)^(-0.28083),IF(SUM(D49:D49)<100000,29680*SUM(D49:D49)^(-0.24475),1773.1))))*100/115)*SUM(D49:D49)*(IF(SUM(D30:D30)>0,0.1922,0.2286)),0)*1.15*1.06*0.05)/SUM(D49:D49)),"Fejl") -> 0 | F49: 0 | G49: 0
A50: =+Genanskaffelsespriser!$B$51 -> Slutdisponering, slam - højteknologisk (slamtørring og -forbrænding), Konstruktioner | B50: PE | C50: =Genanskaffelsespriser!$E$51 -> 60 | D50: 0 | E50: =IF(COUNTIF(D50:D50,"<>0")<=1,IF(SUM(D50:D50)=0,0,(IF(SUM(D50:D50)>0,IF(SUM(D50:D50)<400,(1.2675*45967*SUM(D50:D50)^(-0.4664)),(IF(SUM(D50:D50)<2000,(39128*SUM(D50:D50)^(-0.37661)),IF(SUM(D50:D50)<5000,18893*SUM(D50:D50)^(-0.28083),IF(SUM(D50:D50)<100000,29680*SUM(D50:D50)^(-0.24475),1773.1))))*100/115)*SUM(D50:D50)*(IF(SUM(D28:D28)>0,0.4334,0.5155)),0)*1.15*1.06*0.42)*(1+Genanskaffelsespriser!$D$389)/SUM(D50:D50)),"Fejl") -> 0 | F50: 0 | G50: 0
A51: =+Genanskaffelsespriser!$B$52 -> Slutdisponering, slam - højteknologisk (slamtørring og -forbrænding), Mek/EL | B51: PE | C51: =Genanskaffelsespriser!$E$52 -> 20 | D51: 0 | E51: =IF(COUNTIF(D51:D51,"<>0")<=1,IF(SUM(D51:D51)=0,0,(IF(SUM(D51:D51)>0,IF(SUM(D51:D51)<400,(1.2675*45967*SUM(D51:D51)^(-0.4664)),(IF(SUM(D51:D51)<2000,(39128*SUM(D51:D51)^(-0.37661)),IF(SUM(D51:D51)<5000,18893*SUM(D51:D51)^(-0.28083),IF(SUM(D51:D51)<100000,29680*SUM(D51:D51)^(-0.24475),1773.1))))*100/115)*SUM(D51:D51)*(IF(SUM(D29:D29)>0,0.4334,0.5155)),0)*1.15*1.06*0.53)/SUM(D51:D51)),"Fejl") -> 0 | F51: 0 | G51: 0
A52: =+Genanskaffelsespriser!$B$53 -> Slutdisponering, slam - højteknologisk (slamtørring og -forbrænding), SRO | B52: PE | C52: =Genanskaffelsespriser!$E$53 -> 10 | D52: 0 | E52: =IF(COUNTIF(D52:D52,"<>0")<=1,IF(SUM(D52:D52)=0,0,(IF(SUM(D52:D52)>0,IF(SUM(D52:D52)<400,(1.2675*45967*SUM(D52:D52)^(-0.4664)),(IF(SUM(D52:D52)<2000,(39128*SUM(D52:D52)^(-0.37661)),IF(SUM(D52:D52)<5000,18893*SUM(D52:D52)^(-0.28083),IF(SUM(D52:D52)<100000,29680*SUM(D52:D52)^(-0.24475),1773.1))))*100/115)*SUM(D52:D52)*(IF(SUM(D30:D30)>0,0.4334,0.5155)),0)*1.15*1.06*0.05)/SUM(D52:D52)),"Fejl") -> 0 | F52: 0 | G52: 0
A53: Renseanlæg 2
A54: Mindre anlæg
A55: Mindre anlæg < 5.000 PE uden mulighed for opdeling | B55: PE | C55: =Genanskaffelsespriser!$E$5 -> 40 | D55: 0 | E55: =IF(COUNTIF(D55:D55,"<>0")<=1,IF(SUM(D55:D55)=0,0,(IF(SUM(D55:D55)>0,IF(SUM(D55:D55)<400,(1.2675*45967*SUM(D55:D55)^(-0.4664)),(IF(SUM(D55:D55)<2000,(39128*SUM(D55:D55)^(-0.37661)),IF(SUM(D55:D55)<5000,18893*SUM(D55:D55)^(-0.28083),IF(SUM(D55:D55)<100000,29680*SUM(D55:D55)^(-0.24475),1773.1))))*100/115)*SUM(D55:D55)*1,0)*1.15*1.06)*(1+Genanskaffelsespriser!$D$389)/SUM(D55:D55)),"Fejl") -> 0 | F55: =D55*E55 -> 0 | G55: 0
A56: Anlæg >= 5.000 PE, Vandbehandling | D56: 5
A57: =+Genanskaffelsespriser!$B$7 -> Indløb med riste, Konstruktioner | B57: PE | C57: =Genanskaffelsespriser!$E$7 -> 60 | D57: 0 | E57: =IF(COUNTIF(D57:D57,"<>0")<=1,IF(SUM(D57:D57)=0,0,(IF(SUM(D57:D57)>0,IF(SUM(D57:D57)<400,(1.2675*45967*SUM(D57:D57)^(-0.4664)),(IF(SUM(D57:D57)<2000,(39128*SUM(D57:D57)^(-0.37661)),IF(SUM(D57:D57)<5000,18893*SUM(D57:D57)^(-0.28083),IF(SUM(D57:D57)<100000,29680*SUM(D57:D57)^(-0.24475),1773.1))))*100/115)*SUM(D57:D57)*0.061,0)*1.15*1.06*0.55)*(1+Genanskaffelsespriser!$D$389)/SUM(D57:D57)),"Fejl") -> 0 | F57: =D57*E57 -> 0 | G57: 0
A58: =+Genanskaffelsespriser!$B$8 -> Indløb med riste, Mek/EL | B58: PE | C58: =Genanskaffelsespriser!$E$8 -> 20 | D58: 0 | E58: =IF(COUNTIF(D58:D58,"<>0")<=1,IF(SUM(D58:D58)=0,0,(IF(SUM(D58:D58)>0,IF(SUM(D58:D58)<400,(1.2675*45967*SUM(D58:D58)^(-0.4664)),(IF(SUM(D58:D58)<2000,(39128*SUM(D58:D58)^(-0.37661)),IF(SUM(D58:D58)<5000,18893*SUM(D58:D58)^(-0.28083),IF(SUM(D58:D58)<100000,29680*SUM(D58:D58)^(-0.24475),1773.1))))*100/115)*SUM(D58:D58)*0.061,0)*1.15*1.06*0.43)/SUM(D58:D58)),"Fejl") -> 0 | F58: =D58*E58 -> 0 | G58: 0
A59: =+Genanskaffelsespriser!$B$9 -> Indløb med riste, SRO | B59: PE | C59: =Genanskaffelsespriser!$E$9 -> 10 | D59: 0 | E59: =IF(COUNTIF(D59:D59,"<>0")<=1,IF(SUM(D59:D59)=0,0,(IF(SUM(D59:D59)>0,IF(SUM(D59:D59)<400,(1.2675*45967*SUM(D59:D59)^(-0.4664)),(IF(SUM(D59:D59)<2000,(39128*SUM(D59:D59)^(-0.37661)),IF(SUM(D59:D59)<5000,18893*SUM(D59:D59)^(-0.28083),IF(SUM(D59:D59)<100000,29680*SUM(D59:D59)^(-0.24475),1773.1))))*100/115)*SUM(D59:D59)*0.061,0)*1.15*1.06*0.02)/SUM(D59:D59)),"Fejl") -> 0 | F59: 0 | G59: 0
A60: =+Genanskaffelsespriser!$B$10 -> Sand- og fedtfang, Kontruktioner | B60: PE | C60: =Genanskaffelsespriser!$E$10 -> 60 | D60: 0 | E60: =IF(COUNTIF(D60:D60,"<>0")<=1,IF(SUM(D60:D60)=0,0,(IF(SUM(D60:D60)>0,IF(SUM(D60:D60)<400,(1.2675*45967*SUM(D60:D60)^(-0.4664)),(IF(SUM(D60:D60)<2000,(39128*SUM(D60:D60)^(-0.37661)),IF(SUM(D60:D60)<5000,18893*SUM(D60:D60)^(-0.28083),IF(SUM(D60:D60)<100000,29680*SUM(D60:D60)^(-0.24475),1773.1))))*100/115)*SUM(D60:D60)*0.0173,0)*1.15*1.06*0.55)*(1+Genanskaffelsespriser!$D$389)/SUM(D60:D60)),"Fejl") -> 0 | F60: 0 | G60: 0
A61: =+Genanskaffelsespriser!$B$11 -> Sand- og fedtfang, Mek/EL | B61: PE | C61: =Genanskaffelsespriser!$E$11 -> 20 | D61: 0 | E61: =IF(COUNTIF(D61:D61,"<>0")<=1,IF(SUM(D61:D61)=0,0,(IF(SUM(D61:D61)>0,IF(SUM(D61:D61)<400,(1.2675*45967*SUM(D61:D61)^(-0.4664)),(IF(SUM(D61:D61)<2000,(39128*SUM(D61:D61)^(-0.37661)),IF(SUM(D61:D61)<5000,18893*SUM(D61:D61)^(-0.28083),IF(SUM(D61:D61)<100000,29680*SUM(D61:D61)^(-0.24475),1773.1))))*100/115)*SUM(D61:D61)*0.0173,0)*1.15*1.06*0.43)/SUM(D61:D61)),"Fejl") -> 0 | F61: 0 | G61: 0
A62: =+Genanskaffelsespriser!$B$12 -> Sand- og fedtfang, SRO | B62: PE | C62: =Genanskaffelsespriser!$E$12 -> 10 | D62: 0 | E62: =IF(COUNTIF(D62:D62,"<>0")<=1,IF(SUM(D62:D62)=0,0,(IF(SUM(D62:D62)>0,IF(SUM(D62:D62)<400,(1.2675*45967*SUM(D62:D62)^(-0.4664)),(IF(SUM(D62:D62)<2000,(39128*SUM(D62:D62)^(-0.37661)),IF(SUM(D62:D62)<5000,18893*SUM(D62:D62)^(-0.28083),IF(SUM(D62:D62)<100000,29680*SUM(D62:D62)^(-0.24475),1773.1))))*100/115)*SUM(D62:D62)*0.0173,0)*1.15*1.06*0.02)/SUM(D62:D62)),"Fejl") -> 0 | F62: 0 | G62: 0
A63: =+Genanskaffelsespriser!$B$13 -> Forklaring, Konstruktioner | B63: PE | C63: =Genanskaffelsespriser!$E$13 -> 60 | D63: 0 | E63: =IF(COUNTIF(D63:D63,"<>0")<=1,IF(SUM(D63:D63)=0,0,(IF(SUM(D63:D63)>0,IF(SUM(D63:D63)<400,(1.2675*45967*SUM(D63:D63)^(-0.4664)),(IF(SUM(D63:D63)<2000,(39128*SUM(D63:D63)^(-0.37661)),IF(SUM(D63:D63)<5000,18893*SUM(D63:D63)^(-0.28083),IF(SUM(D63:D63)<100000,29680*SUM(D63:D63)^(-0.24475),1773.1))))*100/115)*SUM(D63:D63)*(IF(SUM(D63:D63)>0,0.0538,0)),0)*1.15*1.06*0.6)*(1+Genanskaffelsespriser!$D$389)/SUM(D63:D63)),"Fejl") -> 0 | F63: 0 | G63: 0
A64: =+Genanskaffelsespriser!$B$14 -> Forklaring, Mek/EL | B64: PE | C64: =Genanskaffelsespriser!$E$14 -> 20 | D64: 0 | E64: =IF(COUNTIF(D64:D64,"<>0")<=1,IF(SUM(D64:D64)=0,0,(IF(SUM(D64:D64)>0,IF(SUM(D64:D64)<400,(1.2675*45967*SUM(D64:D64)^(-0.4664)),(IF(SUM(D64:D64)<2000,(39128*SUM(D64:D64)^(-0.37661)),IF(SUM(D64:D64)<5000,18893*SUM(D64:D64)^(-0.28083),IF(SUM(D64:D64)<100000,29680*SUM(D64:D64)^(-0.24475),1773.1))))*100/115)*SUM(D64:D64)*(IF(SUM(D64:D64)>0,0.0538,0)),0)*1.15*1.06*0.39)/SUM(D64:D64)),"Fejl") -> 0 | F64: 0 | G64: 0
A65: =+Genanskaffelsespriser!$B$15 -> Forklaring, SRO | B65: PE | C65: =Genanskaffelsespriser!$E$15 -> 10 | D65: 0 | E65: =IF(COUNTIF(D65:D65,"<>0")<=1,IF(SUM(D65:D65)=0,0,(IF(SUM(D65:D65)>0,IF(SUM(D65:D65)<400,(1.2675*45967*SUM(D65:D65)^(-0.4664)),(IF(SUM(D65:D65)<2000,(39128*SUM(D65:D65)^(-0.37661)),IF(SUM(D65:D65)<5000,18893*SUM(D65:D65)^(-0.28083),IF(SUM(D65:D65)<100000,29680*SUM(D65:D65)^(-0.24475),1773.1))))*100/115)*SUM(D65:D65)*(IF(SUM(D65:D65)>0,0.0538,0)),0)*1.15*1.06*0.01)/SUM(D65:D65)),"Fejl") -> 0 | F65: 0 | G65: 0
A66: =+Genanskaffelsespriser!$B$16 -> Beluftningstanke, Konstruktioner | B66: PE | C66: =Genanskaffelsespriser!$E$16 -> 60 | D66: 0 | E66: =IF(COUNTIF(D66:D66,"<>0")<=1,IF(SUM(D66:D66)=0,0,(IF(SUM(D66:D66)>0,IF(SUM(D66:D66)<400,(1.2675*45967*SUM(D66:D66)^(-0.4664)),(IF(SUM(D66:D66)<2000,(39128*SUM(D66:D66)^(-0.37661)),IF(SUM(D66:D66)<5000,18893*SUM(D66:D66)^(-0.28083),IF(SUM(D66:D66)<100000,29680*SUM(D66:D66)^(-0.24475),1773.1))))*100/115)*SUM(D66:D66)*(IF(SUM(D63:D63)>0,0.3551,0.5283)),0)*1.15*1.06*0.54)*(1+Genanskaffelsespriser!$D$389)/SUM(D66:D66)),"Fejl") -> 0 | F66: 0 | G66: 0
A67: =+Genanskaffelsespriser!$B$17 -> Beluftningstanke, Mek/EL | B67: PE | C67: =Genanskaffelsespriser!$E$17 -> 20 | D67: 0 | E67: =IF(COUNTIF(D67:D67,"<>0")<=1,IF(SUM(D67:D67)=0,0,(IF(SUM(D67:D67)>0,IF(SUM(D67:D67)<400,(1.2675*45967*SUM(D67:D67)^(-0.4664)),(IF(SUM(D67:D67)<2000,(39128*SUM(D67:D67)^(-0.37661)),IF(SUM(D67:D67)<5000,18893*SUM(D67:D67)^(-0.28083),IF(SUM(D67:D67)<100000,29680*SUM(D67:D67)^(-0.24475),1773.1))))*100/115)*SUM(D67:D67)*(IF(SUM(D64:D64)>0,0.3551,0.5283)),0)*1.15*1.06*0.4)/SUM(D67:D67)),"Fejl") -> 0 | F67: 0 | G67: 0
A68: =+Genanskaffelsespriser!$B$18 -> Beluftningstanke, SRO | B68: PE | C68: =Genanskaffelsespriser!$E$18 -> 10 | D68: 0 | E68: =IF(COUNTIF(D68:D68,"<>0")<=1,IF(SUM(D68:D68)=0,0,(IF(SUM(D68:D68)>0,IF(SUM(D68:D68)<400,(1.2675*45967*SUM(D68:D68)^(-0.4664)),(IF(SUM(D68:D68)<2000,(39128*SUM(D68:D68)^(-0.37661)),IF(SUM(D68:D68)<5000,18893*SUM(D68:D68)^(-0.28083),IF(SUM(D68:D68)<100000,29680*SUM(D68:D68)^(-0.24475),1773.1))))*100/115)*SUM(D68:D68)*(IF(SUM(D65:D65)>0,0.3551,0.5283)),0)*1.15*1.06*0.06)/SUM(D68:D68)),"Fejl") -> 0 | F68: 0 | G68: 0
A69: =+Genanskaffelsespriser!$B$19 -> Efterklaringstanke, Konstruktioner | B69: PE | C69: =Genanskaffelsespriser!$E$19 -> 60 | D69: 0 | E69: =IF(COUNTIF(D69:D69,"<>0")<=1,IF(SUM(D69:D69)=0,0,(IF(SUM(D69:D69)>0,IF(SUM(D69:D69)<400,(1.2675*45967*SUM(D69:D69)^(-0.4664)),(IF(SUM(D69:D69)<2000,(39128*SUM(D69:D69)^(-0.37661)),IF(SUM(D69:D69)<5000,18893*SUM(D69:D69)^(-0.28083),IF(SUM(D69:D69)<100000,29680*SUM(D69:D69)^(-0.24475),1773.1))))*100/115)*SUM(D69:D69)*(IF(SUM(D63:D63)>0,0.2965,0.2971)),0)*1.15*1.06*0.58)*(1+Genanskaffelsespriser!$D$389)/SUM(D69:D69)),"Fejl") -> 0 | F69: 0 | G69: 0
A70: =+Genanskaffelsespriser!$B$20 -> Efterklaringstanke, Mek/El | B70: PE | C70: =Genanskaffelsespriser!$E$20 -> 20 | D70: 0 | E70: =IF(COUNTIF(D70:D70,"<>0")<=1,IF(SUM(D70:D70)=0,0,(IF(SUM(D70:D70)>0,IF(SUM(D70:D70)<400,(1.2675*45967*SUM(D70:D70)^(-0.4664)),(IF(SUM(D70:D70)<2000,(39128*SUM(D70:D70)^(-0.37661)),IF(SUM(D70:D70)<5000,18893*SUM(D70:D70)^(-0.28083),IF(SUM(D70:D70)<100000,29680*SUM(D70:D70)^(-0.24475),1773.1))))*100/115)*SUM(D70:D70)*(IF(SUM(D64:D64)>0,0.2965,0.2971)),0)*1.15*1.06*0.37)/SUM(D70:D70)),"Fejl") -> 0 | F70: 0 | G70: 0
A71: =+Genanskaffelsespriser!$B$21 -> Efterklaringstanke, SRO | B71: PE | C71: =Genanskaffelsespriser!$E$21 -> 10 | D71: 0 | E71: =IF(COUNTIF(D71:D71,"<>0")<=1,IF(SUM(D71:D71)=0,0,(IF(SUM(D71:D71)>0,IF(SUM(D71:D71)<400,(1.2675*45967*SUM(D71:D71)^(-0.4664)),(IF(SUM(D71:D71)<2000,(39128*SUM(D71:D71)^(-0.37661)),IF(SUM(D71:D71)<5000,18893*SUM(D71:D71)^(-0.28083),IF(SUM(D71:D71)<100000,29680*SUM(D71:D71)^(-0.24475),1773.1))))*100/115)*SUM(D71:D71)*(IF(SUM(D65:D65)>0,0.2965,0.2971)),0)*1.15*1.06*0.05)/SUM(D71:D71)),"Fejl") -> 0 | F71: 0 | G71: =F71/C71 -> 0
A72: =+Genanskaffelsespriser!$B$22 -> Efterbehandlingsanlæg (sandfilter), Konstruktioner | B72: PE | C72: =Genanskaffelsespriser!$E$22 -> 60 | D72: 0 | E72: =IF(COUNTIF(D72:D72,"<>0")<=1,IF(SUM(D72:D72)=0,0,(IF(SUM(D72:D72)>0,IF(SUM(D72:D72)<400,(1.2675*45967*SUM(D72:D72)^(-0.4664)),(IF(SUM(D72:D72)<2000,(39128*SUM(D72:D72)^(-0.37661)),IF(SUM(D72:D72)<5000,18893*SUM(D72:D72)^(-0.28083),IF(SUM(D72:D72)<100000,29680*SUM(D72:D72)^(-0.24475),1773.1))))*100/115)*SUM(D72:D72)*(0.246),0)*1.15*1.06*0.55)*(1+Genanskaffelsespriser!$D$389)/SUM(D72:D72)),"Fejl") -> 0 | F72: 0 | G72: 0
A73: =+Genanskaffelsespriser!$B$23 -> Efterbehandlingsanlæg (sandfilter), Mek/EL | B73: PE | C73: =Genanskaffelsespriser!$E$23 -> 20 | D73: 0 | E73: =IF(COUNTIF(D73:D73,"<>0")<=1,IF(SUM(D73:D73)=0,0,(IF(SUM(D73:D73)>0,IF(SUM(D73:D73)<400,(1.2675*45967*SUM(D73:D73)^(-0.4664)),(IF(SUM(D73:D73)<2000,(39128*SUM(D73:D73)^(-0.37661)),IF(SUM(D73:D73)<5000,18893*SUM(D73:D73)^(-0.28083),IF(SUM(D73:D73)<100000,29680*SUM(D73:D73)^(-0.24475),1773.1))))*100/115)*SUM(D73:D73)*(0.246),0)*1.15*1.06*0.4)/SUM(D73:D73)),"Fejl") -> 0 | F73: 0 | G73: 0
A74: =+Genanskaffelsespriser!$B$24 -> Efterbehandlingsanlæg (sandfilter), SRO | B74: PE | C74: =Genanskaffelsespriser!$E$24 -> 10 | D74: 0 | E74: =IF(COUNTIF(D74:D74,"<>0")<=1,IF(SUM(D74:D74)=0,0,(IF(SUM(D74:D74)>0,IF(SUM(D74:D74)<400,(1.2675*45967*SUM(D74:D74)^(-0.4664)),(IF(SUM(D74:D74)<2000,(39128*SUM(D74:D74)^(-0.37661)),IF(SUM(D74:D74)<5000,18893*SUM(D74:D74)^(-0.28083),IF(SUM(D74:D74)<100000,29680*SUM(D74:D74)^(-0.24475),1773.1))))*100/115)*SUM(D74:D74)*(0.246),0)*1.15*1.06*0.05)/SUM(D74:D74)),"Fejl") -> 0 | F74: 0 | G74: 0
A75: Anlæg >= 5.000 PE, Slambehandling | D75: 1
A76: =+Genanskaffelsespriser!$B$26 -> Forafvanding, slam, Konstruktion | B76: PE | C76: =Genanskaffelsespriser!$E$26 -> 60 | D76: 0 | E76: =IF(COUNTIF(D76:D76,"<>0")<=1,IF(SUM(D76:D76)=0,0,(IF(SUM(D76:D76)>0,IF(SUM(D76:D76)<400,(1.2675*45967*SUM(D76:D76)^(-0.4664)),(IF(SUM(D76:D76)<2000,(39128*SUM(D76:D76)^(-0.37661)),IF(SUM(D76:D76)<5000,18893*SUM(D76:D76)^(-0.28083),IF(SUM(D76:D76)<100000,29680*SUM(D76:D76)^(-0.24475),1773.1))))*100/115)*SUM(D76:D76)*(IF(SUM(D63:D63)>0,0.0238,0.0186)),0)*1.15*1.06*0.52)*(1+Genanskaffelsespriser!$D$389)/SUM(D76:D76)),"Fejl") -> 0 | F76: =D76*E76 -> 0 | G76: 0
A77: =+Genanskaffelsespriser!$B$27 -> Forafvanding, slam, Mek/EL | B77: PE | C77: =Genanskaffelsespriser!$E$27 -> 20 | D77: 0 | E77: =IF(COUNTIF(D77:D77,"<>0")<=1,IF(SUM(D77:D77)=0,0,(IF(SUM(D77:D77)>0,IF(SUM(D77:D77)<400,(1.2675*45967*SUM(D77:D77)^(-0.4664)),(IF(SUM(D77:D77)<2000,(39128*SUM(D77:D77)^(-0.37661)),IF(SUM(D77:D77)<5000,18893*SUM(D77:D77)^(-0.28083),IF(SUM(D77:D77)<100000,29680*SUM(D77:D77)^(-0.24475),1773.1))))*100/115)*SUM(D77:D77)*(IF(SUM(D64:D64)>0,0.0238,0.0186)),0)*1.15*1.06*0.45)/SUM(D77:D77)),"Fejl") -> 0 | F77: 0 | G77: 0
A78: =+Genanskaffelsespriser!$B$28 -> Forafvanding, slam, SRO | B78: PE | C78: =Genanskaffelsespriser!$E$28 -> 10 | D78: 0 | E78: =IF(COUNTIF(D78:D78,"<>0")<=1,IF(SUM(D78:D78)=0,0,(IF(SUM(D78:D78)>0,IF(SUM(D78:D78)<400,(1.2675*45967*SUM(D78:D78)^(-0.4664)),(IF(SUM(D78:D78)<2000,(39128*SUM(D78:D78)^(-0.37661)),IF(SUM(D78:D78)<5000,18893*SUM(D78:D78)^(-0.28083),IF(SUM(D78:D78)<100000,29680*SUM(D78:D78)^(-0.24475),1773.1))))*100/115)*SUM(D78:D78)*(IF(SUM(D65:D65)>0,0.0238,0.0186)),0)*1.15*1.06*0.03)/SUM(D78:D78)),"Fejl") -> 0 | F78: 0 | G78: 0
A79: =+Genanskaffelsespriser!$B$29 -> Rådnetanke, slam, Konstruktioner | B79: PE | C79: =Genanskaffelsespriser!$E$29 -> 60 | D79: 0 | E79: =IF(COUNTIF(D79:D79,"<>0")<=1,IF(SUM(D79:D79)=0,0,(IF(SUM(D79:D79)>0,IF(SUM(D79:D79)<400,(1.2675*45967*SUM(D79:D79)^(-0.4664)),(IF(SUM(D79:D79)<2000,(39128*SUM(D79:D79)^(-0.37661)),IF(SUM(D79:D79)<5000,18893*SUM(D79:D79)^(-0.28083),IF(SUM(D79:D79)<100000,29680*SUM(D79:D79)^(-0.24475),1773.1))))*100/115)*SUM(D79:D79)*0.1638,0)*1.15*1.06*0.55)*(1+Genanskaffelsespriser!$D$389)/SUM(D79:D79)),"Fejl") -> 0 | F79: 0 | G79: 0
A80: =+Genanskaffelsespriser!$B$30 -> Rådnetanke, slam, Mek/EL | B80: PE | C80: =Genanskaffelsespriser!$E$30 -> 20 | D80: 0 | E80: =IF(COUNTIF(D80:D80,"<>0")<=1,IF(SUM(D80:D80)=0,0,(IF(SUM(D80:D80)>0,IF(SUM(D80:D80)<400,(1.2675*45967*SUM(D80:D80)^(-0.4664)),(IF(SUM(D80:D80)<2000,(39128*SUM(D80:D80)^(-0.37661)),IF(SUM(D80:D80)<5000,18893*SUM(D80:D80)^(-0.28083),IF(SUM(D80:D80)<100000,29680*SUM(D80:D80)^(-0.24475),1773.1))))*100/115)*SUM(D80:D80)*0.1638,0)*1.15*1.06*0.4)/SUM(D80:D80)),"Fejl") -> 0 | F80: 0 | G80: 0
A81: =+Genanskaffelsespriser!$B$31 -> Rådnetanke, slam, SRO | B81: PE | C81: =Genanskaffelsespriser!$E$31 -> 10 | D81: 0 | E81: =IF(COUNTIF(D81:D81,"<>0")<=1,IF(SUM(D81:D81)=0,0,(IF(SUM(D81:D81)>0,IF(SUM(D81:D81)<400,(1.2675*45967*SUM(D81:D81)^(-0.4664)),(IF(SUM(D81:D81)<2000,(39128*SUM(D81:D81)^(-0.37661)),IF(SUM(D81:D81)<5000,18893*SUM(D81:D81)^(-0.28083),IF(SUM(D81:D81)<100000,29680*SUM(D81:D81)^(-0.24475),1773.1))))*100/115)*SUM(D81:D81)*0.1638,0)*1.15*1.06*0.05)/SUM(D81:D81)),"Fejl") -> 0 | F81: 0 | G81: 0
A82: =+Genanskaffelsespriser!$B$32 -> Gasdisponering, Konstruktioner | B82: PE | C82: =Genanskaffelsespriser!$E$32 -> 60 | D82: 0 | E82: =IF(COUNTIF(D82:D82,"<>0")<=1,IF(SUM(D82:D82)=0,0,(IF(SUM(D82:D82)>0,IF(SUM(D82:D82)<400,(1.2675*45967*SUM(D82:D82)^(-0.4664)),(IF(SUM(D82:D82)<2000,(39128*SUM(D82:D82)^(-0.37661)),IF(SUM(D82:D82)<5000,18893*SUM(D82:D82)^(-0.28083),IF(SUM(D82:D82)<100000,29680*SUM(D82:D82)^(-0.24475),1773.1))))*100/115)*SUM(D82:D82)*(IF(SUM(D79:D79)>0,0.0257,0)),0)*1.15*1.06*0.94)*(1+Genanskaffelsespriser!$D$389)/SUM(D82:D82)),"Fejl") -> 0 | F82: 0 | G82: 0
A83: =+Genanskaffelsespriser!$B$33 -> Gasdisponering, Mek/EL | B83: PE | C83: =Genanskaffelsespriser!$E$33 -> 20 | D83: 0 | E83: =IF(COUNTIF(D83:D83,"<>0")<=1,IF(SUM(D83:D83)=0,0,(IF(SUM(D83:D83)>0,IF(SUM(D83:D83)<400,(1.2675*45967*SUM(D83:D83)^(-0.4664)),(IF(SUM(D83:D83)<2000,(39128*SUM(D83:D83)^(-0.37661)),IF(SUM(D83:D83)<5000,18893*SUM(D83:D83)^(-0.28083),IF(SUM(D83:D83)<100000,29680*SUM(D83:D83)^(-0.24475),1773.1))))*100/115)*SUM(D83:D83)*(IF(SUM(D80:D80)>0,0.0257,0)),0)*1.15*1.06*0.05)/SUM(D83:D83)),"Fejl") -> 0 | F83: 0 | G83: 0
A84: =+Genanskaffelsespriser!$B$34 -> Gasdisponering, SRO | B84: PE | C84: =Genanskaffelsespriser!$E$34 -> 10 | D84: 0 | E84: =IF(COUNTIF(D84:D84,"<>0")<=1,IF(SUM(D84:D84)=0,0,(IF(SUM(D84:D84)>0,IF(SUM(D84:D84)<400,(1.2675*45967*SUM(D84:D84)^(-0.4664)),(IF(SUM(D84:D84)<2000,(39128*SUM(D84:D84)^(-0.37661)),IF(SUM(D84:D84)<5000,18893*SUM(D84:D84)^(-0.28083),IF(SUM(D84:D84)<100000,29680*SUM(D84:D84)^(-0.24475),1773.1))))*100/115)*SUM(D84:D84)*(IF(SUM(D81:D81)>0,0.0257,0)),0)*1.15*1.06*0.01)/SUM(D84:D84)),"Fejl") -> 0 | F84: 0 | G84: 0
A85: =+Genanskaffelsespriser!$B$35 -> Gasdisponering - elproduktionsanlæg, Konstruktioner | B85: PE | C85: =Genanskaffelsespriser!$E$35 -> 60 | D85: 0 | E85: =IF(COUNTIF(D85:D85,"<>0")<=1,IF(SUM(D85:D85)=0,0,(IF(SUM(D85:D85)>0,IF(SUM(D85:D85)<400,(1.2675*45967*SUM(D85:D85)^(-0.4664)),(IF(SUM(D85:D85)<2000,(39128*SUM(D85:D85)^(-0.37661)),IF(SUM(D85:D85)<5000,18893*SUM(D85:D85)^(-0.28083),IF(SUM(D85:D85)<100000,29680*SUM(D85:D85)^(-0.24475),1773.1))))*100/115)*SUM(D85:D85)*(IF(SUM(D79:D79)>0,0.0257,0)),0)*1.15*1.06*0.25)*(1+Genanskaffelsespriser!$D$389)/SUM(D85:D85)),"Fejl") -> 0 | F85: 0 | G85: 0
A86: =+Genanskaffelsespriser!$B$36 -> Gasdisponering - elproduktionsanlæg, Mek/EL | B86: PE | C86: =Genanskaffelsespriser!$E$36 -> 20 | D86: 0 | E86: =IF(COUNTIF(D86:D86,"<>0")<=1,IF(SUM(D86:D86)=0,0,(IF(SUM(D86:D86)>0,IF(SUM(D86:D86)<400,(1.2675*45967*SUM(D86:D86)^(-0.4664)),(IF(SUM(D86:D86)<2000,(39128*SUM(D86:D86)^(-0.37661)),IF(SUM(D86:D86)<5000,18893*SUM(D86:D86)^(-0.28083),IF(SUM(D86:D86)<100000,29680*SUM(D86:D86)^(-0.24475),1773.1))))*100/115)*SUM(D86:D86)*(IF(SUM(D80:D80)>0,0.0257,0)),0)*1.15*1.06*0.72)/SUM(D86:D86)),"Fejl") -> 0 | F86: 0 | G86: 0
A87: =+Genanskaffelsespriser!$B$37 -> Gasdisponering - elproduktionsanlæg, SRO | B87: PE | C87: =Genanskaffelsespriser!$E$37 -> 10 | D87: 0 | E87: =IF(COUNTIF(D87:D87,"<>0")<=1,IF(SUM(D87:D87)=0,0,(IF(SUM(D87:D87)>0,IF(SUM(D87:D87)<400,(1.2675*45967*SUM(D87:D87)^(-0.4664)),(IF(SUM(D87:D87)<2000,(39128*SUM(D87:D87)^(-0.37661)),IF(SUM(D87:D87)<5000,18893*SUM(D87:D87)^(-0.28083),IF(SUM(D87:D87)<100000,29680*SUM(D87:D87)^(-0.24475),1773.1))))*100/115)*SUM(D87:D87)*(IF(SUM(D81:D81)>0,0.0257,0)),0)*1.15*1.06*0.03)/SUM(D87:D87)),"Fejl") -> 0 | F87: 0 | G87: 0
A88: =+Genanskaffelsespriser!$B$38 -> Slutafvanding, slam - lavteknologisk (slambede), Konstruktioner | B88: PE | C88: =Genanskaffelsespriser!$E$38 -> 60 | D88: 0 | E88: =IF(COUNTIF(D88:D88,"<>0")<=1,IF(SUM(D88:D88)=0,0,(IF(SUM(D88:D88)>0,IF(SUM(D88:D88)<400,(1.2675*45967*SUM(D88:D88)^(-0.4664)),(IF(SUM(D88:D88)<2000,(39128*SUM(D88:D88)^(-0.37661)),IF(SUM(D88:D88)<5000,18893*SUM(D88:D88)^(-0.28083),IF(SUM(D88:D88)<100000,29680*SUM(D88:D88)^(-0.24475),1773.1))))*100/115)*SUM(D88:D88)*(IF(SUM(D79:D79)>0,0.046,0.0531)),0)*1.15*1.06*0.85)*(1+Genanskaffelsespriser!$D$389)/SUM(D88:D88)),"Fejl") -> 0 | F88: 0 | G88: 0
A89: =+Genanskaffelsespriser!$B$39 -> Slutafvanding, slam - lavteknologisk (slambede), Mek/EL | B89: PE | C89: =Genanskaffelsespriser!$E$39 -> 20 | D89: 0 | E89: =IF(COUNTIF(D89:D89,"<>0")<=1,IF(SUM(D89:D89)=0,0,(IF(SUM(D89:D89)>0,IF(SUM(D89:D89)<400,(1.2675*45967*SUM(D89:D89)^(-0.4664)),(IF(SUM(D89:D89)<2000,(39128*SUM(D89:D89)^(-0.37661)),IF(SUM(D89:D89)<5000,18893*SUM(D89:D89)^(-0.28083),IF(SUM(D89:D89)<100000,29680*SUM(D89:D89)^(-0.24475),1773.1))))*100/115)*SUM(D89:D89)*(IF(SUM(D80:D80)>0,0.046,0.0531)),0)*1.15*1.06*0.14)/SUM(D89:D89)),"Fejl") -> 0 | F89: 0 | G89: 0
A90: =+Genanskaffelsespriser!$B$40 -> Slutafvanding, slam - lavteknologisk (slambede), SRO | B90: PE | C90: =Genanskaffelsespriser!$E$40 -> 10 | D90: 0 | E90: =IF(COUNTIF(D90:D90,"<>0")<=1,IF(SUM(D90:D90)=0,0,(IF(SUM(D90:D90)>0,IF(SUM(D90:D90)<400,(1.2675*45967*SUM(D90:D90)^(-0.4664)),(IF(SUM(D90:D90)<2000,(39128*SUM(D90:D90)^(-0.37661)),IF(SUM(D90:D90)<5000,18893*SUM(D90:D90)^(-0.28083),IF(SUM(D90:D90)<100000,29680*SUM(D90:D90)^(-0.24475),1773.1))))*100/115)*SUM(D90:D90)*(IF(SUM(D81:D81)>0,0.046,0.0531)),0)*1.15*1.06*0.01)/SUM(D90:D90)),"Fejl") -> 0 | F90: 0 | G90: 0
A91: =+Genanskaffelsespriser!$B$41 -> Slutafvanding, slam - højteknologisk (centrifuger), Konstruktioner | B91: PE | C91: =Genanskaffelsespriser!$E$41 -> 60 | D91: 0 | E91: =IF(COUNTIF(D91:D91,"<>0")<=1,IF(SUM(D91:D91)=0,0,(IF(SUM(D91:D91)>0,IF(SUM(D91:D91)<400,(1.2675*45967*SUM(D91:D91)^(-0.4664)),(IF(SUM(D91:D91)<2000,(39128*SUM(D91:D91)^(-0.37661)),IF(SUM(D91:D91)<5000,18893*SUM(D91:D91)^(-0.28083),IF(SUM(D91:D91)<100000,29680*SUM(D91:D91)^(-0.24475),1773.1))))*100/115)*SUM(D91:D91)*(IF(SUM(D79:D79)>0,0.0722,0.0776)),0)*1.15*1.06*0.49)*(1+Genanskaffelsespriser!$D$389)/SUM(D91:D91)),"Fejl") -> 0 | F91: 0 | G91: 0
A92: =+Genanskaffelsespriser!$B$42 -> Slutafvanding, slam - højteknologisk (centrifuger), Mek/El | B92: PE | C92: =Genanskaffelsespriser!$E$42 -> 20 | D92: 0 | E92: =IF(COUNTIF(D92:D92,"<>0")<=1,IF(SUM(D92:D92)=0,0,(IF(SUM(D92:D92)>0,IF(SUM(D92:D92)<400,(1.2675*45967*SUM(D92:D92)^(-0.4664)),(IF(SUM(D92:D92)<2000,(39128*SUM(D92:D92)^(-0.37661)),IF(SUM(D92:D92)<5000,18893*SUM(D92:D92)^(-0.28083),IF(SUM(D92:D92)<100000,29680*SUM(D92:D92)^(-0.24475),1773.1))))*100/115)*SUM(D92:D92)*(IF(SUM(D80:D80)>0,0.0722,0.0776)),0)*1.15*1.06*0.47)/SUM(D92:D92)),"Fejl") -> 0 | F92: 0 | G92: 0
A93: =+Genanskaffelsespriser!$B$43 -> Slutafvanding, slam - højteknologisk (centrifuger), SRO | B93: PE | C93: =Genanskaffelsespriser!$E$43 -> 10 | D93: 0 | E93: =IF(COUNTIF(D93:D93,"<>0")<=1,IF(SUM(D93:D93)=0,0,(IF(SUM(D93:D93)>0,IF(SUM(D93:D93)<400,(1.2675*45967*SUM(D93:D93)^(-0.4664)),(IF(SUM(D93:D93)<2000,(39128*SUM(D93:D93)^(-0.37661)),IF(SUM(D93:D93)<5000,18893*SUM(D93:D93)^(-0.28083),IF(SUM(D93:D93)<100000,29680*SUM(D93:D93)^(-0.24475),1773.1))))*100/115)*SUM(D93:D93)*(IF(SUM(D81:D81)>0,0.0722,0.0776)),0)*1.15*1.06*0.04)/SUM(D93:D93)),"Fejl") -> 0 | F93: 0 | G93: 0
A94: Anlæg >= 5.000 PE, Slamdisponering | D94: 5
A95: =+Genanskaffelsespriser!$B$45 -> Slutdisponering, slam - lavteknologisk (slammineralisering), Konstruktioner | B95: PE | C95: =Genanskaffelsespriser!$E$45 -> 60 | D95: 0 | E95: =IF(COUNTIF(D95:D95,"<>0")<=1,IF(SUM(D95:D95)=0,0,(IF(SUM(D95:D95)>0,IF(SUM(D95:D95)<400,(1.2675*45967*SUM(D95:D95)^(-0.4664)),(IF(SUM(D95:D95)<2000,(39128*SUM(D95:D95)^(-0.37661)),IF(SUM(D95:D95)<5000,18893*SUM(D95:D95)^(-0.28083),IF(SUM(D95:D95)<100000,29680*SUM(D95:D95)^(-0.24475),1773.1))))*100/115)*SUM(D95:D95)*(IF(SUM(D79:D79)>0,0.2191,0.2778)),0)*1.15*1.06*0.8)*(1+Genanskaffelsespriser!$D$389)/SUM(D95:D95)),"Fejl") -> 0 | F95: =D95*E95 -> 0 | G95: 0
A96: =+Genanskaffelsespriser!$B$46 -> Slutdisponering, slam - lavteknologisk (slammineralisering), Mek/EL | B96: PE | C96: =Genanskaffelsespriser!$E$46 -> 20 | D96: 0 | E96: =IF(COUNTIF(D96:D96,"<>0")<=1,IF(SUM(D96:D96)=0,0,(IF(SUM(D96:D96)>0,IF(SUM(D96:D96)<400,(1.2675*45967*SUM(D96:D96)^(-0.4664)),(IF(SUM(D96:D96)<2000,(39128*SUM(D96:D96)^(-0.37661)),IF(SUM(D96:D96)<5000,18893*SUM(D96:D96)^(-0.28083),IF(SUM(D96:D96)<100000,29680*SUM(D96:D96)^(-0.24475),1773.1))))*100/115)*SUM(D96:D96)*(IF(SUM(D80:D80)>0,0.2191,0.2778)),0)*1.15*1.06*0.14)/SUM(D96:D96)),"Fejl") -> 0 | F96: 0 | G96: 0
A97: =+Genanskaffelsespriser!$B$47 -> Slutdisponering, slam - lavteknologisk (slammineralisering), SRO | B97: PE | C97: =Genanskaffelsespriser!$E$47 -> 10 | D97: 0 | E97: =IF(COUNTIF(D97:D97,"<>0")<=1,IF(SUM(D97:D97)=0,0,(IF(SUM(D97:D97)>0,IF(SUM(D97:D97)<400,(1.2675*45967*SUM(D97:D97)^(-0.4664)),(IF(SUM(D97:D97)<2000,(39128*SUM(D97:D97)^(-0.37661)),IF(SUM(D97:D97)<5000,18893*SUM(D97:D97)^(-0.28083),IF(SUM(D97:D97)<100000,29680*SUM(D97:D97)^(-0.24475),1773.1))))*100/115)*SUM(D97:D97)*(IF(SUM(D81:D81)>0,0.2191,0.2778)),0)*1.15*1.06*0.06)/SUM(D97:D97)),"Fejl") -> 0 | F97: 0 | G97: 0
A98: =+Genanskaffelsespriser!$B$48 -> Slutdisponering, slam - højteknologisk (slamtørring), Konstruktioner | B98: PE | C98: =Genanskaffelsespriser!$E$48 -> 60 | D98: 0 | E98: =IF(COUNTIF(D98:D98,"<>0")<=1,IF(SUM(D98:D98)=0,0,(IF(SUM(D98:D98)>0,IF(SUM(D98:D98)<400,(1.2675*45967*SUM(D98:D98)^(-0.4664)),(IF(SUM(D98:D98)<2000,(39128*SUM(D98:D98)^(-0.37661)),IF(SUM(D98:D98)<5000,18893*SUM(D98:D98)^(-0.28083),IF(SUM(D98:D98)<100000,29680*SUM(D98:D98)^(-0.24475),1773.1))))*100/115)*SUM(D98:D98)*(IF(SUM(D79:D79)>0,0.1922,0.2286)),0)*1.15*1.06*0.48)*(1+Genanskaffelsespriser!$D$389)/SUM(D98:D98)),"Fejl") -> 0 | F98: 0 | G98: 0
A99: =+Genanskaffelsespriser!$B$49 -> Slutdisponering, slam - højteknologisk (slamtørring), Mek/EL | B99: PE | C99: =Genanskaffelsespriser!$E$49 -> 20 | D99: 0 | E99: =IF(COUNTIF(D99:D99,"<>0")<=1,IF(SUM(D99:D99)=0,0,(IF(SUM(D99:D99)>0,IF(SUM(D99:D99)<400,(1.2675*45967*SUM(D99:D99)^(-0.4664)),(IF(SUM(D99:D99)<2000,(39128*SUM(D99:D99)^(-0.37661)),IF(SUM(D99:D99)<5000,18893*SUM(D99:D99)^(-0.28083),IF(SUM(D99:D99)<100000,29680*SUM(D99:D99)^(-0.24475),1773.1))))*100/115)*SUM(D99:D99)*(IF(SUM(D80:D80)>0,0.1922,0.2286)),0)*1.15*1.06*0.47)/SUM(D99:D99)),"Fejl") -> 0 | F99: 0 | G99: 0
A100: =+Genanskaffelsespriser!$B$50 -> Slutdisponering, slam - højteknologisk (slamtørring), SRO | B100: PE | C100: =Genanskaffelsespriser!$E$50 -> 10 | D100: 0 | E100: =IF(COUNTIF(D100:D100,"<>0")<=1,IF(SUM(D100:D100)=0,0,(IF(SUM(D100:D100)>0,IF(SUM(D100:D100)<400,(1.2675*45967*SUM(D100:D100)^(-0.4664)),(IF(SUM(D100:D100)<2000,(39128*SUM(D100:D100)^(-0.37661)),IF(SUM(D100:D100)<5000,18893*SUM(D100:D100)^(-0.28083),IF(SUM(D100:D100)<100000,29680*SUM(D100:D100)^(-0.24475),1773.1))))*100/115)*SUM(D100:D100)*(IF(SUM(D81:D81)>0,0.1922,0.2286)),0)*1.15*1.06*0.05)/SUM(D100:D100)),"Fejl") -> 0 | F100: 0 | G100: 0
A101: =+Genanskaffelsespriser!$B$51 -> Slutdisponering, slam - højteknologisk (slamtørring og -forbrænding), Konstruktioner | B101: PE | C101: =Genanskaffelsespriser!$E$51 -> 60 | D101: 0 | E101: =IF(COUNTIF(D101:D101,"<>0")<=1,IF(SUM(D101:D101)=0,0,(IF(SUM(D101:D101)>0,IF(SUM(D101:D101)<400,(1.2675*45967*SUM(D101:D101)^(-0.4664)),(IF(SUM(D101:D101)<2000,(39128*SUM(D101:D101)^(-0.37661)),IF(SUM(D101:D101)<5000,18893*SUM(D101:D101)^(-0.28083),IF(SUM(D101:D101)<100000,29680*SUM(D101:D101)^(-0.24475),1773.1))))*100/115)*SUM(D101:D101)*(IF(SUM(D79:D79)>0,0.4334,0.5155)),0)*1.15*1.06*0.42)*(1+Genanskaffelsespriser!$D$389)/SUM(D101:D101)),"Fejl") -> 0 | F101: 0 | G101: 0
A102: =+Genanskaffelsespriser!$B$52 -> Slutdisponering, slam - højteknologisk (slamtørring og -forbrænding), Mek/EL | B102: PE | C102: =Genanskaffelsespriser!$E$52 -> 20 | D102: 0 | E102: =IF(COUNTIF(D102:D102,"<>0")<=1,IF(SUM(D102:D102)=0,0,(IF(SUM(D102:D102)>0,IF(SUM(D102:D102)<400,(1.2675*45967*SUM(D102:D102)^(-0.4664)),(IF(SUM(D102:D102)<2000,(39128*SUM(D102:D102)^(-0.37661)),IF(SUM(D102:D102)<5000,18893*SUM(D102:D102)^(-0.28083),IF(SUM(D102:D102)<100000,29680*SUM(D102:D102)^(-0.24475),1773.1))))*100/115)*SUM(D102:D102)*(IF(SUM(D80:D80)>0,0.4334,0.5155)),0)*1.15*1.06*0.53)/SUM(D102:D102)),"Fejl") -> 0 | F102: 0 | G102: 0
A103: =+Genanskaffelsespriser!$B$53 -> Slutdisponering, slam - højteknologisk (slamtørring og -forbrænding), SRO | B103: PE | C103: =Genanskaffelsespriser!$E$53 -> 10 | D103: 0 | E103: =IF(COUNTIF(D103:D103,"<>0")<=1,IF(SUM(D103:D103)=0,0,(IF(SUM(D103:D103)>0,IF(SUM(D103:D103)<400,(1.2675*45967*SUM(D103:D103)^(-0.4664)),(IF(SUM(D103:D103)<2000,(39128*SUM(D103:D103)^(-0.37661)),IF(SUM(D103:D103)<5000,18893*SUM(D103:D103)^(-0.28083),IF(SUM(D103:D103)<100000,29680*SUM(D103:D103)^(-0.24475),1773.1))))*100/115)*SUM(D103:D103)*(IF(SUM(D81:D81)>0,0.4334,0.5155)),0)*1.15*1.06*0.05)/SUM(D103:D103)),"Fejl") -> 0 | F103: 0 | G103: 0

Sheet Distributionsanlæg
A1: PRODUKTIONSANLÆG | B1: Enhed | C1: Standardlevetid | D1: Mængde | E1: Enhedspris | F1: Samlet værdi | G1: Afskrivning
D2: =+#REF! -> 
A3: Ledningsnet - Land
A4: =+Genanskaffelsespriser!B58 -> Ledningsnet ≤ Ø 200 mm | B4: meter | C4: =+Genanskaffelsespriser!E58 -> 75 | D4: 0 | E4: =Genanskaffelsespriser!$D58 -> 1500 | F4: =E4*D4 -> 0 | G4: =F4/C4 -> 0
A5: =+Genanskaffelsespriser!B59 -> Ø 200 mm < Ledningsnet ≤ Ø 500 mm | B5: meter | C5: =+Genanskaffelsespriser!E59 -> 75 | D5: 0 | E5: =Genanskaffelsespriser!$D59 -> 2800 | F5: =E5*D5 -> 0 | G5: =F5/C5 -> 0
A6: =+Genanskaffelsespriser!B60 -> Ø 500 mm < Ledningsnet ≤ Ø 800 mm | B6: meter | C6: =+Genanskaffelsespriser!E60 -> 75 | D6: 0 | E6: =Genanskaffelsespriser!$D60 -> 5700 | F6: 0 | G6: 0
A7: =+Genanskaffelsespriser!B61 -> Ø 800 mm < Ledningsnet ≤ Ø 1000 mm | B7: meter | C7: =+Genanskaffelsespriser!E61 -> 75 | D7: 0 | E7: =Genanskaffelsespriser!$D61 -> 8800 | F7: 0 | G7: 0
A8: =+Genanskaffelsespriser!B62 -> Ø 1000 mm < Ledningsnet ≤ Ø 1200 mm | B8: meter | C8: =+Genanskaffelsespriser!E62 -> 75 | D8: 0 | E8: =Genanskaffelsespriser!$D62 -> 16700 | F8: 0 | G8: 0
A9: =+Genanskaffelsespriser!B63 -> Ø 1200 mm < Ledningsnet ≤ Ø 1600 mm | B9: meter | C9: =+Genanskaffelsespriser!E63 -> 75 | D9: 0 | E9: =Genanskaffelsespriser!$D63 -> 33600 | F9: 0 | G9: 0
A10: =+Genanskaffelsespriser!B64 -> Ledningsnet > Ø 1600 mm (rørbassiner og transportledninger) | B10: meter | C10: =+Genanskaffelsespriser!E64 -> 75 | D10: 0 | E10: =Genanskaffelsespriser!$D64 -> 46000 | F10: 0 | G10: 0
A11: =+Genanskaffelsespriser!B65 -> Strømpeforing ≤ Ø 200 mm | B11: meter | C11: =+Genanskaffelsespriser!E65 -> 50 | D11: 0 | E11: =Genanskaffelsespriser!$D65 -> 2150 | F11: 0 | G11: 0
A12: =+Genanskaffelsespriser!B66 -> Strømpeforing Ø 200 mm < Ledningsnet ≤ Ø 500 mm | B12: meter | C12: =+Genanskaffelsespriser!E66 -> 50 | D12: 0 | E12: =Genanskaffelsespriser!$D66 -> 3025 | F12: 0 | G12: 0
A13: =+Genanskaffelsespriser!B67 -> Strømpeforing Ø 500 mm < Ledningsnet ≤ Ø 800 mm | B13: meter | C13: =+Genanskaffelsespriser!E67 -> 50 | D13: 0 | E13: =Genanskaffelsespriser!$D67 -> 5000 | F13: 0 | G13: 0
A14: =+Genanskaffelsespriser!B68 -> Strømpeforing Ø 800 mm < Ledningsnet ≤ Ø 1000 mm | B14: meter | C14: =+Genanskaffelsespriser!E68 -> 50 | D14: 0 | E14: =Genanskaffelsespriser!$D68 -> 6300 | F14: 0 | G14: 0
A15: =+Genanskaffelsespriser!B69 -> Strømpeforing Ø 1000 mm < Ledningsnet ≤ Ø 1200 mm | B15: meter | C15: =+Genanskaffelsespriser!E69 -> 50 | D15: 0 | E15: =Genanskaffelsespriser!$D69 -> 7650 | F15: 0 | G15: 0
A16: =+Genanskaffelsespriser!B70 -> Strømpeforing Ø 1200 mm < Ledningsnet ≤ Ø 1600 mm | B16: meter | C16: =+Genanskaffelsespriser!E70 -> 50 | D16: 0 | E16: =Genanskaffelsespriser!D70 -> 10400 | F16: 0 | G16: 0
A17: Ledningsnet - By
A18: =+Genanskaffelsespriser!B72 -> Ledningsnet ≤ Ø 200 mm | B18: meter | C18: =+Genanskaffelsespriser!E72 -> 75 | D18: 0 | E18: =Genanskaffelsespriser!D72 -> 1900 | F18: 0 | G18: 0
A19: =+Genanskaffelsespriser!B73 -> Ø 200 mm < Ledningsnet ≤ Ø 500 mm | B19: meter | C19: =+Genanskaffelsespriser!E73 -> 75 | D19: 0 | E19: =Genanskaffelsespriser!D73 -> 3700 | F19: 0 | G19: 0
A20: =+Genanskaffelsespriser!B74 -> Ø 500 mm < Ledningsnet ≤ Ø 800 mm | B20: meter | C20: =+Genanskaffelsespriser!E74 -> 75 | D20: 0 | E20: =Genanskaffelsespriser!D74 -> 6800 | F20: 0 | G20: 0
A21: =+Genanskaffelsespriser!B75 -> Ø 800 mm < Ledningsnet ≤ Ø 1000 mm | B21: meter | C21: =+Genanskaffelsespriser!E75 -> 75 | D21: 0 | E21: =Genanskaffelsespriser!D75 -> 10000 | F21: 0 | G21: 0
A22: =+Genanskaffelsespriser!B76 -> Ø 1000 mm < Ledningsnet ≤ Ø 1200 mm | B22: meter | C22: =+Genanskaffelsespriser!E76 -> 75 | D22: 0 | E22: =Genanskaffelsespriser!D76 -> 19000 | F22: 0 | G22: 0
A23: =+Genanskaffelsespriser!B77 -> Ø 1200 mm < Ledningsnet ≤ Ø 1600 mm | B23: meter | C23: =+Genanskaffelsespriser!E77 -> 75 | D23: 0 | E23: =Genanskaffelsespriser!D77 -> 36000 | F23: 0 | G23: 0
A24: =+Genanskaffelsespriser!B78 -> Ledningsnet > Ø 1600 mm (rørbassiner og transportledninger) | B24: meter | C24: =+Genanskaffelsespriser!E78 -> 75 | D24: 0 | E24: =Genanskaffelsespriser!D78 -> 49000 | F24: 0 | G24: 0
A25: =+Genanskaffelsespriser!B79 -> Strømpeforing ≤ Ø 200 mm | B25: meter | C25: =+Genanskaffelsespriser!E79 -> 50 | D25: 0 | E25: =Genanskaffelsespriser!D79 -> 2150 | F25: 0 | G25: 0
A26: =+Genanskaffelsespriser!B80 -> Strømpeforing Ø 200 mm < Ledningsnet ≤ Ø 500 mm | B26: meter | C26: =+Genanskaffelsespriser!E80 -> 50 | D26: 0 | E26: =Genanskaffelsespriser!D80 -> 3025 | F26: 0 | G26: 0
A27: =+Genanskaffelsespriser!B81 -> Strømpeforing Ø 500 mm < Ledningsnet ≤ Ø 800 mm | B27: meter | C27: =+Genanskaffelsespriser!E81 -> 50 | D27: 0 | E27: =Genanskaffelsespriser!D81 -> 5000 | F27: 0 | G27: 0
A28: =+Genanskaffelsespriser!B82 -> Strømpeforing Ø 800 mm < Ledningsnet ≤ Ø 1000 mm | B28: meter | C28: =+Genanskaffelsespriser!E82 -> 50 | D28: 0 | E28: =Genanskaffelsespriser!D82 -> 6300 | F28: 0 | G28: 0
A29: =+Genanskaffelsespriser!B83 -> Strømpeforing Ø 1000 mm < Ledningsnet ≤ Ø 1200 mm | B29: meter | C29: =+Genanskaffelsespriser!E83 -> 50 | D29: 0 | E29: =Genanskaffelsespriser!D83 -> 7650 | F29: 0 | G29: 0
A30: =+Genanskaffelsespriser!B84 -> Strømpeforing Ø 1200 mm < Ledningsnet ≤ Ø 1600 mm | B30: meter | C30: =+Genanskaffelsespriser!E84 -> 50 | D30: 0 | E30: =Genanskaffelsespriser!D84 -> 10400 | F30: 0 | G30: 0
A31: Ledningsnet - City
A32: =+Genanskaffelsespriser!B86 -> Ledningsnet ≤ Ø 200 mm | B32: meter | C32: =+Genanskaffelsespriser!E86 -> 75 | D32: 0 | E32: =Genanskaffelsespriser!D86 -> 2100 | F32: 0 | G32: 0
A33: =+Genanskaffelsespriser!B87 -> Ø 200 mm < Ledningsnet ≤ Ø 500 mm | B33: meter | C33: =+Genanskaffelsespriser!E87 -> 75 | D33: 0 | E33: =Genanskaffelsespriser!D87 -> 4300 | F33: 0 | G33: 0
A34: =+Genanskaffelsespriser!B88 -> Ø 500 mm < Ledningsnet ≤ Ø 800 mm | B34: meter | C34: =+Genanskaffelsespriser!E88 -> 75 | D34: 0 | E34: =Genanskaffelsespriser!D88 -> 7500 | F34: 0 | G34: 0
A35: =+Genanskaffelsespriser!B89 -> Ø 800 mm < Ledningsnet ≤ Ø 1000 mm | B35: meter | C35: =+Genanskaffelsespriser!E89 -> 75 | D35: 0 | E35: =Genanskaffelsespriser!D89 -> 11000 | F35: 0 | G35: 0
A36: =+Genanskaffelsespriser!B90 -> Ø 1000 mm < Ledningsnet ≤ Ø 1200 mm | B36: meter | C36: =+Genanskaffelsespriser!E90 -> 75 | D36: 0 | E36: =Genanskaffelsespriser!D90 -> 20000 | F36: 0 | G36: 0
A37: =+Genanskaffelsespriser!B91 -> Ø 1200 mm < Ledningsnet ≤ Ø 1600 mm | B37: meter | C37: =+Genanskaffelsespriser!E91 -> 75 | D37: 0 | E37: =Genanskaffelsespriser!D91 -> 38000 | F37: 0 | G37: 0
A38: =+Genanskaffelsespriser!B92 -> Ledningsnet > Ø 1600 mm (rørbassiner og transportledninger) | B38: meter | C38: =+Genanskaffelsespriser!E92 -> 75 | D38: 0 | E38: =Genanskaffelsespriser!D92 -> 51000 | F38: 0 | G38: 0
A39: =+Genanskaffelsespriser!B93 -> Strømpeforing ≤ Ø 200 mm | B39: meter | C39: =+Genanskaffelsespriser!E93 -> 50 | D39: 0 | E39: =Genanskaffelsespriser!D93 -> 2260 | F39: 0 | G39: 0
A40: =+Genanskaffelsespriser!B94 -> Strømpeforing Ø 200 mm < Ledningsnet ≤ Ø 500 mm | B40: meter | C40: =+Genanskaffelsespriser!E94 -> 50 | D40: 0 | E40: =Genanskaffelsespriser!D94 -> 3175 | F40: 0 | G40: 0
A41: =+Genanskaffelsespriser!B95 -> Strømpeforing Ø 500 mm < Ledningsnet ≤ Ø 800 mm | B41: meter | C41: =+Genanskaffelsespriser!E95 -> 50 | D41: 0 | E41: =Genanskaffelsespriser!D95 -> 5250 | F41: 0 | G41: 0
A42: =+Genanskaffelsespriser!B96 -> Strømpeforing Ø 800 mm < Ledningsnet ≤ Ø 1000 mm | B42: meter | C42: =+Genanskaffelsespriser!E96 -> 50 | D42: 0 | E42: =Genanskaffelsespriser!D96 -> 6600 | F42: 0 | G42: 0
A43: =+Genanskaffelsespriser!B97 -> Strømpeforing Ø 1000 mm < Ledningsnet ≤ Ø 1200 mm | B43: meter | C43: =+Genanskaffelsespriser!E97 -> 50 | D43: 0 | E43: =Genanskaffelsespriser!D97 -> 8025 | F43: 0 | G43: 0
A44: =+Genanskaffelsespriser!B98 -> Strømpeforing Ø 1200 mm < Ledningsnet ≤ Ø 1600 mm | B44: meter | C44: =+Genanskaffelsespriser!E98 -> 50 | D44: 0 | E44: =Genanskaffelsespriser!D98 -> 10900 | F44: 0 | G44: 0
A45: Ledningsnet - Indre city
A46: =+Genanskaffelsespriser!B100 -> Ledningsnet ≤ Ø 200 mm | B46: meter | C46: =+Genanskaffelsespriser!E100 -> 75 | D46: 0 | E46: =Genanskaffelsespriser!D100 -> 2500 | F46: 0 | G46: 0
A47: =+Genanskaffelsespriser!B101 -> Ø 200 mm < Ledningsnet ≤ Ø 500 mm | B47: meter | C47: =+Genanskaffelsespriser!E101 -> 75 | D47: 0 | E47: =Genanskaffelsespriser!D101 -> 5100 | F47: 0 | G47: 0
A48: =+Genanskaffelsespriser!B102 -> Ø 500 mm < Ledningsnet ≤ Ø 800 mm | B48: meter | C48: =+Genanskaffelsespriser!E102 -> 75 | D48: 0 | E48: =Genanskaffelsespriser!D102 -> 8600 | F48: 0 | G48: 0
A49: =+Genanskaffelsespriser!B103 -> Ø 800 mm < Ledningsnet ≤ Ø 1000 mm | B49: meter | C49: =+Genanskaffelsespriser!E103 -> 75 | D49: 0 | E49: =Genanskaffelsespriser!D103 -> 12400 | F49: 0 | G49: 0
A50: =+Genanskaffelsespriser!B104 -> Ø 1000 mm < Ledningsnet ≤ Ø 1200 mm | B50: meter | C50: =+Genanskaffelsespriser!E104 -> 75 | D50: 0 | E50: =Genanskaffelsespriser!D104 -> 22000 | F50: 0 | G50: 0
A51: =+Genanskaffelsespriser!B105 -> Ø 1200 mm < Ledningsnet ≤ Ø 1600 mm | B51: meter | C51: =+Genanskaffelsespriser!E105 -> 75 | D51: 0 | E51: =Genanskaffelsespriser!D105 -> 41000 | F51: 0 | G51: 0
A52: =+Genanskaffelsespriser!B106 -> Ledningsnet > Ø 1600 mm (rørbassiner og transportledninger) | B52: meter | C52: =+Genanskaffelsespriser!E106 -> 75 | D52: 0 | E52: =Genanskaffelsespriser!D106 -> 55000 | F52: 0 | G52: 0
A53: =+Genanskaffelsespriser!B107 -> Strømpeforing ≤ Ø 200 mm | B53: meter | C53: =+Genanskaffelsespriser!E107 -> 50 | D53: 0 | E53: =Genanskaffelsespriser!D107 -> 2260 | F53: 0 | G53: 0
A54: =+Genanskaffelsespriser!B108 -> Strømpeforing Ø 200 mm < Ledningsnet ≤ Ø 500 mm | B54: meter | C54: =+Genanskaffelsespriser!E108 -> 50 | D54: 0 | E54: =Genanskaffelsespriser!D108 -> 3175 | F54: 0 | G54: 0
A55: =+Genanskaffelsespriser!B109 -> Strømpeforing Ø 500 mm < Ledningsnet ≤ Ø 800 mm | B55: meter | C55: =+Genanskaffelsespriser!E109 -> 50 | D55: 0 | E55: =Genanskaffelsespriser!D109 -> 5250 | F55: 0 | G55: 0
A56: =+Genanskaffelsespriser!B110 -> Strømpeforing Ø 800 mm < Ledningsnet ≤ Ø 1000 mm | B56: meter | C56: =+Genanskaffelsespriser!E110 -> 50 | D56: 0 | E56: =Genanskaffelsespriser!D110 -> 6600 | F56: 0 | G56: 0
A57: =+Genanskaffelsespriser!B111 -> Strømpeforing Ø 1000 mm < Ledningsnet ≤ Ø 1200 mm | B57: meter | C57: =+Genanskaffelsespriser!E111 -> 50 | D57: 0 | E57: =Genanskaffelsespriser!D111 -> 8025 | F57: 0 | G57: 0
A58: =+Genanskaffelsespriser!B112 -> Strømpeforing Ø 1200 mm < Ledningsnet ≤ Ø 1600 mm | B58: meter | C58: =+Genanskaffelsespriser!E112 -> 50 | D58: 0 | E58: =Genanskaffelsespriser!D112 -> 10900 | F58: 0 | G58: 0
A59: Brønde og stik, ledningsnet - Land
A60: =+Genanskaffelsespriser!B114 -> Brønde | B60: stk. | C60: =+Genanskaffelsespriser!E114 -> 75 | D60: 0 | E60: =Genanskaffelsespriser!D114 -> 41000 | F60: 0 | G60: 0
A61: =+Genanskaffelsespriser!B115 -> Stik | B61: stk. | C61: =+Genanskaffelsespriser!E115 -> 75 | D61: 0 | E61: =Genanskaffelsespriser!D115 -> 15000 | F61: 0 | G61: 0
A62: Brønde og stik, ledningsnet - By
A63: =+Genanskaffelsespriser!B117 -> Brønde | B63: stk. | C63: =+Genanskaffelsespriser!E117 -> 75 | D63: 0 | E63: =Genanskaffelsespriser!D117 -> 45000 | F63: 0 | G63: 0
A64: =+Genanskaffelsespriser!B118 -> Stik | B64: stk. | C64: =+Genanskaffelsespriser!E118 -> 75 | D64: 0 | E64: =Genanskaffelsespriser!D118 -> 17000 | F64: 0 | G64: 0
A65: Brønde og stik, ledningsnet - City
A66: =+Genanskaffelsespriser!B120 -> Brønde | B66: stk. | C66: =+Genanskaffelsespriser!E120 -> 75 | D66: 0 | E66: =Genanskaffelsespriser!D120 -> 48000 | F66: 0 | G66: 0
A67: =+Genanskaffelsespriser!B121 -> Stik | B67: stk. | C67: =+Genanskaffelsespriser!E121 -> 75 | D67: 0 | E67: =Genanskaffelsespriser!D121 -> 18000 | F67: 0 | G67: 0
A68: Brønde og stik, ledningsnet - Indre city
A69: =+Genanskaffelsespriser!B123 -> Brønde | B69: stk. | C69: =+Genanskaffelsespriser!E123 -> 75 | D69: 0 | E69: =Genanskaffelsespriser!D123 -> 52000 | F69: =E69*D69 -> 0 | G69: =F69/C69 -> 0
A70: =+Genanskaffelsespriser!B124 -> Stik | B70: stk. | C70: =+Genanskaffelsespriser!E124 -> 75 | D70: 0 | E70: =Genanskaffelsespriser!D124 -> 20000 | F70: 0 | G70: 0
A71: Små pumpestationer inkl. SRO-anlæg - Land
A72: =+Genanskaffelsespriser!B126 -> Tryksatte minipumpestationer (husstandssystemer) | B72: stk. | C72: =+Genanskaffelsespriser!E126 -> 30 | D72: 0 | E72: =Genanskaffelsespriser!D126 -> 60000 | F72: 0 | G72: 0
A73: =+Genanskaffelsespriser!B127 -> Pumpestationer i brønde (< 6,25 m2), Konstruktioner | B73: stk. | C73: =+Genanskaffelsespriser!E127 -> 50 | D73: 0 | E73: =Genanskaffelsespriser!D127 -> 1245000 | F73: 0 | G73: 0
A74: =+Genanskaffelsespriser!B128 -> Pumpestationer i brønde (< 6,25 m2), Mek/EL | B74: stk. | C74: =+Genanskaffelsespriser!E128 -> 20 | D74: 0 | E74: =Genanskaffelsespriser!D128 -> 300000 | F74: 0 | G74: 0
A75: =+Genanskaffelsespriser!B129 -> Pumpestationer i brønde (< 6,25 m2), SRO | B75: stk. | C75: =+Genanskaffelsespriser!E129 -> 10 | D75: 0 | E75: =Genanskaffelsespriser!D129 -> 75000 | F75: 0 | G75: 0
A76: =+Genanskaffelsespriser!B130 -> Pumpestationer m. overbygning (< 20 m2), Konstruktioner | B76: stk. | C76: =+Genanskaffelsespriser!E130 -> 50 | D76: 0 | E76: =Genanskaffelsespriser!D130 -> 3700000 | F76: 0 | G76: 0
A77: =+Genanskaffelsespriser!B131 -> Pumpestationer m. overbygning (< 20 m2), Mek/EL | B77: stk. | C77: =+Genanskaffelsespriser!E131 -> 20 | D77: 0 | E77: =Genanskaffelsespriser!D131 -> 740000 | F77: 0 | G77: 0
A78: =+Genanskaffelsespriser!B132 -> Pumpestationer m. overbygning (< 20 m2), SRO | B78: stk. | C78: =+Genanskaffelsespriser!E132 -> 10 | D78: 0 | E78: =Genanskaffelsespriser!D132 -> 185000 | F78: 0 | G78: 0
A79: =+Genanskaffelsespriser!B133 -> Pumpestationer i underjordiske bygværker (<50 m2), Konstruktioner | B79: stk. | C79: =+Genanskaffelsespriser!E133 -> 50 | D79: 0 | E79: =Genanskaffelsespriser!D133 -> 5000000 | F79: 0 | G79: 0
A80: =+Genanskaffelsespriser!B134 -> Pumpestationer i underjordiske bygværker (<50 m2), Mek/El | B80: stk. | C80: =+Genanskaffelsespriser!E134 -> 20 | D80: 0 | E80: =Genanskaffelsespriser!D134 -> 1000000 | F80: 0 | G80: 0
A81: =+Genanskaffelsespriser!B135 -> Pumpestationer i underjordiske bygværker (<50 m2), SRO | B81: stk. | C81: =+Genanskaffelsespriser!E135 -> 10 | D81: 0 | E81: =Genanskaffelsespriser!D135 -> 250000 | F81: 0 | G81: 0
A82: Små pumpestationer inkl. SRO-anlæg - By
A83: =+Genanskaffelsespriser!B137 -> Tryksatte minipumpestationer (husstandssystemer) | B83: stk. | C83: =+Genanskaffelsespriser!E137 -> 30 | D83: 0 | E83: =Genanskaffelsespriser!D137 -> 67000 | F83: 0 | G83: 0
A84: =+Genanskaffelsespriser!B138 -> Pumpestationer i brønde (< 6,25 m2), Konstruktioner | B84: stk. | C84: =+Genanskaffelsespriser!E138 -> 50 | D84: 0 | E84: =Genanskaffelsespriser!D138 -> 1380000 | F84: 0 | G84: 0
A85: =+Genanskaffelsespriser!B139 -> Pumpestationer i brønde (< 6,25 m2), Mek/EL | B85: stk. | C85: =+Genanskaffelsespriser!E139 -> 20 | D85: 0 | E85: =Genanskaffelsespriser!D139 -> 300000 | F85: 0 | G85: 0
A86: =+Genanskaffelsespriser!B140 -> Pumpestationer i brønde (< 6,25 m2), SRO | B86: stk. | C86: =+Genanskaffelsespriser!E140 -> 10 | D86: 0 | E86: =Genanskaffelsespriser!D140 -> 75000 | F86: 0 | G86: 0
A87: =+Genanskaffelsespriser!B141 -> Pumpestationer m. overbygning (< 20 m2), Konstruktioner | B87: stk. | C87: =+Genanskaffelsespriser!E141 -> 50 | D87: 0 | E87: =Genanskaffelsespriser!D141 -> 4100000 | F87: 0 | G87: 0
A88: =+Genanskaffelsespriser!B142 -> Pumpestationer m. overbygning (< 20 m2), Mek/EL | B88: stk. | C88: =+Genanskaffelsespriser!E142 -> 20 | D88: 0 | E88: =Genanskaffelsespriser!D142 -> 740000 | F88: 0 | G88: 0
A89: =+Genanskaffelsespriser!B143 -> Pumpestationer m. overbygning (< 20 m2), SRO | B89: stk. | C89: =+Genanskaffelsespriser!E143 -> 10 | D89: 0 | E89: =Genanskaffelsespriser!D143 -> 185000 | F89: 0 | G89: 0
A90: =+Genanskaffelsespriser!B144 -> Pumpestationer i underjordiske bygværker (<50 m2), Konstruktioner | B90: stk. | C90: =+Genanskaffelsespriser!E144 -> 50 | D90: 0 | E90: =Genanskaffelsespriser!D144 -> 5500000 | F90: 0 | G90: 0
A91: =+Genanskaffelsespriser!B145 -> Pumpestationer i underjordiske bygværker (<50 m2), Mek/El | B91: stk. | C91: =+Genanskaffelsespriser!E145 -> 20 | D91: 0 | E91: =Genanskaffelsespriser!D145 -> 1000000 | F91: 0 | G91: 0
A92: =+Genanskaffelsespriser!B146 -> Pumpestationer i underjordiske bygværker (<50 m2), SRO | B92: stk. | C92: =+Genanskaffelsespriser!E146 -> 10 | D92: 0 | E92: =Genanskaffelsespriser!D146 -> 250000 | F92: 0 | G92: 0
A93: Små pumpestationer inkl. SRO-anlæg - City
A94: =+Genanskaffelsespriser!B148 -> Tryksatte minipumpestationer (husstandssystemer) | B94: stk. | C94: =+Genanskaffelsespriser!E148 -> 30 | D94: 0 | E94: =Genanskaffelsespriser!D148 -> 72000 | F94: 0 | G94: 0
A95: =+Genanskaffelsespriser!B149 -> Pumpestationer i brønde (< 6,25 m2), Konstruktioner | B95: stk. | C95: =+Genanskaffelsespriser!E149 -> 50 | D95: 0 | E95: =Genanskaffelsespriser!D149 -> 1500000 | F95: 0 | G95: 0
A96: =+Genanskaffelsespriser!B150 -> Pumpestationer i brønde (< 6,25 m2), Mek/EL | B96: stk. | C96: =+Genanskaffelsespriser!E150 -> 20 | D96: 0 | E96: =Genanskaffelsespriser!D150 -> 300000 | F96: 0 | G96: 0
A97: =+Genanskaffelsespriser!B151 -> Pumpestationer i brønde (< 6,25 m2), SRO | B97: stk. | C97: =+Genanskaffelsespriser!E151 -> 10 | D97: 0 | E97: =Genanskaffelsespriser!D151 -> 75000 | F97: 0 | G97: 0
A98: =+Genanskaffelsespriser!B152 -> Pumpestationer m. overbygning (< 20 m2), Konstruktioner | B98: stk. | C98: =+Genanskaffelsespriser!E152 -> 50 | D98: 0 | E98: =Genanskaffelsespriser!D152 -> 4400000 | F98: 0 | G98: 0
A99: =+Genanskaffelsespriser!B153 -> Pumpestationer m. overbygning (< 20 m2), Mek/EL | B99: stk. | C99: =+Genanskaffelsespriser!E153 -> 20 | D99: 0 | E99: =Genanskaffelsespriser!D153 -> 740000 | F99: 0 | G99: 0
A100: =+Genanskaffelsespriser!B154 -> Pumpestationer m. overbygning (< 20 m2), SRO | B100: stk. | C100: =+Genanskaffelsespriser!E154 -> 10 | D100: 0 | E100: =Genanskaffelsespriser!D154 -> 185000 | F100: 0 | G100: 0
A101: =+Genanskaffelsespriser!B155 -> Pumpestationer i underjordiske bygværker (<50 m2), Konstruktioner | B101: stk. | C101: =+Genanskaffelsespriser!E155 -> 50 | D101: 0 | E101: =Genanskaffelsespriser!D155 -> 6000000 | F101: 0 | G101: 0
A102: =+Genanskaffelsespriser!B156 -> Pumpestationer i underjordiske bygværker (<50 m2), Mek/El | B102: stk. | C102: =+Genanskaffelsespriser!E156 -> 20 | D102: 0 | E102: =Genanskaffelsespriser!D156 -> 1000000 | F102: 0 | G102: 0
A103: =+Genanskaffelsespriser!B157 -> Pumpestationer i underjordiske bygværker (<50 m2), SRO | B103: stk. | C103: =+Genanskaffelsespriser!E157 -> 10 | D103: 0 | E103: =Genanskaffelsespriser!D157 -> 250000 | F103: 0 | G103: 0
A104: Små pumpestationer inkl. SRO-anlæg - Indre city
A105: =+Genanskaffelsespriser!B159 -> Tryksatte minipumpestationer (husstandssystemer) | B105: stk. | C105: =+Genanskaffelsespriser!E159 -> 30 | D105: 0 | E105: =Genanskaffelsespriser!D159 -> 78000 | F105: 0 | G105: 0
A106: =+Genanskaffelsespriser!B160 -> Pumpestationer i brønde (< 6,25 m2), Konstruktioner | B106: stk. | C106: =+Genanskaffelsespriser!E160 -> 50 | D106: 0 | E106: =Genanskaffelsespriser!D160 -> 1600000 | F106: 0 | G106: 0
A107: =+Genanskaffelsespriser!B161 -> Pumpestationer i brønde (< 6,25 m2), Mek/EL | B107: stk. | C107: =+Genanskaffelsespriser!E161 -> 20 | D107: 0 | E107: =Genanskaffelsespriser!D161 -> 300000 | F107: 0 | G107: 0
A108: =+Genanskaffelsespriser!B162 -> Pumpestationer i brønde (< 6,25 m2), SRO | B108: stk. | C108: =+Genanskaffelsespriser!E162 -> 10 | D108: 0 | E108: =Genanskaffelsespriser!D162 -> 75000 | F108: 0 | G108: 0
A109: =+Genanskaffelsespriser!B163 -> Pumpestationer m. overbygning (< 20 m2), Konstruktioner | B109: stk. | C109: =+Genanskaffelsespriser!E163 -> 50 | D109: 0 | E109: =Genanskaffelsespriser!D163 -> 4800000 | F109: 0 | G109: 0
A110: =+Genanskaffelsespriser!B164 -> Pumpestationer m. overbygning (< 20 m2), Mek/EL | B110: stk. | C110: =+Genanskaffelsespriser!E164 -> 20 | D110: 0 | E110: =Genanskaffelsespriser!D164 -> 740000 | F110: 0 | G110: 0
A111: =+Genanskaffelsespriser!B165 -> Pumpestationer m. overbygning (< 20 m2), SRO | B111: stk. | C111: =+Genanskaffelsespriser!E165 -> 10 | D111: 0 | E111: =Genanskaffelsespriser!D165 -> 185000 | F111: 0 | G111: 0
A112: =+Genanskaffelsespriser!B166 -> Pumpestationer i underjordiske bygværker (<50 m2), Konstruktioner | B112: stk. | C112: =+Genanskaffelsespriser!E166 -> 50 | D112: 0 | E112: =Genanskaffelsespriser!D166 -> 6500000 | F112: 0 | G112: 0
A113: =+Genanskaffelsespriser!B167 -> Pumpestationer i underjordiske bygværker (<50 m2), Mek/El | B113: stk. | C113: =+Genanskaffelsespriser!E167 -> 20 | D113: 0 | E113: =Genanskaffelsespriser!D167 -> 1000000 | F113: 0 | G113: 0
A114: =+Genanskaffelsespriser!B168 -> Pumpestationer i underjordiske bygværker (<50 m2), SRO | B114: stk. | C114: =+Genanskaffelsespriser!E168 -> 10 | D114: 0 | E114: =Genanskaffelsespriser!D168 -> 250000 | F114: 0 | G114: 0
A115: Store pumpestationer: inkl. SRO-anlæg - Land
A116: =+Genanskaffelsespriser!B170 -> Kælder | B116: m2 | C116: =+Genanskaffelsespriser!E170 -> 75 | D116: 0 | E116: =Genanskaffelsespriser!D170 -> 29000 | F116: 0 | G116: 0
A117: =+Genanskaffelsespriser!B171 -> Pumpeinstallation Miljøklasse A (100-300 l/s) - Mek/EL | B117: stk. | C117: =+Genanskaffelsespriser!E171 -> 20 | D117: 0 | E117: =Genanskaffelsespriser!D171 -> 1680000 | F117: 0 | G117: 0
A118: =+Genanskaffelsespriser!B172 -> Pumpeinstallation Miljøklasse A (100-300 l/s) - SRO | B118: stk. | C118: =+Genanskaffelsespriser!E172 -> 10 | D118: 0 | E118: =Genanskaffelsespriser!D172 -> 420000 | F118: 0 | G118: 0
A119: =+Genanskaffelsespriser!B173 -> Pumpeinstallation Miljøklasse A (300-600 l/s) - Mek/EL | B119: stk. | C119: =+Genanskaffelsespriser!E173 -> 20 | D119: 0 | E119: =Genanskaffelsespriser!D173 -> 3200000 | F119: 0 | G119: 0
A120: =+Genanskaffelsespriser!B174 -> Pumpeinstallation Miljøklasse A (300-600 l/s) - SRO | B120: stk. | C120: =+Genanskaffelsespriser!E174 -> 10 | D120: 0 | E120: =Genanskaffelsespriser!D174 -> 800000 | F120: 0 | G120: 0
A121: =+Genanskaffelsespriser!B175 -> Pumpeinstallation Miljøklasse A (600-1.000 l/s) - Mek/EL | B121: stk. | C121: =+Genanskaffelsespriser!E175 -> 20 | D121: 0 | E121: =Genanskaffelsespriser!D175 -> 5120000 | F121: 0 | G121: 0
A122: =+Genanskaffelsespriser!B176 -> Pumpeinstallation Miljøklasse A (600-1.000 l/s) - SRO | B122: stk. | C122: =+Genanskaffelsespriser!E176 -> 10 | D122: 0 | E122: =Genanskaffelsespriser!D176 -> 1280000 | F122: 0 | G122: 0
A123: =+Genanskaffelsespriser!B177 -> Pumpeinstallation Miljøklasse A (1.000-1.500 l/s) - Mek/EL | B123: stk. | C123: =+Genanskaffelsespriser!E177 -> 20 | D123: 0 | E123: =Genanskaffelsespriser!D177 -> 6960000 | F123: 0 | G123: 0
A124: =+Genanskaffelsespriser!B178 -> Pumpeinstallation Miljøklasse A (1.000-1.500 l/s) - SRO | B124: stk. | C124: =+Genanskaffelsespriser!E178 -> 10 | D124: 0 | E124: =Genanskaffelsespriser!D178 -> 1740000 | F124: 0 | G124: 0
A125: =+Genanskaffelsespriser!B179 -> Pumpeinstallation Miljøklasse B (100-300 l/s) - Mek/EL | B125: stk. | C125: =+Genanskaffelsespriser!E179 -> 20 | D125: 0 | E125: =Genanskaffelsespriser!D179 -> 1440000 | F125: 0 | G125: 0
A126: =+Genanskaffelsespriser!B180 -> Pumpeinstallation Miljøklasse B (100-300 l/s) - SRO | B126: stk. | C126: =+Genanskaffelsespriser!E180 -> 10 | D126: 0 | E126: =Genanskaffelsespriser!D180 -> 360000 | F126: 0 | G126: 0
A127: =+Genanskaffelsespriser!B181 -> Pumpeinstallation Miljøklasse B (300-600 l/s) - Mek/EL | B127: stk. | C127: =+Genanskaffelsespriser!E181 -> 20 | D127: 0 | E127: =Genanskaffelsespriser!D181 -> 2720000 | F127: 0 | G127: 0
A128: =+Genanskaffelsespriser!B182 -> Pumpeinstallation Miljøklasse B (300-600 l/s) - SRO | B128: stk. | C128: =+Genanskaffelsespriser!E182 -> 10 | D128: 0 | E128: =Genanskaffelsespriser!D182 -> 680000 | F128: 0 | G128: 0
A129: =+Genanskaffelsespriser!B183 -> Pumpeinstallation Miljøklasse B (600-1.000 l/s) - Mek/EL | B129: stk. | C129: =+Genanskaffelsespriser!E183 -> 20 | D129: 0 | E129: =Genanskaffelsespriser!D183 -> 4320000 | F129: 0 | G129: 0
A130: =+Genanskaffelsespriser!B184 -> Pumpeinstallation Miljøklasse B (600-1.000 l/s) - SRO | B130: stk. | C130: =+Genanskaffelsespriser!E184 -> 10 | D130: 0 | E130: =Genanskaffelsespriser!D184 -> 1080000 | F130: 0 | G130: 0
A131: =+Genanskaffelsespriser!B185 -> Pumpeinstallation Miljøklasse B (1.000-1.500 l/s) - Mek/EL | B131: stk. | C131: =+Genanskaffelsespriser!E185 -> 20 | D131: 0 | E131: =Genanskaffelsespriser!D185 -> 5920000 | F131: 0 | G131: 0
A132: =+Genanskaffelsespriser!B186 -> Pumpeinstallation Miljøklasse B (1.000-1.500 l/s) - SRO | B132: stk. | C132: =+Genanskaffelsespriser!E186 -> 10 | D132: 0 | E132: =Genanskaffelsespriser!D186 -> 1480000 | F132: 0 | G132: 0
A133: =+Genanskaffelsespriser!B187 -> Overbygning | B133: m2 | C133: =+Genanskaffelsespriser!E187 -> 75 | D133: 0 | E133: =Genanskaffelsespriser!D187 -> 14500 | F133: =E133*D133 -> 0 | G133: =F133/C133 -> 0
A134: Store pumpestationer: inkl. SRO-anlæg - By
A135: =+Genanskaffelsespriser!B189 -> Kælder | B135: m2 | C135: =+Genanskaffelsespriser!E189 -> 75 | D135: 0 | E135: =Genanskaffelsespriser!D189 -> 32000 | F135: 0 | G135: 0
A136: =+Genanskaffelsespriser!B190 -> Pumpeinstallation Miljøklasse A (100-300 l/s) - Mek/EL | B136: stk. | C136: =+Genanskaffelsespriser!E190 -> 20 | D136: 0 | E136: =Genanskaffelsespriser!D190 -> 1680000 | F136: 0 | G136: 0
A137: =+Genanskaffelsespriser!B191 -> Pumpeinstallation Miljøklasse A (100-300 l/s) - SRO | B137: stk. | C137: =+Genanskaffelsespriser!E191 -> 10 | D137: 0 | E137: =Genanskaffelsespriser!D191 -> 420000 | F137: 0 | G137: 0
A138: =+Genanskaffelsespriser!B192 -> Pumpeinstallation Miljøklasse A (300-600 l/s) - Mek/EL | B138: stk. | C138: =+Genanskaffelsespriser!E192 -> 20 | D138: 0 | E138: =Genanskaffelsespriser!D192 -> 3200000 | F138: 0 | G138: 0
A139: =+Genanskaffelsespriser!B193 -> Pumpeinstallation Miljøklasse A (300-600 l/s) - SRO | B139: stk. | C139: =+Genanskaffelsespriser!E193 -> 10 | D139: 0 | E139: =Genanskaffelsespriser!D193 -> 800000 | F139: 0 | G139: 0
A140: =+Genanskaffelsespriser!B194 -> Pumpeinstallation Miljøklasse A (600-1.000 l/s) - Mek/EL | B140: stk. | C140: =+Genanskaffelsespriser!E194 -> 20 | D140: 0 | E140: =Genanskaffelsespriser!D194 -> 5120000 | F140: 0 | G140: 0
A141: =+Genanskaffelsespriser!B195 -> Pumpeinstallation Miljøklasse A (600-1.000 l/s) - SRO | B141: stk. | C141: =+Genanskaffelsespriser!E195 -> 10 | D141: 0 | E141: =Genanskaffelsespriser!D195 -> 1280000 | F141: 0 | G141: 0
A142: =+Genanskaffelsespriser!B196 -> Pumpeinstallation Miljøklasse A (1.000-1.500 l/s) - Mek/EL | B142: stk. | C142: =+Genanskaffelsespriser!E196 -> 20 | D142: 0 | E142: =Genanskaffelsespriser!D196 -> 6960000 | F142: 0 | G142: 0
A143: =+Genanskaffelsespriser!B197 -> Pumpeinstallation Miljøklasse A (1.000-1.500 l/s) - SRO | B143: stk. | C143: =+Genanskaffelsespriser!E197 -> 10 | D143: 0 | E143: =Genanskaffelsespriser!D197 -> 1740000 | F143: 0 | G143: 0
A144: =+Genanskaffelsespriser!B198 -> Pumpeinstallation Miljøklasse B (100-300 l/s) - Mek/EL | B144: stk. | C144: =+Genanskaffelsespriser!E198 -> 20 | D144: 0 | E144: =Genanskaffelsespriser!D198 -> 1440000 | F144: 0 | G144: 0
A145: =+Genanskaffelsespriser!B199 -> Pumpeinstallation Miljøklasse B (100-300 l/s) - SRO | B145: stk. | C145: =+Genanskaffelsespriser!E199 -> 10 | D145: 0 | E145: =Genanskaffelsespriser!D199 -> 360000 | F145: 0 | G145: 0
A146: =+Genanskaffelsespriser!B200 -> Pumpeinstallation Miljøklasse B (300-600 l/s) - Mek/EL | B146: stk. | C146: =+Genanskaffelsespriser!E200 -> 20 | D146: 0 | E146: =Genanskaffelsespriser!D200 -> 2720000 | F146: 0 | G146: 0
A147: =+Genanskaffelsespriser!B201 -> Pumpeinstallation Miljøklasse B (300-600 l/s) - SRO | B147: stk. | C147: =+Genanskaffelsespriser!E201 -> 10 | D147: 0 | E147: =Genanskaffelsespriser!D201 -> 680000 | F147: 0 | G147: 0
A148: =+Genanskaffelsespriser!B202 -> Pumpeinstallation Miljøklasse B (600-1.000 l/s) - Mek/EL | B148: stk. | C148: =+Genanskaffelsespriser!E202 -> 20 | D148: 0 | E148: =Genanskaffelsespriser!D202 -> 4320000 | F148: 0 | G148: 0
A149: =+Genanskaffelsespriser!B203 -> Pumpeinstallation Miljøklasse B (600-1.000 l/s) - SRO | B149: stk. | C149: =+Genanskaffelsespriser!E203 -> 10 | D149: 0 | E149: =Genanskaffelsespriser!D203 -> 1080000 | F149: 0 | G149: 0
A150: =+Genanskaffelsespriser!B204 -> Pumpeinstallation Miljøklasse B (1.000-1.500 l/s) - Mek/EL | B150: stk. | C150: =+Genanskaffelsespriser!E204 -> 20 | D150: 0 | E150: =Genanskaffelsespriser!D204 -> 5920000 | F150: 0 | G150: 0
A151: =+Genanskaffelsespriser!B205 -> Pumpeinstallation Miljøklasse B (1.000-1.500 l/s) - SRO | B151: stk. | C151: =+Genanskaffelsespriser!E205 -> 10 | D151: 0 | E151: =Genanskaffelsespriser!D205 -> 1480000 | F151: 0 | G151: 0
A152: =+Genanskaffelsespriser!B206 -> Overbygning | B152: m2 | C152: =+Genanskaffelsespriser!E206 -> 75 | D152: 0 | E152: =Genanskaffelsespriser!D206 -> 16000 | F152: 0 | G152: 0
A153: Store pumpestationer: inkl. SRO-anlæg - City
A154: =+Genanskaffelsespriser!B208 -> Kælder | B154: m2 | C154: =+Genanskaffelsespriser!E208 -> 75 | D154: 0 | E154: =Genanskaffelsespriser!D208 -> 35000 | F154: 0 | G154: 0
A155: =+Genanskaffelsespriser!B209 -> Pumpeinstallation Miljøklasse A (100-300 l/s) - Mek/EL | B155: stk. | C155: =+Genanskaffelsespriser!E209 -> 20 | D155: 0 | E155: =Genanskaffelsespriser!D209 -> 1680000 | F155: 0 | G155: 0
A156: =+Genanskaffelsespriser!B210 -> Pumpeinstallation Miljøklasse A (100-300 l/s) - SRO | B156: stk. | C156: =+Genanskaffelsespriser!E210 -> 10 | D156: 0 | E156: =Genanskaffelsespriser!D210 -> 420000 | F156: 0 | G156: 0
A157: =+Genanskaffelsespriser!B211 -> Pumpeinstallation Miljøklasse A (300-600 l/s) - Mek/EL | B157: stk. | C157: =+Genanskaffelsespriser!E211 -> 20 | D157: 0 | E157: =Genanskaffelsespriser!D211 -> 3200000 | F157: 0 | G157: 0
A158: =+Genanskaffelsespriser!B212 -> Pumpeinstallation Miljøklasse A (300-600 l/s) - SRO | B158: stk. | C158: =+Genanskaffelsespriser!E212 -> 10 | D158: 0 | E158: =Genanskaffelsespriser!D212 -> 800000 | F158: 0 | G158: 0
A159: =+Genanskaffelsespriser!B213 -> Pumpeinstallation Miljøklasse A (600-1.000 l/s) - Mek/EL | B159: stk. | C159: =+Genanskaffelsespriser!E213 -> 20 | D159: 0 | E159: =Genanskaffelsespriser!D213 -> 5120000 | F159: 0 | G159: 0
A160: =+Genanskaffelsespriser!B214 -> Pumpeinstallation Miljøklasse A (600-1.000 l/s) - SRO | B160: stk. | C160: =+Genanskaffelsespriser!E214 -> 10 | D160: 0 | E160: =Genanskaffelsespriser!D214 -> 1280000 | F160: 0 | G160: 0
A161: =+Genanskaffelsespriser!B215 -> Pumpeinstallation Miljøklasse A (1.000-1.500 l/s) - Mek/EL | B161: stk. | C161: =+Genanskaffelsespriser!E215 -> 20 | D161: 0 | E161: =Genanskaffelsespriser!D215 -> 6960000 | F161: 0 | G161: 0
A162: =+Genanskaffelsespriser!B216 -> Pumpeinstallation Miljøklasse A (1.000-1.500 l/s) - SRO | B162: stk. | C162: =+Genanskaffelsespriser!E216 -> 10 | D162: 0 | E162: =Genanskaffelsespriser!D216 -> 1740000 | F162: 0 | G162: 0
A163: =+Genanskaffelsespriser!B217 -> Pumpeinstallation Miljøklasse B (100-300 l/s) - Mek/EL | B163: stk. | C163: =+Genanskaffelsespriser!E217 -> 20 | D163: 0 | E163: =Genanskaffelsespriser!D217 -> 1440000 | F163: 0 | G163: 0
A164: =+Genanskaffelsespriser!B218 -> Pumpeinstallation Miljøklasse B (100-300 l/s) - SRO | B164: stk. | C164: =+Genanskaffelsespriser!E218 -> 10 | D164: 0 | E164: =Genanskaffelsespriser!D218 -> 360000 | F164: 0 | G164: 0
A165: =+Genanskaffelsespriser!B219 -> Pumpeinstallation Miljøklasse B (300-600 l/s) - Mek/EL | B165: stk. | C165: =+Genanskaffelsespriser!E219 -> 20 | D165: 0 | E165: =Genanskaffelsespriser!D219 -> 2720000 | F165: 0 | G165: 0
A166: =+Genanskaffelsespriser!B220 -> Pumpeinstallation Miljøklasse B (300-600 l/s) - SRO | B166: stk. | C166: =+Genanskaffelsespriser!E220 -> 10 | D166: 0 | E166: =Genanskaffelsespriser!D220 -> 680000 | F166: 0 | G166: 0
A167: =+Genanskaffelsespriser!B221 -> Pumpeinstallation Miljøklasse B (600-1.000 l/s) - Mek/EL | B167: stk. | C167: =+Genanskaffelsespriser!E221 -> 20 | D167: 0 | E167: =Genanskaffelsespriser!D221 -> 4320000 | F167: 0 | G167: 0
A168: =+Genanskaffelsespriser!B222 -> Pumpeinstallation Miljøklasse B (600-1.000 l/s) - SRO | B168: stk. | C168: =+Genanskaffelsespriser!E222 -> 10 | D168: 0 | E168: =Genanskaffelsespriser!D222 -> 1080000 | F168: 0 | G168: 0
A169: =+Genanskaffelsespriser!B223 -> Pumpeinstallation Miljøklasse B (1.000-1.500 l/s) - Mek/EL | B169: stk. | C169: =+Genanskaffelsespriser!E223 -> 20 | D169: 0 | E169: =Genanskaffelsespriser!D223 -> 5920000 | F169: 0 | G169: 0
A170: =+Genanskaffelsespriser!B224 -> Pumpeinstallation Miljøklasse B (1.000-1.500 l/s) - SRO | B170: stk. | C170: =+Genanskaffelsespriser!E224 -> 10 | D170: 0 | E170: =Genanskaffelsespriser!D224 -> 1480000 | F170: 0 | G170: 0
A171: =+Genanskaffelsespriser!B225 -> Overbygning | B171: m2 | C171: =+Genanskaffelsespriser!E225 -> 75 | D171: 0 | E171: =Genanskaffelsespriser!D225 -> 17400 | F171: 0 | G171: 0
A172: Store pumpestationer: inkl. SRO-anlæg - Indre city
A173: =+Genanskaffelsespriser!B227 -> Kælder | B173: m2 | C173: =+Genanskaffelsespriser!E227 -> 75 | D173: 0 | E173: =Genanskaffelsespriser!D227 -> 38000 | F173: 0 | G173: 0
A174: =+Genanskaffelsespriser!B228 -> Pumpeinstallation Miljøklasse A (100-300 l/s) - Mek/EL | B174: stk. | C174: =+Genanskaffelsespriser!E228 -> 20 | D174: 0 | E174: =Genanskaffelsespriser!D228 -> 1680000 | F174: 0 | G174: 0
A175: =+Genanskaffelsespriser!B229 -> Pumpeinstallation Miljøklasse A (100-300 l/s) - SRO | B175: stk. | C175: =+Genanskaffelsespriser!E229 -> 10 | D175: 0 | E175: =Genanskaffelsespriser!D229 -> 420000 | F175: 0 | G175: 0
A176: =+Genanskaffelsespriser!B230 -> Pumpeinstallation Miljøklasse A (300-600 l/s) - Mek/EL | B176: stk. | C176: =+Genanskaffelsespriser!E230 -> 20 | D176: 0 | E176: =Genanskaffelsespriser!D230 -> 3200000 | F176: 0 | G176: 0
A177: =+Genanskaffelsespriser!B231 -> Pumpeinstallation Miljøklasse A (300-600 l/s) - SRO | B177: stk. | C177: =+Genanskaffelsespriser!E231 -> 10 | D177: 0 | E177: =Genanskaffelsespriser!D231 -> 800000 | F177: 0 | G177: 0
A178: =+Genanskaffelsespriser!B232 -> Pumpeinstallation Miljøklasse A (600-1.000 l/s) - Mek/EL | B178: stk. | C178: =+Genanskaffelsespriser!E232 -> 20 | D178: 0 | E178: =Genanskaffelsespriser!D232 -> 5120000 | F178: 0 | G178: 0
A179: =+Genanskaffelsespriser!B233 -> Pumpeinstallation Miljøklasse A (600-1.000 l/s) - SRO | B179: stk. | C179: =+Genanskaffelsespriser!E233 -> 10 | D179: 0 | E179: =Genanskaffelsespriser!D233 -> 1280000 | F179: 0 | G179: 0
A180: =+Genanskaffelsespriser!B234 -> Pumpeinstallation Miljøklasse A (1.000-1.500 l/s) - Mek/EL | B180: stk. | C180: =+Genanskaffelsespriser!E234 -> 20 | D180: 0 | E180: =Genanskaffelsespriser!D234 -> 6960000 | F180: 0 | G180: 0
A181: =+Genanskaffelsespriser!B235 -> Pumpeinstallation Miljøklasse A (1.000-1.500 l/s) - SRO | B181: stk. | C181: =+Genanskaffelsespriser!E235 -> 10 | D181: 0 | E181: =Genanskaffelsespriser!D235 -> 1740000 | F181: 0 | G181: 0
A182: =+Genanskaffelsespriser!B236 -> Pumpeinstallation Miljøklasse B (100-300 l/s) - Mek/EL | B182: stk. | C182: =+Genanskaffelsespriser!E236 -> 20 | D182: 0 | E182: =Genanskaffelsespriser!D236 -> 1440000 | F182: 0 | G182: 0
A183: =+Genanskaffelsespriser!B237 -> Pumpeinstallation Miljøklasse B (100-300 l/s) - SRO | B183: stk. | C183: =+Genanskaffelsespriser!E237 -> 10 | D183: 0 | E183: =Genanskaffelsespriser!D237 -> 360000 | F183: 0 | G183: 0
A184: =+Genanskaffelsespriser!B238 -> Pumpeinstallation Miljøklasse B (300-600 l/s) - Mek/EL | B184: stk. | C184: =+Genanskaffelsespriser!E238 -> 20 | D184: 0 | E184: =Genanskaffelsespriser!D238 -> 2720000 | F184: 0 | G184: 0
A185: =+Genanskaffelsespriser!B239 -> Pumpeinstallation Miljøklasse B (300-600 l/s) - SRO | B185: stk. | C185: =+Genanskaffelsespriser!E239 -> 10 | D185: 0 | E185: =Genanskaffelsespriser!D239 -> 680000 | F185: 0 | G185: 0
A186: =+Genanskaffelsespriser!B240 -> Pumpeinstallation Miljøklasse B (600-1.000 l/s) - Mek/EL | B186: stk. | C186: =+Genanskaffelsespriser!E240 -> 20 | D186: 0 | E186: =Genanskaffelsespriser!D240 -> 4320000 | F186: 0 | G186: 0
A187: =+Genanskaffelsespriser!B241 -> Pumpeinstallation Miljøklasse B (600-1.000 l/s) - SRO | B187: stk. | C187: =+Genanskaffelsespriser!E241 -> 10 | D187: 0 | E187: =Genanskaffelsespriser!D241 -> 1080000 | F187: 0 | G187: 0
A188: =+Genanskaffelsespriser!B242 -> Pumpeinstallation Miljøklasse B (1.000-1.500 l/s) - Mek/EL | B188: stk. | C188: =+Genanskaffelsespriser!E242 -> 20 | D188: 0 | E188: =Genanskaffelsespriser!D242 -> 5920000 | F188: 0 | G188: 0
A189: =+Genanskaffelsespriser!B243 -> Pumpeinstallation Miljøklasse B (1.000-1.500 l/s) - SRO | B189: stk. | C189: =+Genanskaffelsespriser!E243 -> 10 | D189: 0 | E189: =Genanskaffelsespriser!D243 -> 1480000 | F189: 0 | G189: 0
A190: =+Genanskaffelsespriser!B244 -> Overbygning | B190: m2 | C190: =+Genanskaffelsespriser!E244 -> 75 | D190: 0 | E190: =Genanskaffelsespriser!D244 -> 19000 | F190: 0 | G190: 0
A191: Overløbsbygværker - Land
A192: =+Genanskaffelsespriser!B246 -> Kælder (< 7 m2) | B192: stk. | C192: =+Genanskaffelsespriser!E246 -> 75 | D192: 0 | E192: =Genanskaffelsespriser!D246 -> 250000 | F192: 0 | G192: 0
A193: =+Genanskaffelsespriser!B247 -> Kælder (7 - 20 m2) | B193: m2 | C193: =+Genanskaffelsespriser!E247 -> 75 | D193: 0 | E193: =Genanskaffelsespriser!D247 -> 45000 | F193: 0 | G193: 0
A194: =+Genanskaffelsespriser!B248 -> Kælder (20 - 30 m2) | B194: m2 | C194: =+Genanskaffelsespriser!E248 -> 75 | D194: 0 | E194: =Genanskaffelsespriser!D248 -> 40000 | F194: 0 | G194: 0
A195: =+Genanskaffelsespriser!B249 -> Installationer "ingen eller faste riste" (mindre end 7 m2) | B195: stk. | C195: =+Genanskaffelsespriser!E249 -> 20 | D195: 0 | E195: =Genanskaffelsespriser!D249 -> 25000 | F195: 0 | G195: 0
A196: =+Genanskaffelsespriser!B250 -> Installationer "mekaniske riste og SRO" Miljøklasse A. (7-20 m2) - Mek/EL | B196: stk. | C196: =+Genanskaffelsespriser!E250 -> 20 | D196: 0 | E196: =Genanskaffelsespriser!D250 -> 360000 | F196: 0 | G196: 0
A197: =+Genanskaffelsespriser!B251 -> Installationer "mekaniske riste og SRO" Miljøklasse A. (7-20 m2) - SRO | B197: stk. | C197: =+Genanskaffelsespriser!E251 -> 10 | D197: 0 | E197: =Genanskaffelsespriser!D251 -> 240000 | F197: =E197*D197 -> 0 | G197: =F197/C197 -> 0
A198: =+Genanskaffelsespriser!B252 -> Installationer "mekaniske riste og SRO" Miljøklasse A. (20-30 m2) - Mek/EL | B198: stk. | C198: =+Genanskaffelsespriser!E252 -> 20 | D198: 0 | E198: =Genanskaffelsespriser!D252 -> 540000 | F198: 0 | G198: 0
A199: =+Genanskaffelsespriser!B253 -> Installationer "mekaniske riste og SRO" Miljøklasse A. (20-30 m2) - SRO | B199: stk. | C199: =+Genanskaffelsespriser!E253 -> 10 | D199: 0 | E199: =Genanskaffelsespriser!D253 -> 360000 | F199: 0 | G199: 0
A200: =+Genanskaffelsespriser!B254 -> Installationer "mekaniske riste og SRO" Miljøklasse B. (7-20 m2) - Mek/EL | B200: stk. | C200: =+Genanskaffelsespriser!E254 -> 20 | D200: 0 | E200: =Genanskaffelsespriser!D254 -> 300000 | F200: 0 | G200: 0
... 122 more rows

Sheet Fællesfunktionsanlæg
A1: PRODUKTIONSANLÆG | B1: Enhed | C1: Standardlevetid | D1: Mængde | E1: Enhedspris | F1: Samlet værdi | G1: Afskrivning
A2: Andre
A3: =+Genanskaffelsespriser!B380 -> Administrationbygninger | B3: m2 | C3: =Genanskaffelsespriser!E380 -> 75 | D3: 0 | E3: =Genanskaffelsespriser!$D380 -> 22000 | F3: =D3*E3 -> 0 | G3: =F3/C3 -> 0
A4: =+Genanskaffelsespriser!B381 -> Arbejdsplads | B4: stk. | C4: =Genanskaffelsespriser!E381 -> 5 | D4: 0 | E4: =Genanskaffelsespriser!$D381 -> 35000 | F4: =D4*E4 -> 0 | G4: =F4/C4 -> 0
A5: =+Genanskaffelsespriser!B382 -> Køretøjer, personbil | B5: stk. | C5: =Genanskaffelsespriser!E382 -> 5 | D5: 0 | E5: =Genanskaffelsespriser!$D382 -> 225000 | F5: 0 | G5: 0
A6: =+Genanskaffelsespriser!B383 -> Køretøjer, små lastvogne (< 3.500 kg.) | B6: stk. | C6: =Genanskaffelsespriser!E383 -> 5 | D6: 0 | E6: =Genanskaffelsespriser!$D383 -> 250000 | F6: 0 | G6: 0
A7: =+Genanskaffelsespriser!B384 -> Køretøjer, store lastvogne (> 3.500 kg.) | B7: stk. | C7: =Genanskaffelsespriser!E384 -> 5 | D7: 0 | E7: =Genanskaffelsespriser!$D384 -> 1300000 | F7: 0 | G7: 0
A8: =+Genanskaffelsespriser!B385 -> Køretøjer, entreprenørmaskiner | B8: stk. | C8: =Genanskaffelsespriser!E385 -> 5 | D8: 0 | E8: =Genanskaffelsespriser!$D385 -> 400000 | F8: 0 | G8: 0
A9: =+Genanskaffelsespriser!B386 -> Slamsugere | B9: stk. | C9: =Genanskaffelsespriser!E386 -> 5 | D9: 0 | E9: =Genanskaffelsespriser!$D386 -> 2300000 | F9: 0 | G9: 0
A10: =+Genanskaffelsespriser!B387 -> Værksteder, garager | B10: m2 | C10: =Genanskaffelsespriser!E387 -> 75 | D10: 0 | E10: =Genanskaffelsespriser!$D387 -> 17000 | F10: 0 | G10: 0

Sheet Genanskaffelsespriser (hidden)
B1: Genanskaffelsespriser | C1: Måleenhed | D1: Vægtet enhedspris | E1: Teknisk levetid
B3: Produktionsanlæg:
B4: Mindre renseanlæg
B5: Mindre renseanlæg < 5.000 PE uden mulighed for opdeling | D5: Variabel | E5: 40
B6: Renseanlæg >= 5.000 PE, Vandbehandling:
B7: Indløb med riste, Konstruktioner | C7: PE | D7: Variabel | E7: 60 | Y7: Øst | Z7: 1.1
B8: Indløb med riste, Mek/EL | C8: PE | D8: Variabel | E8: 20
B9: Indløb med riste, SRO | C9: PE | D9: Variabel | E9: 10
B10: Sand- og fedtfang, Kontruktioner | C10: PE | D10: Variabel | E10: 60 | Y10: Vest | Z10: 1
B11: Sand- og fedtfang, Mek/EL | C11: PE | D11: Variabel | E11: 20
B12: Sand- og fedtfang, SRO | C12: PE | D12: Variabel | E12: 10
B13: Forklaring, Konstruktioner | C13: PE | D13: Variabel | E13: 60
B14: Forklaring, Mek/EL | C14: PE | D14: Variabel | E14: 20
B15: Forklaring, SRO | C15: PE | D15: Variabel | E15: 10
B16: Beluftningstanke, Konstruktioner | C16: PE | D16: Variabel | E16: 60 | Y16: 1
B17: Beluftningstanke, Mek/EL | C17: PE | D17: Variabel | E17: 20
B18: Beluftningstanke, SRO | C18: PE | D18: Variabel | E18: 10
B19: Efterklaringstanke, Konstruktioner | C19: PE | D19: Variabel | E19: 60
B20: Efterklaringstanke, Mek/El | C20: PE | D20: Variabel | E20: 20
B21: Efterklaringstanke, SRO | C21: PE | D21: Variabel | E21: 10
B22: Efterbehandlingsanlæg (sandfilter), Konstruktioner | C22: PE | D22: Variabel | E22: 60
B23: Efterbehandlingsanlæg (sandfilter), Mek/EL | C23: PE | D23: Variabel | E23: 20
B24: Efterbehandlingsanlæg (sandfilter), SRO | C24: PE | D24: Variabel | E24: 10
B25: Renseanlæg >= 5.000 PE, Slambehandling:
B26: Forafvanding, slam, Konstruktion | C26: PE | D26: Variabel | E26: 60
B27: Forafvanding, slam, Mek/EL | C27: PE | D27: Variabel | E27: 20
B28: Forafvanding, slam, SRO | C28: PE | D28: Variabel | E28: 10
B29: Rådnetanke, slam, Konstruktioner | C29: PE | D29: Variabel | E29: 60
B30: Rådnetanke, slam, Mek/EL | C30: PE | D30: Variabel | E30: 20
B31: Rådnetanke, slam, SRO | C31: PE | D31: Variabel | E31: 10
B32: Gasdisponering, Konstruktioner | C32: PE | D32: Variabel | E32: 60
B33: Gasdisponering, Mek/EL | C33: PE | D33: Variabel | E33: 20
B34: Gasdisponering, SRO | C34: PE | D34: Variabel | E34: 10
B35: Gasdisponering - elproduktionsanlæg, Konstruktioner | C35: PE | D35: Variabel | E35: 60
B36: Gasdisponering - elproduktionsanlæg, Mek/EL | C36: PE | D36: Variabel | E36: 20
B37: Gasdisponering - elproduktionsanlæg, SRO | C37: PE | D37: Variabel | E37: 10
B38: Slutafvanding, slam - lavteknologisk (slambede), Konstruktioner | C38: PE | D38: Variabel | E38: 60
B39: Slutafvanding, slam - lavteknologisk (slambede), Mek/EL | C39: PE | D39: Variabel | E39: 20
B40: Slutafvanding, slam - lavteknologisk (slambede), SRO | C40: PE | D40: Variabel | E40: 10
B41: Slutafvanding, slam - højteknologisk (centrifuger), Konstruktioner | C41: PE | D41: Variabel | E41: 60
B42: Slutafvanding, slam - højteknologisk (centrifuger), Mek/El | C42: PE | D42: Variabel | E42: 20
B43: Slutafvanding, slam - højteknologisk (centrifuger), SRO | C43: PE | D43: Variabel | E43: 10
B44: Renseanlæg >= 5.000 PE, Slamdisponering:
B45: Slutdisponering, slam - lavteknologisk (slammineralisering), Konstruktioner | C45: PE | D45: Variabel | E45: 60
B46: Slutdisponering, slam - lavteknologisk (slammineralisering), Mek/EL | C46: PE | D46: Variabel | E46: 20
B47: Slutdisponering, slam - lavteknologisk (slammineralisering), SRO | C47: PE | D47: Variabel | E47: 10
B48: Slutdisponering, slam - højteknologisk (slamtørring), Konstruktioner | C48: PE | D48: Variabel | E48: 60
B49: Slutdisponering, slam - højteknologisk (slamtørring), Mek/EL | C49: PE | D49: Variabel | E49: 20
B50: Slutdisponering, slam - højteknologisk (slamtørring), SRO | C50: PE | D50: Variabel | E50: 10
B51: Slutdisponering, slam - højteknologisk (slamtørring og -forbrænding), Konstruktioner | C51: PE | D51: Variabel | E51: 60
B52: Slutdisponering, slam - højteknologisk (slamtørring og -forbrænding), Mek/EL | C52: PE | D52: Variabel | E52: 20
B53: Slutdisponering, slam - højteknologisk (slamtørring og -forbrænding), SRO | C53: PE | D53: Variabel | E53: 10
B56: Distributionsanlæg:
B57: Ledningsnet - Land
B58: Ledningsnet ≤ Ø 200 mm | C58: meter | D58: =1500*(1+$D$389) -> 1500 | E58: =75 -> 75
B59: Ø 200 mm < Ledningsnet ≤ Ø 500 mm | C59: meter | D59: =2800*(1+$D$389) -> 2800 | E59: 75
B60: Ø 500 mm < Ledningsnet ≤ Ø 800 mm | C60: meter | D60: =5700*(1+$D$389) -> 5700 | E60: 75
B61: Ø 800 mm < Ledningsnet ≤ Ø 1000 mm | C61: meter | D61: =8800*(1+$D$389) -> 8800 | E61: 75
B62: Ø 1000 mm < Ledningsnet ≤ Ø 1200 mm | C62: meter | D62: =16700*(1+$D$389) -> 16700 | E62: 75
B63: Ø 1200 mm < Ledningsnet ≤ Ø 1600 mm | C63: meter | D63: =33600*(1+$D$389) -> 33600 | E63: 75
B64: Ledningsnet > Ø 1600 mm (rørbassiner og transportledninger) | C64: meter | D64: =46000*(1+$D$389) -> 46000 | E64: 75
B65: Strømpeforing ≤ Ø 200 mm | C65: meter | D65: =2150 -> 2150 | E65: 50
B66: Strømpeforing Ø 200 mm < Ledningsnet ≤ Ø 500 mm | C66: meter | D66: =3025 -> 3025 | E66: 50
B67: Strømpeforing Ø 500 mm < Ledningsnet ≤ Ø 800 mm | C67: meter | D67: =5000 -> 5000 | E67: 50
B68: Strømpeforing Ø 800 mm < Ledningsnet ≤ Ø 1000 mm | C68: meter | D68: =6300 -> 6300 | E68: 50
B69: Strømpeforing Ø 1000 mm < Ledningsnet ≤ Ø 1200 mm | C69: meter | D69: =7650 -> 7650 | E69: 50
B70: Strømpeforing Ø 1200 mm < Ledningsnet ≤ Ø 1600 mm | C70: meter | D70: =10400 -> 10400 | E70: 50
B71: Ledningsnet - By
B72: Ledningsnet ≤ Ø 200 mm | C72: meter | D72: =1900*(1+$D$389) -> 1900 | E72: 75
B73: Ø 200 mm < Ledningsnet ≤ Ø 500 mm | C73: meter | D73: =3700*(1+$D$389) -> 3700 | E73: =75 -> 75
B74: Ø 500 mm < Ledningsnet ≤ Ø 800 mm | C74: meter | D74: =6800*(1+$D$389) -> 6800 | E74: =75 -> 75
B75: Ø 800 mm < Ledningsnet ≤ Ø 1000 mm | C75: meter | D75: =10000*(1+$D$389) -> 10000 | E75: 75
B76: Ø 1000 mm < Ledningsnet ≤ Ø 1200 mm | C76: meter | D76: =19000*(1+$D$389) -> 19000 | E76: 75
B77: Ø 1200 mm < Ledningsnet ≤ Ø 1600 mm | C77: meter | D77: =36000*(1+$D$389) -> 36000 | E77: 75
B78: Ledningsnet > Ø 1600 mm (rørbassiner og transportledninger) | C78: meter | D78: =49000*(1+$D$389) -> 49000 | E78: 75
B79: Strømpeforing ≤ Ø 200 mm | C79: meter | D79: =2150 -> 2150 | E79: 50
B80: Strømpeforing Ø 200 mm < Ledningsnet ≤ Ø 500 mm | C80: meter | D80: =3025 -> 3025 | E80: 50
B81: Strømpeforing Ø 500 mm < Ledningsnet ≤ Ø 800 mm | C81: meter | D81: =5000 -> 5000 | E81: 50
B82: Strømpeforing Ø 800 mm < Ledningsnet ≤ Ø 1000 mm | C82: meter | D82: =6300 -> 6300 | E82: 50
B83: Strømpeforing Ø 1000 mm < Ledningsnet ≤ Ø 1200 mm | C83: meter | D83: =7650 -> 7650 | E83: 50
B84: Strømpeforing Ø 1200 mm < Ledningsnet ≤ Ø 1600 mm | C84: meter | D84: =10400 -> 10400 | E84: 50
B85: Ledningsnet -City
B86: Ledningsnet ≤ Ø 200 mm | C86: meter | D86: =2100*(1+$D$389) -> 2100 | E86: 75
B87: Ø 200 mm < Ledningsnet ≤ Ø 500 mm | C87: meter | D87: =4300*(1+$D$389) -> 4300 | E87: 75
B88: Ø 500 mm < Ledningsnet ≤ Ø 800 mm | C88: meter | D88: =7500*(1+$D$389) -> 7500 | E88: 75
B89: Ø 800 mm < Ledningsnet ≤ Ø 1000 mm | C89: meter | D89: =11000*(1+$D$389) -> 11000 | E89: 75
B90: Ø 1000 mm < Ledningsnet ≤ Ø 1200 mm | C90: meter | D90: =20000*(1+$D$389) -> 20000 | E90: 75
B91: Ø 1200 mm < Ledningsnet ≤ Ø 1600 mm | C91: meter | D91: =38000*(1+$D$389) -> 38000 | E91: 75
B92: Ledningsnet > Ø 1600 mm (rørbassiner og transportledninger) | C92: meter | D92: =51000*(1+$D$389) -> 51000 | E92: 75
B93: Strømpeforing ≤ Ø 200 mm | C93: meter | D93: =2260 -> 2260 | E93: 50
B94: Strømpeforing Ø 200 mm < Ledningsnet ≤ Ø 500 mm | C94: meter | D94: =3175 -> 3175 | E94: 50
B95: Strømpeforing Ø 500 mm < Ledningsnet ≤ Ø 800 mm | C95: meter | D95: =5250 -> 5250 | E95: 50
B96: Strømpeforing Ø 800 mm < Ledningsnet ≤ Ø 1000 mm | C96: meter | D96: =6600 -> 6600 | E96: 50
B97: Strømpeforing Ø 1000 mm < Ledningsnet ≤ Ø 1200 mm | C97: meter | D97: =8025 -> 8025 | E97: 50
B98: Strømpeforing Ø 1200 mm < Ledningsnet ≤ Ø 1600 mm | C98: meter | D98: =10900 -> 10900 | E98: 50
B99: Ledningsnet - Indre city
B100: Ledningsnet ≤ Ø 200 mm | C100: meter | D100: =2500*(1+$D$389) -> 2500 | E100: 75
B101: Ø 200 mm < Ledningsnet ≤ Ø 500 mm | C101: meter | D101: =5100*(1+$D$389) -> 5100 | E101: 75
B102: Ø 500 mm < Ledningsnet ≤ Ø 800 mm | C102: meter | D102: =8600*(1+$D$389) -> 8600 | E102: 75
B103: Ø 800 mm < Ledningsnet ≤ Ø 1000 mm | C103: meter | D103: =12400*(1+$D$389) -> 12400 | E103: 75
B104: Ø 1000 mm < Ledningsnet ≤ Ø 1200 mm | C104: meter | D104: =22000*(1+$D$389) -> 22000 | E104: 75
B105: Ø 1200 mm < Ledningsnet ≤ Ø 1600 mm | C105: meter | D105: =41000*(1+$D$389) -> 41000 | E105: 75
B106: Ledningsnet > Ø 1600 mm (rørbassiner og transportledninger) | C106: meter | D106: =55000*(1+$D$389) -> 55000 | E106: 75
B107: Strømpeforing ≤ Ø 200 mm | C107: meter | D107: =2260 -> 2260 | E107: 50
B108: Strømpeforing Ø 200 mm < Ledningsnet ≤ Ø 500 mm | C108: meter | D108: =3175 -> 3175 | E108: 50
B109: Strømpeforing Ø 500 mm < Ledningsnet ≤ Ø 800 mm | C109: meter | D109: =5250 -> 5250 | E109: 50
B110: Strømpeforing Ø 800 mm < Ledningsnet ≤ Ø 1000 mm | C110: meter | D110: =6600 -> 6600 | E110: 50
B111: Strømpeforing Ø 1000 mm < Ledningsnet ≤ Ø 1200 mm | C111: meter | D111: =8025 -> 8025 | E111: 50
B112: Strømpeforing Ø 1200 mm < Ledningsnet ≤ Ø 1600 mm | C112: meter | D112: =10900 -> 10900 | E112: 50
B113: Brønde og stik, ledningsnet - Land
B114: Brønde | C114: Stk. | D114: =41000*(1+$D$389) -> 41000 | E114: 75
B115: Stik | C115: Stk. | D115: =15000*(1+$D$389) -> 15000 | E115: 75
B116: Brønde og stik, ledningsnet - By
B117: Brønde | C117: Stk. | D117: =45000*(1+$D$389) -> 45000 | E117: =75 -> 75
B118: Stik | C118: Stk. | D118: =17000*(1+$D$389) -> 17000 | E118: =75 -> 75
B119: Brønde og stik, ledningsnet - City
B120: Brønde | C120: Stk. | D120: =48000*(1+$D$389) -> 48000 | E120: 75
B121: Stik | C121: Stk. | D121: =18000*(1+$D$389) -> 18000 | E121: 75
B122: Brønde og stik, ledningsnet - Indre city
B123: Brønde | C123: Stk. | D123: =52000*(1+$D$389) -> 52000 | E123: 75
B124: Stik | C124: Stk. | D124: =20000*(1+$D$389) -> 20000 | E124: 75
B125: Små pumpestationer inkl. SRO-anlæg - Land
B126: Tryksatte minipumpestationer (husstandssystemer) | C126: Stk. | D126: =60000*(1+$D$389) -> 60000 | E126: 30
B127: Pumpestationer i brønde (< 6,25 m2), Konstruktioner | C127: Stk. | D127: 1245000 | E127: 50
B128: Pumpestationer i brønde (< 6,25 m2), Mek/EL | C128: Stk. | D128: =300000*(1+$D$389) -> 300000 | E128: 20
B129: Pumpestationer i brønde (< 6,25 m2), SRO | C129: Stk. | D129: =75000*(1+$D$389) -> 75000 | E129: 10
B130: Pumpestationer m. overbygning (< 20 m2), Konstruktioner | C130: Stk. | D130: 3700000 | E130: 50
B131: Pumpestationer m. overbygning (< 20 m2), Mek/EL | C131: Stk. | D131: =740000*(1+$D$389) -> 740000 | E131: 20
B132: Pumpestationer m. overbygning (< 20 m2), SRO | C132: Stk. | D132: =185000*(1+$D$389) -> 185000 | E132: 10
B133: Pumpestationer i underjordiske bygværker (<50 m2), Konstruktioner | C133: Stk. | D133: 5000000 | E133: 50
B134: Pumpestationer i underjordiske bygværker (<50 m2), Mek/El | C134: Stk. | D134: =1000000*(1+$D$389) -> 1000000 | E134: 20
B135: Pumpestationer i underjordiske bygværker (<50 m2), SRO | C135: Stk. | D135: =250000*(1+$D$389) -> 250000 | E135: 10
B136: Små pumpestationer inkl. SRO-anlæg - By
B137: Tryksatte minipumpestationer (husstandssystemer) | C137: Stk. | D137: =67000*(1+$D$389) -> 67000 | E137: 30
B138: Pumpestationer i brønde (< 6,25 m2), Konstruktioner | C138: Stk. | D138: 1380000 | E138: 50
B139: Pumpestationer i brønde (< 6,25 m2), Mek/EL | C139: Stk. | D139: =300000*(1+$D$389) -> 300000 | E139: 20
B140: Pumpestationer i brønde (< 6,25 m2), SRO | C140: Stk. | D140: =75000*(1+$D$389) -> 75000 | E140: 10
B141: Pumpestationer m. overbygning (< 20 m2), Konstruktioner | C141: Stk. | D141: 4100000 | E141: 50
B142: Pumpestationer m. overbygning (< 20 m2), Mek/EL | C142: Stk. | D142: =740000*(1+$D$389) -> 740000 | E142: 20
B143: Pumpestationer m. overbygning (< 20 m2), SRO | C143: Stk. | D143: =185000*(1+$D$389) -> 185000 | E143: 10
B144: Pumpestationer i underjordiske bygværker (<50 m2), Konstruktioner | C144: Stk. | D144: 5500000 | E144: 50
B145: Pumpestationer i underjordiske bygværker (<50 m2), Mek/El | C145: Stk. | D145: =1000000*(1+$D$389) -> 1000000 | E145: 20
B146: Pumpestationer i underjordiske bygværker (<50 m2), SRO | C146: Stk. | D146: =250000*(1+$D$389) -> 250000 | E146: 10
B147: Små pumpestationer inkl. SRO-anlæg - City
B148: Tryksatte minipumpestationer (husstandssystemer) | C148: Stk. | D148: =72000*(1+$D$389) -> 72000 | E148: 30
B149: Pumpestationer i brønde (< 6,25 m2), Konstruktioner | C149: Stk. | D149: 1500000 | E149: 50
B150: Pumpestationer i brønde (< 6,25 m2), Mek/EL | C150: Stk. | D150: =300000*(1+$D$389) -> 300000 | E150: 20
B151: Pumpestationer i brønde (< 6,25 m2), SRO | C151: Stk. | D151: =75000*(1+$D$389) -> 75000 | E151: 10
B152: Pumpestationer m. overbygning (< 20 m2), Konstruktioner | C152: Stk. | D152: 4400000 | E152: 50
B153: Pumpestationer m. overbygning (< 20 m2), Mek/EL | C153: Stk. | D153: =740000*(1+$D$389) -> 740000 | E153: 20
B154: Pumpestationer m. overbygning (< 20 m2), SRO | C154: Stk. | D154: =185000*(1+$D$389) -> 185000 | E154: 10
B155: Pumpestationer i underjordiske bygværker (<50 m2), Konstruktioner | C155: Stk. | D155: 6000000 | E155: 50
B156: Pumpestationer i underjordiske bygværker (<50 m2), Mek/El | C156: Stk. | D156: =1000000*(1+$D$389) -> 1000000 | E156: 20
B157: Pumpestationer i underjordiske bygværker (<50 m2), SRO | C157: Stk. | D157: =250000*(1+$D$389) -> 250000 | E157: 10
B158: Små pumpestationer inkl. SRO-anlæg - Indre city
B159: Tryksatte minipumpestationer (husstandssystemer) | C159: Stk. | D159: =78000*(1+$D$389) -> 78000 | E159: 30
B160: Pumpestationer i brønde (< 6,25 m2), Konstruktioner | C160: Stk. | D160: 1600000 | E160: 50
B161: Pumpestationer i brønde (< 6,25 m2), Mek/EL | C161: Stk. | D161: =300000*(1+$D$389) -> 300000 | E161: 20
B162: Pumpestationer i brønde (< 6,25 m2), SRO | C162: Stk. | D162: =75000*(1+$D$389) -> 75000 | E162: 10
B163: Pumpestationer m. overbygning (< 20 m2), Konstruktioner | C163: Stk. | D163: 4800000 | E163: 50
B164: Pumpestationer m. overbygning (< 20 m2), Mek/EL | C164: Stk. | D164: =740000*(1+$D$389) -> 740000 | E164: 20
B165: Pumpestationer m. overbygning (< 20 m2), SRO | C165: Stk. | D165: =185000*(1+$D$389) -> 185000 | E165: 10
B166: Pumpestationer i underjordiske bygværker (<50 m2), Konstruktioner | C166: Stk. | D166: 6500000 | E166: 50
B167: Pumpestationer i underjordiske bygværker (<50 m2), Mek/El | C167: Stk. | D167: =1000000*(1+$D$389) -> 1000000 | E167: 20
B168: Pumpestationer i underjordiske bygværker (<50 m2), SRO | C168: Stk. | D168: =250000*(1+$D$389) -> 250000 | E168: 10
B169: Store pumpestationer: inkl. SRO-anlæg - Land
B170: Kælder | C170: m2 | D170: =29000*(1+$D$389) -> 29000 | E170: 75
B171: Pumpeinstallation Miljøklasse A (100-300 l/s) - Mek/EL | C171: Stk. | D171: =1680000 -> 1680000 | E171: 20
B172: Pumpeinstallation Miljøklasse A (100-300 l/s) - SRO | C172: Stk. | D172: =420000 -> 420000 | E172: 10
B173: Pumpeinstallation Miljøklasse A (300-600 l/s) - Mek/EL | C173: Stk. | D173: =3200000 -> 3200000 | E173: 20
B174: Pumpeinstallation Miljøklasse A (300-600 l/s) - SRO | C174: Stk. | D174: =800000 -> 800000 | E174: 10
B175: Pumpeinstallation Miljøklasse A (600-1.000 l/s) - Mek/EL | C175: Stk. | D175: =5120000 -> 5120000 | E175: 20
B176: Pumpeinstallation Miljøklasse A (600-1.000 l/s) - SRO | C176: Stk. | D176: =1280000 -> 1280000 | E176: 10
B177: Pumpeinstallation Miljøklasse A (1.000-1.500 l/s) - Mek/EL | C177: Stk. | D177: =6960000 -> 6960000 | E177: 20
B178: Pumpeinstallation Miljøklasse A (1.000-1.500 l/s) - SRO | C178: Stk. | D178: =1740000 -> 1740000 | E178: 10
B179: Pumpeinstallation Miljøklasse B (100-300 l/s) - Mek/EL | C179: Stk. | D179: =1440000 -> 1440000 | E179: 20
B180: Pumpeinstallation Miljøklasse B (100-300 l/s) - SRO | C180: Stk. | D180: =360000 -> 360000 | E180: 10
B181: Pumpeinstallation Miljøklasse B (300-600 l/s) - Mek/EL | C181: Stk. | D181: =2720000 -> 2720000 | E181: 20
B182: Pumpeinstallation Miljøklasse B (300-600 l/s) - SRO | C182: Stk. | D182: =680000 -> 680000 | E182: 10
B183: Pumpeinstallation Miljøklasse B (600-1.000 l/s) - Mek/EL | C183: Stk. | D183: =4320000 -> 4320000 | E183: 20
B184: Pumpeinstallation Miljøklasse B (600-1.000 l/s) - SRO | C184: Stk. | D184: =1080000 -> 1080000 | E184: 10
B185: Pumpeinstallation Miljøklasse B (1.000-1.500 l/s) - Mek/EL | C185: Stk. | D185: =5920000 -> 5920000 | E185: 20
B186: Pumpeinstallation Miljøklasse B (1.000-1.500 l/s) - SRO | C186: Stk. | D186: =1480000 -> 1480000 | E186: 10
B187: Overbygning | C187: m2 | D187: =14500*(1+$D$389) -> 14500 | E187: 75
B188: Store pumpestationer: inkl. SRO-anlæg - By
B189: Kælder | C189: m2 | D189: =32000*(1+$D$389) -> 32000 | E189: 75
B190: Pumpeinstallation Miljøklasse A (100-300 l/s) - Mek/EL | C190: Stk. | D190: =1680000 -> 1680000 | E190: 20
B191: Pumpeinstallation Miljøklasse A (100-300 l/s) - SRO | C191: Stk. | D191: =420000 -> 420000 | E191: 10
B192: Pumpeinstallation Miljøklasse A (300-600 l/s) - Mek/EL | C192: Stk. | D192: =3200000 -> 3200000 | E192: 20
B193: Pumpeinstallation Miljøklasse A (300-600 l/s) - SRO | C193: Stk. | D193: =800000 -> 800000 | E193: 10
B194: Pumpeinstallation Miljøklasse A (600-1.000 l/s) - Mek/EL | C194: Stk. | D194: =5120000 -> 5120000 | E194: 20
B195: Pumpeinstallation Miljøklasse A (600-1.000 l/s) - SRO | C195: Stk. | D195: =1280000 -> 1280000 | E195: 10
B196: Pumpeinstallation Miljøklasse A (1.000-1.500 l/s) - Mek/EL | C196: Stk. | D196: =6960000 -> 6960000 | E196: 20
B197: Pumpeinstallation Miljøklasse A (1.000-1.500 l/s) - SRO | C197: Stk. | D197: =1740000 -> 1740000 | E197: 10
B198: Pumpeinstallation Miljøklasse B (100-300 l/s) - Mek/EL | C198: Stk. | D198: =1440000 -> 1440000 | E198: 20
B199: Pumpeinstallation Miljøklasse B (100-300 l/s) - SRO | C199: Stk. | D199: =360000 -> 360000 | E199: 10
B200: Pumpeinstallation Miljøklasse B (300-600 l/s) - Mek/EL | C200: Stk. | D200: =2720000 -> 2720000 | E200: 20
B201: Pumpeinstallation Miljøklasse B (300-600 l/s) - SRO | C201: Stk. | D201: =680000 -> 680000 | E201: 10
B202: Pumpeinstallation Miljøklasse B (600-1.000 l/s) - Mek/EL | C202: Stk. | D202: =4320000 -> 4320000 | E202: 20
B203: Pumpeinstallation Miljøklasse B (600-1.000 l/s) - SRO | C203: Stk. | D203: =1080000 -> 1080000 | E203: 10
... 183 more rows

Sheet Afs. Produktion (hidden)
A1: Produktionsanlæg | B1: Enhed | C1: Standard-levetid | D1: Afskrivningshorisont | Z1: Afskrivningshorisont | AA1: Standardværdi pr. år | AW1: Nedskrevet standardværdi i alt | AY1: Afskrivning | AZ1: Afskrivning | BA1: Afskrivning | BB1: Afskrivning | BC1: Afskrivning | BD1: Afskrivning | BE1: Afskrivning | BF1: Afskrivning | BG1: Afskrivning | BH1: Afskrivning | BI1: Afskrivning | BJ1: Afskrivning | BK1: Afskrivning | BL1: Afskrivning | BM1: Afskrivning | BN1: Afskrivning | BO1: Afskrivning | BP1: Afskrivning | BQ1: Afskrivning | BR1: Afskrivning | BS1: Afskrivning | BT1: Afskrivning | BU1: Afskrivning | BV1: Afskrivning | BW1: Afskrivning | BX1: Afskrivning | BY1: Afskrivning | BZ1: Afskrivning | CA1: Afskrivning | CB1: Afskrivning | CC1: Afskrivning | CD1: Afskrivning | CE1: Afskrivning | CF1: Afskrivning | CG1: Afskrivning | CH1: Afskrivning | CI1: Afskrivning | CJ1: Afskrivning | CK1: Afskrivning | CL1: Afskrivning | CM1: Afskrivning | CN1: Afskrivning | CO1: Afskrivning | CP1: Afskrivning | CQ1: Afskrivning | CR1: Afskrivning | CS1: Afskrivning | CT1: Afskrivning | CU1: Afskrivning | CV1: Afskrivning | CW1: Afskrivning | CX1: Afskrivning | CY1: Afskrivning | CZ1: Afskrivning | DA1: Afskrivning | DB1: Afskrivning | DC1: Afskrivning | DD1: Afskrivning | DE1: Afskrivning | DF1: Afskrivning | DG1: Afskrivning | DH1: Afskrivning | DI1: Afskrivning | DJ1: Afskrivning | DK1: Afskrivning | DL1: Afskrivning | DM1: Afskrivning | DN1: Afskrivning | DO1: Afskrivning | DP1: Afskrivning | DQ1: Afskrivning | DR1: Afskrivning | DS1: Afskrivning | DT1: Afskrivning | DU1: Afskrivning | DV1: Afskrivning | DW1: Afskrivning | DX1: Afskrivning | DY1: Afskrivning | DZ1: Afskrivning | EA1: Afskrivning | EB1: Afskrivning | EC1: Afskrivning | ED1: Afskrivning | EE1: Afskrivning | EF1: Afskrivning | EG1: Afskrivning | EH1: Afskrivning | EI1: Afskrivning | EJ1: Afskrivning | EK1: Afskrivning | EL1: Afskrivning | EM1: Afskrivning | EN1: Afskrivning | EO1: Afskrivning | EP1: Afskrivning | EQ1: Afskrivning | ER1: Afskrivning | ES1: Afskrivning | ET1: Afskrivning | EU1: Afskrivning
D2: Før 1910 | E2: 1910-1919 | F2: 1920-1929 | G2: 1930-1939 | H2: 1940-1949 | I2: 1950-1959 | J2: 1960-1969 | K2: 1970-1979 | L2: 1980-1984 | M2: 1985-1989 | N2: 1990-1994 | O2: 1995-1999 | P2: 2000 | Q2: =+P2+1 -> 2001 | R2: =+Q2+1 -> 2002 | S2: 2003 | T2: 2004 | U2: 2005 | V2: 2006 | W2: 2007 | X2: 2008 | Y2: 2009 | AA2: Før 1910 | AB2: 1910-1919 | AC2: 1920-1929 | AD2: 1930-1939 | AE2: 1940-1949 | AF2: 1950-1959 | AG2: 1960-1969 | AH2: 1970-1979 | AI2: 1980-1984 | AJ2: 1985-1989 | AK2: 1990-1994 | AL2: 1995-1999 | AM2: 2000 | AN2: =+AM2+1 -> 2001 | AO2: =+AN2+1 -> 2002 | AP2: 2003 | AQ2: 2004 | AR2: 2005 | AS2: 2006 | AT2: 2007 | AU2: 2008 | AV2: 2009 | AX2: Mængde | AY2: 2010 | AZ2: =AY2+1 -> 2011 | BA2: =AZ2+1 -> 2012 | BB2: =BA2+1 -> 2013 | BC2: 2014 | BD2: 2015 | BE2: 2016 | BF2: 2017 | BG2: 2018 | BH2: 2019 | BI2: 2020 | BJ2: 2021 | BK2: 2022 | BL2: 2023 | BM2: 2024 | BN2: 2025 | BO2: 2026 | BP2: 2027 | BQ2: 2028 | BR2: 2029 | BS2: 2030 | BT2: 2031 | BU2: 2032 | BV2: 2033 | BW2: 2034 | BX2: 2035 | BY2: 2036 | BZ2: 2037 | CA2: 2038 | CB2: 2039 | CC2: 2040 | CD2: 2041 | CE2: 2042 | CF2: 2043 | CG2: 2044 | CH2: 2045 | CI2: 2046 | CJ2: 2047 | CK2: 2048 | CL2: 2049 | CM2: 2050 | CN2: 2051 | CO2: 2052 | CP2: =CO2+1 -> 2053 | CQ2: =CP2+1 -> 2054 | CR2: =CQ2+1 -> 2055 | CS2: 2056 | CT2: 2057 | CU2: 2058 | CV2: 2059 | CW2: 2060 | CX2: 2061 | CY2: 2062 | CZ2: 2063 | DA2: 2064 | DB2: 2065 | DC2: 2066 | DD2: 2067 | DE2: 2068 | DF2: 2069 | DG2: 2070 | DH2: 2071 | DI2: 2072 | DJ2: 2073 | DK2: 2074 | DL2: 2075 | DM2: =DL2+1 -> 2076 | DN2: =DM2+1 -> 2077 | DO2: =DN2+1 -> 2078 | DP2: 2079 | DQ2: 2080 | DR2: 2081 | DS2: 2082 | DT2: 2083 | DU2: 2084 | DV2: 2085 | DW2: 2086 | DX2: 2087 | DY2: 2088 | DZ2: 2089 | EA2: 2090 | EB2: 2091 | EC2: 2092 | ED2: 2093 | EE2: 2094 | EF2: 2095 | EG2: 2096 | EH2: 2097 | EI2: 2098 | EJ2: =EI2+1 -> 2099 | EK2: =EJ2+1 -> 2100 | EL2: =EK2+1 -> 2101 | EM2: 2102 | EN2: 2103 | EO2: 2104 | EP2: 2105 | EQ2: 2106 | ER2: 2107 | ES2: 2108 | ET2: 2109 | EU2: 2110
D3: 1905 | E3: =+D3+10 -> 1915 | F3: =+E3+10 -> 1925 | G3: 1935 | H3: 1945 | I3: 1955 | J3: 1965 | K3: 1975 | L3: 1982 | M3: 1987 | N3: =+L3+10 -> 1992 | O3: 1997 | P3: =+P2 -> 2000 | Q3: 2001 | R3: 2002 | S3: 2003 | T3: 2004 | U3: 2005 | V3: 2006 | W3: 2007 | X3: 2008 | Y3: 2009 | AA3: 1905 | AB3: =+AA3+10 -> 1915 | AC3: =+AB3+10 -> 1925 | AD3: 1935 | AE3: 1945 | AF3: 1955 | AG3: 1965 | AH3: 1975 | AI3: 1982 | AJ3: 1987 | AK3: =+AI3+10 -> 1992 | AL3: 1997 | AM3: =+AM2 -> 2000 | AN3: 2001 | AO3: 2002 | AP3: 2003 | AQ3: 2004 | AR3: 2005 | AS3: 2006 | AT3: 2007 | AU3: 2008 | AV3: 2009
A4: Renseanlæg 1 | Z4: =SUM(Z5) -> 0 | AW4: =+SUM(AW5,AW8,AW33,AW58) ->  | AY4: =SUM(AY5+AY8+AY33+AY58) ->  | AZ4: =SUM(AZ5+AZ8+AZ33+AZ58) ->  | DL4: =SUM(DL5+DL8+DL33+DL58) -> 
A5: Mindre renseanlæg | Z5: =SUM(Z6) -> 0 | AW5: =SUM(AW6) ->  | AY5: =SUM(AY6:AY7) ->  | AZ5: =SUM(AZ6:AZ7) ->  | DL5: =SUM(DL6:DL7) -> 
A6: =+Genanskaffelsespriser!$B$5 -> Mindre renseanlæg < 5.000 PE uden mulighed for opdeling | B6: PE | C6: =Genanskaffelsespriser!$E$5 -> 40 | D6: =D$3+$C6+Produktionsanlæg!#REF! ->  | E6: =E$3+$C6+Produktionsanlæg!#REF! ->  | F6: =F$3+$C6+Produktionsanlæg!#REF! ->  | G6: =G$3+$C6+Produktionsanlæg!#REF! ->  | H6: =H$3+$C6+Produktionsanlæg!#REF! ->  | I6: =I$3+$C6+Produktionsanlæg!#REF! ->  | J6: =J$3+$C6+Produktionsanlæg!#REF! ->  | K6: =K$3+$C6+Produktionsanlæg!#REF! ->  | L6: =L$3+$C6+Produktionsanlæg!#REF! ->  | M6: =M$3+$C6+Produktionsanlæg!#REF! ->  | N6: =N$3+$C6+Produktionsanlæg!#REF! ->  | O6: =O$3+$C6+Produktionsanlæg!#REF! ->  | P6: =P$3+$C6+Produktionsanlæg!#REF! ->  | Q6: =Q$3+$C6+Produktionsanlæg!#REF! ->  | R6: =R$3+$C6+Produktionsanlæg!#REF! ->  | S6: =S$3+$C6+Produktionsanlæg!#REF! ->  | T6: =T$3+$C6+Produktionsanlæg!#REF! ->  | U6: =U$3+$C6+Produktionsanlæg!#REF! ->  | V6: =V$3+$C6+Produktionsanlæg!#REF! ->  | W6: =W$3+$C6+Produktionsanlæg!#REF! ->  | X6: =X$3+$C6+Produktionsanlæg!#REF! ->  | Y6: =Y$3+$C6+Produktionsanlæg!#REF! ->  | Z6: 0 | AA6: =Produktionsanlæg!#REF! ->  | AB6: =Produktionsanlæg!#REF! ->  | AC6: =Produktionsanlæg!#REF! ->  | AD6: =Produktionsanlæg!#REF! ->  | AE6: =Produktionsanlæg!#REF! ->  | AF6: =Produktionsanlæg!#REF! ->  | AG6: =Produktionsanlæg!#REF! ->  | AH6: =Produktionsanlæg!#REF! ->  | AI6: =Produktionsanlæg!#REF! ->  | AJ6: =Produktionsanlæg!#REF! ->  | AK6: =Produktionsanlæg!#REF! ->  | AL6: =Produktionsanlæg!#REF! ->  | AM6: =Produktionsanlæg!#REF! ->  | AN6: =Produktionsanlæg!#REF! ->  | AO6: =Produktionsanlæg!#REF! ->  | AP6: =Produktionsanlæg!#REF! ->  | AQ6: =Produktionsanlæg!#REF! ->  | AR6: =Produktionsanlæg!#REF! ->  | AS6: =Produktionsanlæg!#REF! ->  | AT6: =Produktionsanlæg!#REF! ->  | AU6: =Produktionsanlæg!#REF! ->  | AV6: =Produktionsanlæg!#REF! ->  | AW6: =+SUM(AA6:AV6) ->  | AX6: =SUM(#REF!) ->  | AY6: =IF($D6>=AY$2,$AA6/($D6-2009),0)+IF($E6>=AY$2,$AB6/($E6-2009),0)+IF($F6>=AY$2,$AC6/($F6-2009),0)+IF($G6>=AY$2,$AD6/($G6-2009),0)+IF($H6>=AY$2,$AE6/($H6-2009),0)+IF($I6>=AY$2,$AF6/($I6-2009),0)+IF($J6>=AY$2,$AG6/($J6-2009),0)+IF($K6>=AY$2,$AH6/($K6-2009),0)+IF($L6>=AY$2,$AI6/($L6-2009),0)+IF($M6>=AY$2,$AJ6/($M6-2009),0)+IF($N6>=AY$2,$AK6/($N6-2009),0)+IF($O6>=AY$2,$AL6/($O6-2009),0)+IF($P6>=AY$2,$AM6/($P6-2009),0)+IF($Q6>=AY$2,$AN6/($Q6-2009),0)+IF($R6>=AY$2,$AO6/($R6-2009),0)+IF($S6>=AY$2,$AP6/($S6-2009),0)+IF($T6>=AY$2,$AQ6/($T6-2009),0)+IF($U6>=AY$2,$AR6/($U6-2009),0)+IF($V6>=AY$2,$AS6/($V6-2009),0)+IF($W6>=AY$2,$AT6/($W6-2009),0)+IF($X6>=AY$2,$AU6/($X6-2009),0)+IF($Y6>=AY$2,$AV6/($Y6-2009),0) ->  | AZ6: =IF($D6>=AZ$2,$AA6/($D6-2009),0)+IF($E6>=AZ$2,$AB6/($E6-2009),0)+IF($F6>=AZ$2,$AC6/($F6-2009),0)+IF($G6>=AZ$2,$AD6/($G6-2009),0)+IF($H6>=AZ$2,$AE6/($H6-2009),0)+IF($I6>=AZ$2,$AF6/($I6-2009),0)+IF($J6>=AZ$2,$AG6/($J6-2009),0)+IF($K6>=AZ$2,$AH6/($K6-2009),0)+IF($L6>=AZ$2,$AI6/($L6-2009),0)+IF($M6>=AZ$2,$AJ6/($M6-2009),0)+IF($N6>=AZ$2,$AK6/($N6-2009),0)+IF($O6>=AZ$2,$AL6/($O6-2009),0)+IF($P6>=AZ$2,$AM6/($P6-2009),0)+IF($Q6>=AZ$2,$AN6/($Q6-2009),0)+IF($R6>=AZ$2,$AO6/($R6-2009),0)+IF($S6>=AZ$2,$AP6/($S6-2009),0)+IF($T6>=AZ$2,$AQ6/($T6-2009),0)+IF($U6>=AZ$2,$AR6/($U6-2009),0)+IF($V6>=AZ$2,$AS6/($V6-2009),0)+IF($W6>=AZ$2,$AT6/($W6-2009),0)+IF($X6>=AZ$2,$AU6/($X6-2009),0)+IF($Y6>=AZ$2,$AV6/($Y6-2009),0) ->  | BO6: =IF($D6>=BO$2,$AA6/($D6-2009),0)+IF($E6>=BO$2,$AB6/($E6-2009),0)+IF($F6>=BO$2,$AC6/($F6-2009),0)+IF($G6>=BO$2,$AD6/($G6-2009),0)+IF($H6>=BO$2,$AE6/($H6-2009),0)+IF($I6>=BO$2,$AF6/($I6-2009),0)+IF($J6>=BO$2,$AG6/($J6-2009),0)+IF($K6>=BO$2,$AH6/($K6-2009),0)+IF($L6>=BO$2,$AI6/($L6-2009),0)+IF($M6>=BO$2,$AJ6/($M6-2009),0)+IF($N6>=BO$2,$AK6/($N6-2009),0)+IF($O6>=BO$2,$AL6/($O6-2009),0)+IF($P6>=BO$2,$AM6/($P6-2009),0)+IF($Q6>=BO$2,$AN6/($Q6-2009),0)+IF($R6>=BO$2,$AO6/($R6-2009),0)+IF($S6>=BO$2,$AP6/($S6-2009),0)+IF($T6>=BO$2,$AQ6/($T6-2009),0)+IF($U6>=BO$2,$AR6/($U6-2009),0)+IF($V6>=BO$2,$AS6/($V6-2009),0)+IF($W6>=BO$2,$AT6/($W6-2009),0)+IF($X6>=BO$2,$AU6/($X6-2009),0)+IF($Y6>=BO$2,$AV6/($Y6-2009),0) ->  | EA6: =IF($D6>=EA$2,$AA6/($D6-2009),0)+IF($E6>=EA$2,$AB6/($E6-2009),0)+IF($F6>=EA$2,$AC6/($F6-2009),0)+IF($G6>=EA$2,$AD6/($G6-2009),0)+IF($H6>=EA$2,$AE6/($H6-2009),0)+IF($I6>=EA$2,$AF6/($I6-2009),0)+IF($J6>=EA$2,$AG6/($J6-2009),0)+IF($K6>=EA$2,$AH6/($K6-2009),0)+IF($L6>=EA$2,$AI6/($L6-2009),0)+IF($M6>=EA$2,$AJ6/($M6-2009),0)+IF($N6>=EA$2,$AK6/($N6-2009),0)+IF($O6>=EA$2,$AL6/($O6-2009),0)+IF($P6>=EA$2,$AM6/($P6-2009),0)+IF($Q6>=EA$2,$AN6/($Q6-2009),0)+IF($R6>=EA$2,$AO6/($R6-2009),0)+IF($S6>=EA$2,$AP6/($S6-2009),0)+IF($T6>=EA$2,$AQ6/($T6-2009),0)+IF($U6>=EA$2,$AR6/($U6-2009),0)+IF($V6>=EA$2,$AS6/($V6-2009),0)+IF($W6>=EA$2,$AT6/($W6-2009),0)+IF($X6>=EA$2,$AU6/($X6-2009),0)+IF($Y6>=EA$2,$AV6/($Y6-2009),0) -> 
A7: Levetidsforlængelse | B7: år | C7: - | Z7: 0
A8: Renseanlæg >= 5.000 PE, Vandbehandling | Z8: 0 | AW8: =SUM(AW9:AW32) ->  | AX8: =SUM(#REF!) ->  | AY8: =SUM(AY9:AY32) ->  | AZ8: =SUM(AZ9:AZ32) ->  | DL8: =SUM(DL9:DL32) -> 
A9: =+Genanskaffelsespriser!$B$7 -> Indløb med riste, Konstruktioner | B9: PE | C9: =Genanskaffelsespriser!$E$7 -> 60 | D9: =D$3+$C9+Produktionsanlæg!#REF! ->  | E9: =E$3+$C9+Produktionsanlæg!#REF! ->  | F9: =F$3+$C9+Produktionsanlæg!#REF! ->  | G9: =G$3+$C9+Produktionsanlæg!#REF! ->  | H9: =H$3+$C9+Produktionsanlæg!#REF! ->  | I9: =I$3+$C9+Produktionsanlæg!#REF! ->  | J9: =J$3+$C9+Produktionsanlæg!#REF! ->  | K9: =K$3+$C9+Produktionsanlæg!#REF! ->  | L9: =L$3+$C9+Produktionsanlæg!#REF! ->  | M9: =M$3+$C9+Produktionsanlæg!#REF! ->  | N9: =N$3+$C9+Produktionsanlæg!#REF! ->  | O9: =O$3+$C9+Produktionsanlæg!#REF! ->  | P9: =P$3+$C9+Produktionsanlæg!#REF! ->  | Q9: =Q$3+$C9+Produktionsanlæg!#REF! ->  | R9: =R$3+$C9+Produktionsanlæg!#REF! ->  | S9: =S$3+$C9+Produktionsanlæg!#REF! ->  | T9: =T$3+$C9+Produktionsanlæg!#REF! ->  | U9: =U$3+$C9+Produktionsanlæg!#REF! ->  | V9: =V$3+$C9+Produktionsanlæg!#REF! ->  | W9: =W$3+$C9+Produktionsanlæg!#REF! ->  | X9: =X$3+$C9+Produktionsanlæg!#REF! ->  | Y9: =Y$3+$C9+Produktionsanlæg!#REF! ->  | Z9: 0 | AA9: =Produktionsanlæg!#REF! ->  | AB9: =Produktionsanlæg!#REF! ->  | AC9: =Produktionsanlæg!#REF! ->  | AD9: =Produktionsanlæg!#REF! ->  | AE9: =Produktionsanlæg!#REF! ->  | AF9: =Produktionsanlæg!#REF! ->  | AG9: =Produktionsanlæg!#REF! ->  | AH9: =Produktionsanlæg!#REF! ->  | AI9: =Produktionsanlæg!#REF! ->  | AJ9: =Produktionsanlæg!#REF! ->  | AK9: =Produktionsanlæg!#REF! ->  | AL9: =Produktionsanlæg!#REF! ->  | AM9: =Produktionsanlæg!#REF! ->  | AN9: =Produktionsanlæg!#REF! ->  | AO9: =Produktionsanlæg!#REF! ->  | AP9: =Produktionsanlæg!#REF! ->  | AQ9: =Produktionsanlæg!#REF! ->  | AR9: =Produktionsanlæg!#REF! ->  | AS9: =Produktionsanlæg!#REF! ->  | AT9: =Produktionsanlæg!#REF! ->  | AU9: =Produktionsanlæg!#REF! ->  | AV9: =Produktionsanlæg!#REF! ->  | AW9: =+SUM(AA9:AV9) ->  | AX9: =SUM(#REF!) ->  | AY9: =IF($D9>=AY$2,$AA9/($D9-2009),0)+IF($E9>=AY$2,$AB9/($E9-2009),0)+IF($F9>=AY$2,$AC9/($F9-2009),0)+IF($G9>=AY$2,$AD9/($G9-2009),0)+IF($H9>=AY$2,$AE9/($H9-2009),0)+IF($I9>=AY$2,$AF9/($I9-2009),0)+IF($J9>=AY$2,$AG9/($J9-2009),0)+IF($K9>=AY$2,$AH9/($K9-2009),0)+IF($L9>=AY$2,$AI9/($L9-2009),0)+IF($M9>=AY$2,$AJ9/($M9-2009),0)+IF($N9>=AY$2,$AK9/($N9-2009),0)+IF($O9>=AY$2,$AL9/($O9-2009),0)+IF($P9>=AY$2,$AM9/($P9-2009),0)+IF($Q9>=AY$2,$AN9/($Q9-2009),0)+IF($R9>=AY$2,$AO9/($R9-2009),0)+IF($S9>=AY$2,$AP9/($S9-2009),0)+IF($T9>=AY$2,$AQ9/($T9-2009),0)+IF($U9>=AY$2,$AR9/($U9-2009),0)+IF($V9>=AY$2,$AS9/($V9-2009),0)+IF($W9>=AY$2,$AT9/($W9-2009),0)+IF($X9>=AY$2,$AU9/($X9-2009),0)+IF($Y9>=AY$2,$AV9/($Y9-2009),0) ->  | AZ9: =IF($D9>=AZ$2,$AA9/($D9-2009),0)+IF($E9>=AZ$2,$AB9/($E9-2009),0)+IF($F9>=AZ$2,$AC9/($F9-2009),0)+IF($G9>=AZ$2,$AD9/($G9-2009),0)+IF($H9>=AZ$2,$AE9/($H9-2009),0)+IF($I9>=AZ$2,$AF9/($I9-2009),0)+IF($J9>=AZ$2,$AG9/($J9-2009),0)+IF($K9>=AZ$2,$AH9/($K9-2009),0)+IF($L9>=AZ$2,$AI9/($L9-2009),0)+IF($M9>=AZ$2,$AJ9/($M9-2009),0)+IF($N9>=AZ$2,$AK9/($N9-2009),0)+IF($O9>=AZ$2,$AL9/($O9-2009),0)+IF($P9>=AZ$2,$AM9/($P9-2009),0)+IF($Q9>=AZ$2,$AN9/($Q9-2009),0)+IF($R9>=AZ$2,$AO9/($R9-2009),0)+IF($S9>=AZ$2,$AP9/($S9-2009),0)+IF($T9>=AZ$2,$AQ9/($T9-2009),0)+IF($U9>=AZ$2,$AR9/($U9-2009),0)+IF($V9>=AZ$2,$AS9/($V9-2009),0)+IF($W9>=AZ$2,$AT9/($W9-2009),0)+IF($X9>=AZ$2,$AU9/($X9-2009),0)+IF($Y9>=AZ$2,$AV9/($Y9-2009),0) ->  | DL9: =IF($D9>=DL$2,$AA9/($D9-2009),0)+IF($E9>=DL$2,$AB9/($E9-2009),0)+IF($F9>=DL$2,$AC9/($F9-2009),0)+IF($G9>=DL$2,$AD9/($G9-2009),0)+IF($H9>=DL$2,$AE9/($H9-2009),0)+IF($I9>=DL$2,$AF9/($I9-2009),0)+IF($J9>=DL$2,$AG9/($J9-2009),0)+IF($K9>=DL$2,$AH9/($K9-2009),0)+IF($L9>=DL$2,$AI9/($L9-2009),0)+IF($M9>=DL$2,$AJ9/($M9-2009),0)+IF($N9>=DL$2,$AK9/($N9-2009),0)+IF($O9>=DL$2,$AL9/($O9-2009),0)+IF($P9>=DL$2,$AM9/($P9-2009),0)+IF($Q9>=DL$2,$AN9/($Q9-2009),0)+IF($R9>=DL$2,$AO9/($R9-2009),0)+IF($S9>=DL$2,$AP9/($S9-2009),0)+IF($T9>=DL$2,$AQ9/($T9-2009),0)+IF($U9>=DL$2,$AR9/($U9-2009),0)+IF($V9>=DL$2,$AS9/($V9-2009),0)+IF($W9>=DL$2,$AT9/($W9-2009),0)+IF($X9>=DL$2,$AU9/($X9-2009),0)+IF($Y9>=DL$2,$AV9/($Y9-2009),0) -> 
A10: Levetidsforlængelse | B10: år | C10: - | Z10: 0
A11: =+Genanskaffelsespriser!$B$8 -> Indløb med riste, Mek/EL | B11: PE | C11: =Genanskaffelsespriser!$E$8 -> 20 | D11: =D$3+$C11 -> 1925 | E11: =E$3+$C11 -> 1935 | F11: 1945 | G11: 1955 | H11: 1965 | I11: 1975 | J11: 1985 | K11: 1995 | L11: 2002 | M11: 2007 | N11: 2012 | O11: 2017 | P11: 2020 | Q11: 2021 | R11: 2022 | S11: 2023 | T11: 2024 | U11: 2025 | V11: 2026 | W11: 2027 | X11: 2028 | Y11: 2029 | Z11: 0 | AA11: =Produktionsanlæg!#REF! ->  | AB11: =Produktionsanlæg!#REF! ->  | AC11: =Produktionsanlæg!#REF! ->  | AD11: =Produktionsanlæg!#REF! ->  | AE11: =Produktionsanlæg!#REF! ->  | AF11: =Produktionsanlæg!#REF! ->  | AG11: =Produktionsanlæg!#REF! ->  | AH11: =Produktionsanlæg!#REF! ->  | AI11: =Produktionsanlæg!#REF! ->  | AJ11: =Produktionsanlæg!#REF! ->  | AK11: =Produktionsanlæg!#REF! ->  | AL11: =Produktionsanlæg!#REF! ->  | AM11: =Produktionsanlæg!#REF! ->  | AN11: =Produktionsanlæg!#REF! ->  | AO11: =Produktionsanlæg!#REF! ->  | AP11: =Produktionsanlæg!#REF! ->  | AQ11: =Produktionsanlæg!#REF! ->  | AR11: =Produktionsanlæg!#REF! ->  | AS11: =Produktionsanlæg!#REF! ->  | AT11: =Produktionsanlæg!#REF! ->  | AU11: =Produktionsanlæg!#REF! ->  | AV11: =Produktionsanlæg!#REF! ->  | AW11: =+SUM(AA11:AV11) ->  | AX11: =SUM(#REF!) ->  | AY11: =IF($D11>=AY$2,$AA11/($D11-2009),0)+IF($E11>=AY$2,$AB11/($E11-2009),0)+IF($F11>=AY$2,$AC11/($F11-2009),0)+IF($G11>=AY$2,$AD11/($G11-2009),0)+IF($H11>=AY$2,$AE11/($H11-2009),0)+IF($I11>=AY$2,$AF11/($I11-2009),0)+IF($J11>=AY$2,$AG11/($J11-2009),0)+IF($K11>=AY$2,$AH11/($K11-2009),0)+IF($L11>=AY$2,$AI11/($L11-2009),0)+IF($M11>=AY$2,$AJ11/($M11-2009),0)+IF($N11>=AY$2,$AK11/($N11-2009),0)+IF($O11>=AY$2,$AL11/($O11-2009),0)+IF($P11>=AY$2,$AM11/($P11-2009),0)+IF($Q11>=AY$2,$AN11/($Q11-2009),0)+IF($R11>=AY$2,$AO11/($R11-2009),0)+IF($S11>=AY$2,$AP11/($S11-2009),0)+IF($T11>=AY$2,$AQ11/($T11-2009),0)+IF($U11>=AY$2,$AR11/($U11-2009),0)+IF($V11>=AY$2,$AS11/($V11-2009),0)+IF($W11>=AY$2,$AT11/($W11-2009),0)+IF($X11>=AY$2,$AU11/($X11-2009),0)+IF($Y11>=AY$2,$AV11/($Y11-2009),0) ->  | AZ11: =IF($D11>=AZ$2,$AA11/($D11-2009),0)+IF($E11>=AZ$2,$AB11/($E11-2009),0)+IF($F11>=AZ$2,$AC11/($F11-2009),0)+IF($G11>=AZ$2,$AD11/($G11-2009),0)+IF($H11>=AZ$2,$AE11/($H11-2009),0)+IF($I11>=AZ$2,$AF11/($I11-2009),0)+IF($J11>=AZ$2,$AG11/($J11-2009),0)+IF($K11>=AZ$2,$AH11/($K11-2009),0)+IF($L11>=AZ$2,$AI11/($L11-2009),0)+IF($M11>=AZ$2,$AJ11/($M11-2009),0)+IF($N11>=AZ$2,$AK11/($N11-2009),0)+IF($O11>=AZ$2,$AL11/($O11-2009),0)+IF($P11>=AZ$2,$AM11/($P11-2009),0)+IF($Q11>=AZ$2,$AN11/($Q11-2009),0)+IF($R11>=AZ$2,$AO11/($R11-2009),0)+IF($S11>=AZ$2,$AP11/($S11-2009),0)+IF($T11>=AZ$2,$AQ11/($T11-2009),0)+IF($U11>=AZ$2,$AR11/($U11-2009),0)+IF($V11>=AZ$2,$AS11/($V11-2009),0)+IF($W11>=AZ$2,$AT11/($W11-2009),0)+IF($X11>=AZ$2,$AU11/($X11-2009),0)+IF($Y11>=AZ$2,$AV11/($Y11-2009),0) ->  | BS11: 0 | BT11: 0 | BU11: 0 | BV11: 0 | BW11: 0 | BX11: 0 | BY11: 0 | BZ11: 0 | CA11: 0 | CB11: 0 | CC11: 0 | CD11: 0 | CE11: 0 | CF11: 0 | CG11: 0 | CH11: 0 | CI11: 0 | CJ11: 0 | CK11: 0 | CL11: 0 | CM11: 0 | CN11: 0 | CO11: 0 | CP11: 0 | CQ11: 0 | CR11: 0 | CS11: 0 | CT11: 0 | CU11: 0 | CV11: 0 | CW11: 0 | CX11: 0 | CY11: 0 | CZ11: 0 | DA11: 0 | DB11: 0 | DC11: 0 | DD11: 0 | DE11: 0 | DF11: 0 | DG11: 0 | DH11: 0 | DI11: 0 | DJ11: 0 | DK11: 0 | DL11: =IF($D11>=DL$2,$AA11/($D11-2009),0)+IF($E11>=DL$2,$AB11/($E11-2009),0)+IF($F11>=DL$2,$AC11/($F11-2009),0)+IF($G11>=DL$2,$AD11/($G11-2009),0)+IF($H11>=DL$2,$AE11/($H11-2009),0)+IF($I11>=DL$2,$AF11/($I11-2009),0)+IF($J11>=DL$2,$AG11/($J11-2009),0)+IF($K11>=DL$2,$AH11/($K11-2009),0)+IF($L11>=DL$2,$AI11/($L11-2009),0)+IF($M11>=DL$2,$AJ11/($M11-2009),0)+IF($N11>=DL$2,$AK11/($N11-2009),0)+IF($O11>=DL$2,$AL11/($O11-2009),0)+IF($P11>=DL$2,$AM11/($P11-2009),0)+IF($Q11>=DL$2,$AN11/($Q11-2009),0)+IF($R11>=DL$2,$AO11/($R11-2009),0)+IF($S11>=DL$2,$AP11/($S11-2009),0)+IF($T11>=DL$2,$AQ11/($T11-2009),0)+IF($U11>=DL$2,$AR11/($U11-2009),0)+IF($V11>=DL$2,$AS11/($V11-2009),0)+IF($W11>=DL$2,$AT11/($W11-2009),0)+IF($X11>=DL$2,$AU11/($X11-2009),0)+IF($Y11>=DL$2,$AV11/($Y11-2009),0) -> 0 | DM11: 0 | DN11: 0 | DO11: 0 | DP11: 0 | DQ11: 0 | DR11: 0 | DS11: 0 | DT11: 0 | DU11: 0 | DV11: 0 | DW11: 0 | DX11: 0 | DY11: 0 | DZ11: 0 | EA11: 0 | EB11: 0 | EC11: 0 | ED11: 0 | EE11: 0 | EF11: 0 | EG11: 0 | EH11: 0 | EI11: 0 | EJ11: 0 | EK11: 0 | EL11: 0 | EM11: 0 | EN11: 0 | EO11: 0 | EP11: 0 | EQ11: 0 | ER11: 0 | ES11: 0 | ET11: 0 | EU11: 0
A12: =+Genanskaffelsespriser!$B$9 -> Indløb med riste, SRO | B12: PE | C12: =Genanskaffelsespriser!$E$9 -> 10 | D12: =D$3+$C12 -> 1915 | E12: 1925 | F12: 1935 | G12: 1945 | H12: 1955 | I12: 1965 | J12: 1975 | K12: 1985 | L12: 1992 | M12: 1997 | N12: 2002 | O12: 2007 | P12: 2010 | Q12: 2011 | R12: 2012 | S12: 2013 | T12: 2014 | U12: 2015 | V12: 2016 | W12: 2017 | X12: 2018 | Y12: 2019 | Z12: 0 | AA12: =Produktionsanlæg!#REF! ->  | AB12: =Produktionsanlæg!#REF! ->  | AC12: =Produktionsanlæg!#REF! ->  | AD12: =Produktionsanlæg!#REF! ->  | AE12: =Produktionsanlæg!#REF! ->  | AF12: =Produktionsanlæg!#REF! ->  | AG12: =Produktionsanlæg!#REF! ->  | AH12: =Produktionsanlæg!#REF! ->  | AI12: =Produktionsanlæg!#REF! ->  | AJ12: =Produktionsanlæg!#REF! ->  | AK12: =Produktionsanlæg!#REF! ->  | AL12: =Produktionsanlæg!#REF! ->  | AM12: =Produktionsanlæg!#REF! ->  | AN12: =Produktionsanlæg!#REF! ->  | AO12: =Produktionsanlæg!#REF! ->  | AP12: =Produktionsanlæg!#REF! ->  | AQ12: =Produktionsanlæg!#REF! ->  | AR12: =Produktionsanlæg!#REF! ->  | AS12: =Produktionsanlæg!#REF! ->  | AT12: =Produktionsanlæg!#REF! ->  | AU12: =Produktionsanlæg!#REF! ->  | AV12: =Produktionsanlæg!#REF! ->  | AW12: =+SUM(AA12:AV12) ->  | AX12: =SUM(#REF!) ->  | AY12: =IF($D12>=AY$2,$AA12/($D12-2009),0)+IF($E12>=AY$2,$AB12/($E12-2009),0)+IF($F12>=AY$2,$AC12/($F12-2009),0)+IF($G12>=AY$2,$AD12/($G12-2009),0)+IF($H12>=AY$2,$AE12/($H12-2009),0)+IF($I12>=AY$2,$AF12/($I12-2009),0)+IF($J12>=AY$2,$AG12/($J12-2009),0)+IF($K12>=AY$2,$AH12/($K12-2009),0)+IF($L12>=AY$2,$AI12/($L12-2009),0)+IF($M12>=AY$2,$AJ12/($M12-2009),0)+IF($N12>=AY$2,$AK12/($N12-2009),0)+IF($O12>=AY$2,$AL12/($O12-2009),0)+IF($P12>=AY$2,$AM12/($P12-2009),0)+IF($Q12>=AY$2,$AN12/($Q12-2009),0)+IF($R12>=AY$2,$AO12/($R12-2009),0)+IF($S12>=AY$2,$AP12/($S12-2009),0)+IF($T12>=AY$2,$AQ12/($T12-2009),0)+IF($U12>=AY$2,$AR12/($U12-2009),0)+IF($V12>=AY$2,$AS12/($V12-2009),0)+IF($W12>=AY$2,$AT12/($W12-2009),0)+IF($X12>=AY$2,$AU12/($X12-2009),0)+IF($Y12>=AY$2,$AV12/($Y12-2009),0) ->  | BI12: 0 | BJ12: 0 | BK12: 0 | BL12: 0 | BM12: 0 | BN12: 0 | BO12: 0 | BP12: 0 | BQ12: 0 | BR12: 0 | BS12: 0 | BT12: 0 | BU12: 0 | BV12: 0 | BW12: 0 | BX12: 0 | BY12: 0 | BZ12: 0 | CA12: 0 | CB12: 0 | CC12: 0 | CD12: 0 | CE12: 0 | CF12: 0 | CG12: 0 | CH12: 0 | CI12: 0 | CJ12: 0 | CK12: 0 | CL12: 0 | CM12: 0 | CN12: 0 | CO12: 0 | CP12: 0 | CQ12: 0 | CR12: 0 | CS12: 0 | CT12: 0 | CU12: 0 | CV12: 0 | CW12: 0 | CX12: 0 | CY12: 0 | CZ12: 0 | DA12: 0 | DB12: 0 | DC12: 0 | DD12: 0 | DE12: 0 | DF12: 0 | DG12: 0 | DH12: 0 | DI12: 0 | DJ12: 0 | DK12: 0 | DL12: 0 | DM12: 0 | DN12: 0 | DO12: 0 | DP12: 0 | DQ12: 0 | DR12: 0 | DS12: 0 | DT12: 0 | DU12: 0 | DV12: 0 | DW12: 0 | DX12: 0 | DY12: 0 | DZ12: 0 | EA12: 0 | EB12: 0 | EC12: 0 | ED12: 0 | EE12: 0 | EF12: 0 | EG12: 0 | EH12: 0 | EI12: 0 | EJ12: 0 | EK12: 0 | EL12: 0 | EM12: 0 | EN12: 0 | EO12: 0 | EP12: 0 | EQ12: 0 | ER12: 0 | ES12: 0 | ET12: 0 | EU12: 0
A13: =+Genanskaffelsespriser!$B$10 -> Sand- og fedtfang, Kontruktioner | B13: PE | C13: =Genanskaffelsespriser!$E$10 -> 60 | D13: =D$3+$C13+Produktionsanlæg!#REF! ->  | E13: =E$3+$C13+Produktionsanlæg!#REF! ->  | F13: =F$3+$C13+Produktionsanlæg!#REF! ->  | G13: =G$3+$C13+Produktionsanlæg!#REF! ->  | H13: =H$3+$C13+Produktionsanlæg!#REF! ->  | I13: =I$3+$C13+Produktionsanlæg!#REF! ->  | J13: =J$3+$C13+Produktionsanlæg!#REF! ->  | K13: =K$3+$C13+Produktionsanlæg!#REF! ->  | L13: =L$3+$C13+Produktionsanlæg!#REF! ->  | M13: =M$3+$C13+Produktionsanlæg!#REF! ->  | N13: =N$3+$C13+Produktionsanlæg!#REF! ->  | O13: =O$3+$C13+Produktionsanlæg!#REF! ->  | P13: =P$3+$C13+Produktionsanlæg!#REF! ->  | Q13: =Q$3+$C13+Produktionsanlæg!#REF! ->  | R13: =R$3+$C13+Produktionsanlæg!#REF! ->  | S13: =S$3+$C13+Produktionsanlæg!#REF! ->  | T13: =T$3+$C13+Produktionsanlæg!#REF! ->  | U13: =U$3+$C13+Produktionsanlæg!#REF! ->  | V13: =V$3+$C13+Produktionsanlæg!#REF! ->  | W13: =W$3+$C13+Produktionsanlæg!#REF! ->  | X13: =X$3+$C13+Produktionsanlæg!#REF! ->  | Y13: =Y$3+$C13+Produktionsanlæg!#REF! ->  | Z13: 0 | AA13: =Produktionsanlæg!#REF! ->  | AB13: =Produktionsanlæg!#REF! ->  | AC13: =Produktionsanlæg!#REF! ->  | AD13: =Produktionsanlæg!#REF! ->  | AE13: =Produktionsanlæg!#REF! ->  | AF13: =Produktionsanlæg!#REF! ->  | AG13: =Produktionsanlæg!#REF! ->  | AH13: =Produktionsanlæg!#REF! ->  | AI13: =Produktionsanlæg!#REF! ->  | AJ13: =Produktionsanlæg!#REF! ->  | AK13: =Produktionsanlæg!#REF! ->  | AL13: =Produktionsanlæg!#REF! ->  | AM13: =Produktionsanlæg!#REF! ->  | AN13: =Produktionsanlæg!#REF! ->  | AO13: =Produktionsanlæg!#REF! ->  | AP13: =Produktionsanlæg!#REF! ->  | AQ13: =Produktionsanlæg!#REF! ->  | AR13: =Produktionsanlæg!#REF! ->  | AS13: =Produktionsanlæg!#REF! ->  | AT13: =Produktionsanlæg!#REF! ->  | AU13: =Produktionsanlæg!#REF! ->  | AV13: =Produktionsanlæg!#REF! ->  | AW13: =+SUM(AA13:AV13) ->  | AX13: =SUM(#REF!) ->  | AY13: =IF($D13>=AY$2,$AA13/($D13-2009),0)+IF($E13>=AY$2,$AB13/($E13-2009),0)+IF($F13>=AY$2,$AC13/($F13-2009),0)+IF($G13>=AY$2,$AD13/($G13-2009),0)+IF($H13>=AY$2,$AE13/($H13-2009),0)+IF($I13>=AY$2,$AF13/($I13-2009),0)+IF($J13>=AY$2,$AG13/($J13-2009),0)+IF($K13>=AY$2,$AH13/($K13-2009),0)+IF($L13>=AY$2,$AI13/($L13-2009),0)+IF($M13>=AY$2,$AJ13/($M13-2009),0)+IF($N13>=AY$2,$AK13/($N13-2009),0)+IF($O13>=AY$2,$AL13/($O13-2009),0)+IF($P13>=AY$2,$AM13/($P13-2009),0)+IF($Q13>=AY$2,$AN13/($Q13-2009),0)+IF($R13>=AY$2,$AO13/($R13-2009),0)+IF($S13>=AY$2,$AP13/($S13-2009),0)+IF($T13>=AY$2,$AQ13/($T13-2009),0)+IF($U13>=AY$2,$AR13/($U13-2009),0)+IF($V13>=AY$2,$AS13/($V13-2009),0)+IF($W13>=AY$2,$AT13/($W13-2009),0)+IF($X13>=AY$2,$AU13/($X13-2009),0)+IF($Y13>=AY$2,$AV13/($Y13-2009),0) -> 
A14: Levetidsforlængelse | B14: år | C14: - | Z14: 0
A15: =+Genanskaffelsespriser!$B$11 -> Sand- og fedtfang, Mek/EL | B15: PE | C15: =Genanskaffelsespriser!$E$11 -> 20 | D15: =D$3+$C15 -> 1925 | E15: =E$3+$C15 -> 1935 | F15: 1945 | G15: 1955 | H15: 1965 | I15: 1975 | J15: 1985 | K15: 1995 | L15: 2002 | M15: 2007 | N15: 2012 | O15: 2017 | P15: 2020 | Q15: 2021 | R15: 2022 | S15: 2023 | T15: 2024 | U15: 2025 | V15: 2026 | W15: 2027 | X15: 2028 | Y15: 2029 | Z15: 0 | AA15: =Produktionsanlæg!#REF! ->  | AB15: =Produktionsanlæg!#REF! ->  | AC15: =Produktionsanlæg!#REF! ->  | AD15: =Produktionsanlæg!#REF! ->  | AE15: =Produktionsanlæg!#REF! ->  | AF15: =Produktionsanlæg!#REF! ->  | AG15: =Produktionsanlæg!#REF! ->  | AH15: =Produktionsanlæg!#REF! ->  | AI15: =Produktionsanlæg!#REF! ->  | AJ15: =Produktionsanlæg!#REF! ->  | AK15: =Produktionsanlæg!#REF! ->  | AL15: =Produktionsanlæg!#REF! ->  | AM15: =Produktionsanlæg!#REF! ->  | AN15: =Produktionsanlæg!#REF! ->  | AO15: =Produktionsanlæg!#REF! ->  | AP15: =Produktionsanlæg!#REF! ->  | AQ15: =Produktionsanlæg!#REF! ->  | AR15: =Produktionsanlæg!#REF! ->  | AS15: =Produktionsanlæg!#REF! ->  | AT15: =Produktionsanlæg!#REF! ->  | AU15: =Produktionsanlæg!#REF! ->  | AV15: =Produktionsanlæg!#REF! ->  | AW15: =+SUM(AA15:AV15) ->  | AX15: =SUM(#REF!) ->  | AY15: =IF($D15>=AY$2,$AA15/($D15-2009),0)+IF($E15>=AY$2,$AB15/($E15-2009),0)+IF($F15>=AY$2,$AC15/($F15-2009),0)+IF($G15>=AY$2,$AD15/($G15-2009),0)+IF($H15>=AY$2,$AE15/($H15-2009),0)+IF($I15>=AY$2,$AF15/($I15-2009),0)+IF($J15>=AY$2,$AG15/($J15-2009),0)+IF($K15>=AY$2,$AH15/($K15-2009),0)+IF($L15>=AY$2,$AI15/($L15-2009),0)+IF($M15>=AY$2,$AJ15/($M15-2009),0)+IF($N15>=AY$2,$AK15/($N15-2009),0)+IF($O15>=AY$2,$AL15/($O15-2009),0)+IF($P15>=AY$2,$AM15/($P15-2009),0)+IF($Q15>=AY$2,$AN15/($Q15-2009),0)+IF($R15>=AY$2,$AO15/($R15-2009),0)+IF($S15>=AY$2,$AP15/($S15-2009),0)+IF($T15>=AY$2,$AQ15/($T15-2009),0)+IF($U15>=AY$2,$AR15/($U15-2009),0)+IF($V15>=AY$2,$AS15/($V15-2009),0)+IF($W15>=AY$2,$AT15/($W15-2009),0)+IF($X15>=AY$2,$AU15/($X15-2009),0)+IF($Y15>=AY$2,$AV15/($Y15-2009),0) ->  | AZ15: =IF($D15>=AZ$2,$AA15/($D15-2009),0)+IF($E15>=AZ$2,$AB15/($E15-2009),0)+IF($F15>=AZ$2,$AC15/($F15-2009),0)+IF($G15>=AZ$2,$AD15/($G15-2009),0)+IF($H15>=AZ$2,$AE15/($H15-2009),0)+IF($I15>=AZ$2,$AF15/($I15-2009),0)+IF($J15>=AZ$2,$AG15/($J15-2009),0)+IF($K15>=AZ$2,$AH15/($K15-2009),0)+IF($L15>=AZ$2,$AI15/($L15-2009),0)+IF($M15>=AZ$2,$AJ15/($M15-2009),0)+IF($N15>=AZ$2,$AK15/($N15-2009),0)+IF($O15>=AZ$2,$AL15/($O15-2009),0)+IF($P15>=AZ$2,$AM15/($P15-2009),0)+IF($Q15>=AZ$2,$AN15/($Q15-2009),0)+IF($R15>=AZ$2,$AO15/($R15-2009),0)+IF($S15>=AZ$2,$AP15/($S15-2009),0)+IF($T15>=AZ$2,$AQ15/($T15-2009),0)+IF($U15>=AZ$2,$AR15/($U15-2009),0)+IF($V15>=AZ$2,$AS15/($V15-2009),0)+IF($W15>=AZ$2,$AT15/($W15-2009),0)+IF($X15>=AZ$2,$AU15/($X15-2009),0)+IF($Y15>=AZ$2,$AV15/($Y15-2009),0) ->  | BS15: 0 | BT15: 0 | BU15: 0 | BV15: 0 | BW15: 0 | BX15: 0 | BY15: 0 | BZ15: 0 | CA15: 0 | CB15: 0 | CC15: 0 | CD15: 0 | CE15: 0 | CF15: 0 | CG15: 0 | CH15: 0 | CI15: 0 | CJ15: 0 | CK15: 0 | CL15: 0 | CM15: 0 | CN15: 0 | CO15: 0 | CP15: 0 | CQ15: 0 | CR15: 0 | CS15: 0 | CT15: 0 | CU15: 0 | CV15: 0 | CW15: 0 | CX15: 0 | CY15: 0 | CZ15: 0 | DA15: 0 | DB15: 0 | DC15: 0 | DD15: 0 | DE15: 0 | DF15: 0 | DG15: 0 | DH15: 0 | DI15: 0 | DJ15: 0 | DK15: 0 | DL15: =IF($D15>=DL$2,$AA15/($D15-2009),0)+IF($E15>=DL$2,$AB15/($E15-2009),0)+IF($F15>=DL$2,$AC15/($F15-2009),0)+IF($G15>=DL$2,$AD15/($G15-2009),0)+IF($H15>=DL$2,$AE15/($H15-2009),0)+IF($I15>=DL$2,$AF15/($I15-2009),0)+IF($J15>=DL$2,$AG15/($J15-2009),0)+IF($K15>=DL$2,$AH15/($K15-2009),0)+IF($L15>=DL$2,$AI15/($L15-2009),0)+IF($M15>=DL$2,$AJ15/($M15-2009),0)+IF($N15>=DL$2,$AK15/($N15-2009),0)+IF($O15>=DL$2,$AL15/($O15-2009),0)+IF($P15>=DL$2,$AM15/($P15-2009),0)+IF($Q15>=DL$2,$AN15/($Q15-2009),0)+IF($R15>=DL$2,$AO15/($R15-2009),0)+IF($S15>=DL$2,$AP15/($S15-2009),0)+IF($T15>=DL$2,$AQ15/($T15-2009),0)+IF($U15>=DL$2,$AR15/($U15-2009),0)+IF($V15>=DL$2,$AS15/($V15-2009),0)+IF($W15>=DL$2,$AT15/($W15-2009),0)+IF($X15>=DL$2,$AU15/($X15-2009),0)+IF($Y15>=DL$2,$AV15/($Y15-2009),0) -> 0 | DM15: 0 | DN15: 0 | DO15: 0 | DP15: 0 | DQ15: 0 | DR15: 0 | DS15: 0 | DT15: 0 | DU15: 0 | DV15: 0 | DW15: 0 | DX15: 0 | DY15: 0 | DZ15: 0 | EA15: 0 | EB15: 0 | EC15: 0 | ED15: 0 | EE15: 0 | EF15: 0 | EG15: 0 | EH15: 0 | EI15: 0 | EJ15: 0 | EK15: 0 | EL15: 0 | EM15: 0 | EN15: 0 | EO15: 0 | EP15: 0 | EQ15: 0 | ER15: 0 | ES15: 0 | ET15: 0 | EU15: 0
A16: =+Genanskaffelsespriser!$B$12 -> Sand- og fedtfang, SRO | B16: PE | C16: =Genanskaffelsespriser!$E$12 -> 10 | D16: =D$3+$C16 -> 1915 | E16: 1925 | F16: 1935 | G16: 1945 | H16: 1955 | I16: 1965 | J16: 1975 | K16: 1985 | L16: 1992 | M16: 1997 | N16: 2002 | O16: 2007 | P16: 2010 | Q16: 2011 | R16: 2012 | S16: 2013 | T16: 2014 | U16: 2015 | V16: 2016 | W16: 2017 | X16: 2018 | Y16: 2019 | Z16: 0 | AA16: =Produktionsanlæg!#REF! ->  | AB16: =Produktionsanlæg!#REF! ->  | AC16: =Produktionsanlæg!#REF! ->  | AD16: =Produktionsanlæg!#REF! ->  | AE16: =Produktionsanlæg!#REF! ->  | AF16: =Produktionsanlæg!#REF! ->  | AG16: =Produktionsanlæg!#REF! ->  | AH16: =Produktionsanlæg!#REF! ->  | AI16: =Produktionsanlæg!#REF! ->  | AJ16: =Produktionsanlæg!#REF! ->  | AK16: =Produktionsanlæg!#REF! ->  | AL16: =Produktionsanlæg!#REF! ->  | AM16: =Produktionsanlæg!#REF! ->  | AN16: =Produktionsanlæg!#REF! ->  | AO16: =Produktionsanlæg!#REF! ->  | AP16: =Produktionsanlæg!#REF! ->  | AQ16: =Produktionsanlæg!#REF! ->  | AR16: =Produktionsanlæg!#REF! ->  | AS16: =Produktionsanlæg!#REF! ->  | AT16: =Produktionsanlæg!#REF! ->  | AU16: =Produktionsanlæg!#REF! ->  | AV16: =Produktionsanlæg!#REF! ->  | AX16: =SUM(#REF!) ->  | AY16: =IF($D16>=AY$2,$AA16/($D16-2009),0)+IF($E16>=AY$2,$AB16/($E16-2009),0)+IF($F16>=AY$2,$AC16/($F16-2009),0)+IF($G16>=AY$2,$AD16/($G16-2009),0)+IF($H16>=AY$2,$AE16/($H16-2009),0)+IF($I16>=AY$2,$AF16/($I16-2009),0)+IF($J16>=AY$2,$AG16/($J16-2009),0)+IF($K16>=AY$2,$AH16/($K16-2009),0)+IF($L16>=AY$2,$AI16/($L16-2009),0)+IF($M16>=AY$2,$AJ16/($M16-2009),0)+IF($N16>=AY$2,$AK16/($N16-2009),0)+IF($O16>=AY$2,$AL16/($O16-2009),0)+IF($P16>=AY$2,$AM16/($P16-2009),0)+IF($Q16>=AY$2,$AN16/($Q16-2009),0)+IF($R16>=AY$2,$AO16/($R16-2009),0)+IF($S16>=AY$2,$AP16/($S16-2009),0)+IF($T16>=AY$2,$AQ16/($T16-2009),0)+IF($U16>=AY$2,$AR16/($U16-2009),0)+IF($V16>=AY$2,$AS16/($V16-2009),0)+IF($W16>=AY$2,$AT16/($W16-2009),0)+IF($X16>=AY$2,$AU16/($X16-2009),0)+IF($Y16>=AY$2,$AV16/($Y16-2009),0) ->  | BI16: 0 | BJ16: 0 | BK16: 0 | BL16: 0 | BM16: 0 | BN16: 0 | BO16: 0 | BP16: 0 | BQ16: 0 | BR16: 0 | BS16: 0 | BT16: 0 | BU16: 0 | BV16: 0 | BW16: 0 | BX16: 0 | BY16: 0 | BZ16: 0 | CA16: 0 | CB16: 0 | CC16: 0 | CD16: 0 | CE16: 0 | CF16: 0 | CG16: 0 | CH16: 0 | CI16: 0 | CJ16: 0 | CK16: 0 | CL16: 0 | CM16: 0 | CN16: 0 | CO16: 0 | CP16: 0 | CQ16: 0 | CR16: 0 | CS16: 0 | CT16: 0 | CU16: 0 | CV16: 0 | CW16: 0 | CX16: 0 | CY16: 0 | CZ16: 0 | DA16: 0 | DB16: 0 | DC16: 0 | DD16: 0 | DE16: 0 | DF16: 0 | DG16: 0 | DH16: 0 | DI16: 0 | DJ16: 0 | DK16: 0 | DL16: 0 | DM16: 0 | DN16: 0 | DO16: 0 | DP16: 0 | DQ16: 0 | DR16: 0 | DS16: 0 | DT16: 0 | DU16: 0 | DV16: 0 | DW16: 0 | DX16: 0 | DY16: 0 | DZ16: 0 | EA16: 0 | EB16: 0 | EC16: 0 | ED16: 0 | EE16: 0 | EF16: 0 | EG16: 0 | EH16: 0 | EI16: 0 | EJ16: 0 | EK16: 0 | EL16: 0 | EM16: 0 | EN16: 0 | EO16: 0 | EP16: 0 | EQ16: 0 | ER16: 0 | ES16: 0 | ET16: 0 | EU16: 0
A17: =+Genanskaffelsespriser!$B$13 -> Forklaring, Konstruktioner | B17: PE | C17: =Genanskaffelsespriser!$E$13 -> 60 | D17: =D$3+$C17+Produktionsanlæg!#REF! ->  | E17: =E$3+$C17+Produktionsanlæg!#REF! ->  | F17: =F$3+$C17+Produktionsanlæg!#REF! ->  | G17: =G$3+$C17+Produktionsanlæg!#REF! ->  | H17: =H$3+$C17+Produktionsanlæg!#REF! ->  | I17: =I$3+$C17+Produktionsanlæg!#REF! ->  | J17: =J$3+$C17+Produktionsanlæg!#REF! ->  | K17: =K$3+$C17+Produktionsanlæg!#REF! ->  | L17: =L$3+$C17+Produktionsanlæg!#REF! ->  | M17: =M$3+$C17+Produktionsanlæg!#REF! ->  | N17: =N$3+$C17+Produktionsanlæg!#REF! ->  | O17: =O$3+$C17+Produktionsanlæg!#REF! ->  | P17: =P$3+$C17+Produktionsanlæg!#REF! ->  | Q17: =Q$3+$C17+Produktionsanlæg!#REF! ->  | R17: =R$3+$C17+Produktionsanlæg!#REF! ->  | S17: =S$3+$C17+Produktionsanlæg!#REF! ->  | T17: =T$3+$C17+Produktionsanlæg!#REF! ->  | U17: =U$3+$C17+Produktionsanlæg!#REF! ->  | V17: =V$3+$C17+Produktionsanlæg!#REF! ->  | W17: =W$3+$C17+Produktionsanlæg!#REF! ->  | X17: =X$3+$C17+Produktionsanlæg!#REF! ->  | Y17: =Y$3+$C17+Produktionsanlæg!#REF! ->  | Z17: 0 | AA17: =Produktionsanlæg!#REF! ->  | AB17: =Produktionsanlæg!#REF! ->  | AC17: =Produktionsanlæg!#REF! ->  | AD17: =Produktionsanlæg!#REF! ->  | AE17: =Produktionsanlæg!#REF! ->  | AF17: =Produktionsanlæg!#REF! ->  | AG17: =Produktionsanlæg!#REF! ->  | AH17: =Produktionsanlæg!#REF! ->  | AI17: =Produktionsanlæg!#REF! ->  | AJ17: =Produktionsanlæg!#REF! ->  | AK17: =Produktionsanlæg!#REF! ->  | AL17: =Produktionsanlæg!#REF! ->  | AM17: =Produktionsanlæg!#REF! ->  | AN17: =Produktionsanlæg!#REF! ->  | AO17: =Produktionsanlæg!#REF! ->  | AP17: =Produktionsanlæg!#REF! ->  | AQ17: =Produktionsanlæg!#REF! ->  | AR17: =Produktionsanlæg!#REF! ->  | AS17: =Produktionsanlæg!#REF! ->  | AT17: =Produktionsanlæg!#REF! ->  | AU17: =Produktionsanlæg!#REF! ->  | AV17: =Produktionsanlæg!#REF! ->  | AX17: =SUM(#REF!) ->  | AY17: =IF($D17>=AY$2,$AA17/($D17-2009),0)+IF($E17>=AY$2,$AB17/($E17-2009),0)+IF($F17>=AY$2,$AC17/($F17-2009),0)+IF($G17>=AY$2,$AD17/($G17-2009),0)+IF($H17>=AY$2,$AE17/($H17-2009),0)+IF($I17>=AY$2,$AF17/($I17-2009),0)+IF($J17>=AY$2,$AG17/($J17-2009),0)+IF($K17>=AY$2,$AH17/($K17-2009),0)+IF($L17>=AY$2,$AI17/($L17-2009),0)+IF($M17>=AY$2,$AJ17/($M17-2009),0)+IF($N17>=AY$2,$AK17/($N17-2009),0)+IF($O17>=AY$2,$AL17/($O17-2009),0)+IF($P17>=AY$2,$AM17/($P17-2009),0)+IF($Q17>=AY$2,$AN17/($Q17-2009),0)+IF($R17>=AY$2,$AO17/($R17-2009),0)+IF($S17>=AY$2,$AP17/($S17-2009),0)+IF($T17>=AY$2,$AQ17/($T17-2009),0)+IF($U17>=AY$2,$AR17/($U17-2009),0)+IF($V17>=AY$2,$AS17/($V17-2009),0)+IF($W17>=AY$2,$AT17/($W17-2009),0)+IF($X17>=AY$2,$AU17/($X17-2009),0)+IF($Y17>=AY$2,$AV17/($Y17-2009),0) -> 
A18: Levetidsforlængelse | B18: år | C18: - | Z18: 0
A19: =+Genanskaffelsespriser!$B$14 -> Forklaring, Mek/EL | B19: PE | C19: =Genanskaffelsespriser!$E$14 -> 20 | D19: =D$3+$C19 -> 1925 | E19: =E$3+$C19 -> 1935 | F19: 1945 | G19: 1955 | H19: 1965 | I19: 1975 | J19: 1985 | K19: 1995 | L19: 2002 | M19: 2007 | N19: 2012 | O19: 2017 | P19: 2020 | Q19: 2021 | R19: 2022 | S19: 2023 | T19: 2024 | U19: 2025 | V19: 2026 | W19: 2027 | X19: 2028 | Y19: 2029 | Z19: 0 | AA19: =Produktionsanlæg!#REF! ->  | AB19: =Produktionsanlæg!#REF! ->  | AC19: =Produktionsanlæg!#REF! ->  | AD19: =Produktionsanlæg!#REF! ->  | AE19: =Produktionsanlæg!#REF! ->  | AF19: =Produktionsanlæg!#REF! ->  | AG19: =Produktionsanlæg!#REF! ->  | AH19: =Produktionsanlæg!#REF! ->  | AI19: =Produktionsanlæg!#REF! ->  | AJ19: =Produktionsanlæg!#REF! ->  | AK19: =Produktionsanlæg!#REF! ->  | AL19: =Produktionsanlæg!#REF! ->  | AM19: =Produktionsanlæg!#REF! ->  | AN19: =Produktionsanlæg!#REF! ->  | AO19: =Produktionsanlæg!#REF! ->  | AP19: =Produktionsanlæg!#REF! ->  | AQ19: =Produktionsanlæg!#REF! ->  | AR19: =Produktionsanlæg!#REF! ->  | AS19: =Produktionsanlæg!#REF! ->  | AT19: =Produktionsanlæg!#REF! ->  | AU19: =Produktionsanlæg!#REF! ->  | AV19: =Produktionsanlæg!#REF! ->  | AX19: =SUM(#REF!) ->  | AY19: =IF($D19>=AY$2,$AA19/($D19-2009),0)+IF($E19>=AY$2,$AB19/($E19-2009),0)+IF($F19>=AY$2,$AC19/($F19-2009),0)+IF($G19>=AY$2,$AD19/($G19-2009),0)+IF($H19>=AY$2,$AE19/($H19-2009),0)+IF($I19>=AY$2,$AF19/($I19-2009),0)+IF($J19>=AY$2,$AG19/($J19-2009),0)+IF($K19>=AY$2,$AH19/($K19-2009),0)+IF($L19>=AY$2,$AI19/($L19-2009),0)+IF($M19>=AY$2,$AJ19/($M19-2009),0)+IF($N19>=AY$2,$AK19/($N19-2009),0)+IF($O19>=AY$2,$AL19/($O19-2009),0)+IF($P19>=AY$2,$AM19/($P19-2009),0)+IF($Q19>=AY$2,$AN19/($Q19-2009),0)+IF($R19>=AY$2,$AO19/($R19-2009),0)+IF($S19>=AY$2,$AP19/($S19-2009),0)+IF($T19>=AY$2,$AQ19/($T19-2009),0)+IF($U19>=AY$2,$AR19/($U19-2009),0)+IF($V19>=AY$2,$AS19/($V19-2009),0)+IF($W19>=AY$2,$AT19/($W19-2009),0)+IF($X19>=AY$2,$AU19/($X19-2009),0)+IF($Y19>=AY$2,$AV19/($Y19-2009),0) ->  | AZ19: =IF($D19>=AZ$2,$AA19/($D19-2009),0)+IF($E19>=AZ$2,$AB19/($E19-2009),0)+IF($F19>=AZ$2,$AC19/($F19-2009),0)+IF($G19>=AZ$2,$AD19/($G19-2009),0)+IF($H19>=AZ$2,$AE19/($H19-2009),0)+IF($I19>=AZ$2,$AF19/($I19-2009),0)+IF($J19>=AZ$2,$AG19/($J19-2009),0)+IF($K19>=AZ$2,$AH19/($K19-2009),0)+IF($L19>=AZ$2,$AI19/($L19-2009),0)+IF($M19>=AZ$2,$AJ19/($M19-2009),0)+IF($N19>=AZ$2,$AK19/($N19-2009),0)+IF($O19>=AZ$2,$AL19/($O19-2009),0)+IF($P19>=AZ$2,$AM19/($P19-2009),0)+IF($Q19>=AZ$2,$AN19/($Q19-2009),0)+IF($R19>=AZ$2,$AO19/($R19-2009),0)+IF($S19>=AZ$2,$AP19/($S19-2009),0)+IF($T19>=AZ$2,$AQ19/($T19-2009),0)+IF($U19>=AZ$2,$AR19/($U19-2009),0)+IF($V19>=AZ$2,$AS19/($V19-2009),0)+IF($W19>=AZ$2,$AT19/($W19-2009),0)+IF($X19>=AZ$2,$AU19/($X19-2009),0)+IF($Y19>=AZ$2,$AV19/($Y19-2009),0) ->  | BS19: 0 | BT19: 0 | BU19: 0 | BV19: 0 | BW19: 0 | BX19: 0 | BY19: 0 | BZ19: 0 | CA19: 0 | CB19: 0 | CC19: 0 | CD19: 0 | CE19: 0 | CF19: 0 | CG19: 0 | CH19: 0 | CI19: 0 | CJ19: 0 | CK19: 0 | CL19: 0 | CM19: 0 | CN19: 0 | CO19: 0 | CP19: 0 | CQ19: 0 | CR19: 0 | CS19: 0 | CT19: 0 | CU19: 0 | CV19: 0 | CW19: 0 | CX19: 0 | CY19: 0 | CZ19: 0 | DA19: 0 | DB19: 0 | DC19: 0 | DD19: 0 | DE19: 0 | DF19: 0 | DG19: 0 | DH19: 0 | DI19: 0 | DJ19: 0 | DK19: 0 | DL19: =IF($D19>=DL$2,$AA19/($D19-2009),0)+IF($E19>=DL$2,$AB19/($E19-2009),0)+IF($F19>=DL$2,$AC19/($F19-2009),0)+IF($G19>=DL$2,$AD19/($G19-2009),0)+IF($H19>=DL$2,$AE19/($H19-2009),0)+IF($I19>=DL$2,$AF19/($I19-2009),0)+IF($J19>=DL$2,$AG19/($J19-2009),0)+IF($K19>=DL$2,$AH19/($K19-2009),0)+IF($L19>=DL$2,$AI19/($L19-2009),0)+IF($M19>=DL$2,$AJ19/($M19-2009),0)+IF($N19>=DL$2,$AK19/($N19-2009),0)+IF($O19>=DL$2,$AL19/($O19-2009),0)+IF($P19>=DL$2,$AM19/($P19-2009),0)+IF($Q19>=DL$2,$AN19/($Q19-2009),0)+IF($R19>=DL$2,$AO19/($R19-2009),0)+IF($S19>=DL$2,$AP19/($S19-2009),0)+IF($T19>=DL$2,$AQ19/($T19-2009),0)+IF($U19>=DL$2,$AR19/($U19-2009),0)+IF($V19>=DL$2,$AS19/($V19-2009),0)+IF($W19>=DL$2,$AT19/($W19-2009),0)+IF($X19>=DL$2,$AU19/($X19-2009),0)+IF($Y19>=DL$2,$AV19/($Y19-2009),0) -> 0 | DM19: 0 | DN19: 0 | DO19: 0 | DP19: 0 | DQ19: 0 | DR19: 0 | DS19: 0 | DT19: 0 | DU19: 0 | DV19: 0 | DW19: 0 | DX19: 0 | DY19: 0 | DZ19: 0 | EA19: 0 | EB19: 0 | EC19: 0 | ED19: 0 | EE19: 0 | EF19: 0 | EG19: 0 | EH19: 0 | EI19: 0 | EJ19: 0 | EK19: 0 | EL19: 0 | EM19: 0 | EN19: 0 | EO19: 0 | EP19: 0 | EQ19: 0 | ER19: 0 | ES19: 0 | ET19: 0 | EU19: 0
A20: =+Genanskaffelsespriser!$B$15 -> Forklaring, SRO | B20: PE | C20: =Genanskaffelsespriser!$E$15 -> 10 | D20: =D$3+$C20 -> 1915 | E20: 1925 | F20: 1935 | G20: 1945 | H20: 1955 | I20: 1965 | J20: 1975 | K20: 1985 | L20: 1992 | M20: 1997 | N20: 2002 | O20: 2007 | P20: 2010 | Q20: 2011 | R20: 2012 | S20: 2013 | T20: 2014 | U20: 2015 | V20: 2016 | W20: 2017 | X20: 2018 | Y20: 2019 | Z20: 0 | AA20: =Produktionsanlæg!#REF! ->  | AB20: =Produktionsanlæg!#REF! ->  | AC20: =Produktionsanlæg!#REF! ->  | AD20: =Produktionsanlæg!#REF! ->  | AE20: =Produktionsanlæg!#REF! ->  | AF20: =Produktionsanlæg!#REF! ->  | AG20: =Produktionsanlæg!#REF! ->  | AH20: =Produktionsanlæg!#REF! ->  | AI20: =Produktionsanlæg!#REF! ->  | AJ20: =Produktionsanlæg!#REF! ->  | AK20: =Produktionsanlæg!#REF! ->  | AL20: =Produktionsanlæg!#REF! ->  | AM20: =Produktionsanlæg!#REF! ->  | AN20: =Produktionsanlæg!#REF! ->  | AO20: =Produktionsanlæg!#REF! ->  | AP20: =Produktionsanlæg!#REF! ->  | AQ20: =Produktionsanlæg!#REF! ->  | AR20: =Produktionsanlæg!#REF! ->  | AS20: =Produktionsanlæg!#REF! ->  | AT20: =Produktionsanlæg!#REF! ->  | AU20: =Produktionsanlæg!#REF! ->  | AV20: =Produktionsanlæg!#REF! ->  | AX20: =SUM(#REF!) ->  | AY20: =IF($D20>=AY$2,$AA20/($D20-2009),0)+IF($E20>=AY$2,$AB20/($E20-2009),0)+IF($F20>=AY$2,$AC20/($F20-2009),0)+IF($G20>=AY$2,$AD20/($G20-2009),0)+IF($H20>=AY$2,$AE20/($H20-2009),0)+IF($I20>=AY$2,$AF20/($I20-2009),0)+IF($J20>=AY$2,$AG20/($J20-2009),0)+IF($K20>=AY$2,$AH20/($K20-2009),0)+IF($L20>=AY$2,$AI20/($L20-2009),0)+IF($M20>=AY$2,$AJ20/($M20-2009),0)+IF($N20>=AY$2,$AK20/($N20-2009),0)+IF($O20>=AY$2,$AL20/($O20-2009),0)+IF($P20>=AY$2,$AM20/($P20-2009),0)+IF($Q20>=AY$2,$AN20/($Q20-2009),0)+IF($R20>=AY$2,$AO20/($R20-2009),0)+IF($S20>=AY$2,$AP20/($S20-2009),0)+IF($T20>=AY$2,$AQ20/($T20-2009),0)+IF($U20>=AY$2,$AR20/($U20-2009),0)+IF($V20>=AY$2,$AS20/($V20-2009),0)+IF($W20>=AY$2,$AT20/($W20-2009),0)+IF($X20>=AY$2,$AU20/($X20-2009),0)+IF($Y20>=AY$2,$AV20/($Y20-2009),0) ->  | BI20: 0 | BJ20: 0 | BK20: 0 | BL20: 0 | BM20: 0 | BN20: 0 | BO20: 0 | BP20: 0 | BQ20: 0 | BR20: 0 | BS20: 0 | BT20: 0 | BU20: 0 | BV20: 0 | BW20: 0 | BX20: 0 | BY20: 0 | BZ20: 0 | CA20: 0 | CB20: 0 | CC20: 0 | CD20: 0 | CE20: 0 | CF20: 0 | CG20: 0 | CH20: 0 | CI20: 0 | CJ20: 0 | CK20: 0 | CL20: 0 | CM20: 0 | CN20: 0 | CO20: 0 | CP20: 0 | CQ20: 0 | CR20: 0 | CS20: 0 | CT20: 0 | CU20: 0 | CV20: 0 | CW20: 0 | CX20: 0 | CY20: 0 | CZ20: 0 | DA20: 0 | DB20: 0 | DC20: 0 | DD20: 0 | DE20: 0 | DF20: 0 | DG20: 0 | DH20: 0 | DI20: 0 | DJ20: 0 | DK20: 0 | DL20: 0 | DM20: 0 | DN20: 0 | DO20: 0 | DP20: 0 | DQ20: 0 | DR20: 0 | DS20: 0 | DT20: 0 | DU20: 0 | DV20: 0 | DW20: 0 | DX20: 0 | DY20: 0 | DZ20: 0 | EA20: 0 | EB20: 0 | EC20: 0 | ED20: 0 | EE20: 0 | EF20: 0 | EG20: 0 | EH20: 0 | EI20: 0 | EJ20: 0 | EK20: 0 | EL20: 0 | EM20: 0 | EN20: 0 | EO20: 0 | EP20: 0 | EQ20: 0 | ER20: 0 | ES20: 0 | ET20: 0 | EU20: 0
A21: =+Genanskaffelsespriser!$B$16 -> Beluftningstanke, Konstruktioner | B21: PE | C21: =Genanskaffelsespriser!$E$16 -> 60 | D21: =D$3+$C21+Produktionsanlæg!#REF! ->  | E21: =E$3+$C21+Produktionsanlæg!#REF! ->  | F21: =F$3+$C21+Produktionsanlæg!#REF! ->  | G21: =G$3+$C21+Produktionsanlæg!#REF! ->  | H21: =H$3+$C21+Produktionsanlæg!#REF! ->  | I21: =I$3+$C21+Produktionsanlæg!#REF! ->  | J21: =J$3+$C21+Produktionsanlæg!#REF! ->  | K21: =K$3+$C21+Produktionsanlæg!#REF! ->  | L21: =L$3+$C21+Produktionsanlæg!#REF! ->  | M21: =M$3+$C21+Produktionsanlæg!#REF! ->  | N21: =N$3+$C21+Produktionsanlæg!#REF! ->  | O21: =O$3+$C21+Produktionsanlæg!#REF! ->  | P21: =P$3+$C21+Produktionsanlæg!#REF! ->  | Q21: =Q$3+$C21+Produktionsanlæg!#REF! ->  | R21: =R$3+$C21+Produktionsanlæg!#REF! ->  | S21: =S$3+$C21+Produktionsanlæg!#REF! ->  | T21: =T$3+$C21+Produktionsanlæg!#REF! ->  | U21: =U$3+$C21+Produktionsanlæg!#REF! ->  | V21: =V$3+$C21+Produktionsanlæg!#REF! ->  | W21: =W$3+$C21+Produktionsanlæg!#REF! ->  | X21: =X$3+$C21+Produktionsanlæg!#REF! ->  | Y21: =Y$3+$C21+Produktionsanlæg!#REF! ->  | Z21: 0 | AA21: =Produktionsanlæg!#REF! ->  | AB21: =Produktionsanlæg!#REF! ->  | AC21: =Produktionsanlæg!#REF! ->  | AD21: =Produktionsanlæg!#REF! ->  | AE21: =Produktionsanlæg!#REF! ->  | AF21: =Produktionsanlæg!#REF! ->  | AG21: =Produktionsanlæg!#REF! ->  | AH21: =Produktionsanlæg!#REF! ->  | AI21: =Produktionsanlæg!#REF! ->  | AJ21: =Produktionsanlæg!#REF! ->  | AK21: =Produktionsanlæg!#REF! ->  | AL21: =Produktionsanlæg!#REF! ->  | AM21: =Produktionsanlæg!#REF! ->  | AN21: =Produktionsanlæg!#REF! ->  | AO21: =Produktionsanlæg!#REF! ->  | AP21: =Produktionsanlæg!#REF! ->  | AQ21: =Produktionsanlæg!#REF! ->  | AR21: =Produktionsanlæg!#REF! ->  | AS21: =Produktionsanlæg!#REF! ->  | AT21: =Produktionsanlæg!#REF! ->  | AU21: =Produktionsanlæg!#REF! ->  | AV21: =Produktionsanlæg!#REF! ->  | AX21: =SUM(#REF!) ->  | AY21: =IF($D21>=AY$2,$AA21/($D21-2009),0)+IF($E21>=AY$2,$AB21/($E21-2009),0)+IF($F21>=AY$2,$AC21/($F21-2009),0)+IF($G21>=AY$2,$AD21/($G21-2009),0)+IF($H21>=AY$2,$AE21/($H21-2009),0)+IF($I21>=AY$2,$AF21/($I21-2009),0)+IF($J21>=AY$2,$AG21/($J21-2009),0)+IF($K21>=AY$2,$AH21/($K21-2009),0)+IF($L21>=AY$2,$AI21/($L21-2009),0)+IF($M21>=AY$2,$AJ21/($M21-2009),0)+IF($N21>=AY$2,$AK21/($N21-2009),0)+IF($O21>=AY$2,$AL21/($O21-2009),0)+IF($P21>=AY$2,$AM21/($P21-2009),0)+IF($Q21>=AY$2,$AN21/($Q21-2009),0)+IF($R21>=AY$2,$AO21/($R21-2009),0)+IF($S21>=AY$2,$AP21/($S21-2009),0)+IF($T21>=AY$2,$AQ21/($T21-2009),0)+IF($U21>=AY$2,$AR21/($U21-2009),0)+IF($V21>=AY$2,$AS21/($V21-2009),0)+IF($W21>=AY$2,$AT21/($W21-2009),0)+IF($X21>=AY$2,$AU21/($X21-2009),0)+IF($Y21>=AY$2,$AV21/($Y21-2009),0) -> 
A22: Levetidsforlængelse | B22: år | C22: - | Z22: 0
A23: =+Genanskaffelsespriser!$B$17 -> Beluftningstanke, Mek/EL | B23: PE | C23: =Genanskaffelsespriser!$E$17 -> 20 | D23: =D$3+$C23 -> 1925 | E23: =E$3+$C23 -> 1935 | F23: 1945 | G23: 1955 | H23: 1965 | I23: 1975 | J23: 1985 | K23: 1995 | L23: 2002 | M23: 2007 | N23: 2012 | O23: 2017 | P23: 2020 | Q23: 2021 | R23: 2022 | S23: 2023 | T23: 2024 | U23: 2025 | V23: 2026 | W23: 2027 | X23: 2028 | Y23: 2029 | Z23: 0 | AA23: =Produktionsanlæg!#REF! ->  | AB23: =Produktionsanlæg!#REF! ->  | AC23: =Produktionsanlæg!#REF! ->  | AD23: =Produktionsanlæg!#REF! ->  | AE23: =Produktionsanlæg!#REF! ->  | AF23: =Produktionsanlæg!#REF! ->  | AG23: =Produktionsanlæg!#REF! ->  | AH23: =Produktionsanlæg!#REF! ->  | AI23: =Produktionsanlæg!#REF! ->  | AJ23: =Produktionsanlæg!#REF! ->  | AK23: =Produktionsanlæg!#REF! ->  | AL23: =Produktionsanlæg!#REF! ->  | AM23: =Produktionsanlæg!#REF! ->  | AN23: =Produktionsanlæg!#REF! ->  | AO23: =Produktionsanlæg!#REF! ->  | AP23: =Produktionsanlæg!#REF! ->  | AQ23: =Produktionsanlæg!#REF! ->  | AR23: =Produktionsanlæg!#REF! ->  | AS23: =Produktionsanlæg!#REF! ->  | AT23: =Produktionsanlæg!#REF! ->  | AU23: =Produktionsanlæg!#REF! ->  | AV23: =Produktionsanlæg!#REF! ->  | AX23: =SUM(#REF!) ->  | AY23: =IF($D23>=AY$2,$AA23/($D23-2009),0)+IF($E23>=AY$2,$AB23/($E23-2009),0)+IF($F23>=AY$2,$AC23/($F23-2009),0)+IF($G23>=AY$2,$AD23/($G23-2009),0)+IF($H23>=AY$2,$AE23/($H23-2009),0)+IF($I23>=AY$2,$AF23/($I23-2009),0)+IF($J23>=AY$2,$AG23/($J23-2009),0)+IF($K23>=AY$2,$AH23/($K23-2009),0)+IF($L23>=AY$2,$AI23/($L23-2009),0)+IF($M23>=AY$2,$AJ23/($M23-2009),0)+IF($N23>=AY$2,$AK23/($N23-2009),0)+IF($O23>=AY$2,$AL23/($O23-2009),0)+IF($P23>=AY$2,$AM23/($P23-2009),0)+IF($Q23>=AY$2,$AN23/($Q23-2009),0)+IF($R23>=AY$2,$AO23/($R23-2009),0)+IF($S23>=AY$2,$AP23/($S23-2009),0)+IF($T23>=AY$2,$AQ23/($T23-2009),0)+IF($U23>=AY$2,$AR23/($U23-2009),0)+IF($V23>=AY$2,$AS23/($V23-2009),0)+IF($W23>=AY$2,$AT23/($W23-2009),0)+IF($X23>=AY$2,$AU23/($X23-2009),0)+IF($Y23>=AY$2,$AV23/($Y23-2009),0) ->  | AZ23: =IF($D23>=AZ$2,$AA23/($D23-2009),0)+IF($E23>=AZ$2,$AB23/($E23-2009),0)+IF($F23>=AZ$2,$AC23/($F23-2009),0)+IF($G23>=AZ$2,$AD23/($G23-2009),0)+IF($H23>=AZ$2,$AE23/($H23-2009),0)+IF($I23>=AZ$2,$AF23/($I23-2009),0)+IF($J23>=AZ$2,$AG23/($J23-2009),0)+IF($K23>=AZ$2,$AH23/($K23-2009),0)+IF($L23>=AZ$2,$AI23/($L23-2009),0)+IF($M23>=AZ$2,$AJ23/($M23-2009),0)+IF($N23>=AZ$2,$AK23/($N23-2009),0)+IF($O23>=AZ$2,$AL23/($O23-2009),0)+IF($P23>=AZ$2,$AM23/($P23-2009),0)+IF($Q23>=AZ$2,$AN23/($Q23-2009),0)+IF($R23>=AZ$2,$AO23/($R23-2009),0)+IF($S23>=AZ$2,$AP23/($S23-2009),0)+IF($T23>=AZ$2,$AQ23/($T23-2009),0)+IF($U23>=AZ$2,$AR23/($U23-2009),0)+IF($V23>=AZ$2,$AS23/($V23-2009),0)+IF($W23>=AZ$2,$AT23/($W23-2009),0)+IF($X23>=AZ$2,$AU23/($X23-2009),0)+IF($Y23>=AZ$2,$AV23/($Y23-2009),0) ->  | BS23: 0 | BT23: 0 | BU23: 0 | BV23: 0 | BW23: 0 | BX23: 0 | BY23: 0 | BZ23: 0 | CA23: 0 | CB23: 0 | CC23: 0 | CD23: 0 | CE23: 0 | CF23: 0 | CG23: 0 | CH23: 0 | CI23: 0 | CJ23: 0 | CK23: 0 | CL23: 0 | CM23: 0 | CN23: 0 | CO23: 0 | CP23: 0 | CQ23: 0 | CR23: 0 | CS23: 0 | CT23: 0 | CU23: 0 | CV23: 0 | CW23: 0 | CX23: 0 | CY23: 0 | CZ23: 0 | DA23: 0 | DB23: 0 | DC23: 0 | DD23: 0 | DE23: 0 | DF23: 0 | DG23: 0 | DH23: 0 | DI23: 0 | DJ23: 0 | DK23: 0 | DL23: =IF($D23>=DL$2,$AA23/($D23-2009),0)+IF($E23>=DL$2,$AB23/($E23-2009),0)+IF($F23>=DL$2,$AC23/($F23-2009),0)+IF($G23>=DL$2,$AD23/($G23-2009),0)+IF($H23>=DL$2,$AE23/($H23-2009),0)+IF($I23>=DL$2,$AF23/($I23-2009),0)+IF($J23>=DL$2,$AG23/($J23-2009),0)+IF($K23>=DL$2,$AH23/($K23-2009),0)+IF($L23>=DL$2,$AI23/($L23-2009),0)+IF($M23>=DL$2,$AJ23/($M23-2009),0)+IF($N23>=DL$2,$AK23/($N23-2009),0)+IF($O23>=DL$2,$AL23/($O23-2009),0)+IF($P23>=DL$2,$AM23/($P23-2009),0)+IF($Q23>=DL$2,$AN23/($Q23-2009),0)+IF($R23>=DL$2,$AO23/($R23-2009),0)+IF($S23>=DL$2,$AP23/($S23-2009),0)+IF($T23>=DL$2,$AQ23/($T23-2009),0)+IF($U23>=DL$2,$AR23/($U23-2009),0)+IF($V23>=DL$2,$AS23/($V23-2009),0)+IF($W23>=DL$2,$AT23/($W23-2009),0)+IF($X23>=DL$2,$AU23/($X23-2009),0)+IF($Y23>=DL$2,$AV23/($Y23-2009),0) -> 0 | DM23: 0 | DN23: 0 | DO23: 0 | DP23: 0 | DQ23: 0 | DR23: 0 | DS23: 0 | DT23: 0 | DU23: 0 | DV23: 0 | DW23: 0 | DX23: 0 | DY23: 0 | DZ23: 0 | EA23: 0 | EB23: 0 | EC23: 0 | ED23: 0 | EE23: 0 | EF23: 0 | EG23: 0 | EH23: 0 | EI23: 0 | EJ23: 0 | EK23: 0 | EL23: 0 | EM23: 0 | EN23: 0 | EO23: 0 | EP23: 0 | EQ23: 0 | ER23: 0 | ES23: 0 | ET23: 0 | EU23: 0
A24: =+Genanskaffelsespriser!$B$18 -> Beluftningstanke, SRO | B24: PE | C24: =Genanskaffelsespriser!$E$18 -> 10 | D24: =D$3+$C24 -> 1915 | E24: 1925 | F24: 1935 | G24: 1945 | H24: 1955 | I24: 1965 | J24: 1975 | K24: 1985 | L24: 1992 | M24: 1997 | N24: 2002 | O24: 2007 | P24: 2010 | Q24: 2011 | R24: 2012 | S24: 2013 | T24: 2014 | U24: 2015 | V24: 2016 | W24: 2017 | X24: 2018 | Y24: 2019 | Z24: 0 | AA24: =Produktionsanlæg!#REF! ->  | AB24: =Produktionsanlæg!#REF! ->  | AC24: =Produktionsanlæg!#REF! ->  | AD24: =Produktionsanlæg!#REF! ->  | AE24: =Produktionsanlæg!#REF! ->  | AF24: =Produktionsanlæg!#REF! ->  | AG24: =Produktionsanlæg!#REF! ->  | AH24: =Produktionsanlæg!#REF! ->  | AI24: =Produktionsanlæg!#REF! ->  | AJ24: =Produktionsanlæg!#REF! ->  | AK24: =Produktionsanlæg!#REF! ->  | AL24: =Produktionsanlæg!#REF! ->  | AM24: =Produktionsanlæg!#REF! ->  | AN24: =Produktionsanlæg!#REF! ->  | AO24: =Produktionsanlæg!#REF! ->  | AP24: =Produktionsanlæg!#REF! ->  | AQ24: =Produktionsanlæg!#REF! ->  | AR24: =Produktionsanlæg!#REF! ->  | AS24: =Produktionsanlæg!#REF! ->  | AT24: =Produktionsanlæg!#REF! ->  | AU24: =Produktionsanlæg!#REF! ->  | AV24: =Produktionsanlæg!#REF! ->  | AX24: =SUM(#REF!) ->  | AY24: =IF($D24>=AY$2,$AA24/($D24-2009),0)+IF($E24>=AY$2,$AB24/($E24-2009),0)+IF($F24>=AY$2,$AC24/($F24-2009),0)+IF($G24>=AY$2,$AD24/($G24-2009),0)+IF($H24>=AY$2,$AE24/($H24-2009),0)+IF($I24>=AY$2,$AF24/($I24-2009),0)+IF($J24>=AY$2,$AG24/($J24-2009),0)+IF($K24>=AY$2,$AH24/($K24-2009),0)+IF($L24>=AY$2,$AI24/($L24-2009),0)+IF($M24>=AY$2,$AJ24/($M24-2009),0)+IF($N24>=AY$2,$AK24/($N24-2009),0)+IF($O24>=AY$2,$AL24/($O24-2009),0)+IF($P24>=AY$2,$AM24/($P24-2009),0)+IF($Q24>=AY$2,$AN24/($Q24-2009),0)+IF($R24>=AY$2,$AO24/($R24-2009),0)+IF($S24>=AY$2,$AP24/($S24-2009),0)+IF($T24>=AY$2,$AQ24/($T24-2009),0)+IF($U24>=AY$2,$AR24/($U24-2009),0)+IF($V24>=AY$2,$AS24/($V24-2009),0)+IF($W24>=AY$2,$AT24/($W24-2009),0)+IF($X24>=AY$2,$AU24/($X24-2009),0)+IF($Y24>=AY$2,$AV24/($Y24-2009),0) ->  | BI24: 0 | BJ24: 0 | BK24: 0 | BL24: 0 | BM24: 0 | BN24: 0 | BO24: 0 | BP24: 0 | BQ24: 0 | BR24: 0 | BS24: 0 | BT24: 0 | BU24: 0 | BV24: 0 | BW24: 0 | BX24: 0 | BY24: 0 | BZ24: 0 | CA24: 0 | CB24: 0 | CC24: 0 | CD24: 0 | CE24: 0 | CF24: 0 | CG24: 0 | CH24: 0 | CI24: 0 | CJ24: 0 | CK24: 0 | CL24: 0 | CM24: 0 | CN24: 0 | CO24: 0 | CP24: 0 | CQ24: 0 | CR24: 0 | CS24: 0 | CT24: 0 | CU24: 0 | CV24: 0 | CW24: 0 | CX24: 0 | CY24: 0 | CZ24: 0 | DA24: 0 | DB24: 0 | DC24: 0 | DD24: 0 | DE24: 0 | DF24: 0 | DG24: 0 | DH24: 0 | DI24: 0 | DJ24: 0 | DK24: 0 | DL24: 0 | DM24: 0 | DN24: 0 | DO24: 0 | DP24: 0 | DQ24: 0 | DR24: 0 | DS24: 0 | DT24: 0 | DU24: 0 | DV24: 0 | DW24: 0 | DX24: 0 | DY24: 0 | DZ24: 0 | EA24: 0 | EB24: 0 | EC24: 0 | ED24: 0 | EE24: 0 | EF24: 0 | EG24: 0 | EH24: 0 | EI24: 0 | EJ24: 0 | EK24: 0 | EL24: 0 | EM24: 0 | EN24: 0 | EO24: 0 | EP24: 0 | EQ24: 0 | ER24: 0 | ES24: 0 | ET24: 0 | EU24: 0
A25: =+Genanskaffelsespriser!$B$19 -> Efterklaringstanke, Konstruktioner | B25: PE | C25: =Genanskaffelsespriser!$E$19 -> 60 | D25: =D$3+$C25+Produktionsanlæg!#REF! ->  | E25: =E$3+$C25+Produktionsanlæg!#REF! ->  | F25: =F$3+$C25+Produktionsanlæg!#REF! ->  | G25: =G$3+$C25+Produktionsanlæg!#REF! ->  | H25: =H$3+$C25+Produktionsanlæg!#REF! ->  | I25: =I$3+$C25+Produktionsanlæg!#REF! ->  | J25: =J$3+$C25+Produktionsanlæg!#REF! ->  | K25: =K$3+$C25+Produktionsanlæg!#REF! ->  | L25: =L$3+$C25+Produktionsanlæg!#REF! ->  | M25: =M$3+$C25+Produktionsanlæg!#REF! ->  | N25: =N$3+$C25+Produktionsanlæg!#REF! ->  | O25: =O$3+$C25+Produktionsanlæg!#REF! ->  | P25: =P$3+$C25+Produktionsanlæg!#REF! ->  | Q25: =Q$3+$C25+Produktionsanlæg!#REF! ->  | R25: =R$3+$C25+Produktionsanlæg!#REF! ->  | S25: =S$3+$C25+Produktionsanlæg!#REF! ->  | T25: =T$3+$C25+Produktionsanlæg!#REF! ->  | U25: =U$3+$C25+Produktionsanlæg!#REF! ->  | V25: =V$3+$C25+Produktionsanlæg!#REF! ->  | W25: =W$3+$C25+Produktionsanlæg!#REF! ->  | X25: =X$3+$C25+Produktionsanlæg!#REF! ->  | Y25: =Y$3+$C25+Produktionsanlæg!#REF! ->  | Z25: 0 | AA25: =Produktionsanlæg!#REF! ->  | AB25: =Produktionsanlæg!#REF! ->  | AC25: =Produktionsanlæg!#REF! ->  | AD25: =Produktionsanlæg!#REF! ->  | AE25: =Produktionsanlæg!#REF! ->  | AF25: =Produktionsanlæg!#REF! ->  | AG25: =Produktionsanlæg!#REF! ->  | AH25: =Produktionsanlæg!#REF! ->  | AI25: =Produktionsanlæg!#REF! ->  | AJ25: =Produktionsanlæg!#REF! ->  | AK25: =Produktionsanlæg!#REF! ->  | AL25: =Produktionsanlæg!#REF! ->  | AM25: =Produktionsanlæg!#REF! ->  | AN25: =Produktionsanlæg!#REF! ->  | AO25: =Produktionsanlæg!#REF! ->  | AP25: =Produktionsanlæg!#REF! ->  | AQ25: =Produktionsanlæg!#REF! ->  | AR25: =Produktionsanlæg!#REF! ->  | AS25: =Produktionsanlæg!#REF! ->  | AT25: =Produktionsanlæg!#REF! ->  | AU25: =Produktionsanlæg!#REF! ->  | AV25: =Produktionsanlæg!#REF! ->  | AX25: =SUM(#REF!) ->  | AY25: =IF($D25>=AY$2,$AA25/($D25-2009),0)+IF($E25>=AY$2,$AB25/($E25-2009),0)+IF($F25>=AY$2,$AC25/($F25-2009),0)+IF($G25>=AY$2,$AD25/($G25-2009),0)+IF($H25>=AY$2,$AE25/($H25-2009),0)+IF($I25>=AY$2,$AF25/($I25-2009),0)+IF($J25>=AY$2,$AG25/($J25-2009),0)+IF($K25>=AY$2,$AH25/($K25-2009),0)+IF($L25>=AY$2,$AI25/($L25-2009),0)+IF($M25>=AY$2,$AJ25/($M25-2009),0)+IF($N25>=AY$2,$AK25/($N25-2009),0)+IF($O25>=AY$2,$AL25/($O25-2009),0)+IF($P25>=AY$2,$AM25/($P25-2009),0)+IF($Q25>=AY$2,$AN25/($Q25-2009),0)+IF($R25>=AY$2,$AO25/($R25-2009),0)+IF($S25>=AY$2,$AP25/($S25-2009),0)+IF($T25>=AY$2,$AQ25/($T25-2009),0)+IF($U25>=AY$2,$AR25/($U25-2009),0)+IF($V25>=AY$2,$AS25/($V25-2009),0)+IF($W25>=AY$2,$AT25/($W25-2009),0)+IF($X25>=AY$2,$AU25/($X25-2009),0)+IF($Y25>=AY$2,$AV25/($Y25-2009),0) -> 
A26: Levetidsforlængelse | B26: år | C26: - | Z26: 0
A27: =+Genanskaffelsespriser!$B$20 -> Efterklaringstanke, Mek/El | B27: PE | C27: =Genanskaffelsespriser!$E$20 -> 20 | D27: =D$3+$C27 -> 1925 | E27: =E$3+$C27 -> 1935 | F27: 1945 | G27: 1955 | H27: 1965 | I27: 1975 | J27: 1985 | K27: 1995 | L27: 2002 | M27: 2007 | N27: 2012 | O27: 2017 | P27: 2020 | Q27: 2021 | R27: 2022 | S27: 2023 | T27: 2024 | U27: 2025 | V27: 2026 | W27: 2027 | X27: 2028 | Y27: 2029 | Z27: 0 | AA27: =Produktionsanlæg!#REF! ->  | AB27: =Produktionsanlæg!#REF! ->  | AC27: =Produktionsanlæg!#REF! ->  | AD27: =Produktionsanlæg!#REF! ->  | AE27: =Produktionsanlæg!#REF! ->  | AF27: =Produktionsanlæg!#REF! ->  | AG27: =Produktionsanlæg!#REF! ->  | AH27: =Produktionsanlæg!#REF! ->  | AI27: =Produktionsanlæg!#REF! ->  | AJ27: =Produktionsanlæg!#REF! ->  | AK27: =Produktionsanlæg!#REF! ->  | AL27: =Produktionsanlæg!#REF! ->  | AM27: =Produktionsanlæg!#REF! ->  | AN27: =Produktionsanlæg!#REF! ->  | AO27: =Produktionsanlæg!#REF! ->  | AP27: =Produktionsanlæg!#REF! ->  | AQ27: =Produktionsanlæg!#REF! ->  | AR27: =Produktionsanlæg!#REF! ->  | AS27: =Produktionsanlæg!#REF! ->  | AT27: =Produktionsanlæg!#REF! ->  | AU27: =Produktionsanlæg!#REF! ->  | AV27: =Produktionsanlæg!#REF! ->  | AX27: =SUM(#REF!) ->  | AY27: =IF($D27>=AY$2,$AA27/($D27-2009),0)+IF($E27>=AY$2,$AB27/($E27-2009),0)+IF($F27>=AY$2,$AC27/($F27-2009),0)+IF($G27>=AY$2,$AD27/($G27-2009),0)+IF($H27>=AY$2,$AE27/($H27-2009),0)+IF($I27>=AY$2,$AF27/($I27-2009),0)+IF($J27>=AY$2,$AG27/($J27-2009),0)+IF($K27>=AY$2,$AH27/($K27-2009),0)+IF($L27>=AY$2,$AI27/($L27-2009),0)+IF($M27>=AY$2,$AJ27/($M27-2009),0)+IF($N27>=AY$2,$AK27/($N27-2009),0)+IF($O27>=AY$2,$AL27/($O27-2009),0)+IF($P27>=AY$2,$AM27/($P27-2009),0)+IF($Q27>=AY$2,$AN27/($Q27-2009),0)+IF($R27>=AY$2,$AO27/($R27-2009),0)+IF($S27>=AY$2,$AP27/($S27-2009),0)+IF($T27>=AY$2,$AQ27/($T27-2009),0)+IF($U27>=AY$2,$AR27/($U27-2009),0)+IF($V27>=AY$2,$AS27/($V27-2009),0)+IF($W27>=AY$2,$AT27/($W27-2009),0)+IF($X27>=AY$2,$AU27/($X27-2009),0)+IF($Y27>=AY$2,$AV27/($Y27-2009),0) ->  | AZ27: =IF($D27>=AZ$2,$AA27/($D27-2009),0)+IF($E27>=AZ$2,$AB27/($E27-2009),0)+IF($F27>=AZ$2,$AC27/($F27-2009),0)+IF($G27>=AZ$2,$AD27/($G27-2009),0)+IF($H27>=AZ$2,$AE27/($H27-2009),0)+IF($I27>=AZ$2,$AF27/($I27-2009),0)+IF($J27>=AZ$2,$AG27/($J27-2009),0)+IF($K27>=AZ$2,$AH27/($K27-2009),0)+IF($L27>=AZ$2,$AI27/($L27-2009),0)+IF($M27>=AZ$2,$AJ27/($M27-2009),0)+IF($N27>=AZ$2,$AK27/($N27-2009),0)+IF($O27>=AZ$2,$AL27/($O27-2009),0)+IF($P27>=AZ$2,$AM27/($P27-2009),0)+IF($Q27>=AZ$2,$AN27/($Q27-2009),0)+IF($R27>=AZ$2,$AO27/($R27-2009),0)+IF($S27>=AZ$2,$AP27/($S27-2009),0)+IF($T27>=AZ$2,$AQ27/($T27-2009),0)+IF($U27>=AZ$2,$AR27/($U27-2009),0)+IF($V27>=AZ$2,$AS27/($V27-2009),0)+IF($W27>=AZ$2,$AT27/($W27-2009),0)+IF($X27>=AZ$2,$AU27/($X27-2009),0)+IF($Y27>=AZ$2,$AV27/($Y27-2009),0) ->  | BS27: 0 | BT27: 0 | BU27: 0 | BV27: 0 | BW27: 0 | BX27: 0 | BY27: 0 | BZ27: 0 | CA27: 0 | CB27: 0 | CC27: 0 | CD27: 0 | CE27: 0 | CF27: 0 | CG27: 0 | CH27: 0 | CI27: 0 | CJ27: 0 | CK27: 0 | CL27: 0 | CM27: 0 | CN27: 0 | CO27: 0 | CP27: 0 | CQ27: 0 | CR27: 0 | CS27: 0 | CT27: 0 | CU27: 0 | CV27: 0 | CW27: 0 | CX27: 0 | CY27: 0 | CZ27: 0 | DA27: 0 | DB27: 0 | DC27: 0 | DD27: 0 | DE27: 0 | DF27: 0 | DG27: 0 | DH27: 0 | DI27: 0 | DJ27: 0 | DK27: 0 | DL27: =IF($D27>=DL$2,$AA27/($D27-2009),0)+IF($E27>=DL$2,$AB27/($E27-2009),0)+IF($F27>=DL$2,$AC27/($F27-2009),0)+IF($G27>=DL$2,$AD27/($G27-2009),0)+IF($H27>=DL$2,$AE27/($H27-2009),0)+IF($I27>=DL$2,$AF27/($I27-2009),0)+IF($J27>=DL$2,$AG27/($J27-2009),0)+IF($K27>=DL$2,$AH27/($K27-2009),0)+IF($L27>=DL$2,$AI27/($L27-2009),0)+IF($M27>=DL$2,$AJ27/($M27-2009),0)+IF($N27>=DL$2,$AK27/($N27-2009),0)+IF($O27>=DL$2,$AL27/($O27-2009),0)+IF($P27>=DL$2,$AM27/($P27-2009),0)+IF($Q27>=DL$2,$AN27/($Q27-2009),0)+IF($R27>=DL$2,$AO27/($R27-2009),0)+IF($S27>=DL$2,$AP27/($S27-2009),0)+IF($T27>=DL$2,$AQ27/($T27-2009),0)+IF($U27>=DL$2,$AR27/($U27-2009),0)+IF($V27>=DL$2,$AS27/($V27-2009),0)+IF($W27>=DL$2,$AT27/($W27-2009),0)+IF($X27>=DL$2,$AU27/($X27-2009),0)+IF($Y27>=DL$2,$AV27/($Y27-2009),0) -> 0 | DM27: 0 | DN27: 0 | DO27: 0 | DP27: 0 | DQ27: 0 | DR27: 0 | DS27: 0 | DT27: 0 | DU27: 0 | DV27: 0 | DW27: 0 | DX27: 0 | DY27: 0 | DZ27: 0 | EA27: 0 | EB27: 0 | EC27: 0 | ED27: 0 | EE27: 0 | EF27: 0 | EG27: 0 | EH27: 0 | EI27: 0 | EJ27: 0 | EK27: 0 | EL27: 0 | EM27: 0 | EN27: 0 | EO27: 0 | EP27: 0 | EQ27: 0 | ER27: 0 | ES27: 0 | ET27: 0 | EU27: 0
A28: =+Genanskaffelsespriser!$B$21 -> Efterklaringstanke, SRO | B28: PE | C28: =Genanskaffelsespriser!$E$21 -> 10 | D28: =D$3+$C28 -> 1915 | E28: 1925 | F28: 1935 | G28: 1945 | H28: 1955 | I28: 1965 | J28: 1975 | K28: 1985 | L28: 1992 | M28: 1997 | N28: 2002 | O28: 2007 | P28: 2010 | Q28: 2011 | R28: 2012 | S28: 2013 | T28: 2014 | U28: 2015 | V28: 2016 | W28: 2017 | X28: 2018 | Y28: 2019 | Z28: 0 | AA28: =Produktionsanlæg!#REF! ->  | AB28: =Produktionsanlæg!#REF! ->  | AC28: =Produktionsanlæg!#REF! ->  | AD28: =Produktionsanlæg!#REF! ->  | AE28: =Produktionsanlæg!#REF! ->  | AF28: =Produktionsanlæg!#REF! ->  | AG28: =Produktionsanlæg!#REF! ->  | AH28: =Produktionsanlæg!#REF! ->  | AI28: =Produktionsanlæg!#REF! ->  | AJ28: =Produktionsanlæg!#REF! ->  | AK28: =Produktionsanlæg!#REF! ->  | AL28: =Produktionsanlæg!#REF! ->  | AM28: =Produktionsanlæg!#REF! ->  | AN28: =Produktionsanlæg!#REF! ->  | AO28: =Produktionsanlæg!#REF! ->  | AP28: =Produktionsanlæg!#REF! ->  | AQ28: =Produktionsanlæg!#REF! ->  | AR28: =Produktionsanlæg!#REF! ->  | AS28: =Produktionsanlæg!#REF! ->  | AT28: =Produktionsanlæg!#REF! ->  | AU28: =Produktionsanlæg!#REF! ->  | AV28: =Produktionsanlæg!#REF! ->  | AX28: =SUM(#REF!) ->  | AY28: =IF($D28>=AY$2,$AA28/($D28-2009),0)+IF($E28>=AY$2,$AB28/($E28-2009),0)+IF($F28>=AY$2,$AC28/($F28-2009),0)+IF($G28>=AY$2,$AD28/($G28-2009),0)+IF($H28>=AY$2,$AE28/($H28-2009),0)+IF($I28>=AY$2,$AF28/($I28-2009),0)+IF($J28>=AY$2,$AG28/($J28-2009),0)+IF($K28>=AY$2,$AH28/($K28-2009),0)+IF($L28>=AY$2,$AI28/($L28-2009),0)+IF($M28>=AY$2,$AJ28/($M28-2009),0)+IF($N28>=AY$2,$AK28/($N28-2009),0)+IF($O28>=AY$2,$AL28/($O28-2009),0)+IF($P28>=AY$2,$AM28/($P28-2009),0)+IF($Q28>=AY$2,$AN28/($Q28-2009),0)+IF($R28>=AY$2,$AO28/($R28-2009),0)+IF($S28>=AY$2,$AP28/($S28-2009),0)+IF($T28>=AY$2,$AQ28/($T28-2009),0)+IF($U28>=AY$2,$AR28/($U28-2009),0)+IF($V28>=AY$2,$AS28/($V28-2009),0)+IF($W28>=AY$2,$AT28/($W28-2009),0)+IF($X28>=AY$2,$AU28/($X28-2009),0)+IF($Y28>=AY$2,$AV28/($Y28-2009),0) ->  | BI28: 0 | BJ28: 0 | BK28: 0 | BL28: 0 | BM28: 0 | BN28: 0 | BO28: 0 | BP28: 0 | BQ28: 0 | BR28: 0 | BS28: 0 | BT28: 0 | BU28: 0 | BV28: 0 | BW28: 0 | BX28: 0 | BY28: 0 | BZ28: 0 | CA28: 0 | CB28: 0 | CC28: 0 | CD28: 0 | CE28: 0 | CF28: 0 | CG28: 0 | CH28: 0 | CI28: 0 | CJ28: 0 | CK28: 0 | CL28: 0 | CM28: 0 | CN28: 0 | CO28: 0 | CP28: 0 | CQ28: 0 | CR28: 0 | CS28: 0 | CT28: 0 | CU28: 0 | CV28: 0 | CW28: 0 | CX28: 0 | CY28: 0 | CZ28: 0 | DA28: 0 | DB28: 0 | DC28: 0 | DD28: 0 | DE28: 0 | DF28: 0 | DG28: 0 | DH28: 0 | DI28: 0 | DJ28: 0 | DK28: 0 | DL28: 0 | DM28: 0 | DN28: 0 | DO28: 0 | DP28: 0 | DQ28: 0 | DR28: 0 | DS28: 0 | DT28: 0 | DU28: 0 | DV28: 0 | DW28: 0 | DX28: 0 | DY28: 0 | DZ28: 0 | EA28: 0 | EB28: 0 | EC28: 0 | ED28: 0 | EE28: 0 | EF28: 0 | EG28: 0 | EH28: 0 | EI28: 0 | EJ28: 0 | EK28: 0 | EL28: 0 | EM28: 0 | EN28: 0 | EO28: 0 | EP28: 0 | EQ28: 0 | ER28: 0 | ES28: 0 | ET28: 0 | EU28: 0
A29: =+Genanskaffelsespriser!$B$22 -> Efterbehandlingsanlæg (sandfilter), Konstruktioner | B29: PE | C29: =Genanskaffelsespriser!$E$22 -> 60 | D29: =D$3+$C29+Produktionsanlæg!#REF! ->  | E29: =E$3+$C29+Produktionsanlæg!#REF! ->  | F29: =F$3+$C29+Produktionsanlæg!#REF! ->  | G29: =G$3+$C29+Produktionsanlæg!#REF! ->  | H29: =H$3+$C29+Produktionsanlæg!#REF! ->  | I29: =I$3+$C29+Produktionsanlæg!#REF! ->  | J29: =J$3+$C29+Produktionsanlæg!#REF! ->  | K29: =K$3+$C29+Produktionsanlæg!#REF! ->  | L29: =L$3+$C29+Produktionsanlæg!#REF! ->  | M29: =M$3+$C29+Produktionsanlæg!#REF! ->  | N29: =N$3+$C29+Produktionsanlæg!#REF! ->  | O29: =O$3+$C29+Produktionsanlæg!#REF! ->  | P29: =P$3+$C29+Produktionsanlæg!#REF! ->  | Q29: =Q$3+$C29+Produktionsanlæg!#REF! ->  | R29: =R$3+$C29+Produktionsanlæg!#REF! ->  | S29: =S$3+$C29+Produktionsanlæg!#REF! ->  | T29: =T$3+$C29+Produktionsanlæg!#REF! ->  | U29: =U$3+$C29+Produktionsanlæg!#REF! ->  | V29: =V$3+$C29+Produktionsanlæg!#REF! ->  | W29: =W$3+$C29+Produktionsanlæg!#REF! ->  | X29: =X$3+$C29+Produktionsanlæg!#REF! ->  | Y29: =Y$3+$C29+Produktionsanlæg!#REF! ->  | Z29: 0 | AA29: =Produktionsanlæg!#REF! ->  | AB29: =Produktionsanlæg!#REF! ->  | AC29: =Produktionsanlæg!#REF! ->  | AD29: =Produktionsanlæg!#REF! ->  | AE29: =Produktionsanlæg!#REF! ->  | AF29: =Produktionsanlæg!#REF! ->  | AG29: =Produktionsanlæg!#REF! ->  | AH29: =Produktionsanlæg!#REF! ->  | AI29: =Produktionsanlæg!#REF! ->  | AJ29: =Produktionsanlæg!#REF! ->  | AK29: =Produktionsanlæg!#REF! ->  | AL29: =Produktionsanlæg!#REF! ->  | AM29: =Produktionsanlæg!#REF! ->  | AN29: =Produktionsanlæg!#REF! ->  | AO29: =Produktionsanlæg!#REF! ->  | AP29: =Produktionsanlæg!#REF! ->  | AQ29: =Produktionsanlæg!#REF! ->  | AR29: =Produktionsanlæg!#REF! ->  | AS29: =Produktionsanlæg!#REF! ->  | AT29: =Produktionsanlæg!#REF! ->  | AU29: =Produktionsanlæg!#REF! ->  | AV29: =Produktionsanlæg!#REF! ->  | AX29: =SUM(#REF!) ->  | AY29: =IF($D29>=AY$2,$AA29/($D29-2009),0)+IF($E29>=AY$2,$AB29/($E29-2009),0)+IF($F29>=AY$2,$AC29/($F29-2009),0)+IF($G29>=AY$2,$AD29/($G29-2009),0)+IF($H29>=AY$2,$AE29/($H29-2009),0)+IF($I29>=AY$2,$AF29/($I29-2009),0)+IF($J29>=AY$2,$AG29/($J29-2009),0)+IF($K29>=AY$2,$AH29/($K29-2009),0)+IF($L29>=AY$2,$AI29/($L29-2009),0)+IF($M29>=AY$2,$AJ29/($M29-2009),0)+IF($N29>=AY$2,$AK29/($N29-2009),0)+IF($O29>=AY$2,$AL29/($O29-2009),0)+IF($P29>=AY$2,$AM29/($P29-2009),0)+IF($Q29>=AY$2,$AN29/($Q29-2009),0)+IF($R29>=AY$2,$AO29/($R29-2009),0)+IF($S29>=AY$2,$AP29/($S29-2009),0)+IF($T29>=AY$2,$AQ29/($T29-2009),0)+IF($U29>=AY$2,$AR29/($U29-2009),0)+IF($V29>=AY$2,$AS29/($V29-2009),0)+IF($W29>=AY$2,$AT29/($W29-2009),0)+IF($X29>=AY$2,$AU29/($X29-2009),0)+IF($Y29>=AY$2,$AV29/($Y29-2009),0) -> 
A30: Levetidsforlængelse | B30: år | C30: - | Z30: 0
A31: =+Genanskaffelsespriser!$B$23 -> Efterbehandlingsanlæg (sandfilter), Mek/EL | B31: PE | C31: =Genanskaffelsespriser!$E$23 -> 20 | D31: =D$3+$C31 -> 1925 | E31: =E$3+$C31 -> 1935 | F31: 1945 | G31: 1955 | H31: 1965 | I31: 1975 | J31: 1985 | K31: 1995 | L31: 2002 | M31: 2007 | N31: 2012 | O31: 2017 | P31: 2020 | Q31: 2021 | R31: 2022 | S31: 2023 | T31: 2024 | U31: 2025 | V31: 2026 | W31: 2027 | X31: 2028 | Y31: 2029 | Z31: 0 | AA31: =Produktionsanlæg!#REF! ->  | AB31: =Produktionsanlæg!#REF! ->  | AC31: =Produktionsanlæg!#REF! ->  | AD31: =Produktionsanlæg!#REF! ->  | AE31: =Produktionsanlæg!#REF! ->  | AF31: =Produktionsanlæg!#REF! ->  | AG31: =Produktionsanlæg!#REF! ->  | AH31: =Produktionsanlæg!#REF! ->  | AI31: =Produktionsanlæg!#REF! ->  | AJ31: =Produktionsanlæg!#REF! ->  | AK31: =Produktionsanlæg!#REF! ->  | AL31: =Produktionsanlæg!#REF! ->  | AM31: =Produktionsanlæg!#REF! ->  | AN31: =Produktionsanlæg!#REF! ->  | AO31: =Produktionsanlæg!#REF! ->  | AP31: =Produktionsanlæg!#REF! ->  | AQ31: =Produktionsanlæg!#REF! ->  | AR31: =Produktionsanlæg!#REF! ->  | AS31: =Produktionsanlæg!#REF! ->  | AT31: =Produktionsanlæg!#REF! ->  | AU31: =Produktionsanlæg!#REF! ->  | AV31: =Produktionsanlæg!#REF! ->  | AX31: =SUM(#REF!) ->  | AY31: =IF($D31>=AY$2,$AA31/($D31-2009),0)+IF($E31>=AY$2,$AB31/($E31-2009),0)+IF($F31>=AY$2,$AC31/($F31-2009),0)+IF($G31>=AY$2,$AD31/($G31-2009),0)+IF($H31>=AY$2,$AE31/($H31-2009),0)+IF($I31>=AY$2,$AF31/($I31-2009),0)+IF($J31>=AY$2,$AG31/($J31-2009),0)+IF($K31>=AY$2,$AH31/($K31-2009),0)+IF($L31>=AY$2,$AI31/($L31-2009),0)+IF($M31>=AY$2,$AJ31/($M31-2009),0)+IF($N31>=AY$2,$AK31/($N31-2009),0)+IF($O31>=AY$2,$AL31/($O31-2009),0)+IF($P31>=AY$2,$AM31/($P31-2009),0)+IF($Q31>=AY$2,$AN31/($Q31-2009),0)+IF($R31>=AY$2,$AO31/($R31-2009),0)+IF($S31>=AY$2,$AP31/($S31-2009),0)+IF($T31>=AY$2,$AQ31/($T31-2009),0)+IF($U31>=AY$2,$AR31/($U31-2009),0)+IF($V31>=AY$2,$AS31/($V31-2009),0)+IF($W31>=AY$2,$AT31/($W31-2009),0)+IF($X31>=AY$2,$AU31/($X31-2009),0)+IF($Y31>=AY$2,$AV31/($Y31-2009),0) ->  | AZ31: =IF($D31>=AZ$2,$AA31/($D31-2009),0)+IF($E31>=AZ$2,$AB31/($E31-2009),0)+IF($F31>=AZ$2,$AC31/($F31-2009),0)+IF($G31>=AZ$2,$AD31/($G31-2009),0)+IF($H31>=AZ$2,$AE31/($H31-2009),0)+IF($I31>=AZ$2,$AF31/($I31-2009),0)+IF($J31>=AZ$2,$AG31/($J31-2009),0)+IF($K31>=AZ$2,$AH31/($K31-2009),0)+IF($L31>=AZ$2,$AI31/($L31-2009),0)+IF($M31>=AZ$2,$AJ31/($M31-2009),0)+IF($N31>=AZ$2,$AK31/($N31-2009),0)+IF($O31>=AZ$2,$AL31/($O31-2009),0)+IF($P31>=AZ$2,$AM31/($P31-2009),0)+IF($Q31>=AZ$2,$AN31/($Q31-2009),0)+IF($R31>=AZ$2,$AO31/($R31-2009),0)+IF($S31>=AZ$2,$AP31/($S31-2009),0)+IF($T31>=AZ$2,$AQ31/($T31-2009),0)+IF($U31>=AZ$2,$AR31/($U31-2009),0)+IF($V31>=AZ$2,$AS31/($V31-2009),0)+IF($W31>=AZ$2,$AT31/($W31-2009),0)+IF($X31>=AZ$2,$AU31/($X31-2009),0)+IF($Y31>=AZ$2,$AV31/($Y31-2009),0) ->  | BS31: 0 | BT31: 0 | BU31: 0 | BV31: 0 | BW31: 0 | BX31: 0 | BY31: 0 | BZ31: 0 | CA31: 0 | CB31: 0 | CC31: 0 | CD31: 0 | CE31: 0 | CF31: 0 | CG31: 0 | CH31: 0 | CI31: 0 | CJ31: 0 | CK31: 0 | CL31: 0 | CM31: 0 | CN31: 0 | CO31: 0 | CP31: 0 | CQ31: 0 | CR31: 0 | CS31: 0 | CT31: 0 | CU31: 0 | CV31: 0 | CW31: 0 | CX31: 0 | CY31: 0 | CZ31: 0 | DA31: 0 | DB31: 0 | DC31: 0 | DD31: 0 | DE31: 0 | DF31: 0 | DG31: 0 | DH31: 0 | DI31: 0 | DJ31: 0 | DK31: 0 | DL31: =IF($D31>=DL$2,$AA31/($D31-2009),0)+IF($E31>=DL$2,$AB31/($E31-2009),0)+IF($F31>=DL$2,$AC31/($F31-2009),0)+IF($G31>=DL$2,$AD31/($G31-2009),0)+IF($H31>=DL$2,$AE31/($H31-2009),0)+IF($I31>=DL$2,$AF31/($I31-2009),0)+IF($J31>=DL$2,$AG31/($J31-2009),0)+IF($K31>=DL$2,$AH31/($K31-2009),0)+IF($L31>=DL$2,$AI31/($L31-2009),0)+IF($M31>=DL$2,$AJ31/($M31-2009),0)+IF($N31>=DL$2,$AK31/($N31-2009),0)+IF($O31>=DL$2,$AL31/($O31-2009),0)+IF($P31>=DL$2,$AM31/($P31-2009),0)+IF($Q31>=DL$2,$AN31/($Q31-2009),0)+IF($R31>=DL$2,$AO31/($R31-2009),0)+IF($S31>=DL$2,$AP31/($S31-2009),0)+IF($T31>=DL$2,$AQ31/($T31-2009),0)+IF($U31>=DL$2,$AR31/($U31-2009),0)+IF($V31>=DL$2,$AS31/($V31-2009),0)+IF($W31>=DL$2,$AT31/($W31-2009),0)+IF($X31>=DL$2,$AU31/($X31-2009),0)+IF($Y31>=DL$2,$AV31/($Y31-2009),0) -> 0 | DM31: 0 | DN31: 0 | DO31: 0 | DP31: 0 | DQ31: 0 | DR31: 0 | DS31: 0 | DT31: 0 | DU31: 0 | DV31: 0 | DW31: 0 | DX31: 0 | DY31: 0 | DZ31: 0 | EA31: 0 | EB31: 0 | EC31: 0 | ED31: 0 | EE31: 0 | EF31: 0 | EG31: 0 | EH31: 0 | EI31: 0 | EJ31: 0 | EK31: 0 | EL31: 0 | EM31: 0 | EN31: 0 | EO31: 0 | EP31: 0 | EQ31: 0 | ER31: 0 | ES31: 0 | ET31: 0 | EU31: 0
A32: =+Genanskaffelsespriser!$B$24 -> Efterbehandlingsanlæg (sandfilter), SRO | B32: PE | C32: =Genanskaffelsespriser!$E$24 -> 10 | D32: =D$3+$C32 -> 1915 | E32: 1925 | F32: 1935 | G32: 1945 | H32: 1955 | I32: 1965 | J32: 1975 | K32: 1985 | L32: 1992 | M32: 1997 | N32: 2002 | O32: 2007 | P32: 2010 | Q32: 2011 | R32: 2012 | S32: 2013 | T32: 2014 | U32: 2015 | V32: 2016 | W32: 2017 | X32: 2018 | Y32: 2019 | Z32: 0 | AA32: =Produktionsanlæg!#REF! ->  | AB32: =Produktionsanlæg!#REF! ->  | AC32: =Produktionsanlæg!#REF! ->  | AD32: =Produktionsanlæg!#REF! ->  | AE32: =Produktionsanlæg!#REF! ->  | AF32: =Produktionsanlæg!#REF! ->  | AG32: =Produktionsanlæg!#REF! ->  | AH32: =Produktionsanlæg!#REF! ->  | AI32: =Produktionsanlæg!#REF! ->  | AJ32: =Produktionsanlæg!#REF! ->  | AK32: =Produktionsanlæg!#REF! ->  | AL32: =Produktionsanlæg!#REF! ->  | AM32: =Produktionsanlæg!#REF! ->  | AN32: =Produktionsanlæg!#REF! ->  | AO32: =Produktionsanlæg!#REF! ->  | AP32: =Produktionsanlæg!#REF! ->  | AQ32: =Produktionsanlæg!#REF! ->  | AR32: =Produktionsanlæg!#REF! ->  | AS32: =Produktionsanlæg!#REF! ->  | AT32: =Produktionsanlæg!#REF! ->  | AU32: =Produktionsanlæg!#REF! ->  | AV32: =Produktionsanlæg!#REF! ->  | AX32: =SUM(#REF!) ->  | AY32: =IF($D32>=AY$2,$AA32/($D32-2009),0)+IF($E32>=AY$2,$AB32/($E32-2009),0)+IF($F32>=AY$2,$AC32/($F32-2009),0)+IF($G32>=AY$2,$AD32/($G32-2009),0)+IF($H32>=AY$2,$AE32/($H32-2009),0)+IF($I32>=AY$2,$AF32/($I32-2009),0)+IF($J32>=AY$2,$AG32/($J32-2009),0)+IF($K32>=AY$2,$AH32/($K32-2009),0)+IF($L32>=AY$2,$AI32/($L32-2009),0)+IF($M32>=AY$2,$AJ32/($M32-2009),0)+IF($N32>=AY$2,$AK32/($N32-2009),0)+IF($O32>=AY$2,$AL32/($O32-2009),0)+IF($P32>=AY$2,$AM32/($P32-2009),0)+IF($Q32>=AY$2,$AN32/($Q32-2009),0)+IF($R32>=AY$2,$AO32/($R32-2009),0)+IF($S32>=AY$2,$AP32/($S32-2009),0)+IF($T32>=AY$2,$AQ32/($T32-2009),0)+IF($U32>=AY$2,$AR32/($U32-2009),0)+IF($V32>=AY$2,$AS32/($V32-2009),0)+IF($W32>=AY$2,$AT32/($W32-2009),0)+IF($X32>=AY$2,$AU32/($X32-2009),0)+IF($Y32>=AY$2,$AV32/($Y32-2009),0) ->  | BI32: 0 | BJ32: 0 | BK32: 0 | BL32: 0 | BM32: 0 | BN32: 0 | BO32: 0 | BP32: 0 | BQ32: 0 | BR32: 0 | BS32: 0 | BT32: 0 | BU32: 0 | BV32: 0 | BW32: 0 | BX32: 0 | BY32: 0 | BZ32: 0 | CA32: 0 | CB32: 0 | CC32: 0 | CD32: 0 | CE32: 0 | CF32: 0 | CG32: 0 | CH32: 0 | CI32: 0 | CJ32: 0 | CK32: 0 | CL32: 0 | CM32: 0 | CN32: 0 | CO32: 0 | CP32: 0 | CQ32: 0 | CR32: 0 | CS32: 0 | CT32: 0 | CU32: 0 | CV32: 0 | CW32: 0 | CX32: 0 | CY32: 0 | CZ32: 0 | DA32: 0 | DB32: 0 | DC32: 0 | DD32: 0 | DE32: 0 | DF32: 0 | DG32: 0 | DH32: 0 | DI32: 0 | DJ32: 0 | DK32: 0 | DL32: 0 | DM32: 0 | DN32: 0 | DO32: 0 | DP32: 0 | DQ32: 0 | DR32: 0 | DS32: 0 | DT32: 0 | DU32: 0 | DV32: 0 | DW32: 0 | DX32: 0 | DY32: 0 | DZ32: 0 | EA32: 0 | EB32: 0 | EC32: 0 | ED32: 0 | EE32: 0 | EF32: 0 | EG32: 0 | EH32: 0 | EI32: 0 | EJ32: 0 | EK32: 0 | EL32: 0 | EM32: 0 | EN32: 0 | EO32: 0 | EP32: 0 | EQ32: 0 | ER32: 0 | ES32: 0 | ET32: 0 | EU32: 0
A33: Renseanlæg >= 5.000 PE, Slambehandling | Z33: 0 | AW33: =SUM(AW34:AW57) ->  | AX33: =SUM(#REF!) ->  | AY33: =SUM(AY34:AY57) ->  | AZ33: =SUM(AZ34:AZ57) ->  | DL33: =SUM(DL34:DL57) -> 
A34: =+Genanskaffelsespriser!$B$26 -> Forafvanding, slam, Konstruktion | B34: PE | C34: =Genanskaffelsespriser!$E$26 -> 60 | D34: =D$3+$C34+Produktionsanlæg!#REF! ->  | E34: =E$3+$C34+Produktionsanlæg!#REF! ->  | F34: =F$3+$C34+Produktionsanlæg!#REF! ->  | G34: =G$3+$C34+Produktionsanlæg!#REF! ->  | H34: =H$3+$C34+Produktionsanlæg!#REF! ->  | I34: =I$3+$C34+Produktionsanlæg!#REF! ->  | J34: =J$3+$C34+Produktionsanlæg!#REF! ->  | K34: =K$3+$C34+Produktionsanlæg!#REF! ->  | L34: =L$3+$C34+Produktionsanlæg!#REF! ->  | M34: =M$3+$C34+Produktionsanlæg!#REF! ->  | N34: =N$3+$C34+Produktionsanlæg!#REF! ->  | O34: =O$3+$C34+Produktionsanlæg!#REF! ->  | P34: =P$3+$C34+Produktionsanlæg!#REF! ->  | Q34: =Q$3+$C34+Produktionsanlæg!#REF! ->  | R34: =R$3+$C34+Produktionsanlæg!#REF! ->  | S34: =S$3+$C34+Produktionsanlæg!#REF! ->  | T34: =T$3+$C34+Produktionsanlæg!#REF! ->  | U34: =U$3+$C34+Produktionsanlæg!#REF! ->  | V34: =V$3+$C34+Produktionsanlæg!#REF! ->  | W34: =W$3+$C34+Produktionsanlæg!#REF! ->  | X34: =X$3+$C34+Produktionsanlæg!#REF! ->  | Y34: =Y$3+$C34+Produktionsanlæg!#REF! ->  | Z34: 0 | AA34: =Produktionsanlæg!#REF! ->  | AB34: =Produktionsanlæg!#REF! ->  | AC34: =Produktionsanlæg!#REF! ->  | AD34: =Produktionsanlæg!#REF! ->  | AE34: =Produktionsanlæg!#REF! ->  | AF34: =Produktionsanlæg!#REF! ->  | AG34: =Produktionsanlæg!#REF! ->  | AH34: =Produktionsanlæg!#REF! ->  | AI34: =Produktionsanlæg!#REF! ->  | AJ34: =Produktionsanlæg!#REF! ->  | AK34: =Produktionsanlæg!#REF! ->  | AL34: =Produktionsanlæg!#REF! ->  | AM34: =Produktionsanlæg!#REF! ->  | AN34: =Produktionsanlæg!#REF! ->  | AO34: =Produktionsanlæg!#REF! ->  | AP34: =Produktionsanlæg!#REF! ->  | AQ34: =Produktionsanlæg!#REF! ->  | AR34: =Produktionsanlæg!#REF! ->  | AS34: =Produktionsanlæg!#REF! ->  | AT34: =Produktionsanlæg!#REF! ->  | AU34: =Produktionsanlæg!#REF! ->  | AV34: =Produktionsanlæg!#REF! ->  | AW34: =+SUM(AA34:AV34) ->  | AX34: =SUM(#REF!) ->  | AY34: =IF($D34>=AY$2,$AA34/($D34-2009),0)+IF($E34>=AY$2,$AB34/($E34-2009),0)+IF($F34>=AY$2,$AC34/($F34-2009),0)+IF($G34>=AY$2,$AD34/($G34-2009),0)+IF($H34>=AY$2,$AE34/($H34-2009),0)+IF($I34>=AY$2,$AF34/($I34-2009),0)+IF($J34>=AY$2,$AG34/($J34-2009),0)+IF($K34>=AY$2,$AH34/($K34-2009),0)+IF($L34>=AY$2,$AI34/($L34-2009),0)+IF($M34>=AY$2,$AJ34/($M34-2009),0)+IF($N34>=AY$2,$AK34/($N34-2009),0)+IF($O34>=AY$2,$AL34/($O34-2009),0)+IF($P34>=AY$2,$AM34/($P34-2009),0)+IF($Q34>=AY$2,$AN34/($Q34-2009),0)+IF($R34>=AY$2,$AO34/($R34-2009),0)+IF($S34>=AY$2,$AP34/($S34-2009),0)+IF($T34>=AY$2,$AQ34/($T34-2009),0)+IF($U34>=AY$2,$AR34/($U34-2009),0)+IF($V34>=AY$2,$AS34/($V34-2009),0)+IF($W34>=AY$2,$AT34/($W34-2009),0)+IF($X34>=AY$2,$AU34/($X34-2009),0)+IF($Y34>=AY$2,$AV34/($Y34-2009),0) ->  | AZ34: =IF($D34>=AZ$2,$AA34/($D34-2009),0)+IF($E34>=AZ$2,$AB34/($E34-2009),0)+IF($F34>=AZ$2,$AC34/($F34-2009),0)+IF($G34>=AZ$2,$AD34/($G34-2009),0)+IF($H34>=AZ$2,$AE34/($H34-2009),0)+IF($I34>=AZ$2,$AF34/($I34-2009),0)+IF($J34>=AZ$2,$AG34/($J34-2009),0)+IF($K34>=AZ$2,$AH34/($K34-2009),0)+IF($L34>=AZ$2,$AI34/($L34-2009),0)+IF($M34>=AZ$2,$AJ34/($M34-2009),0)+IF($N34>=AZ$2,$AK34/($N34-2009),0)+IF($O34>=AZ$2,$AL34/($O34-2009),0)+IF($P34>=AZ$2,$AM34/($P34-2009),0)+IF($Q34>=AZ$2,$AN34/($Q34-2009),0)+IF($R34>=AZ$2,$AO34/($R34-2009),0)+IF($S34>=AZ$2,$AP34/($S34-2009),0)+IF($T34>=AZ$2,$AQ34/($T34-2009),0)+IF($U34>=AZ$2,$AR34/($U34-2009),0)+IF($V34>=AZ$2,$AS34/($V34-2009),0)+IF($W34>=AZ$2,$AT34/($W34-2009),0)+IF($X34>=AZ$2,$AU34/($X34-2009),0)+IF($Y34>=AZ$2,$AV34/($Y34-2009),0) ->  | DL34: =IF($D34>=DL$2,$AA34/($D34-2009),0)+IF($E34>=DL$2,$AB34/($E34-2009),0)+IF($F34>=DL$2,$AC34/($F34-2009),0)+IF($G34>=DL$2,$AD34/($G34-2009),0)+IF($H34>=DL$2,$AE34/($H34-2009),0)+IF($I34>=DL$2,$AF34/($I34-2009),0)+IF($J34>=DL$2,$AG34/($J34-2009),0)+IF($K34>=DL$2,$AH34/($K34-2009),0)+IF($L34>=DL$2,$AI34/($L34-2009),0)+IF($M34>=DL$2,$AJ34/($M34-2009),0)+IF($N34>=DL$2,$AK34/($N34-2009),0)+IF($O34>=DL$2,$AL34/($O34-2009),0)+IF($P34>=DL$2,$AM34/($P34-2009),0)+IF($Q34>=DL$2,$AN34/($Q34-2009),0)+IF($R34>=DL$2,$AO34/($R34-2009),0)+IF($S34>=DL$2,$AP34/($S34-2009),0)+IF($T34>=DL$2,$AQ34/($T34-2009),0)+IF($U34>=DL$2,$AR34/($U34-2009),0)+IF($V34>=DL$2,$AS34/($V34-2009),0)+IF($W34>=DL$2,$AT34/($W34-2009),0)+IF($X34>=DL$2,$AU34/($X34-2009),0)+IF($Y34>=DL$2,$AV34/($Y34-2009),0) -> 
A35: Levetidsforlængelse | B35: år | C35: - | Z35: 0
A36: =+Genanskaffelsespriser!$B$27 -> Forafvanding, slam, Mek/EL | B36: PE | C36: =Genanskaffelsespriser!$E$27 -> 20 | D36: =D$3+$C36 -> 1925 | E36: =E$3+$C36 -> 1935 | F36: 1945 | G36: 1955 | H36: 1965 | I36: 1975 | J36: 1985 | K36: 1995 | L36: 2002 | M36: 2007 | N36: 2012 | O36: 2017 | P36: 2020 | Q36: 2021 | R36: 2022 | S36: 2023 | T36: 2024 | U36: 2025 | V36: 2026 | W36: 2027 | X36: 2028 | Y36: 2029 | Z36: 0 | AA36: =Produktionsanlæg!#REF! ->  | AB36: =Produktionsanlæg!#REF! ->  | AC36: =Produktionsanlæg!#REF! ->  | AD36: =Produktionsanlæg!#REF! ->  | AE36: =Produktionsanlæg!#REF! ->  | AF36: =Produktionsanlæg!#REF! ->  | AG36: =Produktionsanlæg!#REF! ->  | AH36: =Produktionsanlæg!#REF! ->  | AI36: =Produktionsanlæg!#REF! ->  | AJ36: =Produktionsanlæg!#REF! ->  | AK36: =Produktionsanlæg!#REF! ->  | AL36: =Produktionsanlæg!#REF! ->  | AM36: =Produktionsanlæg!#REF! ->  | AN36: =Produktionsanlæg!#REF! ->  | AO36: =Produktionsanlæg!#REF! ->  | AP36: =Produktionsanlæg!#REF! ->  | AQ36: =Produktionsanlæg!#REF! ->  | AR36: =Produktionsanlæg!#REF! ->  | AS36: =Produktionsanlæg!#REF! ->  | AT36: =Produktionsanlæg!#REF! ->  | AU36: =Produktionsanlæg!#REF! ->  | AV36: =Produktionsanlæg!#REF! ->  | AW36: =+SUM(AA36:AV36) ->  | AX36: =SUM(#REF!) ->  | AY36: =IF($D36>=AY$2,$AA36/($D36-2009),0)+IF($E36>=AY$2,$AB36/($E36-2009),0)+IF($F36>=AY$2,$AC36/($F36-2009),0)+IF($G36>=AY$2,$AD36/($G36-2009),0)+IF($H36>=AY$2,$AE36/($H36-2009),0)+IF($I36>=AY$2,$AF36/($I36-2009),0)+IF($J36>=AY$2,$AG36/($J36-2009),0)+IF($K36>=AY$2,$AH36/($K36-2009),0)+IF($L36>=AY$2,$AI36/($L36-2009),0)+IF($M36>=AY$2,$AJ36/($M36-2009),0)+IF($N36>=AY$2,$AK36/($N36-2009),0)+IF($O36>=AY$2,$AL36/($O36-2009),0)+IF($P36>=AY$2,$AM36/($P36-2009),0)+IF($Q36>=AY$2,$AN36/($Q36-2009),0)+IF($R36>=AY$2,$AO36/($R36-2009),0)+IF($S36>=AY$2,$AP36/($S36-2009),0)+IF($T36>=AY$2,$AQ36/($T36-2009),0)+IF($U36>=AY$2,$AR36/($U36-2009),0)+IF($V36>=AY$2,$AS36/($V36-2009),0)+IF($W36>=AY$2,$AT36/($W36-2009),0)+IF($X36>=AY$2,$AU36/($X36-2009),0)+IF($Y36>=AY$2,$AV36/($Y36-2009),0) ->  | AZ36: =IF($D36>=AZ$2,$AA36/($D36-2009),0)+IF($E36>=AZ$2,$AB36/($E36-2009),0)+IF($F36>=AZ$2,$AC36/($F36-2009),0)+IF($G36>=AZ$2,$AD36/($G36-2009),0)+IF($H36>=AZ$2,$AE36/($H36-2009),0)+IF($I36>=AZ$2,$AF36/($I36-2009),0)+IF($J36>=AZ$2,$AG36/($J36-2009),0)+IF($K36>=AZ$2,$AH36/($K36-2009),0)+IF($L36>=AZ$2,$AI36/($L36-2009),0)+IF($M36>=AZ$2,$AJ36/($M36-2009),0)+IF($N36>=AZ$2,$AK36/($N36-2009),0)+IF($O36>=AZ$2,$AL36/($O36-2009),0)+IF($P36>=AZ$2,$AM36/($P36-2009),0)+IF($Q36>=AZ$2,$AN36/($Q36-2009),0)+IF($R36>=AZ$2,$AO36/($R36-2009),0)+IF($S36>=AZ$2,$AP36/($S36-2009),0)+IF($T36>=AZ$2,$AQ36/($T36-2009),0)+IF($U36>=AZ$2,$AR36/($U36-2009),0)+IF($V36>=AZ$2,$AS36/($V36-2009),0)+IF($W36>=AZ$2,$AT36/($W36-2009),0)+IF($X36>=AZ$2,$AU36/($X36-2009),0)+IF($Y36>=AZ$2,$AV36/($Y36-2009),0) ->  | BS36: 0 | BT36: 0 | BU36: 0 | BV36: 0 | BW36: 0 | BX36: 0 | BY36: 0 | BZ36: 0 | CA36: 0 | CB36: 0 | CC36: 0 | CD36: 0 | CE36: 0 | CF36: 0 | CG36: 0 | CH36: 0 | CI36: 0 | CJ36: 0 | CK36: 0 | CL36: 0 | CM36: 0 | CN36: 0 | CO36: 0 | CP36: 0 | CQ36: 0 | CR36: 0 | CS36: 0 | CT36: 0 | CU36: 0 | CV36: 0 | CW36: 0 | CX36: 0 | CY36: 0 | CZ36: 0 | DA36: 0 | DB36: 0 | DC36: 0 | DD36: 0 | DE36: 0 | DF36: 0 | DG36: 0 | DH36: 0 | DI36: 0 | DJ36: 0 | DK36: 0 | DL36: =IF($D36>=DL$2,$AA36/($D36-2009),0)+IF($E36>=DL$2,$AB36/($E36-2009),0)+IF($F36>=DL$2,$AC36/($F36-2009),0)+IF($G36>=DL$2,$AD36/($G36-2009),0)+IF($H36>=DL$2,$AE36/($H36-2009),0)+IF($I36>=DL$2,$AF36/($I36-2009),0)+IF($J36>=DL$2,$AG36/($J36-2009),0)+IF($K36>=DL$2,$AH36/($K36-2009),0)+IF($L36>=DL$2,$AI36/($L36-2009),0)+IF($M36>=DL$2,$AJ36/($M36-2009),0)+IF($N36>=DL$2,$AK36/($N36-2009),0)+IF($O36>=DL$2,$AL36/($O36-2009),0)+IF($P36>=DL$2,$AM36/($P36-2009),0)+IF($Q36>=DL$2,$AN36/($Q36-2009),0)+IF($R36>=DL$2,$AO36/($R36-2009),0)+IF($S36>=DL$2,$AP36/($S36-2009),0)+IF($T36>=DL$2,$AQ36/($T36-2009),0)+IF($U36>=DL$2,$AR36/($U36-2009),0)+IF($V36>=DL$2,$AS36/($V36-2009),0)+IF($W36>=DL$2,$AT36/($W36-2009),0)+IF($X36>=DL$2,$AU36/($X36-2009),0)+IF($Y36>=DL$2,$AV36/($Y36-2009),0) -> 0 | DM36: 0 | DN36: 0 | DO36: 0 | DP36: 0 | DQ36: 0 | DR36: 0 | DS36: 0 | DT36: 0 | DU36: 0 | DV36: 0 | DW36: 0 | DX36: 0 | DY36: 0 | DZ36: 0 | EA36: 0 | EB36: 0 | EC36: 0 | ED36: 0 | EE36: 0 | EF36: 0 | EG36: 0 | EH36: 0 | EI36: 0 | EJ36: 0 | EK36: 0 | EL36: 0 | EM36: 0 | EN36: 0 | EO36: 0 | EP36: 0 | EQ36: 0 | ER36: 0 | ES36: 0 | ET36: 0 | EU36: 0
A37: =+Genanskaffelsespriser!$B$28 -> Forafvanding, slam, SRO | B37: PE | C37: =Genanskaffelsespriser!$E$28 -> 10 | D37: =D$3+$C37 -> 1915 | E37: 1925 | F37: 1935 | G37: 1945 | H37: 1955 | I37: 1965 | J37: 1975 | K37: 1985 | L37: 1992 | M37: 1997 | N37: 2002 | O37: 2007 | P37: 2010 | Q37: 2011 | R37: 2012 | S37: 2013 | T37: 2014 | U37: 2015 | V37: 2016 | W37: 2017 | X37: 2018 | Y37: 2019 | Z37: 0 | AA37: =Produktionsanlæg!#REF! ->  | AB37: =Produktionsanlæg!#REF! ->  | AC37: =Produktionsanlæg!#REF! ->  | AD37: =Produktionsanlæg!#REF! ->  | AE37: =Produktionsanlæg!#REF! ->  | AF37: =Produktionsanlæg!#REF! ->  | AG37: =Produktionsanlæg!#REF! ->  | AH37: =Produktionsanlæg!#REF! ->  | AI37: =Produktionsanlæg!#REF! ->  | AJ37: =Produktionsanlæg!#REF! ->  | AK37: =Produktionsanlæg!#REF! ->  | AL37: =Produktionsanlæg!#REF! ->  | AM37: =Produktionsanlæg!#REF! ->  | AN37: =Produktionsanlæg!#REF! ->  | AO37: =Produktionsanlæg!#REF! ->  | AP37: =Produktionsanlæg!#REF! ->  | AQ37: =Produktionsanlæg!#REF! ->  | AR37: =Produktionsanlæg!#REF! ->  | AS37: =Produktionsanlæg!#REF! ->  | AT37: =Produktionsanlæg!#REF! ->  | AU37: =Produktionsanlæg!#REF! ->  | AV37: =Produktionsanlæg!#REF! ->  | AX37: =SUM(#REF!) ->  | AY37: =IF($D37>=AY$2,$AA37/($D37-2009),0)+IF($E37>=AY$2,$AB37/($E37-2009),0)+IF($F37>=AY$2,$AC37/($F37-2009),0)+IF($G37>=AY$2,$AD37/($G37-2009),0)+IF($H37>=AY$2,$AE37/($H37-2009),0)+IF($I37>=AY$2,$AF37/($I37-2009),0)+IF($J37>=AY$2,$AG37/($J37-2009),0)+IF($K37>=AY$2,$AH37/($K37-2009),0)+IF($L37>=AY$2,$AI37/($L37-2009),0)+IF($M37>=AY$2,$AJ37/($M37-2009),0)+IF($N37>=AY$2,$AK37/($N37-2009),0)+IF($O37>=AY$2,$AL37/($O37-2009),0)+IF($P37>=AY$2,$AM37/($P37-2009),0)+IF($Q37>=AY$2,$AN37/($Q37-2009),0)+IF($R37>=AY$2,$AO37/($R37-2009),0)+IF($S37>=AY$2,$AP37/($S37-2009),0)+IF($T37>=AY$2,$AQ37/($T37-2009),0)+IF($U37>=AY$2,$AR37/($U37-2009),0)+IF($V37>=AY$2,$AS37/($V37-2009),0)+IF($W37>=AY$2,$AT37/($W37-2009),0)+IF($X37>=AY$2,$AU37/($X37-2009),0)+IF($Y37>=AY$2,$AV37/($Y37-2009),0) ->  | BI37: 0 | BJ37: 0 | BK37: 0 | BL37: 0 | BM37: 0 | BN37: 0 | BO37: 0 | BP37: 0 | BQ37: 0 | BR37: 0 | BS37: 0 | BT37: 0 | BU37: 0 | BV37: 0 | BW37: 0 | BX37: 0 | BY37: 0 | BZ37: 0 | CA37: 0 | CB37: 0 | CC37: 0 | CD37: 0 | CE37: 0 | CF37: 0 | CG37: 0 | CH37: 0 | CI37: 0 | CJ37: 0 | CK37: 0 | CL37: 0 | CM37: 0 | CN37: 0 | CO37: 0 | CP37: 0 | CQ37: 0 | CR37: 0 | CS37: 0 | CT37: 0 | CU37: 0 | CV37: 0 | CW37: 0 | CX37: 0 | CY37: 0 | CZ37: 0 | DA37: 0 | DB37: 0 | DC37: 0 | DD37: 0 | DE37: 0 | DF37: 0 | DG37: 0 | DH37: 0 | DI37: 0 | DJ37: 0 | DK37: 0 | DL37: 0 | DM37: 0 | DN37: 0 | DO37: 0 | DP37: 0 | DQ37: 0 | DR37: 0 | DS37: 0 | DT37: 0 | DU37: 0 | DV37: 0 | DW37: 0 | DX37: 0 | DY37: 0 | DZ37: 0 | EA37: 0 | EB37: 0 | EC37: 0 | ED37: 0 | EE37: 0 | EF37: 0 | EG37: 0 | EH37: 0 | EI37: 0 | EJ37: 0 | EK37: 0 | EL37: 0 | EM37: 0 | EN37: 0 | EO37: 0 | EP37: 0 | EQ37: 0 | ER37: 0 | ES37: 0 | ET37: 0 | EU37: 0
A38: =+Genanskaffelsespriser!$B$29 -> Rådnetanke, slam, Konstruktioner | B38: PE | C38: =Genanskaffelsespriser!$E$29 -> 60 | D38: =D$3+$C38+Produktionsanlæg!#REF! ->  | E38: =E$3+$C38+Produktionsanlæg!#REF! ->  | F38: =F$3+$C38+Produktionsanlæg!#REF! ->  | G38: =G$3+$C38+Produktionsanlæg!#REF! ->  | H38: =H$3+$C38+Produktionsanlæg!#REF! ->  | I38: =I$3+$C38+Produktionsanlæg!#REF! ->  | J38: =J$3+$C38+Produktionsanlæg!#REF! ->  | K38: =K$3+$C38+Produktionsanlæg!#REF! ->  | L38: =L$3+$C38+Produktionsanlæg!#REF! ->  | M38: =M$3+$C38+Produktionsanlæg!#REF! ->  | N38: =N$3+$C38+Produktionsanlæg!#REF! ->  | O38: =O$3+$C38+Produktionsanlæg!#REF! ->  | P38: =P$3+$C38+Produktionsanlæg!#REF! ->  | Q38: =Q$3+$C38+Produktionsanlæg!#REF! ->  | R38: =R$3+$C38+Produktionsanlæg!#REF! ->  | S38: =S$3+$C38+Produktionsanlæg!#REF! ->  | T38: =T$3+$C38+Produktionsanlæg!#REF! ->  | U38: =U$3+$C38+Produktionsanlæg!#REF! ->  | V38: =V$3+$C38+Produktionsanlæg!#REF! ->  | W38: =W$3+$C38+Produktionsanlæg!#REF! ->  | X38: =X$3+$C38+Produktionsanlæg!#REF! ->  | Y38: =Y$3+$C38+Produktionsanlæg!#REF! ->  | Z38: 0 | AA38: =Produktionsanlæg!#REF! ->  | AB38: =Produktionsanlæg!#REF! ->  | AC38: =Produktionsanlæg!#REF! ->  | AD38: =Produktionsanlæg!#REF! ->  | AE38: =Produktionsanlæg!#REF! ->  | AF38: =Produktionsanlæg!#REF! ->  | AG38: =Produktionsanlæg!#REF! ->  | AH38: =Produktionsanlæg!#REF! ->  | AI38: =Produktionsanlæg!#REF! ->  | AJ38: =Produktionsanlæg!#REF! ->  | AK38: =Produktionsanlæg!#REF! ->  | AL38: =Produktionsanlæg!#REF! ->  | AM38: =Produktionsanlæg!#REF! ->  | AN38: =Produktionsanlæg!#REF! ->  | AO38: =Produktionsanlæg!#REF! ->  | AP38: =Produktionsanlæg!#REF! ->  | AQ38: =Produktionsanlæg!#REF! ->  | AR38: =Produktionsanlæg!#REF! ->  | AS38: =Produktionsanlæg!#REF! ->  | AT38: =Produktionsanlæg!#REF! ->  | AU38: =Produktionsanlæg!#REF! ->  | AV38: =Produktionsanlæg!#REF! ->  | AX38: =SUM(#REF!) ->  | AY38: =IF($D38>=AY$2,$AA38/($D38-2009),0)+IF($E38>=AY$2,$AB38/($E38-2009),0)+IF($F38>=AY$2,$AC38/($F38-2009),0)+IF($G38>=AY$2,$AD38/($G38-2009),0)+IF($H38>=AY$2,$AE38/($H38-2009),0)+IF($I38>=AY$2,$AF38/($I38-2009),0)+IF($J38>=AY$2,$AG38/($J38-2009),0)+IF($K38>=AY$2,$AH38/($K38-2009),0)+IF($L38>=AY$2,$AI38/($L38-2009),0)+IF($M38>=AY$2,$AJ38/($M38-2009),0)+IF($N38>=AY$2,$AK38/($N38-2009),0)+IF($O38>=AY$2,$AL38/($O38-2009),0)+IF($P38>=AY$2,$AM38/($P38-2009),0)+IF($Q38>=AY$2,$AN38/($Q38-2009),0)+IF($R38>=AY$2,$AO38/($R38-2009),0)+IF($S38>=AY$2,$AP38/($S38-2009),0)+IF($T38>=AY$2,$AQ38/($T38-2009),0)+IF($U38>=AY$2,$AR38/($U38-2009),0)+IF($V38>=AY$2,$AS38/($V38-2009),0)+IF($W38>=AY$2,$AT38/($W38-2009),0)+IF($X38>=AY$2,$AU38/($X38-2009),0)+IF($Y38>=AY$2,$AV38/($Y38-2009),0) -> 
A39: Levetidsforlængelse | B39: år | C39: - | Z39: 0
A40: =+Genanskaffelsespriser!$B$30 -> Rådnetanke, slam, Mek/EL | B40: PE | C40: =Genanskaffelsespriser!$E$30 -> 20 | D40: =D$3+$C40 -> 1925 | E40: =E$3+$C40 -> 1935 | F40: 1945 | G40: 1955 | H40: 1965 | I40: 1975 | J40: 1985 | K40: 1995 | L40: 2002 | M40: 2007 | N40: 2012 | O40: 2017 | P40: 2020 | Q40: 2021 | R40: 2022 | S40: 2023 | T40: 2024 | U40: 2025 | V40: 2026 | W40: 2027 | X40: 2028 | Y40: 2029 | Z40: 0 | AA40: =Produktionsanlæg!#REF! ->  | AB40: =Produktionsanlæg!#REF! ->  | AC40: =Produktionsanlæg!#REF! ->  | AD40: =Produktionsanlæg!#REF! ->  | AE40: =Produktionsanlæg!#REF! ->  | AF40: =Produktionsanlæg!#REF! ->  | AG40: =Produktionsanlæg!#REF! ->  | AH40: =Produktionsanlæg!#REF! ->  | AI40: =Produktionsanlæg!#REF! ->  | AJ40: =Produktionsanlæg!#REF! ->  | AK40: =Produktionsanlæg!#REF! ->  | AL40: =Produktionsanlæg!#REF! ->  | AM40: =Produktionsanlæg!#REF! ->  | AN40: =Produktionsanlæg!#REF! ->  | AO40: =Produktionsanlæg!#REF! ->  | AP40: =Produktionsanlæg!#REF! ->  | AQ40: =Produktionsanlæg!#REF! ->  | AR40: =Produktionsanlæg!#REF! ->  | AS40: =Produktionsanlæg!#REF! ->  | AT40: =Produktionsanlæg!#REF! ->  | AU40: =Produktionsanlæg!#REF! ->  | AV40: =Produktionsanlæg!#REF! ->  | AX40: =SUM(#REF!) ->  | AY40: =IF($D40>=AY$2,$AA40/($D40-2009),0)+IF($E40>=AY$2,$AB40/($E40-2009),0)+IF($F40>=AY$2,$AC40/($F40-2009),0)+IF($G40>=AY$2,$AD40/($G40-2009),0)+IF($H40>=AY$2,$AE40/($H40-2009),0)+IF($I40>=AY$2,$AF40/($I40-2009),0)+IF($J40>=AY$2,$AG40/($J40-2009),0)+IF($K40>=AY$2,$AH40/($K40-2009),0)+IF($L40>=AY$2,$AI40/($L40-2009),0)+IF($M40>=AY$2,$AJ40/($M40-2009),0)+IF($N40>=AY$2,$AK40/($N40-2009),0)+IF($O40>=AY$2,$AL40/($O40-2009),0)+IF($P40>=AY$2,$AM40/($P40-2009),0)+IF($Q40>=AY$2,$AN40/($Q40-2009),0)+IF($R40>=AY$2,$AO40/($R40-2009),0)+IF($S40>=AY$2,$AP40/($S40-2009),0)+IF($T40>=AY$2,$AQ40/($T40-2009),0)+IF($U40>=AY$2,$AR40/($U40-2009),0)+IF($V40>=AY$2,$AS40/($V40-2009),0)+IF($W40>=AY$2,$AT40/($W40-2009),0)+IF($X40>=AY$2,$AU40/($X40-2009),0)+IF($Y40>=AY$2,$AV40/($Y40-2009),0) ->  | AZ40: =IF($D40>=AZ$2,$AA40/($D40-2009),0)+IF($E40>=AZ$2,$AB40/($E40-2009),0)+IF($F40>=AZ$2,$AC40/($F40-2009),0)+IF($G40>=AZ$2,$AD40/($G40-2009),0)+IF($H40>=AZ$2,$AE40/($H40-2009),0)+IF($I40>=AZ$2,$AF40/($I40-2009),0)+IF($J40>=AZ$2,$AG40/($J40-2009),0)+IF($K40>=AZ$2,$AH40/($K40-2009),0)+IF($L40>=AZ$2,$AI40/($L40-2009),0)+IF($M40>=AZ$2,$AJ40/($M40-2009),0)+IF($N40>=AZ$2,$AK40/($N40-2009),0)+IF($O40>=AZ$2,$AL40/($O40-2009),0)+IF($P40>=AZ$2,$AM40/($P40-2009),0)+IF($Q40>=AZ$2,$AN40/($Q40-2009),0)+IF($R40>=AZ$2,$AO40/($R40-2009),0)+IF($S40>=AZ$2,$AP40/($S40-2009),0)+IF($T40>=AZ$2,$AQ40/($T40-2009),0)+IF($U40>=AZ$2,$AR40/($U40-2009),0)+IF($V40>=AZ$2,$AS40/($V40-2009),0)+IF($W40>=AZ$2,$AT40/($W40-2009),0)+IF($X40>=AZ$2,$AU40/($X40-2009),0)+IF($Y40>=AZ$2,$AV40/($Y40-2009),0) ->  | BS40: 0 | BT40: 0 | BU40: 0 | BV40: 0 | BW40: 0 | BX40: 0 | BY40: 0 | BZ40: 0 | CA40: 0 | CB40: 0 | CC40: 0 | CD40: 0 | CE40: 0 | CF40: 0 | CG40: 0 | CH40: 0 | CI40: 0 | CJ40: 0 | CK40: 0 | CL40: 0 | CM40: 0 | CN40: 0 | CO40: 0 | CP40: 0 | CQ40: 0 | CR40: 0 | CS40: 0 | CT40: 0 | CU40: 0 | CV40: 0 | CW40: 0 | CX40: 0 | CY40: 0 | CZ40: 0 | DA40: 0 | DB40: 0 | DC40: 0 | DD40: 0 | DE40: 0 | DF40: 0 | DG40: 0 | DH40: 0 | DI40: 0 | DJ40: 0 | DK40: 0 | DL40: =IF($D40>=DL$2,$AA40/($D40-2009),0)+IF($E40>=DL$2,$AB40/($E40-2009),0)+IF($F40>=DL$2,$AC40/($F40-2009),0)+IF($G40>=DL$2,$AD40/($G40-2009),0)+IF($H40>=DL$2,$AE40/($H40-2009),0)+IF($I40>=DL$2,$AF40/($I40-2009),0)+IF($J40>=DL$2,$AG40/($J40-2009),0)+IF($K40>=DL$2,$AH40/($K40-2009),0)+IF($L40>=DL$2,$AI40/($L40-2009),0)+IF($M40>=DL$2,$AJ40/($M40-2009),0)+IF($N40>=DL$2,$AK40/($N40-2009),0)+IF($O40>=DL$2,$AL40/($O40-2009),0)+IF($P40>=DL$2,$AM40/($P40-2009),0)+IF($Q40>=DL$2,$AN40/($Q40-2009),0)+IF($R40>=DL$2,$AO40/($R40-2009),0)+IF($S40>=DL$2,$AP40/($S40-2009),0)+IF($T40>=DL$2,$AQ40/($T40-2009),0)+IF($U40>=DL$2,$AR40/($U40-2009),0)+IF($V40>=DL$2,$AS40/($V40-2009),0)+IF($W40>=DL$2,$AT40/($W40-2009),0)+IF($X40>=DL$2,$AU40/($X40-2009),0)+IF($Y40>=DL$2,$AV40/($Y40-2009),0) -> 0 | DM40: 0 | DN40: 0 | DO40: 0 | DP40: 0 | DQ40: 0 | DR40: 0 | DS40: 0 | DT40: 0 | DU40: 0 | DV40: 0 | DW40: 0 | DX40: 0 | DY40: 0 | DZ40: 0 | EA40: 0 | EB40: 0 | EC40: 0 | ED40: 0 | EE40: 0 | EF40: 0 | EG40: 0 | EH40: 0 | EI40: 0 | EJ40: 0 | EK40: 0 | EL40: 0 | EM40: 0 | EN40: 0 | EO40: 0 | EP40: 0 | EQ40: 0 | ER40: 0 | ES40: 0 | ET40: 0 | EU40: 0
A41: =+Genanskaffelsespriser!$B$31 -> Rådnetanke, slam, SRO | B41: PE | C41: =Genanskaffelsespriser!$E$31 -> 10 | D41: =D$3+$C41 -> 1915 | E41: 1925 | F41: 1935 | G41: 1945 | H41: 1955 | I41: 1965 | J41: 1975 | K41: 1985 | L41: 1992 | M41: 1997 | N41: 2002 | O41: 2007 | P41: 2010 | Q41: 2011 | R41: 2012 | S41: 2013 | T41: 2014 | U41: 2015 | V41: 2016 | W41: 2017 | X41: 2018 | Y41: 2019 | Z41: 0 | AA41: =Produktionsanlæg!#REF! ->  | AB41: =Produktionsanlæg!#REF! ->  | AC41: =Produktionsanlæg!#REF! ->  | AD41: =Produktionsanlæg!#REF! ->  | AE41: =Produktionsanlæg!#REF! ->  | AF41: =Produktionsanlæg!#REF! ->  | AG41: =Produktionsanlæg!#REF! ->  | AH41: =Produktionsanlæg!#REF! ->  | AI41: =Produktionsanlæg!#REF! ->  | AJ41: =Produktionsanlæg!#REF! ->  | AK41: =Produktionsanlæg!#REF! ->  | AL41: =Produktionsanlæg!#REF! ->  | AM41: =Produktionsanlæg!#REF! ->  | AN41: =Produktionsanlæg!#REF! ->  | AO41: =Produktionsanlæg!#REF! ->  | AP41: =Produktionsanlæg!#REF! ->  | AQ41: =Produktionsanlæg!#REF! ->  | AR41: =Produktionsanlæg!#REF! ->  | AS41: =Produktionsanlæg!#REF! ->  | AT41: =Produktionsanlæg!#REF! ->  | AU41: =Produktionsanlæg!#REF! ->  | AV41: =Produktionsanlæg!#REF! ->  | AX41: =SUM(#REF!) ->  | AY41: =IF($D41>=AY$2,$AA41/($D41-2009),0)+IF($E41>=AY$2,$AB41/($E41-2009),0)+IF($F41>=AY$2,$AC41/($F41-2009),0)+IF($G41>=AY$2,$AD41/($G41-2009),0)+IF($H41>=AY$2,$AE41/($H41-2009),0)+IF($I41>=AY$2,$AF41/($I41-2009),0)+IF($J41>=AY$2,$AG41/($J41-2009),0)+IF($K41>=AY$2,$AH41/($K41-2009),0)+IF($L41>=AY$2,$AI41/($L41-2009),0)+IF($M41>=AY$2,$AJ41/($M41-2009),0)+IF($N41>=AY$2,$AK41/($N41-2009),0)+IF($O41>=AY$2,$AL41/($O41-2009),0)+IF($P41>=AY$2,$AM41/($P41-2009),0)+IF($Q41>=AY$2,$AN41/($Q41-2009),0)+IF($R41>=AY$2,$AO41/($R41-2009),0)+IF($S41>=AY$2,$AP41/($S41-2009),0)+IF($T41>=AY$2,$AQ41/($T41-2009),0)+IF($U41>=AY$2,$AR41/($U41-2009),0)+IF($V41>=AY$2,$AS41/($V41-2009),0)+IF($W41>=AY$2,$AT41/($W41-2009),0)+IF($X41>=AY$2,$AU41/($X41-2009),0)+IF($Y41>=AY$2,$AV41/($Y41-2009),0) ->  | BI41: 0 | BJ41: 0 | BK41: 0 | BL41: 0 | BM41: 0 | BN41: 0 | BO41: 0 | BP41: 0 | BQ41: 0 | BR41: 0 | BS41: 0 | BT41: 0 | BU41: 0 | BV41: 0 | BW41: 0 | BX41: 0 | BY41: 0 | BZ41: 0 | CA41: 0 | CB41: 0 | CC41: 0 | CD41: 0 | CE41: 0 | CF41: 0 | CG41: 0 | CH41: 0 | CI41: 0 | CJ41: 0 | CK41: 0 | CL41: 0 | CM41: 0 | CN41: 0 | CO41: 0 | CP41: 0 | CQ41: 0 | CR41: 0 | CS41: 0 | CT41: 0 | CU41: 0 | CV41: 0 | CW41: 0 | CX41: 0 | CY41: 0 | CZ41: 0 | DA41: 0 | DB41: 0 | DC41: 0 | DD41: 0 | DE41: 0 | DF41: 0 | DG41: 0 | DH41: 0 | DI41: 0 | DJ41: 0 | DK41: 0 | DL41: 0 | DM41: 0 | DN41: 0 | DO41: 0 | DP41: 0 | DQ41: 0 | DR41: 0 | DS41: 0 | DT41: 0 | DU41: 0 | DV41: 0 | DW41: 0 | DX41: 0 | DY41: 0 | DZ41: 0 | EA41: 0 | EB41: 0 | EC41: 0 | ED41: 0 | EE41: 0 | EF41: 0 | EG41: 0 | EH41: 0 | EI41: 0 | EJ41: 0 | EK41: 0 | EL41: 0 | EM41: 0 | EN41: 0 | EO41: 0 | EP41: 0 | EQ41: 0 | ER41: 0 | ES41: 0 | ET41: 0 | EU41: 0
A42: =+Genanskaffelsespriser!$B$32 -> Gasdisponering, Konstruktioner | B42: PE | C42: =Genanskaffelsespriser!$E$32 -> 60 | D42: =D$3+$C42+Produktionsanlæg!#REF! ->  | E42: =E$3+$C42+Produktionsanlæg!#REF! ->  | F42: =F$3+$C42+Produktionsanlæg!#REF! ->  | G42: =G$3+$C42+Produktionsanlæg!#REF! ->  | H42: =H$3+$C42+Produktionsanlæg!#REF! ->  | I42: =I$3+$C42+Produktionsanlæg!#REF! ->  | J42: =J$3+$C42+Produktionsanlæg!#REF! ->  | K42: =K$3+$C42+Produktionsanlæg!#REF! ->  | L42: =L$3+$C42+Produktionsanlæg!#REF! ->  | M42: =M$3+$C42+Produktionsanlæg!#REF! ->  | N42: =N$3+$C42+Produktionsanlæg!#REF! ->  | O42: =O$3+$C42+Produktionsanlæg!#REF! ->  | P42: =P$3+$C42+Produktionsanlæg!#REF! ->  | Q42: =Q$3+$C42+Produktionsanlæg!#REF! ->  | R42: =R$3+$C42+Produktionsanlæg!#REF! ->  | S42: =S$3+$C42+Produktionsanlæg!#REF! ->  | T42: =T$3+$C42+Produktionsanlæg!#REF! ->  | U42: =U$3+$C42+Produktionsanlæg!#REF! ->  | V42: =V$3+$C42+Produktionsanlæg!#REF! ->  | W42: =W$3+$C42+Produktionsanlæg!#REF! ->  | X42: =X$3+$C42+Produktionsanlæg!#REF! ->  | Y42: =Y$3+$C42+Produktionsanlæg!#REF! ->  | Z42: 0 | AA42: =Produktionsanlæg!#REF! ->  | AB42: =Produktionsanlæg!#REF! ->  | AC42: =Produktionsanlæg!#REF! ->  | AD42: =Produktionsanlæg!#REF! ->  | AE42: =Produktionsanlæg!#REF! ->  | AF42: =Produktionsanlæg!#REF! ->  | AG42: =Produktionsanlæg!#REF! ->  | AH42: =Produktionsanlæg!#REF! ->  | AI42: =Produktionsanlæg!#REF! ->  | AJ42: =Produktionsanlæg!#REF! ->  | AK42: =Produktionsanlæg!#REF! ->  | AL42: =Produktionsanlæg!#REF! ->  | AM42: =Produktionsanlæg!#REF! ->  | AN42: =Produktionsanlæg!#REF! ->  | AO42: =Produktionsanlæg!#REF! ->  | AP42: =Produktionsanlæg!#REF! ->  | AQ42: =Produktionsanlæg!#REF! ->  | AR42: =Produktionsanlæg!#REF! ->  | AS42: =Produktionsanlæg!#REF! ->  | AT42: =Produktionsanlæg!#REF! ->  | AU42: =Produktionsanlæg!#REF! ->  | AV42: =Produktionsanlæg!#REF! ->  | AX42: =SUM(#REF!) ->  | AY42: =IF($D42>=AY$2,$AA42/($D42-2009),0)+IF($E42>=AY$2,$AB42/($E42-2009),0)+IF($F42>=AY$2,$AC42/($F42-2009),0)+IF($G42>=AY$2,$AD42/($G42-2009),0)+IF($H42>=AY$2,$AE42/($H42-2009),0)+IF($I42>=AY$2,$AF42/($I42-2009),0)+IF($J42>=AY$2,$AG42/($J42-2009),0)+IF($K42>=AY$2,$AH42/($K42-2009),0)+IF($L42>=AY$2,$AI42/($L42-2009),0)+IF($M42>=AY$2,$AJ42/($M42-2009),0)+IF($N42>=AY$2,$AK42/($N42-2009),0)+IF($O42>=AY$2,$AL42/($O42-2009),0)+IF($P42>=AY$2,$AM42/($P42-2009),0)+IF($Q42>=AY$2,$AN42/($Q42-2009),0)+IF($R42>=AY$2,$AO42/($R42-2009),0)+IF($S42>=AY$2,$AP42/($S42-2009),0)+IF($T42>=AY$2,$AQ42/($T42-2009),0)+IF($U42>=AY$2,$AR42/($U42-2009),0)+IF($V42>=AY$2,$AS42/($V42-2009),0)+IF($W42>=AY$2,$AT42/($W42-2009),0)+IF($X42>=AY$2,$AU42/($X42-2009),0)+IF($Y42>=AY$2,$AV42/($Y42-2009),0) -> 
A43: Levetidsforlængelse | B43: år | C43: - | Z43: 0
A44: =+Genanskaffelsespriser!$B$33 -> Gasdisponering, Mek/EL | B44: PE | C44: =Genanskaffelsespriser!$E$33 -> 20 | D44: =D$3+$C44 -> 1925 | E44: =E$3+$C44 -> 1935 | F44: 1945 | G44: 1955 | H44: 1965 | I44: 1975 | J44: 1985 | K44: 1995 | L44: 2002 | M44: 2007 | N44: 2012 | O44: 2017 | P44: 2020 | Q44: 2021 | R44: 2022 | S44: 2023 | T44: 2024 | U44: 2025 | V44: 2026 | W44: 2027 | X44: 2028 | Y44: 2029 | Z44: 0 | AA44: =Produktionsanlæg!#REF! ->  | AB44: =Produktionsanlæg!#REF! ->  | AC44: =Produktionsanlæg!#REF! ->  | AD44: =Produktionsanlæg!#REF! ->  | AE44: =Produktionsanlæg!#REF! ->  | AF44: =Produktionsanlæg!#REF! ->  | AG44: =Produktionsanlæg!#REF! ->  | AH44: =Produktionsanlæg!#REF! ->  | AI44: =Produktionsanlæg!#REF! ->  | AJ44: =Produktionsanlæg!#REF! ->  | AK44: =Produktionsanlæg!#REF! ->  | AL44: =Produktionsanlæg!#REF! ->  | AM44: =Produktionsanlæg!#REF! ->  | AN44: =Produktionsanlæg!#REF! ->  | AO44: =Produktionsanlæg!#REF! ->  | AP44: =Produktionsanlæg!#REF! ->  | AQ44: =Produktionsanlæg!#REF! ->  | AR44: =Produktionsanlæg!#REF! ->  | AS44: =Produktionsanlæg!#REF! ->  | AT44: =Produktionsanlæg!#REF! ->  | AU44: =Produktionsanlæg!#REF! ->  | AV44: =Produktionsanlæg!#REF! ->  | AX44: =SUM(#REF!) ->  | AY44: =IF($D44>=AY$2,$AA44/($D44-2009),0)+IF($E44>=AY$2,$AB44/($E44-2009),0)+IF($F44>=AY$2,$AC44/($F44-2009),0)+IF($G44>=AY$2,$AD44/($G44-2009),0)+IF($H44>=AY$2,$AE44/($H44-2009),0)+IF($I44>=AY$2,$AF44/($I44-2009),0)+IF($J44>=AY$2,$AG44/($J44-2009),0)+IF($K44>=AY$2,$AH44/($K44-2009),0)+IF($L44>=AY$2,$AI44/($L44-2009),0)+IF($M44>=AY$2,$AJ44/($M44-2009),0)+IF($N44>=AY$2,$AK44/($N44-2009),0)+IF($O44>=AY$2,$AL44/($O44-2009),0)+IF($P44>=AY$2,$AM44/($P44-2009),0)+IF($Q44>=AY$2,$AN44/($Q44-2009),0)+IF($R44>=AY$2,$AO44/($R44-2009),0)+IF($S44>=AY$2,$AP44/($S44-2009),0)+IF($T44>=AY$2,$AQ44/($T44-2009),0)+IF($U44>=AY$2,$AR44/($U44-2009),0)+IF($V44>=AY$2,$AS44/($V44-2009),0)+IF($W44>=AY$2,$AT44/($W44-2009),0)+IF($X44>=AY$2,$AU44/($X44-2009),0)+IF($Y44>=AY$2,$AV44/($Y44-2009),0) ->  | AZ44: =IF($D44>=AZ$2,$AA44/($D44-2009),0)+IF($E44>=AZ$2,$AB44/($E44-2009),0)+IF($F44>=AZ$2,$AC44/($F44-2009),0)+IF($G44>=AZ$2,$AD44/($G44-2009),0)+IF($H44>=AZ$2,$AE44/($H44-2009),0)+IF($I44>=AZ$2,$AF44/($I44-2009),0)+IF($J44>=AZ$2,$AG44/($J44-2009),0)+IF($K44>=AZ$2,$AH44/($K44-2009),0)+IF($L44>=AZ$2,$AI44/($L44-2009),0)+IF($M44>=AZ$2,$AJ44/($M44-2009),0)+IF($N44>=AZ$2,$AK44/($N44-2009),0)+IF($O44>=AZ$2,$AL44/($O44-2009),0)+IF($P44>=AZ$2,$AM44/($P44-2009),0)+IF($Q44>=AZ$2,$AN44/($Q44-2009),0)+IF($R44>=AZ$2,$AO44/($R44-2009),0)+IF($S44>=AZ$2,$AP44/($S44-2009),0)+IF($T44>=AZ$2,$AQ44/($T44-2009),0)+IF($U44>=AZ$2,$AR44/($U44-2009),0)+IF($V44>=AZ$2,$AS44/($V44-2009),0)+IF($W44>=AZ$2,$AT44/($W44-2009),0)+IF($X44>=AZ$2,$AU44/($X44-2009),0)+IF($Y44>=AZ$2,$AV44/($Y44-2009),0) ->  | BS44: 0 | BT44: 0 | BU44: 0 | BV44: 0 | BW44: 0 | BX44: 0 | BY44: 0 | BZ44: 0 | CA44: 0 | CB44: 0 | CC44: 0 | CD44: 0 | CE44: 0 | CF44: 0 | CG44: 0 | CH44: 0 | CI44: 0 | CJ44: 0 | CK44: 0 | CL44: 0 | CM44: 0 | CN44: 0 | CO44: 0 | CP44: 0 | CQ44: 0 | CR44: 0 | CS44: 0 | CT44: 0 | CU44: 0 | CV44: 0 | CW44: 0 | CX44: 0 | CY44: 0 | CZ44: 0 | DA44: 0 | DB44: 0 | DC44: 0 | DD44: 0 | DE44: 0 | DF44: 0 | DG44: 0 | DH44: 0 | DI44: 0 | DJ44: 0 | DK44: 0 | DL44: =IF($D44>=DL$2,$AA44/($D44-2009),0)+IF($E44>=DL$2,$AB44/($E44-2009),0)+IF($F44>=DL$2,$AC44/($F44-2009),0)+IF($G44>=DL$2,$AD44/($G44-2009),0)+IF($H44>=DL$2,$AE44/($H44-2009),0)+IF($I44>=DL$2,$AF44/($I44-2009),0)+IF($J44>=DL$2,$AG44/($J44-2009),0)+IF($K44>=DL$2,$AH44/($K44-2009),0)+IF($L44>=DL$2,$AI44/($L44-2009),0)+IF($M44>=DL$2,$AJ44/($M44-2009),0)+IF($N44>=DL$2,$AK44/($N44-2009),0)+IF($O44>=DL$2,$AL44/($O44-2009),0)+IF($P44>=DL$2,$AM44/($P44-2009),0)+IF($Q44>=DL$2,$AN44/($Q44-2009),0)+IF($R44>=DL$2,$AO44/($R44-2009),0)+IF($S44>=DL$2,$AP44/($S44-2009),0)+IF($T44>=DL$2,$AQ44/($T44-2009),0)+IF($U44>=DL$2,$AR44/($U44-2009),0)+IF($V44>=DL$2,$AS44/($V44-2009),0)+IF($W44>=DL$2,$AT44/($W44-2009),0)+IF($X44>=DL$2,$AU44/($X44-2009),0)+IF($Y44>=DL$2,$AV44/($Y44-2009),0) -> 0 | DM44: 0 | DN44: 0 | DO44: 0 | DP44: 0 | DQ44: 0 | DR44: 0 | DS44: 0 | DT44: 0 | DU44: 0 | DV44: 0 | DW44: 0 | DX44: 0 | DY44: 0 | DZ44: 0 | EA44: 0 | EB44: 0 | EC44: 0 | ED44: 0 | EE44: 0 | EF44: 0 | EG44: 0 | EH44: 0 | EI44: 0 | EJ44: 0 | EK44: 0 | EL44: 0 | EM44: 0 | EN44: 0 | EO44: 0 | EP44: 0 | EQ44: 0 | ER44: 0 | ES44: 0 | ET44: 0 | EU44: 0
A45: =+Genanskaffelsespriser!$B$34 -> Gasdisponering, SRO | B45: PE | C45: =Genanskaffelsespriser!$E$34 -> 10 | D45: =D$3+$C45 -> 1915 | E45: 1925 | F45: 1935 | G45: 1945 | H45: 1955 | I45: 1965 | J45: 1975 | K45: 1985 | L45: 1992 | M45: 1997 | N45: 2002 | O45: 2007 | P45: 2010 | Q45: 2011 | R45: 2012 | S45: 2013 | T45: 2014 | U45: 2015 | V45: 2016 | W45: 2017 | X45: 2018 | Y45: 2019 | Z45: 0 | AA45: =Produktionsanlæg!#REF! ->  | AB45: =Produktionsanlæg!#REF! ->  | AC45: =Produktionsanlæg!#REF! ->  | AD45: =Produktionsanlæg!#REF! ->  | AE45: =Produktionsanlæg!#REF! ->  | AF45: =Produktionsanlæg!#REF! ->  | AG45: =Produktionsanlæg!#REF! ->  | AH45: =Produktionsanlæg!#REF! ->  | AI45: =Produktionsanlæg!#REF! ->  | AJ45: =Produktionsanlæg!#REF! ->  | AK45: =Produktionsanlæg!#REF! ->  | AL45: =Produktionsanlæg!#REF! ->  | AM45: =Produktionsanlæg!#REF! ->  | AN45: =Produktionsanlæg!#REF! ->  | AO45: =Produktionsanlæg!#REF! ->  | AP45: =Produktionsanlæg!#REF! ->  | AQ45: =Produktionsanlæg!#REF! ->  | AR45: =Produktionsanlæg!#REF! ->  | AS45: =Produktionsanlæg!#REF! ->  | AT45: =Produktionsanlæg!#REF! ->  | AU45: =Produktionsanlæg!#REF! ->  | AV45: =Produktionsanlæg!#REF! ->  | AX45: =SUM(#REF!) ->  | AY45: =IF($D45>=AY$2,$AA45/($D45-2009),0)+IF($E45>=AY$2,$AB45/($E45-2009),0)+IF($F45>=AY$2,$AC45/($F45-2009),0)+IF($G45>=AY$2,$AD45/($G45-2009),0)+IF($H45>=AY$2,$AE45/($H45-2009),0)+IF($I45>=AY$2,$AF45/($I45-2009),0)+IF($J45>=AY$2,$AG45/($J45-2009),0)+IF($K45>=AY$2,$AH45/($K45-2009),0)+IF($L45>=AY$2,$AI45/($L45-2009),0)+IF($M45>=AY$2,$AJ45/($M45-2009),0)+IF($N45>=AY$2,$AK45/($N45-2009),0)+IF($O45>=AY$2,$AL45/($O45-2009),0)+IF($P45>=AY$2,$AM45/($P45-2009),0)+IF($Q45>=AY$2,$AN45/($Q45-2009),0)+IF($R45>=AY$2,$AO45/($R45-2009),0)+IF($S45>=AY$2,$AP45/($S45-2009),0)+IF($T45>=AY$2,$AQ45/($T45-2009),0)+IF($U45>=AY$2,$AR45/($U45-2009),0)+IF($V45>=AY$2,$AS45/($V45-2009),0)+IF($W45>=AY$2,$AT45/($W45-2009),0)+IF($X45>=AY$2,$AU45/($X45-2009),0)+IF($Y45>=AY$2,$AV45/($Y45-2009),0) ->  | BI45: 0 | BJ45: 0 | BK45: 0 | BL45: 0 | BM45: 0 | BN45: 0 | BO45: 0 | BP45: 0 | BQ45: 0 | BR45: 0 | BS45: 0 | BT45: 0 | BU45: 0 | BV45: 0 | BW45: 0 | BX45: 0 | BY45: 0 | BZ45: 0 | CA45: 0 | CB45: 0 | CC45: 0 | CD45: 0 | CE45: 0 | CF45: 0 | CG45: 0 | CH45: 0 | CI45: 0 | CJ45: 0 | CK45: 0 | CL45: 0 | CM45: 0 | CN45: 0 | CO45: 0 | CP45: 0 | CQ45: 0 | CR45: 0 | CS45: 0 | CT45: 0 | CU45: 0 | CV45: 0 | CW45: 0 | CX45: 0 | CY45: 0 | CZ45: 0 | DA45: 0 | DB45: 0 | DC45: 0 | DD45: 0 | DE45: 0 | DF45: 0 | DG45: 0 | DH45: 0 | DI45: 0 | DJ45: 0 | DK45: 0 | DL45: 0 | DM45: 0 | DN45: 0 | DO45: 0 | DP45: 0 | DQ45: 0 | DR45: 0 | DS45: 0 | DT45: 0 | DU45: 0 | DV45: 0 | DW45: 0 | DX45: 0 | DY45: 0 | DZ45: 0 | EA45: 0 | EB45: 0 | EC45: 0 | ED45: 0 | EE45: 0 | EF45: 0 | EG45: 0 | EH45: 0 | EI45: 0 | EJ45: 0 | EK45: 0 | EL45: 0 | EM45: 0 | EN45: 0 | EO45: 0 | EP45: 0 | EQ45: 0 | ER45: 0 | ES45: 0 | ET45: 0 | EU45: 0
A46: =+Genanskaffelsespriser!$B$35 -> Gasdisponering - elproduktionsanlæg, Konstruktioner | B46: PE | C46: =Genanskaffelsespriser!$E$35 -> 60 | D46: =D$3+$C46+Produktionsanlæg!#REF! ->  | E46: =E$3+$C46+Produktionsanlæg!#REF! ->  | F46: =F$3+$C46+Produktionsanlæg!#REF! ->  | G46: =G$3+$C46+Produktionsanlæg!#REF! ->  | H46: =H$3+$C46+Produktionsanlæg!#REF! ->  | I46: =I$3+$C46+Produktionsanlæg!#REF! ->  | J46: =J$3+$C46+Produktionsanlæg!#REF! ->  | K46: =K$3+$C46+Produktionsanlæg!#REF! ->  | L46: =L$3+$C46+Produktionsanlæg!#REF! ->  | M46: =M$3+$C46+Produktionsanlæg!#REF! ->  | N46: =N$3+$C46+Produktionsanlæg!#REF! ->  | O46: =O$3+$C46+Produktionsanlæg!#REF! ->  | P46: =P$3+$C46+Produktionsanlæg!#REF! ->  | Q46: =Q$3+$C46+Produktionsanlæg!#REF! ->  | R46: =R$3+$C46+Produktionsanlæg!#REF! ->  | S46: =S$3+$C46+Produktionsanlæg!#REF! ->  | T46: =T$3+$C46+Produktionsanlæg!#REF! ->  | U46: =U$3+$C46+Produktionsanlæg!#REF! ->  | V46: =V$3+$C46+Produktionsanlæg!#REF! ->  | W46: =W$3+$C46+Produktionsanlæg!#REF! ->  | X46: =X$3+$C46+Produktionsanlæg!#REF! ->  | Y46: =Y$3+$C46+Produktionsanlæg!#REF! ->  | Z46: 0 | AA46: =Produktionsanlæg!#REF! ->  | AB46: =Produktionsanlæg!#REF! ->  | AC46: =Produktionsanlæg!#REF! ->  | AD46: =Produktionsanlæg!#REF! ->  | AE46: =Produktionsanlæg!#REF! ->  | AF46: =Produktionsanlæg!#REF! ->  | AG46: =Produktionsanlæg!#REF! ->  | AH46: =Produktionsanlæg!#REF! ->  | AI46: =Produktionsanlæg!#REF! ->  | AJ46: =Produktionsanlæg!#REF! ->  | AK46: =Produktionsanlæg!#REF! ->  | AL46: =Produktionsanlæg!#REF! ->  | AM46: =Produktionsanlæg!#REF! ->  | AN46: =Produktionsanlæg!#REF! ->  | AO46: =Produktionsanlæg!#REF! ->  | AP46: =Produktionsanlæg!#REF! ->  | AQ46: =Produktionsanlæg!#REF! ->  | AR46: =Produktionsanlæg!#REF! ->  | AS46: =Produktionsanlæg!#REF! ->  | AT46: =Produktionsanlæg!#REF! ->  | AU46: =Produktionsanlæg!#REF! ->  | AV46: =Produktionsanlæg!#REF! ->  | AX46: =SUM(#REF!) ->  | AY46: =IF($D46>=AY$2,$AA46/($D46-2009),0)+IF($E46>=AY$2,$AB46/($E46-2009),0)+IF($F46>=AY$2,$AC46/($F46-2009),0)+IF($G46>=AY$2,$AD46/($G46-2009),0)+IF($H46>=AY$2,$AE46/($H46-2009),0)+IF($I46>=AY$2,$AF46/($I46-2009),0)+IF($J46>=AY$2,$AG46/($J46-2009),0)+IF($K46>=AY$2,$AH46/($K46-2009),0)+IF($L46>=AY$2,$AI46/($L46-2009),0)+IF($M46>=AY$2,$AJ46/($M46-2009),0)+IF($N46>=AY$2,$AK46/($N46-2009),0)+IF($O46>=AY$2,$AL46/($O46-2009),0)+IF($P46>=AY$2,$AM46/($P46-2009),0)+IF($Q46>=AY$2,$AN46/($Q46-2009),0)+IF($R46>=AY$2,$AO46/($R46-2009),0)+IF($S46>=AY$2,$AP46/($S46-2009),0)+IF($T46>=AY$2,$AQ46/($T46-2009),0)+IF($U46>=AY$2,$AR46/($U46-2009),0)+IF($V46>=AY$2,$AS46/($V46-2009),0)+IF($W46>=AY$2,$AT46/($W46-2009),0)+IF($X46>=AY$2,$AU46/($X46-2009),0)+IF($Y46>=AY$2,$AV46/($Y46-2009),0) -> 
A47: Levetidsforlængelse | B47: år | C47: - | Z47: 0
A48: =+Genanskaffelsespriser!$B$36 -> Gasdisponering - elproduktionsanlæg, Mek/EL | B48: PE | C48: =Genanskaffelsespriser!$E$36 -> 20 | D48: =D$3+$C48 -> 1925 | E48: =E$3+$C48 -> 1935 | F48: 1945 | G48: 1955 | H48: 1965 | I48: 1975 | J48: 1985 | K48: 1995 | L48: 2002 | M48: 2007 | N48: 2012 | O48: 2017 | P48: 2020 | Q48: 2021 | R48: 2022 | S48: 2023 | T48: 2024 | U48: 2025 | V48: 2026 | W48: 2027 | X48: 2028 | Y48: 2029 | Z48: 0 | AA48: =Produktionsanlæg!#REF! ->  | AB48: =Produktionsanlæg!#REF! ->  | AC48: =Produktionsanlæg!#REF! ->  | AD48: =Produktionsanlæg!#REF! ->  | AE48: =Produktionsanlæg!#REF! ->  | AF48: =Produktionsanlæg!#REF! ->  | AG48: =Produktionsanlæg!#REF! ->  | AH48: =Produktionsanlæg!#REF! ->  | AI48: =Produktionsanlæg!#REF! ->  | AJ48: =Produktionsanlæg!#REF! ->  | AK48: =Produktionsanlæg!#REF! ->  | AL48: =Produktionsanlæg!#REF! ->  | AM48: =Produktionsanlæg!#REF! ->  | AN48: =Produktionsanlæg!#REF! ->  | AO48: =Produktionsanlæg!#REF! ->  | AP48: =Produktionsanlæg!#REF! ->  | AQ48: =Produktionsanlæg!#REF! ->  | AR48: =Produktionsanlæg!#REF! ->  | AS48: =Produktionsanlæg!#REF! ->  | AT48: =Produktionsanlæg!#REF! ->  | AU48: =Produktionsanlæg!#REF! ->  | AV48: =Produktionsanlæg!#REF! ->  | AX48: =SUM(#REF!) ->  | AY48: =IF($D48>=AY$2,$AA48/($D48-2009),0)+IF($E48>=AY$2,$AB48/($E48-2009),0)+IF($F48>=AY$2,$AC48/($F48-2009),0)+IF($G48>=AY$2,$AD48/($G48-2009),0)+IF($H48>=AY$2,$AE48/($H48-2009),0)+IF($I48>=AY$2,$AF48/($I48-2009),0)+IF($J48>=AY$2,$AG48/($J48-2009),0)+IF($K48>=AY$2,$AH48/($K48-2009),0)+IF($L48>=AY$2,$AI48/($L48-2009),0)+IF($M48>=AY$2,$AJ48/($M48-2009),0)+IF($N48>=AY$2,$AK48/($N48-2009),0)+IF($O48>=AY$2,$AL48/($O48-2009),0)+IF($P48>=AY$2,$AM48/($P48-2009),0)+IF($Q48>=AY$2,$AN48/($Q48-2009),0)+IF($R48>=AY$2,$AO48/($R48-2009),0)+IF($S48>=AY$2,$AP48/($S48-2009),0)+IF($T48>=AY$2,$AQ48/($T48-2009),0)+IF($U48>=AY$2,$AR48/($U48-2009),0)+IF($V48>=AY$2,$AS48/($V48-2009),0)+IF($W48>=AY$2,$AT48/($W48-2009),0)+IF($X48>=AY$2,$AU48/($X48-2009),0)+IF($Y48>=AY$2,$AV48/($Y48-2009),0) ->  | AZ48: =IF($D48>=AZ$2,$AA48/($D48-2009),0)+IF($E48>=AZ$2,$AB48/($E48-2009),0)+IF($F48>=AZ$2,$AC48/($F48-2009),0)+IF($G48>=AZ$2,$AD48/($G48-2009),0)+IF($H48>=AZ$2,$AE48/($H48-2009),0)+IF($I48>=AZ$2,$AF48/($I48-2009),0)+IF($J48>=AZ$2,$AG48/($J48-2009),0)+IF($K48>=AZ$2,$AH48/($K48-2009),0)+IF($L48>=AZ$2,$AI48/($L48-2009),0)+IF($M48>=AZ$2,$AJ48/($M48-2009),0)+IF($N48>=AZ$2,$AK48/($N48-2009),0)+IF($O48>=AZ$2,$AL48/($O48-2009),0)+IF($P48>=AZ$2,$AM48/($P48-2009),0)+IF($Q48>=AZ$2,$AN48/($Q48-2009),0)+IF($R48>=AZ$2,$AO48/($R48-2009),0)+IF($S48>=AZ$2,$AP48/($S48-2009),0)+IF($T48>=AZ$2,$AQ48/($T48-2009),0)+IF($U48>=AZ$2,$AR48/($U48-2009),0)+IF($V48>=AZ$2,$AS48/($V48-2009),0)+IF($W48>=AZ$2,$AT48/($W48-2009),0)+IF($X48>=AZ$2,$AU48/($X48-2009),0)+IF($Y48>=AZ$2,$AV48/($Y48-2009),0) ->  | BS48: 0 | BT48: 0 | BU48: 0 | BV48: 0 | BW48: 0 | BX48: 0 | BY48: 0 | BZ48: 0 | CA48: 0 | CB48: 0 | CC48: 0 | CD48: 0 | CE48: 0 | CF48: 0 | CG48: 0 | CH48: 0 | CI48: 0 | CJ48: 0 | CK48: 0 | CL48: 0 | CM48: 0 | CN48: 0 | CO48: 0 | CP48: 0 | CQ48: 0 | CR48: 0 | CS48: 0 | CT48: 0 | CU48: 0 | CV48: 0 | CW48: 0 | CX48: 0 | CY48: 0 | CZ48: 0 | DA48: 0 | DB48: 0 | DC48: 0 | DD48: 0 | DE48: 0 | DF48: 0 | DG48: 0 | DH48: 0 | DI48: 0 | DJ48: 0 | DK48: 0 | DL48: =IF($D48>=DL$2,$AA48/($D48-2009),0)+IF($E48>=DL$2,$AB48/($E48-2009),0)+IF($F48>=DL$2,$AC48/($F48-2009),0)+IF($G48>=DL$2,$AD48/($G48-2009),0)+IF($H48>=DL$2,$AE48/($H48-2009),0)+IF($I48>=DL$2,$AF48/($I48-2009),0)+IF($J48>=DL$2,$AG48/($J48-2009),0)+IF($K48>=DL$2,$AH48/($K48-2009),0)+IF($L48>=DL$2,$AI48/($L48-2009),0)+IF($M48>=DL$2,$AJ48/($M48-2009),0)+IF($N48>=DL$2,$AK48/($N48-2009),0)+IF($O48>=DL$2,$AL48/($O48-2009),0)+IF($P48>=DL$2,$AM48/($P48-2009),0)+IF($Q48>=DL$2,$AN48/($Q48-2009),0)+IF($R48>=DL$2,$AO48/($R48-2009),0)+IF($S48>=DL$2,$AP48/($S48-2009),0)+IF($T48>=DL$2,$AQ48/($T48-2009),0)+IF($U48>=DL$2,$AR48/($U48-2009),0)+IF($V48>=DL$2,$AS48/($V48-2009),0)+IF($W48>=DL$2,$AT48/($W48-2009),0)+IF($X48>=DL$2,$AU48/($X48-2009),0)+IF($Y48>=DL$2,$AV48/($Y48-2009),0) -> 0 | DM48: 0 | DN48: 0 | DO48: 0 | DP48: 0 | DQ48: 0 | DR48: 0 | DS48: 0 | DT48: 0 | DU48: 0 | DV48: 0 | DW48: 0 | DX48: 0 | DY48: 0 | DZ48: 0 | EA48: 0 | EB48: 0 | EC48: 0 | ED48: 0 | EE48: 0 | EF48: 0 | EG48: 0 | EH48: 0 | EI48: 0 | EJ48: 0 | EK48: 0 | EL48: 0 | EM48: 0 | EN48: 0 | EO48: 0 | EP48: 0 | EQ48: 0 | ER48: 0 | ES48: 0 | ET48: 0 | EU48: 0
A49: =+Genanskaffelsespriser!$B$37 -> Gasdisponering - elproduktionsanlæg, SRO | B49: PE | C49: =Genanskaffelsespriser!$E$37 -> 10 | D49: =D$3+$C49 -> 1915 | E49: 1925 | F49: 1935 | G49: 1945 | H49: 1955 | I49: 1965 | J49: 1975 | K49: 1985 | L49: 1992 | M49: 1997 | N49: 2002 | O49: 2007 | P49: 2010 | Q49: 2011 | R49: 2012 | S49: 2013 | T49: 2014 | U49: 2015 | V49: 2016 | W49: 2017 | X49: 2018 | Y49: 2019 | Z49: 0 | AA49: =Produktionsanlæg!#REF! ->  | AB49: =Produktionsanlæg!#REF! ->  | AC49: =Produktionsanlæg!#REF! ->  | AD49: =Produktionsanlæg!#REF! ->  | AE49: =Produktionsanlæg!#REF! ->  | AF49: =Produktionsanlæg!#REF! ->  | AG49: =Produktionsanlæg!#REF! ->  | AH49: =Produktionsanlæg!#REF! ->  | AI49: =Produktionsanlæg!#REF! ->  | AJ49: =Produktionsanlæg!#REF! ->  | AK49: =Produktionsanlæg!#REF! ->  | AL49: =Produktionsanlæg!#REF! ->  | AM49: =Produktionsanlæg!#REF! ->  | AN49: =Produktionsanlæg!#REF! ->  | AO49: =Produktionsanlæg!#REF! ->  | AP49: =Produktionsanlæg!#REF! ->  | AQ49: =Produktionsanlæg!#REF! ->  | AR49: =Produktionsanlæg!#REF! ->  | AS49: =Produktionsanlæg!#REF! ->  | AT49: =Produktionsanlæg!#REF! ->  | AU49: =Produktionsanlæg!#REF! ->  | AV49: =Produktionsanlæg!#REF! ->  | AX49: =SUM(#REF!) ->  | AY49: =IF($D49>=AY$2,$AA49/($D49-2009),0)+IF($E49>=AY$2,$AB49/($E49-2009),0)+IF($F49>=AY$2,$AC49/($F49-2009),0)+IF($G49>=AY$2,$AD49/($G49-2009),0)+IF($H49>=AY$2,$AE49/($H49-2009),0)+IF($I49>=AY$2,$AF49/($I49-2009),0)+IF($J49>=AY$2,$AG49/($J49-2009),0)+IF($K49>=AY$2,$AH49/($K49-2009),0)+IF($L49>=AY$2,$AI49/($L49-2009),0)+IF($M49>=AY$2,$AJ49/($M49-2009),0)+IF($N49>=AY$2,$AK49/($N49-2009),0)+IF($O49>=AY$2,$AL49/($O49-2009),0)+IF($P49>=AY$2,$AM49/($P49-2009),0)+IF($Q49>=AY$2,$AN49/($Q49-2009),0)+IF($R49>=AY$2,$AO49/($R49-2009),0)+IF($S49>=AY$2,$AP49/($S49-2009),0)+IF($T49>=AY$2,$AQ49/($T49-2009),0)+IF($U49>=AY$2,$AR49/($U49-2009),0)+IF($V49>=AY$2,$AS49/($V49-2009),0)+IF($W49>=AY$2,$AT49/($W49-2009),0)+IF($X49>=AY$2,$AU49/($X49-2009),0)+IF($Y49>=AY$2,$AV49/($Y49-2009),0) ->  | BI49: 0 | BJ49: 0 | BK49: 0 | BL49: 0 | BM49: 0 | BN49: 0 | BO49: 0 | BP49: 0 | BQ49: 0 | BR49: 0 | BS49: 0 | BT49: 0 | BU49: 0 | BV49: 0 | BW49: 0 | BX49: 0 | BY49: 0 | BZ49: 0 | CA49: 0 | CB49: 0 | CC49: 0 | CD49: 0 | CE49: 0 | CF49: 0 | CG49: 0 | CH49: 0 | CI49: 0 | CJ49: 0 | CK49: 0 | CL49: 0 | CM49: 0 | CN49: 0 | CO49: 0 | CP49: 0 | CQ49: 0 | CR49: 0 | CS49: 0 | CT49: 0 | CU49: 0 | CV49: 0 | CW49: 0 | CX49: 0 | CY49: 0 | CZ49: 0 | DA49: 0 | DB49: 0 | DC49: 0 | DD49: 0 | DE49: 0 | DF49: 0 | DG49: 0 | DH49: 0 | DI49: 0 | DJ49: 0 | DK49: 0 | DL49: 0 | DM49: 0 | DN49: 0 | DO49: 0 | DP49: 0 | DQ49: 0 | DR49: 0 | DS49: 0 | DT49: 0 | DU49: 0 | DV49: 0 | DW49: 0 | DX49: 0 | DY49: 0 | DZ49: 0 | EA49: 0 | EB49: 0 | EC49: 0 | ED49: 0 | EE49: 0 | EF49: 0 | EG49: 0 | EH49: 0 | EI49: 0 | EJ49: 0 | EK49: 0 | EL49: 0 | EM49: 0 | EN49: 0 | EO49: 0 | EP49: 0 | EQ49: 0 | ER49: 0 | ES49: 0 | ET49: 0 | EU49: 0
A50: =+Genanskaffelsespriser!$B$38 -> Slutafvanding, slam - lavteknologisk (slambede), Konstruktioner | B50: PE | C50: =Genanskaffelsespriser!$E$38 -> 60 | D50: =D$3+$C50+Produktionsanlæg!#REF! ->  | E50: =E$3+$C50+Produktionsanlæg!#REF! ->  | F50: =F$3+$C50+Produktionsanlæg!#REF! ->  | G50: =G$3+$C50+Produktionsanlæg!#REF! ->  | H50: =H$3+$C50+Produktionsanlæg!#REF! ->  | I50: =I$3+$C50+Produktionsanlæg!#REF! ->  | J50: =J$3+$C50+Produktionsanlæg!#REF! ->  | K50: =K$3+$C50+Produktionsanlæg!#REF! ->  | L50: =L$3+$C50+Produktionsanlæg!#REF! ->  | M50: =M$3+$C50+Produktionsanlæg!#REF! ->  | N50: =N$3+$C50+Produktionsanlæg!#REF! ->  | O50: =O$3+$C50+Produktionsanlæg!#REF! ->  | P50: =P$3+$C50+Produktionsanlæg!#REF! ->  | Q50: =Q$3+$C50+Produktionsanlæg!#REF! ->  | R50: =R$3+$C50+Produktionsanlæg!#REF! ->  | S50: =S$3+$C50+Produktionsanlæg!#REF! ->  | T50: =T$3+$C50+Produktionsanlæg!#REF! ->  | U50: =U$3+$C50+Produktionsanlæg!#REF! ->  | V50: =V$3+$C50+Produktionsanlæg!#REF! ->  | W50: =W$3+$C50+Produktionsanlæg!#REF! ->  | X50: =X$3+$C50+Produktionsanlæg!#REF! ->  | Y50: =Y$3+$C50+Produktionsanlæg!#REF! ->  | Z50: 0 | AA50: =Produktionsanlæg!#REF! ->  | AB50: =Produktionsanlæg!#REF! ->  | AC50: =Produktionsanlæg!#REF! ->  | AD50: =Produktionsanlæg!#REF! ->  | AE50: =Produktionsanlæg!#REF! ->  | AF50: =Produktionsanlæg!#REF! ->  | AG50: =Produktionsanlæg!#REF! ->  | AH50: =Produktionsanlæg!#REF! ->  | AI50: =Produktionsanlæg!#REF! ->  | AJ50: =Produktionsanlæg!#REF! ->  | AK50: =Produktionsanlæg!#REF! ->  | AL50: =Produktionsanlæg!#REF! ->  | AM50: =Produktionsanlæg!#REF! ->  | AN50: =Produktionsanlæg!#REF! ->  | AO50: =Produktionsanlæg!#REF! ->  | AP50: =Produktionsanlæg!#REF! ->  | AQ50: =Produktionsanlæg!#REF! ->  | AR50: =Produktionsanlæg!#REF! ->  | AS50: =Produktionsanlæg!#REF! ->  | AT50: =Produktionsanlæg!#REF! ->  | AU50: =Produktionsanlæg!#REF! ->  | AV50: =Produktionsanlæg!#REF! ->  | AX50: =SUM(#REF!) ->  | AY50: =IF($D50>=AY$2,$AA50/($D50-2009),0)+IF($E50>=AY$2,$AB50/($E50-2009),0)+IF($F50>=AY$2,$AC50/($F50-2009),0)+IF($G50>=AY$2,$AD50/($G50-2009),0)+IF($H50>=AY$2,$AE50/($H50-2009),0)+IF($I50>=AY$2,$AF50/($I50-2009),0)+IF($J50>=AY$2,$AG50/($J50-2009),0)+IF($K50>=AY$2,$AH50/($K50-2009),0)+IF($L50>=AY$2,$AI50/($L50-2009),0)+IF($M50>=AY$2,$AJ50/($M50-2009),0)+IF($N50>=AY$2,$AK50/($N50-2009),0)+IF($O50>=AY$2,$AL50/($O50-2009),0)+IF($P50>=AY$2,$AM50/($P50-2009),0)+IF($Q50>=AY$2,$AN50/($Q50-2009),0)+IF($R50>=AY$2,$AO50/($R50-2009),0)+IF($S50>=AY$2,$AP50/($S50-2009),0)+IF($T50>=AY$2,$AQ50/($T50-2009),0)+IF($U50>=AY$2,$AR50/($U50-2009),0)+IF($V50>=AY$2,$AS50/($V50-2009),0)+IF($W50>=AY$2,$AT50/($W50-2009),0)+IF($X50>=AY$2,$AU50/($X50-2009),0)+IF($Y50>=AY$2,$AV50/($Y50-2009),0) -> 
A51: Levetidsforlængelse | B51: år | C51: - | Z51: 0
A52: =+Genanskaffelsespriser!$B$39 -> Slutafvanding, slam - lavteknologisk (slambede), Mek/EL | B52: PE | C52: =Genanskaffelsespriser!$E$39 -> 20 | D52: =D$3+$C52 -> 1925 | E52: =E$3+$C52 -> 1935 | F52: 1945 | G52: 1955 | H52: 1965 | I52: 1975 | J52: 1985 | K52: 1995 | L52: 2002 | M52: 2007 | N52: 2012 | O52: 2017 | P52: 2020 | Q52: 2021 | R52: 2022 | S52: 2023 | T52: 2024 | U52: 2025 | V52: 2026 | W52: 2027 | X52: 2028 | Y52: 2029 | Z52: 0 | AA52: =Produktionsanlæg!#REF! ->  | AB52: =Produktionsanlæg!#REF! ->  | AC52: =Produktionsanlæg!#REF! ->  | AD52: =Produktionsanlæg!#REF! ->  | AE52: =Produktionsanlæg!#REF! ->  | AF52: =Produktionsanlæg!#REF! ->  | AG52: =Produktionsanlæg!#REF! ->  | AH52: =Produktionsanlæg!#REF! ->  | AI52: =Produktionsanlæg!#REF! ->  | AJ52: =Produktionsanlæg!#REF! ->  | AK52: =Produktionsanlæg!#REF! ->  | AL52: =Produktionsanlæg!#REF! ->  | AM52: =Produktionsanlæg!#REF! ->  | AN52: =Produktionsanlæg!#REF! ->  | AO52: =Produktionsanlæg!#REF! ->  | AP52: =Produktionsanlæg!#REF! ->  | AQ52: =Produktionsanlæg!#REF! ->  | AR52: =Produktionsanlæg!#REF! ->  | AS52: =Produktionsanlæg!#REF! ->  | AT52: =Produktionsanlæg!#REF! ->  | AU52: =Produktionsanlæg!#REF! ->  | AV52: =Produktionsanlæg!#REF! ->  | AX52: =SUM(#REF!) ->  | AY52: =IF($D52>=AY$2,$AA52/($D52-2009),0)+IF($E52>=AY$2,$AB52/($E52-2009),0)+IF($F52>=AY$2,$AC52/($F52-2009),0)+IF($G52>=AY$2,$AD52/($G52-2009),0)+IF($H52>=AY$2,$AE52/($H52-2009),0)+IF($I52>=AY$2,$AF52/($I52-2009),0)+IF($J52>=AY$2,$AG52/($J52-2009),0)+IF($K52>=AY$2,$AH52/($K52-2009),0)+IF($L52>=AY$2,$AI52/($L52-2009),0)+IF($M52>=AY$2,$AJ52/($M52-2009),0)+IF($N52>=AY$2,$AK52/($N52-2009),0)+IF($O52>=AY$2,$AL52/($O52-2009),0)+IF($P52>=AY$2,$AM52/($P52-2009),0)+IF($Q52>=AY$2,$AN52/($Q52-2009),0)+IF($R52>=AY$2,$AO52/($R52-2009),0)+IF($S52>=AY$2,$AP52/($S52-2009),0)+IF($T52>=AY$2,$AQ52/($T52-2009),0)+IF($U52>=AY$2,$AR52/($U52-2009),0)+IF($V52>=AY$2,$AS52/($V52-2009),0)+IF($W52>=AY$2,$AT52/($W52-2009),0)+IF($X52>=AY$2,$AU52/($X52-2009),0)+IF($Y52>=AY$2,$AV52/($Y52-2009),0) ->  | AZ52: =IF($D52>=AZ$2,$AA52/($D52-2009),0)+IF($E52>=AZ$2,$AB52/($E52-2009),0)+IF($F52>=AZ$2,$AC52/($F52-2009),0)+IF($G52>=AZ$2,$AD52/($G52-2009),0)+IF($H52>=AZ$2,$AE52/($H52-2009),0)+IF($I52>=AZ$2,$AF52/($I52-2009),0)+IF($J52>=AZ$2,$AG52/($J52-2009),0)+IF($K52>=AZ$2,$AH52/($K52-2009),0)+IF($L52>=AZ$2,$AI52/($L52-2009),0)+IF($M52>=AZ$2,$AJ52/($M52-2009),0)+IF($N52>=AZ$2,$AK52/($N52-2009),0)+IF($O52>=AZ$2,$AL52/($O52-2009),0)+IF($P52>=AZ$2,$AM52/($P52-2009),0)+IF($Q52>=AZ$2,$AN52/($Q52-2009),0)+IF($R52>=AZ$2,$AO52/($R52-2009),0)+IF($S52>=AZ$2,$AP52/($S52-2009),0)+IF($T52>=AZ$2,$AQ52/($T52-2009),0)+IF($U52>=AZ$2,$AR52/($U52-2009),0)+IF($V52>=AZ$2,$AS52/($V52-2009),0)+IF($W52>=AZ$2,$AT52/($W52-2009),0)+IF($X52>=AZ$2,$AU52/($X52-2009),0)+IF($Y52>=AZ$2,$AV52/($Y52-2009),0) ->  | BS52: 0 | BT52: 0 | BU52: 0 | BV52: 0 | BW52: 0 | BX52: 0 | BY52: 0 | BZ52: 0 | CA52: 0 | CB52: 0 | CC52: 0 | CD52: 0 | CE52: 0 | CF52: 0 | CG52: 0 | CH52: 0 | CI52: 0 | CJ52: 0 | CK52: 0 | CL52: 0 | CM52: 0 | CN52: 0 | CO52: 0 | CP52: 0 | CQ52: 0 | CR52: 0 | CS52: 0 | CT52: 0 | CU52: 0 | CV52: 0 | CW52: 0 | CX52: 0 | CY52: 0 | CZ52: 0 | DA52: 0 | DB52: 0 | DC52: 0 | DD52: 0 | DE52: 0 | DF52: 0 | DG52: 0 | DH52: 0 | DI52: 0 | DJ52: 0 | DK52: 0 | DL52: =IF($D52>=DL$2,$AA52/($D52-2009),0)+IF($E52>=DL$2,$AB52/($E52-2009),0)+IF($F52>=DL$2,$AC52/($F52-2009),0)+IF($G52>=DL$2,$AD52/($G52-2009),0)+IF($H52>=DL$2,$AE52/($H52-2009),0)+IF($I52>=DL$2,$AF52/($I52-2009),0)+IF($J52>=DL$2,$AG52/($J52-2009),0)+IF($K52>=DL$2,$AH52/($K52-2009),0)+IF($L52>=DL$2,$AI52/($L52-2009),0)+IF($M52>=DL$2,$AJ52/($M52-2009),0)+IF($N52>=DL$2,$AK52/($N52-2009),0)+IF($O52>=DL$2,$AL52/($O52-2009),0)+IF($P52>=DL$2,$AM52/($P52-2009),0)+IF($Q52>=DL$2,$AN52/($Q52-2009),0)+IF($R52>=DL$2,$AO52/($R52-2009),0)+IF($S52>=DL$2,$AP52/($S52-2009),0)+IF($T52>=DL$2,$AQ52/($T52-2009),0)+IF($U52>=DL$2,$AR52/($U52-2009),0)+IF($V52>=DL$2,$AS52/($V52-2009),0)+IF($W52>=DL$2,$AT52/($W52-2009),0)+IF($X52>=DL$2,$AU52/($X52-2009),0)+IF($Y52>=DL$2,$AV52/($Y52-2009),0) -> 0 | DM52: 0 | DN52: 0 | DO52: 0 | DP52: 0 | DQ52: 0 | DR52: 0 | DS52: 0 | DT52: 0 | DU52: 0 | DV52: 0 | DW52: 0 | DX52: 0 | DY52: 0 | DZ52: 0 | EA52: 0 | EB52: 0 | EC52: 0 | ED52: 0 | EE52: 0 | EF52: 0 | EG52: 0 | EH52: 0 | EI52: 0 | EJ52: 0 | EK52: 0 | EL52: 0 | EM52: 0 | EN52: 0 | EO52: 0 | EP52: 0 | EQ52: 0 | ER52: 0 | ES52: 0 | ET52: 0 | EU52: 0
A53: =+Genanskaffelsespriser!$B$40 -> Slutafvanding, slam - lavteknologisk (slambede), SRO | B53: PE | C53: =Genanskaffelsespriser!$E$40 -> 10 | D53: =D$3+$C53 -> 1915 | E53: 1925 | F53: 1935 | G53: 1945 | H53: 1955 | I53: 1965 | J53: 1975 | K53: 1985 | L53: 1992 | M53: 1997 | N53: 2002 | O53: 2007 | P53: 2010 | Q53: 2011 | R53: 2012 | S53: 2013 | T53: 2014 | U53: 2015 | V53: 2016 | W53: 2017 | X53: 2018 | Y53: 2019 | Z53: 0 | AA53: =Produktionsanlæg!#REF! ->  | AB53: =Produktionsanlæg!#REF! ->  | AC53: =Produktionsanlæg!#REF! ->  | AD53: =Produktionsanlæg!#REF! ->  | AE53: =Produktionsanlæg!#REF! ->  | AF53: =Produktionsanlæg!#REF! ->  | AG53: =Produktionsanlæg!#REF! ->  | AH53: =Produktionsanlæg!#REF! ->  | AI53: =Produktionsanlæg!#REF! ->  | AJ53: =Produktionsanlæg!#REF! ->  | AK53: =Produktionsanlæg!#REF! ->  | AL53: =Produktionsanlæg!#REF! ->  | AM53: =Produktionsanlæg!#REF! ->  | AN53: =Produktionsanlæg!#REF! ->  | AO53: =Produktionsanlæg!#REF! ->  | AP53: =Produktionsanlæg!#REF! ->  | AQ53: =Produktionsanlæg!#REF! ->  | AR53: =Produktionsanlæg!#REF! ->  | AS53: =Produktionsanlæg!#REF! ->  | AT53: =Produktionsanlæg!#REF! ->  | AU53: =Produktionsanlæg!#REF! ->  | AV53: =Produktionsanlæg!#REF! ->  | AX53: =SUM(#REF!) ->  | AY53: =IF($D53>=AY$2,$AA53/($D53-2009),0)+IF($E53>=AY$2,$AB53/($E53-2009),0)+IF($F53>=AY$2,$AC53/($F53-2009),0)+IF($G53>=AY$2,$AD53/($G53-2009),0)+IF($H53>=AY$2,$AE53/($H53-2009),0)+IF($I53>=AY$2,$AF53/($I53-2009),0)+IF($J53>=AY$2,$AG53/($J53-2009),0)+IF($K53>=AY$2,$AH53/($K53-2009),0)+IF($L53>=AY$2,$AI53/($L53-2009),0)+IF($M53>=AY$2,$AJ53/($M53-2009),0)+IF($N53>=AY$2,$AK53/($N53-2009),0)+IF($O53>=AY$2,$AL53/($O53-2009),0)+IF($P53>=AY$2,$AM53/($P53-2009),0)+IF($Q53>=AY$2,$AN53/($Q53-2009),0)+IF($R53>=AY$2,$AO53/($R53-2009),0)+IF($S53>=AY$2,$AP53/($S53-2009),0)+IF($T53>=AY$2,$AQ53/($T53-2009),0)+IF($U53>=AY$2,$AR53/($U53-2009),0)+IF($V53>=AY$2,$AS53/($V53-2009),0)+IF($W53>=AY$2,$AT53/($W53-2009),0)+IF($X53>=AY$2,$AU53/($X53-2009),0)+IF($Y53>=AY$2,$AV53/($Y53-2009),0) ->  | BI53: 0 | BJ53: 0 | BK53: 0 | BL53: 0 | BM53: 0 | BN53: 0 | BO53: 0 | BP53: 0 | BQ53: 0 | BR53: 0 | BS53: 0 | BT53: 0 | BU53: 0 | BV53: 0 | BW53: 0 | BX53: 0 | BY53: 0 | BZ53: 0 | CA53: 0 | CB53: 0 | CC53: 0 | CD53: 0 | CE53: 0 | CF53: 0 | CG53: 0 | CH53: 0 | CI53: 0 | CJ53: 0 | CK53: 0 | CL53: 0 | CM53: 0 | CN53: 0 | CO53: 0 | CP53: 0 | CQ53: 0 | CR53: 0 | CS53: 0 | CT53: 0 | CU53: 0 | CV53: 0 | CW53: 0 | CX53: 0 | CY53: 0 | CZ53: 0 | DA53: 0 | DB53: 0 | DC53: 0 | DD53: 0 | DE53: 0 | DF53: 0 | DG53: 0 | DH53: 0 | DI53: 0 | DJ53: 0 | DK53: 0 | DL53: 0 | DM53: 0 | DN53: 0 | DO53: 0 | DP53: 0 | DQ53: 0 | DR53: 0 | DS53: 0 | DT53: 0 | DU53: 0 | DV53: 0 | DW53: 0 | DX53: 0 | DY53: 0 | DZ53: 0 | EA53: 0 | EB53: 0 | EC53: 0 | ED53: 0 | EE53: 0 | EF53: 0 | EG53: 0 | EH53: 0 | EI53: 0 | EJ53: 0 | EK53: 0 | EL53: 0 | EM53: 0 | EN53: 0 | EO53: 0 | EP53: 0 | EQ53: 0 | ER53: 0 | ES53: 0 | ET53: 0 | EU53: 0
A54: =+Genanskaffelsespriser!$B$41 -> Slutafvanding, slam - højteknologisk (centrifuger), Konstruktioner | B54: PE | C54: =Genanskaffelsespriser!$E$41 -> 60 | D54: =D$3+$C54+Produktionsanlæg!#REF! ->  | E54: =E$3+$C54+Produktionsanlæg!#REF! ->  | F54: =F$3+$C54+Produktionsanlæg!#REF! ->  | G54: =G$3+$C54+Produktionsanlæg!#REF! ->  | H54: =H$3+$C54+Produktionsanlæg!#REF! ->  | I54: =I$3+$C54+Produktionsanlæg!#REF! ->  | J54: =J$3+$C54+Produktionsanlæg!#REF! ->  | K54: =K$3+$C54+Produktionsanlæg!#REF! ->  | L54: =L$3+$C54+Produktionsanlæg!#REF! ->  | M54: =M$3+$C54+Produktionsanlæg!#REF! ->  | N54: =N$3+$C54+Produktionsanlæg!#REF! ->  | O54: =O$3+$C54+Produktionsanlæg!#REF! ->  | P54: =P$3+$C54+Produktionsanlæg!#REF! ->  | Q54: =Q$3+$C54+Produktionsanlæg!#REF! ->  | R54: =R$3+$C54+Produktionsanlæg!#REF! ->  | S54: =S$3+$C54+Produktionsanlæg!#REF! ->  | T54: =T$3+$C54+Produktionsanlæg!#REF! ->  | U54: =U$3+$C54+Produktionsanlæg!#REF! ->  | V54: =V$3+$C54+Produktionsanlæg!#REF! ->  | W54: =W$3+$C54+Produktionsanlæg!#REF! ->  | X54: =X$3+$C54+Produktionsanlæg!#REF! ->  | Y54: =Y$3+$C54+Produktionsanlæg!#REF! ->  | Z54: 0 | AA54: =Produktionsanlæg!#REF! ->  | AB54: =Produktionsanlæg!#REF! ->  | AC54: =Produktionsanlæg!#REF! ->  | AD54: =Produktionsanlæg!#REF! ->  | AE54: =Produktionsanlæg!#REF! ->  | AF54: =Produktionsanlæg!#REF! ->  | AG54: =Produktionsanlæg!#REF! ->  | AH54: =Produktionsanlæg!#REF! ->  | AI54: =Produktionsanlæg!#REF! ->  | AJ54: =Produktionsanlæg!#REF! ->  | AK54: =Produktionsanlæg!#REF! ->  | AL54: =Produktionsanlæg!#REF! ->  | AM54: =Produktionsanlæg!#REF! ->  | AN54: =Produktionsanlæg!#REF! ->  | AO54: =Produktionsanlæg!#REF! ->  | AP54: =Produktionsanlæg!#REF! ->  | AQ54: =Produktionsanlæg!#REF! ->  | AR54: =Produktionsanlæg!#REF! ->  | AS54: =Produktionsanlæg!#REF! ->  | AT54: =Produktionsanlæg!#REF! ->  | AU54: =Produktionsanlæg!#REF! ->  | AV54: =Produktionsanlæg!#REF! ->  | AX54: =SUM(#REF!) ->  | AY54: =IF($D54>=AY$2,$AA54/($D54-2009),0)+IF($E54>=AY$2,$AB54/($E54-2009),0)+IF($F54>=AY$2,$AC54/($F54-2009),0)+IF($G54>=AY$2,$AD54/($G54-2009),0)+IF($H54>=AY$2,$AE54/($H54-2009),0)+IF($I54>=AY$2,$AF54/($I54-2009),0)+IF($J54>=AY$2,$AG54/($J54-2009),0)+IF($K54>=AY$2,$AH54/($K54-2009),0)+IF($L54>=AY$2,$AI54/($L54-2009),0)+IF($M54>=AY$2,$AJ54/($M54-2009),0)+IF($N54>=AY$2,$AK54/($N54-2009),0)+IF($O54>=AY$2,$AL54/($O54-2009),0)+IF($P54>=AY$2,$AM54/($P54-2009),0)+IF($Q54>=AY$2,$AN54/($Q54-2009),0)+IF($R54>=AY$2,$AO54/($R54-2009),0)+IF($S54>=AY$2,$AP54/($S54-2009),0)+IF($T54>=AY$2,$AQ54/($T54-2009),0)+IF($U54>=AY$2,$AR54/($U54-2009),0)+IF($V54>=AY$2,$AS54/($V54-2009),0)+IF($W54>=AY$2,$AT54/($W54-2009),0)+IF($X54>=AY$2,$AU54/($X54-2009),0)+IF($Y54>=AY$2,$AV54/($Y54-2009),0) -> 
A55: Levetidsforlængelse | B55: år | C55: - | Z55: 0
A56: =+Genanskaffelsespriser!$B$42 -> Slutafvanding, slam - højteknologisk (centrifuger), Mek/El | B56: PE | C56: =Genanskaffelsespriser!$E$42 -> 20 | D56: =D$3+$C56 -> 1925 | E56: =E$3+$C56 -> 1935 | F56: 1945 | G56: 1955 | H56: 1965 | I56: 1975 | J56: 1985 | K56: 1995 | L56: 2002 | M56: 2007 | N56: 2012 | O56: 2017 | P56: 2020 | Q56: 2021 | R56: 2022 | S56: 2023 | T56: 2024 | U56: 2025 | V56: 2026 | W56: 2027 | X56: 2028 | Y56: 2029 | Z56: 0 | AA56: =Produktionsanlæg!#REF! ->  | AB56: =Produktionsanlæg!#REF! ->  | AC56: =Produktionsanlæg!#REF! ->  | AD56: =Produktionsanlæg!#REF! ->  | AE56: =Produktionsanlæg!#REF! ->  | AF56: =Produktionsanlæg!#REF! ->  | AG56: =Produktionsanlæg!#REF! ->  | AH56: =Produktionsanlæg!#REF! ->  | AI56: =Produktionsanlæg!#REF! ->  | AJ56: =Produktionsanlæg!#REF! ->  | AK56: =Produktionsanlæg!#REF! ->  | AL56: =Produktionsanlæg!#REF! ->  | AM56: =Produktionsanlæg!#REF! ->  | AN56: =Produktionsanlæg!#REF! ->  | AO56: =Produktionsanlæg!#REF! ->  | AP56: =Produktionsanlæg!#REF! ->  | AQ56: =Produktionsanlæg!#REF! ->  | AR56: =Produktionsanlæg!#REF! ->  | AS56: =Produktionsanlæg!#REF! ->  | AT56: =Produktionsanlæg!#REF! ->  | AU56: =Produktionsanlæg!#REF! ->  | AV56: =Produktionsanlæg!#REF! ->  | AX56: =SUM(#REF!) ->  | AY56: =IF($D56>=AY$2,$AA56/($D56-2009),0)+IF($E56>=AY$2,$AB56/($E56-2009),0)+IF($F56>=AY$2,$AC56/($F56-2009),0)+IF($G56>=AY$2,$AD56/($G56-2009),0)+IF($H56>=AY$2,$AE56/($H56-2009),0)+IF($I56>=AY$2,$AF56/($I56-2009),0)+IF($J56>=AY$2,$AG56/($J56-2009),0)+IF($K56>=AY$2,$AH56/($K56-2009),0)+IF($L56>=AY$2,$AI56/($L56-2009),0)+IF($M56>=AY$2,$AJ56/($M56-2009),0)+IF($N56>=AY$2,$AK56/($N56-2009),0)+IF($O56>=AY$2,$AL56/($O56-2009),0)+IF($P56>=AY$2,$AM56/($P56-2009),0)+IF($Q56>=AY$2,$AN56/($Q56-2009),0)+IF($R56>=AY$2,$AO56/($R56-2009),0)+IF($S56>=AY$2,$AP56/($S56-2009),0)+IF($T56>=AY$2,$AQ56/($T56-2009),0)+IF($U56>=AY$2,$AR56/($U56-2009),0)+IF($V56>=AY$2,$AS56/($V56-2009),0)+IF($W56>=AY$2,$AT56/($W56-2009),0)+IF($X56>=AY$2,$AU56/($X56-2009),0)+IF($Y56>=AY$2,$AV56/($Y56-2009),0) ->  | AZ56: =IF($D56>=AZ$2,$AA56/($D56-2009),0)+IF($E56>=AZ$2,$AB56/($E56-2009),0)+IF($F56>=AZ$2,$AC56/($F56-2009),0)+IF($G56>=AZ$2,$AD56/($G56-2009),0)+IF($H56>=AZ$2,$AE56/($H56-2009),0)+IF($I56>=AZ$2,$AF56/($I56-2009),0)+IF($J56>=AZ$2,$AG56/($J56-2009),0)+IF($K56>=AZ$2,$AH56/($K56-2009),0)+IF($L56>=AZ$2,$AI56/($L56-2009),0)+IF($M56>=AZ$2,$AJ56/($M56-2009),0)+IF($N56>=AZ$2,$AK56/($N56-2009),0)+IF($O56>=AZ$2,$AL56/($O56-2009),0)+IF($P56>=AZ$2,$AM56/($P56-2009),0)+IF($Q56>=AZ$2,$AN56/($Q56-2009),0)+IF($R56>=AZ$2,$AO56/($R56-2009),0)+IF($S56>=AZ$2,$AP56/($S56-2009),0)+IF($T56>=AZ$2,$AQ56/($T56-2009),0)+IF($U56>=AZ$2,$AR56/($U56-2009),0)+IF($V56>=AZ$2,$AS56/($V56-2009),0)+IF($W56>=AZ$2,$AT56/($W56-2009),0)+IF($X56>=AZ$2,$AU56/($X56-2009),0)+IF($Y56>=AZ$2,$AV56/($Y56-2009),0) ->  | BS56: 0 | BT56: 0 | BU56: 0 | BV56: 0 | BW56: 0 | BX56: 0 | BY56: 0 | BZ56: 0 | CA56: 0 | CB56: 0 | CC56: 0 | CD56: 0 | CE56: 0 | CF56: 0 | CG56: 0 | CH56: 0 | CI56: 0 | CJ56: 0 | CK56: 0 | CL56: 0 | CM56: 0 | CN56: 0 | CO56: 0 | CP56: 0 | CQ56: 0 | CR56: 0 | CS56: 0 | CT56: 0 | CU56: 0 | CV56: 0 | CW56: 0 | CX56: 0 | CY56: 0 | CZ56: 0 | DA56: 0 | DB56: 0 | DC56: 0 | DD56: 0 | DE56: 0 | DF56: 0 | DG56: 0 | DH56: 0 | DI56: 0 | DJ56: 0 | DK56: 0 | DL56: =IF($D56>=DL$2,$AA56/($D56-2009),0)+IF($E56>=DL$2,$AB56/($E56-2009),0)+IF($F56>=DL$2,$AC56/($F56-2009),0)+IF($G56>=DL$2,$AD56/($G56-2009),0)+IF($H56>=DL$2,$AE56/($H56-2009),0)+IF($I56>=DL$2,$AF56/($I56-2009),0)+IF($J56>=DL$2,$AG56/($J56-2009),0)+IF($K56>=DL$2,$AH56/($K56-2009),0)+IF($L56>=DL$2,$AI56/($L56-2009),0)+IF($M56>=DL$2,$AJ56/($M56-2009),0)+IF($N56>=DL$2,$AK56/($N56-2009),0)+IF($O56>=DL$2,$AL56/($O56-2009),0)+IF($P56>=DL$2,$AM56/($P56-2009),0)+IF($Q56>=DL$2,$AN56/($Q56-2009),0)+IF($R56>=DL$2,$AO56/($R56-2009),0)+IF($S56>=DL$2,$AP56/($S56-2009),0)+IF($T56>=DL$2,$AQ56/($T56-2009),0)+IF($U56>=DL$2,$AR56/($U56-2009),0)+IF($V56>=DL$2,$AS56/($V56-2009),0)+IF($W56>=DL$2,$AT56/($W56-2009),0)+IF($X56>=DL$2,$AU56/($X56-2009),0)+IF($Y56>=DL$2,$AV56/($Y56-2009),0) -> 0 | DM56: 0 | DN56: 0 | DO56: 0 | DP56: 0 | DQ56: 0 | DR56: 0 | DS56: 0 | DT56: 0 | DU56: 0 | DV56: 0 | DW56: 0 | DX56: 0 | DY56: 0 | DZ56: 0 | EA56: 0 | EB56: 0 | EC56: 0 | ED56: 0 | EE56: 0 | EF56: 0 | EG56: 0 | EH56: 0 | EI56: 0 | EJ56: 0 | EK56: 0 | EL56: 0 | EM56: 0 | EN56: 0 | EO56: 0 | EP56: 0 | EQ56: 0 | ER56: 0 | ES56: 0 | ET56: 0 | EU56: 0
A57: =+Genanskaffelsespriser!$B$43 -> Slutafvanding, slam - højteknologisk (centrifuger), SRO | B57: PE | C57: =Genanskaffelsespriser!$E$43 -> 10 | D57: =D$3+$C57 -> 1915 | E57: 1925 | F57: 1935 | G57: 1945 | H57: 1955 | I57: 1965 | J57: 1975 | K57: 1985 | L57: 1992 | M57: 1997 | N57: 2002 | O57: 2007 | P57: 2010 | Q57: 2011 | R57: 2012 | S57: 2013 | T57: 2014 | U57: 2015 | V57: 2016 | W57: 2017 | X57: 2018 | Y57: 2019 | Z57: 0 | AA57: =Produktionsanlæg!#REF! ->  | AB57: =Produktionsanlæg!#REF! ->  | AC57: =Produktionsanlæg!#REF! ->  | AD57: =Produktionsanlæg!#REF! ->  | AE57: =Produktionsanlæg!#REF! ->  | AF57: =Produktionsanlæg!#REF! ->  | AG57: =Produktionsanlæg!#REF! ->  | AH57: =Produktionsanlæg!#REF! ->  | AI57: =Produktionsanlæg!#REF! ->  | AJ57: =Produktionsanlæg!#REF! ->  | AK57: =Produktionsanlæg!#REF! ->  | AL57: =Produktionsanlæg!#REF! ->  | AM57: =Produktionsanlæg!#REF! ->  | AN57: =Produktionsanlæg!#REF! ->  | AO57: =Produktionsanlæg!#REF! ->  | AP57: =Produktionsanlæg!#REF! ->  | AQ57: =Produktionsanlæg!#REF! ->  | AR57: =Produktionsanlæg!#REF! ->  | AS57: =Produktionsanlæg!#REF! ->  | AT57: =Produktionsanlæg!#REF! ->  | AU57: =Produktionsanlæg!#REF! ->  | AV57: =Produktionsanlæg!#REF! ->  | AX57: =SUM(#REF!) ->  | AY57: =IF($D57>=AY$2,$AA57/($D57-2009),0)+IF($E57>=AY$2,$AB57/($E57-2009),0)+IF($F57>=AY$2,$AC57/($F57-2009),0)+IF($G57>=AY$2,$AD57/($G57-2009),0)+IF($H57>=AY$2,$AE57/($H57-2009),0)+IF($I57>=AY$2,$AF57/($I57-2009),0)+IF($J57>=AY$2,$AG57/($J57-2009),0)+IF($K57>=AY$2,$AH57/($K57-2009),0)+IF($L57>=AY$2,$AI57/($L57-2009),0)+IF($M57>=AY$2,$AJ57/($M57-2009),0)+IF($N57>=AY$2,$AK57/($N57-2009),0)+IF($O57>=AY$2,$AL57/($O57-2009),0)+IF($P57>=AY$2,$AM57/($P57-2009),0)+IF($Q57>=AY$2,$AN57/($Q57-2009),0)+IF($R57>=AY$2,$AO57/($R57-2009),0)+IF($S57>=AY$2,$AP57/($S57-2009),0)+IF($T57>=AY$2,$AQ57/($T57-2009),0)+IF($U57>=AY$2,$AR57/($U57-2009),0)+IF($V57>=AY$2,$AS57/($V57-2009),0)+IF($W57>=AY$2,$AT57/($W57-2009),0)+IF($X57>=AY$2,$AU57/($X57-2009),0)+IF($Y57>=AY$2,$AV57/($Y57-2009),0) ->  | BI57: 0 | BJ57: 0 | BK57: 0 | BL57: 0 | BM57: 0 | BN57: 0 | BO57: 0 | BP57: 0 | BQ57: 0 | BR57: 0 | BS57: 0 | BT57: 0 | BU57: 0 | BV57: 0 | BW57: 0 | BX57: 0 | BY57: 0 | BZ57: 0 | CA57: 0 | CB57: 0 | CC57: 0 | CD57: 0 | CE57: 0 | CF57: 0 | CG57: 0 | CH57: 0 | CI57: 0 | CJ57: 0 | CK57: 0 | CL57: 0 | CM57: 0 | CN57: 0 | CO57: 0 | CP57: 0 | CQ57: 0 | CR57: 0 | CS57: 0 | CT57: 0 | CU57: 0 | CV57: 0 | CW57: 0 | CX57: 0 | CY57: 0 | CZ57: 0 | DA57: 0 | DB57: 0 | DC57: 0 | DD57: 0 | DE57: 0 | DF57: 0 | DG57: 0 | DH57: 0 | DI57: 0 | DJ57: 0 | DK57: 0 | DL57: 0 | DM57: 0 | DN57: 0 | DO57: 0 | DP57: 0 | DQ57: 0 | DR57: 0 | DS57: 0 | DT57: 0 | DU57: 0 | DV57: 0 | DW57: 0 | DX57: 0 | DY57: 0 | DZ57: 0 | EA57: 0 | EB57: 0 | EC57: 0 | ED57: 0 | EE57: 0 | EF57: 0 | EG57: 0 | EH57: 0 | EI57: 0 | EJ57: 0 | EK57: 0 | EL57: 0 | EM57: 0 | EN57: 0 | EO57: 0 | EP57: 0 | EQ57: 0 | ER57: 0 | ES57: 0 | ET57: 0 | EU57: 0
A58: Renseanlæg >= 5.000 PE, Slamdisponering | Z58: 0 | AW58: =+SUM(AW59:AW70) ->  | AX58: =SUM(#REF!) ->  | AY58: =SUM(AY59:AY70) ->  | AZ58: =SUM(AZ59:AZ70) ->  | DL58: =SUM(DL59:DL70) -> 
A59: =+Genanskaffelsespriser!$B$45 -> Slutdisponering, slam - lavteknologisk (slammineralisering), Konstruktioner | B59: PE | C59: =Genanskaffelsespriser!$E$45 -> 60 | D59: =D$3+$C59+Produktionsanlæg!#REF! ->  | E59: =E$3+$C59+Produktionsanlæg!#REF! ->  | F59: =F$3+$C59+Produktionsanlæg!#REF! ->  | G59: =G$3+$C59+Produktionsanlæg!#REF! ->  | H59: =H$3+$C59+Produktionsanlæg!#REF! ->  | I59: =I$3+$C59+Produktionsanlæg!#REF! ->  | J59: =J$3+$C59+Produktionsanlæg!#REF! ->  | K59: =K$3+$C59+Produktionsanlæg!#REF! ->  | L59: =L$3+$C59+Produktionsanlæg!#REF! ->  | M59: =M$3+$C59+Produktionsanlæg!#REF! ->  | N59: =N$3+$C59+Produktionsanlæg!#REF! ->  | O59: =O$3+$C59+Produktionsanlæg!#REF! ->  | P59: =P$3+$C59+Produktionsanlæg!#REF! ->  | Q59: =Q$3+$C59+Produktionsanlæg!#REF! ->  | R59: =R$3+$C59+Produktionsanlæg!#REF! ->  | S59: =S$3+$C59+Produktionsanlæg!#REF! ->  | T59: =T$3+$C59+Produktionsanlæg!#REF! ->  | U59: =U$3+$C59+Produktionsanlæg!#REF! ->  | V59: =V$3+$C59+Produktionsanlæg!#REF! ->  | W59: =W$3+$C59+Produktionsanlæg!#REF! ->  | X59: =X$3+$C59+Produktionsanlæg!#REF! ->  | Y59: =Y$3+$C59+Produktionsanlæg!#REF! ->  | Z59: 0 | AA59: =Produktionsanlæg!#REF! ->  | AB59: =Produktionsanlæg!#REF! ->  | AC59: =Produktionsanlæg!#REF! ->  | AD59: =Produktionsanlæg!#REF! ->  | AE59: =Produktionsanlæg!#REF! ->  | AF59: =Produktionsanlæg!#REF! ->  | AG59: =Produktionsanlæg!#REF! ->  | AH59: =Produktionsanlæg!#REF! ->  | AI59: =Produktionsanlæg!#REF! ->  | AJ59: =Produktionsanlæg!#REF! ->  | AK59: =Produktionsanlæg!#REF! ->  | AL59: =Produktionsanlæg!#REF! ->  | AM59: =Produktionsanlæg!#REF! ->  | AN59: =Produktionsanlæg!#REF! ->  | AO59: =Produktionsanlæg!#REF! ->  | AP59: =Produktionsanlæg!#REF! ->  | AQ59: =Produktionsanlæg!#REF! ->  | AR59: =Produktionsanlæg!#REF! ->  | AS59: =Produktionsanlæg!#REF! ->  | AT59: =Produktionsanlæg!#REF! ->  | AU59: =Produktionsanlæg!#REF! ->  | AV59: =Produktionsanlæg!#REF! ->  | AW59: =+SUM(AA59:AV59) ->  | AX59: =SUM(#REF!) ->  | AY59: =IF($D59>=AY$2,$AA59/($D59-2009),0)+IF($E59>=AY$2,$AB59/($E59-2009),0)+IF($F59>=AY$2,$AC59/($F59-2009),0)+IF($G59>=AY$2,$AD59/($G59-2009),0)+IF($H59>=AY$2,$AE59/($H59-2009),0)+IF($I59>=AY$2,$AF59/($I59-2009),0)+IF($J59>=AY$2,$AG59/($J59-2009),0)+IF($K59>=AY$2,$AH59/($K59-2009),0)+IF($L59>=AY$2,$AI59/($L59-2009),0)+IF($M59>=AY$2,$AJ59/($M59-2009),0)+IF($N59>=AY$2,$AK59/($N59-2009),0)+IF($O59>=AY$2,$AL59/($O59-2009),0)+IF($P59>=AY$2,$AM59/($P59-2009),0)+IF($Q59>=AY$2,$AN59/($Q59-2009),0)+IF($R59>=AY$2,$AO59/($R59-2009),0)+IF($S59>=AY$2,$AP59/($S59-2009),0)+IF($T59>=AY$2,$AQ59/($T59-2009),0)+IF($U59>=AY$2,$AR59/($U59-2009),0)+IF($V59>=AY$2,$AS59/($V59-2009),0)+IF($W59>=AY$2,$AT59/($W59-2009),0)+IF($X59>=AY$2,$AU59/($X59-2009),0)+IF($Y59>=AY$2,$AV59/($Y59-2009),0) ->  | AZ59: =IF($D59>=AZ$2,$AA59/($D59-2009),0)+IF($E59>=AZ$2,$AB59/($E59-2009),0)+IF($F59>=AZ$2,$AC59/($F59-2009),0)+IF($G59>=AZ$2,$AD59/($G59-2009),0)+IF($H59>=AZ$2,$AE59/($H59-2009),0)+IF($I59>=AZ$2,$AF59/($I59-2009),0)+IF($J59>=AZ$2,$AG59/($J59-2009),0)+IF($K59>=AZ$2,$AH59/($K59-2009),0)+IF($L59>=AZ$2,$AI59/($L59-2009),0)+IF($M59>=AZ$2,$AJ59/($M59-2009),0)+IF($N59>=AZ$2,$AK59/($N59-2009),0)+IF($O59>=AZ$2,$AL59/($O59-2009),0)+IF($P59>=AZ$2,$AM59/($P59-2009),0)+IF($Q59>=AZ$2,$AN59/($Q59-2009),0)+IF($R59>=AZ$2,$AO59/($R59-2009),0)+IF($S59>=AZ$2,$AP59/($S59-2009),0)+IF($T59>=AZ$2,$AQ59/($T59-2009),0)+IF($U59>=AZ$2,$AR59/($U59-2009),0)+IF($V59>=AZ$2,$AS59/($V59-2009),0)+IF($W59>=AZ$2,$AT59/($W59-2009),0)+IF($X59>=AZ$2,$AU59/($X59-2009),0)+IF($Y59>=AZ$2,$AV59/($Y59-2009),0) ->  | DL59: =IF($D59>=DL$2,$AA59/($D59-2009),0)+IF($E59>=DL$2,$AB59/($E59-2009),0)+IF($F59>=DL$2,$AC59/($F59-2009),0)+IF($G59>=DL$2,$AD59/($G59-2009),0)+IF($H59>=DL$2,$AE59/($H59-2009),0)+IF($I59>=DL$2,$AF59/($I59-2009),0)+IF($J59>=DL$2,$AG59/($J59-2009),0)+IF($K59>=DL$2,$AH59/($K59-2009),0)+IF($L59>=DL$2,$AI59/($L59-2009),0)+IF($M59>=DL$2,$AJ59/($M59-2009),0)+IF($N59>=DL$2,$AK59/($N59-2009),0)+IF($O59>=DL$2,$AL59/($O59-2009),0)+IF($P59>=DL$2,$AM59/($P59-2009),0)+IF($Q59>=DL$2,$AN59/($Q59-2009),0)+IF($R59>=DL$2,$AO59/($R59-2009),0)+IF($S59>=DL$2,$AP59/($S59-2009),0)+IF($T59>=DL$2,$AQ59/($T59-2009),0)+IF($U59>=DL$2,$AR59/($U59-2009),0)+IF($V59>=DL$2,$AS59/($V59-2009),0)+IF($W59>=DL$2,$AT59/($W59-2009),0)+IF($X59>=DL$2,$AU59/($X59-2009),0)+IF($Y59>=DL$2,$AV59/($Y59-2009),0) -> 
A60: Levetidsforlængelse | B60: år | C60: - | Z60: 0
A61: =+Genanskaffelsespriser!$B$46 -> Slutdisponering, slam - lavteknologisk (slammineralisering), Mek/EL | B61: PE | C61: =Genanskaffelsespriser!$E$46 -> 20 | D61: =D$3+$C61 -> 1925 | E61: =E$3+$C61 -> 1935 | F61: 1945 | G61: 1955 | H61: 1965 | I61: 1975 | J61: 1985 | K61: 1995 | L61: 2002 | M61: 2007 | N61: 2012 | O61: 2017 | P61: 2020 | Q61: 2021 | R61: 2022 | S61: 2023 | T61: 2024 | U61: 2025 | V61: 2026 | W61: 2027 | X61: 2028 | Y61: 2029 | Z61: 0 | AA61: =Produktionsanlæg!#REF! ->  | AB61: =Produktionsanlæg!#REF! ->  | AC61: =Produktionsanlæg!#REF! ->  | AD61: =Produktionsanlæg!#REF! ->  | AE61: =Produktionsanlæg!#REF! ->  | AF61: =Produktionsanlæg!#REF! ->  | AG61: =Produktionsanlæg!#REF! ->  | AH61: =Produktionsanlæg!#REF! ->  | AI61: =Produktionsanlæg!#REF! ->  | AJ61: =Produktionsanlæg!#REF! ->  | AK61: =Produktionsanlæg!#REF! ->  | AL61: =Produktionsanlæg!#REF! ->  | AM61: =Produktionsanlæg!#REF! ->  | AN61: =Produktionsanlæg!#REF! ->  | AO61: =Produktionsanlæg!#REF! ->  | AP61: =Produktionsanlæg!#REF! ->  | AQ61: =Produktionsanlæg!#REF! ->  | AR61: =Produktionsanlæg!#REF! ->  | AS61: =Produktionsanlæg!#REF! ->  | AT61: =Produktionsanlæg!#REF! ->  | AU61: =Produktionsanlæg!#REF! ->  | AV61: =Produktionsanlæg!#REF! ->  | AW61: =+SUM(AA61:AV61) ->  | AX61: =SUM(#REF!) ->  | AY61: =IF($D61>=AY$2,$AA61/($D61-2009),0)+IF($E61>=AY$2,$AB61/($E61-2009),0)+IF($F61>=AY$2,$AC61/($F61-2009),0)+IF($G61>=AY$2,$AD61/($G61-2009),0)+IF($H61>=AY$2,$AE61/($H61-2009),0)+IF($I61>=AY$2,$AF61/($I61-2009),0)+IF($J61>=AY$2,$AG61/($J61-2009),0)+IF($K61>=AY$2,$AH61/($K61-2009),0)+IF($L61>=AY$2,$AI61/($L61-2009),0)+IF($M61>=AY$2,$AJ61/($M61-2009),0)+IF($N61>=AY$2,$AK61/($N61-2009),0)+IF($O61>=AY$2,$AL61/($O61-2009),0)+IF($P61>=AY$2,$AM61/($P61-2009),0)+IF($Q61>=AY$2,$AN61/($Q61-2009),0)+IF($R61>=AY$2,$AO61/($R61-2009),0)+IF($S61>=AY$2,$AP61/($S61-2009),0)+IF($T61>=AY$2,$AQ61/($T61-2009),0)+IF($U61>=AY$2,$AR61/($U61-2009),0)+IF($V61>=AY$2,$AS61/($V61-2009),0)+IF($W61>=AY$2,$AT61/($W61-2009),0)+IF($X61>=AY$2,$AU61/($X61-2009),0)+IF($Y61>=AY$2,$AV61/($Y61-2009),0) ->  | AZ61: =IF($D61>=AZ$2,$AA61/($D61-2009),0)+IF($E61>=AZ$2,$AB61/($E61-2009),0)+IF($F61>=AZ$2,$AC61/($F61-2009),0)+IF($G61>=AZ$2,$AD61/($G61-2009),0)+IF($H61>=AZ$2,$AE61/($H61-2009),0)+IF($I61>=AZ$2,$AF61/($I61-2009),0)+IF($J61>=AZ$2,$AG61/($J61-2009),0)+IF($K61>=AZ$2,$AH61/($K61-2009),0)+IF($L61>=AZ$2,$AI61/($L61-2009),0)+IF($M61>=AZ$2,$AJ61/($M61-2009),0)+IF($N61>=AZ$2,$AK61/($N61-2009),0)+IF($O61>=AZ$2,$AL61/($O61-2009),0)+IF($P61>=AZ$2,$AM61/($P61-2009),0)+IF($Q61>=AZ$2,$AN61/($Q61-2009),0)+IF($R61>=AZ$2,$AO61/($R61-2009),0)+IF($S61>=AZ$2,$AP61/($S61-2009),0)+IF($T61>=AZ$2,$AQ61/($T61-2009),0)+IF($U61>=AZ$2,$AR61/($U61-2009),0)+IF($V61>=AZ$2,$AS61/($V61-2009),0)+IF($W61>=AZ$2,$AT61/($W61-2009),0)+IF($X61>=AZ$2,$AU61/($X61-2009),0)+IF($Y61>=AZ$2,$AV61/($Y61-2009),0) ->  | BS61: 0 | BT61: 0 | BU61: 0 | BV61: 0 | BW61: 0 | BX61: 0 | BY61: 0 | BZ61: 0 | CA61: 0 | CB61: 0 | CC61: 0 | CD61: 0 | CE61: 0 | CF61: 0 | CG61: 0 | CH61: 0 | CI61: 0 | CJ61: 0 | CK61: 0 | CL61: 0 | CM61: 0 | CN61: 0 | CO61: 0 | CP61: 0 | CQ61: 0 | CR61: 0 | CS61: 0 | CT61: 0 | CU61: 0 | CV61: 0 | CW61: 0 | CX61: 0 | CY61: 0 | CZ61: 0 | DA61: 0 | DB61: 0 | DC61: 0 | DD61: 0 | DE61: 0 | DF61: 0 | DG61: 0 | DH61: 0 | DI61: 0 | DJ61: 0 | DK61: 0 | DL61: =IF($D61>=DL$2,$AA61/($D61-2009),0)+IF($E61>=DL$2,$AB61/($E61-2009),0)+IF($F61>=DL$2,$AC61/($F61-2009),0)+IF($G61>=DL$2,$AD61/($G61-2009),0)+IF($H61>=DL$2,$AE61/($H61-2009),0)+IF($I61>=DL$2,$AF61/($I61-2009),0)+IF($J61>=DL$2,$AG61/($J61-2009),0)+IF($K61>=DL$2,$AH61/($K61-2009),0)+IF($L61>=DL$2,$AI61/($L61-2009),0)+IF($M61>=DL$2,$AJ61/($M61-2009),0)+IF($N61>=DL$2,$AK61/($N61-2009),0)+IF($O61>=DL$2,$AL61/($O61-2009),0)+IF($P61>=DL$2,$AM61/($P61-2009),0)+IF($Q61>=DL$2,$AN61/($Q61-2009),0)+IF($R61>=DL$2,$AO61/($R61-2009),0)+IF($S61>=DL$2,$AP61/($S61-2009),0)+IF($T61>=DL$2,$AQ61/($T61-2009),0)+IF($U61>=DL$2,$AR61/($U61-2009),0)+IF($V61>=DL$2,$AS61/($V61-2009),0)+IF($W61>=DL$2,$AT61/($W61-2009),0)+IF($X61>=DL$2,$AU61/($X61-2009),0)+IF($Y61>=DL$2,$AV61/($Y61-2009),0) -> 0 | DM61: 0 | DN61: 0 | DO61: 0 | DP61: 0 | DQ61: 0 | DR61: 0 | DS61: 0 | DT61: 0 | DU61: 0 | DV61: 0 | DW61: 0 | DX61: 0 | DY61: 0 | DZ61: 0 | EA61: 0 | EB61: 0 | EC61: 0 | ED61: 0 | EE61: 0 | EF61: 0 | EG61: 0 | EH61: 0 | EI61: 0 | EJ61: 0 | EK61: 0 | EL61: 0 | EM61: 0 | EN61: 0 | EO61: 0 | EP61: 0 | EQ61: 0 | ER61: 0 | ES61: 0 | ET61: 0 | EU61: 0
A62: =+Genanskaffelsespriser!$B$47 -> Slutdisponering, slam - lavteknologisk (slammineralisering), SRO | B62: PE | C62: =Genanskaffelsespriser!$E$47 -> 10 | D62: =D$3+$C62 -> 1915 | E62: 1925 | F62: 1935 | G62: 1945 | H62: 1955 | I62: 1965 | J62: 1975 | K62: 1985 | L62: 1992 | M62: 1997 | N62: 2002 | O62: 2007 | P62: 2010 | Q62: 2011 | R62: 2012 | S62: 2013 | T62: 2014 | U62: 2015 | V62: 2016 | W62: 2017 | X62: 2018 | Y62: 2019 | Z62: 0 | AA62: =Produktionsanlæg!#REF! ->  | AB62: =Produktionsanlæg!#REF! ->  | AC62: =Produktionsanlæg!#REF! ->  | AD62: =Produktionsanlæg!#REF! ->  | AE62: =Produktionsanlæg!#REF! ->  | AF62: =Produktionsanlæg!#REF! ->  | AG62: =Produktionsanlæg!#REF! ->  | AH62: =Produktionsanlæg!#REF! ->  | AI62: =Produktionsanlæg!#REF! ->  | AJ62: =Produktionsanlæg!#REF! ->  | AK62: =Produktionsanlæg!#REF! ->  | AL62: =Produktionsanlæg!#REF! ->  | AM62: =Produktionsanlæg!#REF! ->  | AN62: =Produktionsanlæg!#REF! ->  | AO62: =Produktionsanlæg!#REF! ->  | AP62: =Produktionsanlæg!#REF! ->  | AQ62: =Produktionsanlæg!#REF! ->  | AR62: =Produktionsanlæg!#REF! ->  | AS62: =Produktionsanlæg!#REF! ->  | AT62: =Produktionsanlæg!#REF! ->  | AU62: =Produktionsanlæg!#REF! ->  | AV62: =Produktionsanlæg!#REF! ->  | AX62: =SUM(#REF!) ->  | AY62: =IF($D62>=AY$2,$AA62/($D62-2009),0)+IF($E62>=AY$2,$AB62/($E62-2009),0)+IF($F62>=AY$2,$AC62/($F62-2009),0)+IF($G62>=AY$2,$AD62/($G62-2009),0)+IF($H62>=AY$2,$AE62/($H62-2009),0)+IF($I62>=AY$2,$AF62/($I62-2009),0)+IF($J62>=AY$2,$AG62/($J62-2009),0)+IF($K62>=AY$2,$AH62/($K62-2009),0)+IF($L62>=AY$2,$AI62/($L62-2009),0)+IF($M62>=AY$2,$AJ62/($M62-2009),0)+IF($N62>=AY$2,$AK62/($N62-2009),0)+IF($O62>=AY$2,$AL62/($O62-2009),0)+IF($P62>=AY$2,$AM62/($P62-2009),0)+IF($Q62>=AY$2,$AN62/($Q62-2009),0)+IF($R62>=AY$2,$AO62/($R62-2009),0)+IF($S62>=AY$2,$AP62/($S62-2009),0)+IF($T62>=AY$2,$AQ62/($T62-2009),0)+IF($U62>=AY$2,$AR62/($U62-2009),0)+IF($V62>=AY$2,$AS62/($V62-2009),0)+IF($W62>=AY$2,$AT62/($W62-2009),0)+IF($X62>=AY$2,$AU62/($X62-2009),0)+IF($Y62>=AY$2,$AV62/($Y62-2009),0) ->  | BI62: 0 | BJ62: 0 | BK62: 0 | BL62: 0 | BM62: 0 | BN62: 0 | BO62: 0 | BP62: 0 | BQ62: 0 | BR62: 0 | BS62: 0 | BT62: 0 | BU62: 0 | BV62: 0 | BW62: 0 | BX62: 0 | BY62: 0 | BZ62: 0 | CA62: 0 | CB62: 0 | CC62: 0 | CD62: 0 | CE62: 0 | CF62: 0 | CG62: 0 | CH62: 0 | CI62: 0 | CJ62: 0 | CK62: 0 | CL62: 0 | CM62: 0 | CN62: 0 | CO62: 0 | CP62: 0 | CQ62: 0 | CR62: 0 | CS62: 0 | CT62: 0 | CU62: 0 | CV62: 0 | CW62: 0 | CX62: 0 | CY62: 0 | CZ62: 0 | DA62: 0 | DB62: 0 | DC62: 0 | DD62: 0 | DE62: 0 | DF62: 0 | DG62: 0 | DH62: 0 | DI62: 0 | DJ62: 0 | DK62: 0 | DL62: 0 | DM62: 0 | DN62: 0 | DO62: 0 | DP62: 0 | DQ62: 0 | DR62: 0 | DS62: 0 | DT62: 0 | DU62: 0 | DV62: 0 | DW62: 0 | DX62: 0 | DY62: 0 | DZ62: 0 | EA62: 0 | EB62: 0 | EC62: 0 | ED62: 0 | EE62: 0 | EF62: 0 | EG62: 0 | EH62: 0 | EI62: 0 | EJ62: 0 | EK62: 0 | EL62: 0 | EM62: 0 | EN62: 0 | EO62: 0 | EP62: 0 | EQ62: 0 | ER62: 0 | ES62: 0 | ET62: 0 | EU62: 0
A63: =+Genanskaffelsespriser!$B$48 -> Slutdisponering, slam - højteknologisk (slamtørring), Konstruktioner | B63: PE | C63: =Genanskaffelsespriser!$E$48 -> 60 | D63: =D$3+$C63+Produktionsanlæg!#REF! ->  | E63: =E$3+$C63+Produktionsanlæg!#REF! ->  | F63: =F$3+$C63+Produktionsanlæg!#REF! ->  | G63: =G$3+$C63+Produktionsanlæg!#REF! ->  | H63: =H$3+$C63+Produktionsanlæg!#REF! ->  | I63: =I$3+$C63+Produktionsanlæg!#REF! ->  | J63: =J$3+$C63+Produktionsanlæg!#REF! ->  | K63: =K$3+$C63+Produktionsanlæg!#REF! ->  | L63: =L$3+$C63+Produktionsanlæg!#REF! ->  | M63: =M$3+$C63+Produktionsanlæg!#REF! ->  | N63: =N$3+$C63+Produktionsanlæg!#REF! ->  | O63: =O$3+$C63+Produktionsanlæg!#REF! ->  | P63: =P$3+$C63+Produktionsanlæg!#REF! ->  | Q63: =Q$3+$C63+Produktionsanlæg!#REF! ->  | R63: =R$3+$C63+Produktionsanlæg!#REF! ->  | S63: =S$3+$C63+Produktionsanlæg!#REF! ->  | T63: =T$3+$C63+Produktionsanlæg!#REF! ->  | U63: =U$3+$C63+Produktionsanlæg!#REF! ->  | V63: =V$3+$C63+Produktionsanlæg!#REF! ->  | W63: =W$3+$C63+Produktionsanlæg!#REF! ->  | X63: =X$3+$C63+Produktionsanlæg!#REF! ->  | Y63: =Y$3+$C63+Produktionsanlæg!#REF! ->  | Z63: 0 | AA63: =Produktionsanlæg!#REF! ->  | AB63: =Produktionsanlæg!#REF! ->  | AC63: =Produktionsanlæg!#REF! ->  | AD63: =Produktionsanlæg!#REF! ->  | AE63: =Produktionsanlæg!#REF! ->  | AF63: =Produktionsanlæg!#REF! ->  | AG63: =Produktionsanlæg!#REF! ->  | AH63: =Produktionsanlæg!#REF! ->  | AI63: =Produktionsanlæg!#REF! ->  | AJ63: =Produktionsanlæg!#REF! ->  | AK63: =Produktionsanlæg!#REF! ->  | AL63: =Produktionsanlæg!#REF! ->  | AM63: =Produktionsanlæg!#REF! ->  | AN63: =Produktionsanlæg!#REF! ->  | AO63: =Produktionsanlæg!#REF! ->  | AP63: =Produktionsanlæg!#REF! ->  | AQ63: =Produktionsanlæg!#REF! ->  | AR63: =Produktionsanlæg!#REF! ->  | AS63: =Produktionsanlæg!#REF! ->  | AT63: =Produktionsanlæg!#REF! ->  | AU63: =Produktionsanlæg!#REF! ->  | AV63: =Produktionsanlæg!#REF! ->  | AX63: =SUM(#REF!) ->  | AY63: =IF($D63>=AY$2,$AA63/($D63-2009),0)+IF($E63>=AY$2,$AB63/($E63-2009),0)+IF($F63>=AY$2,$AC63/($F63-2009),0)+IF($G63>=AY$2,$AD63/($G63-2009),0)+IF($H63>=AY$2,$AE63/($H63-2009),0)+IF($I63>=AY$2,$AF63/($I63-2009),0)+IF($J63>=AY$2,$AG63/($J63-2009),0)+IF($K63>=AY$2,$AH63/($K63-2009),0)+IF($L63>=AY$2,$AI63/($L63-2009),0)+IF($M63>=AY$2,$AJ63/($M63-2009),0)+IF($N63>=AY$2,$AK63/($N63-2009),0)+IF($O63>=AY$2,$AL63/($O63-2009),0)+IF($P63>=AY$2,$AM63/($P63-2009),0)+IF($Q63>=AY$2,$AN63/($Q63-2009),0)+IF($R63>=AY$2,$AO63/($R63-2009),0)+IF($S63>=AY$2,$AP63/($S63-2009),0)+IF($T63>=AY$2,$AQ63/($T63-2009),0)+IF($U63>=AY$2,$AR63/($U63-2009),0)+IF($V63>=AY$2,$AS63/($V63-2009),0)+IF($W63>=AY$2,$AT63/($W63-2009),0)+IF($X63>=AY$2,$AU63/($X63-2009),0)+IF($Y63>=AY$2,$AV63/($Y63-2009),0) -> 
A64: Levetidsforlængelse | B64: år | C64: - | Z64: 0
A65: =+Genanskaffelsespriser!$B$49 -> Slutdisponering, slam - højteknologisk (slamtørring), Mek/EL | B65: PE | C65: =Genanskaffelsespriser!$E$49 -> 20 | D65: =D$3+$C65 -> 1925 | E65: =E$3+$C65 -> 1935 | F65: 1945 | G65: 1955 | H65: 1965 | I65: 1975 | J65: 1985 | K65: 1995 | L65: 2002 | M65: 2007 | N65: 2012 | O65: 2017 | P65: 2020 | Q65: 2021 | R65: 2022 | S65: 2023 | T65: 2024 | U65: 2025 | V65: 2026 | W65: 2027 | X65: 2028 | Y65: 2029 | Z65: 0 | AA65: =Produktionsanlæg!#REF! ->  | AB65: =Produktionsanlæg!#REF! ->  | AC65: =Produktionsanlæg!#REF! ->  | AD65: =Produktionsanlæg!#REF! ->  | AE65: =Produktionsanlæg!#REF! ->  | AF65: =Produktionsanlæg!#REF! ->  | AG65: =Produktionsanlæg!#REF! ->  | AH65: =Produktionsanlæg!#REF! ->  | AI65: =Produktionsanlæg!#REF! ->  | AJ65: =Produktionsanlæg!#REF! ->  | AK65: =Produktionsanlæg!#REF! ->  | AL65: =Produktionsanlæg!#REF! ->  | AM65: =Produktionsanlæg!#REF! ->  | AN65: =Produktionsanlæg!#REF! ->  | AO65: =Produktionsanlæg!#REF! ->  | AP65: =Produktionsanlæg!#REF! ->  | AQ65: =Produktionsanlæg!#REF! ->  | AR65: =Produktionsanlæg!#REF! ->  | AS65: =Produktionsanlæg!#REF! ->  | AT65: =Produktionsanlæg!#REF! ->  | AU65: =Produktionsanlæg!#REF! ->  | AV65: =Produktionsanlæg!#REF! ->  | AX65: =SUM(#REF!) ->  | AY65: =IF($D65>=AY$2,$AA65/($D65-2009),0)+IF($E65>=AY$2,$AB65/($E65-2009),0)+IF($F65>=AY$2,$AC65/($F65-2009),0)+IF($G65>=AY$2,$AD65/($G65-2009),0)+IF($H65>=AY$2,$AE65/($H65-2009),0)+IF($I65>=AY$2,$AF65/($I65-2009),0)+IF($J65>=AY$2,$AG65/($J65-2009),0)+IF($K65>=AY$2,$AH65/($K65-2009),0)+IF($L65>=AY$2,$AI65/($L65-2009),0)+IF($M65>=AY$2,$AJ65/($M65-2009),0)+IF($N65>=AY$2,$AK65/($N65-2009),0)+IF($O65>=AY$2,$AL65/($O65-2009),0)+IF($P65>=AY$2,$AM65/($P65-2009),0)+IF($Q65>=AY$2,$AN65/($Q65-2009),0)+IF($R65>=AY$2,$AO65/($R65-2009),0)+IF($S65>=AY$2,$AP65/($S65-2009),0)+IF($T65>=AY$2,$AQ65/($T65-2009),0)+IF($U65>=AY$2,$AR65/($U65-2009),0)+IF($V65>=AY$2,$AS65/($V65-2009),0)+IF($W65>=AY$2,$AT65/($W65-2009),0)+IF($X65>=AY$2,$AU65/($X65-2009),0)+IF($Y65>=AY$2,$AV65/($Y65-2009),0) ->  | AZ65: =IF($D65>=AZ$2,$AA65/($D65-2009),0)+IF($E65>=AZ$2,$AB65/($E65-2009),0)+IF($F65>=AZ$2,$AC65/($F65-2009),0)+IF($G65>=AZ$2,$AD65/($G65-2009),0)+IF($H65>=AZ$2,$AE65/($H65-2009),0)+IF($I65>=AZ$2,$AF65/($I65-2009),0)+IF($J65>=AZ$2,$AG65/($J65-2009),0)+IF($K65>=AZ$2,$AH65/($K65-2009),0)+IF($L65>=AZ$2,$AI65/($L65-2009),0)+IF($M65>=AZ$2,$AJ65/($M65-2009),0)+IF($N65>=AZ$2,$AK65/($N65-2009),0)+IF($O65>=AZ$2,$AL65/($O65-2009),0)+IF($P65>=AZ$2,$AM65/($P65-2009),0)+IF($Q65>=AZ$2,$AN65/($Q65-2009),0)+IF($R65>=AZ$2,$AO65/($R65-2009),0)+IF($S65>=AZ$2,$AP65/($S65-2009),0)+IF($T65>=AZ$2,$AQ65/($T65-2009),0)+IF($U65>=AZ$2,$AR65/($U65-2009),0)+IF($V65>=AZ$2,$AS65/($V65-2009),0)+IF($W65>=AZ$2,$AT65/($W65-2009),0)+IF($X65>=AZ$2,$AU65/($X65-2009),0)+IF($Y65>=AZ$2,$AV65/($Y65-2009),0) ->  | BS65: 0 | BT65: 0 | BU65: 0 | BV65: 0 | BW65: 0 | BX65: 0 | BY65: 0 | BZ65: 0 | CA65: 0 | CB65: 0 | CC65: 0 | CD65: 0 | CE65: 0 | CF65: 0 | CG65: 0 | CH65: 0 | CI65: 0 | CJ65: 0 | CK65: 0 | CL65: 0 | CM65: 0 | CN65: 0 | CO65: 0 | CP65: 0 | CQ65: 0 | CR65: 0 | CS65: 0 | CT65: 0 | CU65: 0 | CV65: 0 | CW65: 0 | CX65: 0 | CY65: 0 | CZ65: 0 | DA65: 0 | DB65: 0 | DC65: 0 | DD65: 0 | DE65: 0 | DF65: 0 | DG65: 0 | DH65: 0 | DI65: 0 | DJ65: 0 | DK65: 0 | DL65: =IF($D65>=DL$2,$AA65/($D65-2009),0)+IF($E65>=DL$2,$AB65/($E65-2009),0)+IF($F65>=DL$2,$AC65/($F65-2009),0)+IF($G65>=DL$2,$AD65/($G65-2009),0)+IF($H65>=DL$2,$AE65/($H65-2009),0)+IF($I65>=DL$2,$AF65/($I65-2009),0)+IF($J65>=DL$2,$AG65/($J65-2009),0)+IF($K65>=DL$2,$AH65/($K65-2009),0)+IF($L65>=DL$2,$AI65/($L65-2009),0)+IF($M65>=DL$2,$AJ65/($M65-2009),0)+IF($N65>=DL$2,$AK65/($N65-2009),0)+IF($O65>=DL$2,$AL65/($O65-2009),0)+IF($P65>=DL$2,$AM65/($P65-2009),0)+IF($Q65>=DL$2,$AN65/($Q65-2009),0)+IF($R65>=DL$2,$AO65/($R65-2009),0)+IF($S65>=DL$2,$AP65/($S65-2009),0)+IF($T65>=DL$2,$AQ65/($T65-2009),0)+IF($U65>=DL$2,$AR65/($U65-2009),0)+IF($V65>=DL$2,$AS65/($V65-2009),0)+IF($W65>=DL$2,$AT65/($W65-2009),0)+IF($X65>=DL$2,$AU65/($X65-2009),0)+IF($Y65>=DL$2,$AV65/($Y65-2009),0) -> 0 | DM65: 0 | DN65: 0 | DO65: 0 | DP65: 0 | DQ65: 0 | DR65: 0 | DS65: 0 | DT65: 0 | DU65: 0 | DV65: 0 | DW65: 0 | DX65: 0 | DY65: 0 | DZ65: 0 | EA65: 0 | EB65: 0 | EC65: 0 | ED65: 0 | EE65: 0 | EF65: 0 | EG65: 0 | EH65: 0 | EI65: 0 | EJ65: 0 | EK65: 0 | EL65: 0 | EM65: 0 | EN65: 0 | EO65: 0 | EP65: 0 | EQ65: 0 | ER65: 0 | ES65: 0 | ET65: 0 | EU65: 0
A66: =+Genanskaffelsespriser!$B$50 -> Slutdisponering, slam - højteknologisk (slamtørring), SRO | B66: PE | C66: =Genanskaffelsespriser!$E$50 -> 10 | D66: =D$3+$C66 -> 1915 | E66: 1925 | F66: 1935 | G66: 1945 | H66: 1955 | I66: 1965 | J66: 1975 | K66: 1985 | L66: 1992 | M66: 1997 | N66: 2002 | O66: 2007 | P66: 2010 | Q66: 2011 | R66: 2012 | S66: 2013 | T66: 2014 | U66: 2015 | V66: 2016 | W66: 2017 | X66: 2018 | Y66: 2019 | Z66: 0 | AA66: =Produktionsanlæg!#REF! ->  | AB66: =Produktionsanlæg!#REF! ->  | AC66: =Produktionsanlæg!#REF! ->  | AD66: =Produktionsanlæg!#REF! ->  | AE66: =Produktionsanlæg!#REF! ->  | AF66: =Produktionsanlæg!#REF! ->  | AG66: =Produktionsanlæg!#REF! ->  | AH66: =Produktionsanlæg!#REF! ->  | AI66: =Produktionsanlæg!#REF! ->  | AJ66: =Produktionsanlæg!#REF! ->  | AK66: =Produktionsanlæg!#REF! ->  | AL66: =Produktionsanlæg!#REF! ->  | AM66: =Produktionsanlæg!#REF! ->  | AN66: =Produktionsanlæg!#REF! ->  | AO66: =Produktionsanlæg!#REF! ->  | AP66: =Produktionsanlæg!#REF! ->  | AQ66: =Produktionsanlæg!#REF! ->  | AR66: =Produktionsanlæg!#REF! ->  | AS66: =Produktionsanlæg!#REF! ->  | AT66: =Produktionsanlæg!#REF! ->  | AU66: =Produktionsanlæg!#REF! ->  | AV66: =Produktionsanlæg!#REF! ->  | AX66: =SUM(#REF!) ->  | AY66: =IF($D66>=AY$2,$AA66/($D66-2009),0)+IF($E66>=AY$2,$AB66/($E66-2009),0)+IF($F66>=AY$2,$AC66/($F66-2009),0)+IF($G66>=AY$2,$AD66/($G66-2009),0)+IF($H66>=AY$2,$AE66/($H66-2009),0)+IF($I66>=AY$2,$AF66/($I66-2009),0)+IF($J66>=AY$2,$AG66/($J66-2009),0)+IF($K66>=AY$2,$AH66/($K66-2009),0)+IF($L66>=AY$2,$AI66/($L66-2009),0)+IF($M66>=AY$2,$AJ66/($M66-2009),0)+IF($N66>=AY$2,$AK66/($N66-2009),0)+IF($O66>=AY$2,$AL66/($O66-2009),0)+IF($P66>=AY$2,$AM66/($P66-2009),0)+IF($Q66>=AY$2,$AN66/($Q66-2009),0)+IF($R66>=AY$2,$AO66/($R66-2009),0)+IF($S66>=AY$2,$AP66/($S66-2009),0)+IF($T66>=AY$2,$AQ66/($T66-2009),0)+IF($U66>=AY$2,$AR66/($U66-2009),0)+IF($V66>=AY$2,$AS66/($V66-2009),0)+IF($W66>=AY$2,$AT66/($W66-2009),0)+IF($X66>=AY$2,$AU66/($X66-2009),0)+IF($Y66>=AY$2,$AV66/($Y66-2009),0) ->  | BI66: 0 | BJ66: 0 | BK66: 0 | BL66: 0 | BM66: 0 | BN66: 0 | BO66: 0 | BP66: 0 | BQ66: 0 | BR66: 0 | BS66: 0 | BT66: 0 | BU66: 0 | BV66: 0 | BW66: 0 | BX66: 0 | BY66: 0 | BZ66: 0 | CA66: 0 | CB66: 0 | CC66: 0 | CD66: 0 | CE66: 0 | CF66: 0 | CG66: 0 | CH66: 0 | CI66: 0 | CJ66: 0 | CK66: 0 | CL66: 0 | CM66: 0 | CN66: 0 | CO66: 0 | CP66: 0 | CQ66: 0 | CR66: 0 | CS66: 0 | CT66: 0 | CU66: 0 | CV66: 0 | CW66: 0 | CX66: 0 | CY66: 0 | CZ66: 0 | DA66: 0 | DB66: 0 | DC66: 0 | DD66: 0 | DE66: 0 | DF66: 0 | DG66: 0 | DH66: 0 | DI66: 0 | DJ66: 0 | DK66: 0 | DL66: 0 | DM66: 0 | DN66: 0 | DO66: 0 | DP66: 0 | DQ66: 0 | DR66: 0 | DS66: 0 | DT66: 0 | DU66: 0 | DV66: 0 | DW66: 0 | DX66: 0 | DY66: 0 | DZ66: 0 | EA66: 0 | EB66: 0 | EC66: 0 | ED66: 0 | EE66: 0 | EF66: 0 | EG66: 0 | EH66: 0 | EI66: 0 | EJ66: 0 | EK66: 0 | EL66: 0 | EM66: 0 | EN66: 0 | EO66: 0 | EP66: 0 | EQ66: 0 | ER66: 0 | ES66: 0 | ET66: 0 | EU66: 0
A67: =+Genanskaffelsespriser!$B$51 -> Slutdisponering, slam - højteknologisk (slamtørring og -forbrænding), Konstruktioner | B67: PE | C67: =Genanskaffelsespriser!$E$51 -> 60 | D67: =D$3+$C67+Produktionsanlæg!#REF! ->  | E67: =E$3+$C67+Produktionsanlæg!#REF! ->  | F67: =F$3+$C67+Produktionsanlæg!#REF! ->  | G67: =G$3+$C67+Produktionsanlæg!#REF! ->  | H67: =H$3+$C67+Produktionsanlæg!#REF! ->  | I67: =I$3+$C67+Produktionsanlæg!#REF! ->  | J67: =J$3+$C67+Produktionsanlæg!#REF! ->  | K67: =K$3+$C67+Produktionsanlæg!#REF! ->  | L67: =L$3+$C67+Produktionsanlæg!#REF! ->  | M67: =M$3+$C67+Produktionsanlæg!#REF! ->  | N67: =N$3+$C67+Produktionsanlæg!#REF! ->  | O67: =O$3+$C67+Produktionsanlæg!#REF! ->  | P67: =P$3+$C67+Produktionsanlæg!#REF! ->  | Q67: =Q$3+$C67+Produktionsanlæg!#REF! ->  | R67: =R$3+$C67+Produktionsanlæg!#REF! ->  | S67: =S$3+$C67+Produktionsanlæg!#REF! ->  | T67: =T$3+$C67+Produktionsanlæg!#REF! ->  | U67: =U$3+$C67+Produktionsanlæg!#REF! ->  | V67: =V$3+$C67+Produktionsanlæg!#REF! ->  | W67: =W$3+$C67+Produktionsanlæg!#REF! ->  | X67: =X$3+$C67+Produktionsanlæg!#REF! ->  | Y67: =Y$3+$C67+Produktionsanlæg!#REF! ->  | Z67: 0 | AA67: =Produktionsanlæg!#REF! ->  | AB67: =Produktionsanlæg!#REF! ->  | AC67: =Produktionsanlæg!#REF! ->  | AD67: =Produktionsanlæg!#REF! ->  | AE67: =Produktionsanlæg!#REF! ->  | AF67: =Produktionsanlæg!#REF! ->  | AG67: =Produktionsanlæg!#REF! ->  | AH67: =Produktionsanlæg!#REF! ->  | AI67: =Produktionsanlæg!#REF! ->  | AJ67: =Produktionsanlæg!#REF! ->  | AK67: =Produktionsanlæg!#REF! ->  | AL67: =Produktionsanlæg!#REF! ->  | AM67: =Produktionsanlæg!#REF! ->  | AN67: =Produktionsanlæg!#REF! ->  | AO67: =Produktionsanlæg!#REF! ->  | AP67: =Produktionsanlæg!#REF! ->  | AQ67: =Produktionsanlæg!#REF! ->  | AR67: =Produktionsanlæg!#REF! ->  | AS67: =Produktionsanlæg!#REF! ->  | AT67: =Produktionsanlæg!#REF! ->  | AU67: =Produktionsanlæg!#REF! ->  | AV67: =Produktionsanlæg!#REF! ->  | AX67: =SUM(#REF!) ->  | AY67: =IF($D67>=AY$2,$AA67/($D67-2009),0)+IF($E67>=AY$2,$AB67/($E67-2009),0)+IF($F67>=AY$2,$AC67/($F67-2009),0)+IF($G67>=AY$2,$AD67/($G67-2009),0)+IF($H67>=AY$2,$AE67/($H67-2009),0)+IF($I67>=AY$2,$AF67/($I67-2009),0)+IF($J67>=AY$2,$AG67/($J67-2009),0)+IF($K67>=AY$2,$AH67/($K67-2009),0)+IF($L67>=AY$2,$AI67/($L67-2009),0)+IF($M67>=AY$2,$AJ67/($M67-2009),0)+IF($N67>=AY$2,$AK67/($N67-2009),0)+IF($O67>=AY$2,$AL67/($O67-2009),0)+IF($P67>=AY$2,$AM67/($P67-2009),0)+IF($Q67>=AY$2,$AN67/($Q67-2009),0)+IF($R67>=AY$2,$AO67/($R67-2009),0)+IF($S67>=AY$2,$AP67/($S67-2009),0)+IF($T67>=AY$2,$AQ67/($T67-2009),0)+IF($U67>=AY$2,$AR67/($U67-2009),0)+IF($V67>=AY$2,$AS67/($V67-2009),0)+IF($W67>=AY$2,$AT67/($W67-2009),0)+IF($X67>=AY$2,$AU67/($X67-2009),0)+IF($Y67>=AY$2,$AV67/($Y67-2009),0) -> 
A68: Levetidsforlængelse | B68: år | C68: - | Z68: 0
A69: =+Genanskaffelsespriser!$B$52 -> Slutdisponering, slam - højteknologisk (slamtørring og -forbrænding), Mek/EL | B69: PE | C69: =Genanskaffelsespriser!$E$52 -> 20 | D69: =D$3+$C69 -> 1925 | E69: =E$3+$C69 -> 1935 | F69: 1945 | G69: 1955 | H69: 1965 | I69: 1975 | J69: 1985 | K69: 1995 | L69: 2002 | M69: 2007 | N69: 2012 | O69: 2017 | P69: 2020 | Q69: 2021 | R69: 2022 | S69: 2023 | T69: 2024 | U69: 2025 | V69: 2026 | W69: 2027 | X69: 2028 | Y69: 2029 | Z69: =SUM(Z70) -> 0 | AA69: =Produktionsanlæg!#REF! ->  | AB69: =Produktionsanlæg!#REF! ->  | AC69: =Produktionsanlæg!#REF! ->  | AD69: =Produktionsanlæg!#REF! ->  | AE69: =Produktionsanlæg!#REF! ->  | AF69: =Produktionsanlæg!#REF! ->  | AG69: =Produktionsanlæg!#REF! ->  | AH69: =Produktionsanlæg!#REF! ->  | AI69: =Produktionsanlæg!#REF! ->  | AJ69: =Produktionsanlæg!#REF! ->  | AK69: =Produktionsanlæg!#REF! ->  | AL69: =Produktionsanlæg!#REF! ->  | AM69: =Produktionsanlæg!#REF! ->  | AN69: =Produktionsanlæg!#REF! ->  | AO69: =Produktionsanlæg!#REF! ->  | AP69: =Produktionsanlæg!#REF! ->  | AQ69: =Produktionsanlæg!#REF! ->  | AR69: =Produktionsanlæg!#REF! ->  | AS69: =Produktionsanlæg!#REF! ->  | AT69: =Produktionsanlæg!#REF! ->  | AU69: =Produktionsanlæg!#REF! ->  | AV69: =Produktionsanlæg!#REF! ->  | AX69: =SUM(#REF!) ->  | AY69: =IF($D69>=AY$2,$AA69/($D69-2009),0)+IF($E69>=AY$2,$AB69/($E69-2009),0)+IF($F69>=AY$2,$AC69/($F69-2009),0)+IF($G69>=AY$2,$AD69/($G69-2009),0)+IF($H69>=AY$2,$AE69/($H69-2009),0)+IF($I69>=AY$2,$AF69/($I69-2009),0)+IF($J69>=AY$2,$AG69/($J69-2009),0)+IF($K69>=AY$2,$AH69/($K69-2009),0)+IF($L69>=AY$2,$AI69/($L69-2009),0)+IF($M69>=AY$2,$AJ69/($M69-2009),0)+IF($N69>=AY$2,$AK69/($N69-2009),0)+IF($O69>=AY$2,$AL69/($O69-2009),0)+IF($P69>=AY$2,$AM69/($P69-2009),0)+IF($Q69>=AY$2,$AN69/($Q69-2009),0)+IF($R69>=AY$2,$AO69/($R69-2009),0)+IF($S69>=AY$2,$AP69/($S69-2009),0)+IF($T69>=AY$2,$AQ69/($T69-2009),0)+IF($U69>=AY$2,$AR69/($U69-2009),0)+IF($V69>=AY$2,$AS69/($V69-2009),0)+IF($W69>=AY$2,$AT69/($W69-2009),0)+IF($X69>=AY$2,$AU69/($X69-2009),0)+IF($Y69>=AY$2,$AV69/($Y69-2009),0) ->  | BO69: =IF($D69>=BO$2,$AA69/($D69-2009),0)+IF($E69>=BO$2,$AB69/($E69-2009),0)+IF($F69>=BO$2,$AC69/($F69-2009),0)+IF($G69>=BO$2,$AD69/($G69-2009),0)+IF($H69>=BO$2,$AE69/($H69-2009),0)+IF($I69>=BO$2,$AF69/($I69-2009),0)+IF($J69>=BO$2,$AG69/($J69-2009),0)+IF($K69>=BO$2,$AH69/($K69-2009),0)+IF($L69>=BO$2,$AI69/($L69-2009),0)+IF($M69>=BO$2,$AJ69/($M69-2009),0)+IF($N69>=BO$2,$AK69/($N69-2009),0)+IF($O69>=BO$2,$AL69/($O69-2009),0)+IF($P69>=BO$2,$AM69/($P69-2009),0)+IF($Q69>=BO$2,$AN69/($Q69-2009),0)+IF($R69>=BO$2,$AO69/($R69-2009),0)+IF($S69>=BO$2,$AP69/($S69-2009),0)+IF($T69>=BO$2,$AQ69/($T69-2009),0)+IF($U69>=BO$2,$AR69/($U69-2009),0)+IF($V69>=BO$2,$AS69/($V69-2009),0)+IF($W69>=BO$2,$AT69/($W69-2009),0)+IF($X69>=BO$2,$AU69/($X69-2009),0)+IF($Y69>=BO$2,$AV69/($Y69-2009),0) ->  | BS69: 0 | BT69: 0 | BU69: 0 | BV69: 0 | BW69: 0 | BX69: 0 | BY69: 0 | BZ69: 0 | CA69: 0 | CB69: 0 | CC69: 0 | CD69: 0 | CE69: 0 | CF69: 0 | CG69: 0 | CH69: 0 | CI69: 0 | CJ69: 0 | CK69: 0 | CL69: 0 | CM69: 0 | CN69: 0 | CO69: 0 | CP69: 0 | CQ69: 0 | CR69: 0 | CS69: 0 | CT69: 0 | CU69: 0 | CV69: 0 | CW69: 0 | CX69: 0 | CY69: 0 | CZ69: 0 | DA69: 0 | DB69: 0 | DC69: 0 | DD69: 0 | DE69: 0 | DF69: 0 | DG69: 0 | DH69: 0 | DI69: 0 | DJ69: 0 | DK69: 0 | DL69: 0 | DM69: 0 | DN69: 0 | DO69: 0 | DP69: 0 | DQ69: 0 | DR69: 0 | DS69: 0 | DT69: 0 | DU69: 0 | DV69: 0 | DW69: 0 | DX69: 0 | DY69: 0 | DZ69: 0 | EA69: =IF($D69>=EA$2,$AA69/($D69-2009),0)+IF($E69>=EA$2,$AB69/($E69-2009),0)+IF($F69>=EA$2,$AC69/($F69-2009),0)+IF($G69>=EA$2,$AD69/($G69-2009),0)+IF($H69>=EA$2,$AE69/($H69-2009),0)+IF($I69>=EA$2,$AF69/($I69-2009),0)+IF($J69>=EA$2,$AG69/($J69-2009),0)+IF($K69>=EA$2,$AH69/($K69-2009),0)+IF($L69>=EA$2,$AI69/($L69-2009),0)+IF($M69>=EA$2,$AJ69/($M69-2009),0)+IF($N69>=EA$2,$AK69/($N69-2009),0)+IF($O69>=EA$2,$AL69/($O69-2009),0)+IF($P69>=EA$2,$AM69/($P69-2009),0)+IF($Q69>=EA$2,$AN69/($Q69-2009),0)+IF($R69>=EA$2,$AO69/($R69-2009),0)+IF($S69>=EA$2,$AP69/($S69-2009),0)+IF($T69>=EA$2,$AQ69/($T69-2009),0)+IF($U69>=EA$2,$AR69/($U69-2009),0)+IF($V69>=EA$2,$AS69/($V69-2009),0)+IF($W69>=EA$2,$AT69/($W69-2009),0)+IF($X69>=EA$2,$AU69/($X69-2009),0)+IF($Y69>=EA$2,$AV69/($Y69-2009),0) -> 0 | EB69: 0 | EC69: 0 | ED69: 0 | EE69: 0 | EF69: 0 | EG69: 0 | EH69: 0 | EI69: 0 | EJ69: 0 | EK69: 0 | EL69: 0 | EM69: 0 | EN69: 0 | EO69: 0 | EP69: 0 | EQ69: 0 | ER69: 0 | ES69: 0 | ET69: 0 | EU69: 0
A70: =+Genanskaffelsespriser!$B$53 -> Slutdisponering, slam - højteknologisk (slamtørring og -forbrænding), SRO | B70: PE | C70: =Genanskaffelsespriser!$E$53 -> 10 | D70: =D$3+$C70 -> 1915 | E70: 1925 | F70: 1935 | G70: 1945 | H70: 1955 | I70: 1965 | J70: 1975 | K70: 1985 | L70: 1992 | M70: 1997 | N70: 2002 | O70: 2007 | P70: 2010 | Q70: 2011 | R70: 2012 | S70: 2013 | T70: 2014 | U70: 2015 | V70: 2016 | W70: 2017 | X70: 2018 | Y70: 2019 | Z70: =SUM(Z71) -> 0 | AA70: =Produktionsanlæg!#REF! ->  | AB70: =Produktionsanlæg!#REF! ->  | AC70: =Produktionsanlæg!#REF! ->  | AD70: =Produktionsanlæg!#REF! ->  | AE70: =Produktionsanlæg!#REF! ->  | AF70: =Produktionsanlæg!#REF! ->  | AG70: =Produktionsanlæg!#REF! ->  | AH70: =Produktionsanlæg!#REF! ->  | AI70: =Produktionsanlæg!#REF! ->  | AJ70: =Produktionsanlæg!#REF! ->  | AK70: =Produktionsanlæg!#REF! ->  | AL70: =Produktionsanlæg!#REF! ->  | AM70: =Produktionsanlæg!#REF! ->  | AN70: =Produktionsanlæg!#REF! ->  | AO70: =Produktionsanlæg!#REF! ->  | AP70: =Produktionsanlæg!#REF! ->  | AQ70: =Produktionsanlæg!#REF! ->  | AR70: =Produktionsanlæg!#REF! ->  | AS70: =Produktionsanlæg!#REF! ->  | AT70: =Produktionsanlæg!#REF! ->  | AU70: =Produktionsanlæg!#REF! ->  | AV70: =Produktionsanlæg!#REF! ->  | AX70: =SUM(#REF!) ->  | AY70: =IF($D70>=AY$2,$AA70/($D70-2009),0)+IF($E70>=AY$2,$AB70/($E70-2009),0)+IF($F70>=AY$2,$AC70/($F70-2009),0)+IF($G70>=AY$2,$AD70/($G70-2009),0)+IF($H70>=AY$2,$AE70/($H70-2009),0)+IF($I70>=AY$2,$AF70/($I70-2009),0)+IF($J70>=AY$2,$AG70/($J70-2009),0)+IF($K70>=AY$2,$AH70/($K70-2009),0)+IF($L70>=AY$2,$AI70/($L70-2009),0)+IF($M70>=AY$2,$AJ70/($M70-2009),0)+IF($N70>=AY$2,$AK70/($N70-2009),0)+IF($O70>=AY$2,$AL70/($O70-2009),0)+IF($P70>=AY$2,$AM70/($P70-2009),0)+IF($Q70>=AY$2,$AN70/($Q70-2009),0)+IF($R70>=AY$2,$AO70/($R70-2009),0)+IF($S70>=AY$2,$AP70/($S70-2009),0)+IF($T70>=AY$2,$AQ70/($T70-2009),0)+IF($U70>=AY$2,$AR70/($U70-2009),0)+IF($V70>=AY$2,$AS70/($V70-2009),0)+IF($W70>=AY$2,$AT70/($W70-2009),0)+IF($X70>=AY$2,$AU70/($X70-2009),0)+IF($Y70>=AY$2,$AV70/($Y70-2009),0) ->  | AZ70: =IF($D70>=AZ$2,$AA70/($D70-2009),0)+IF($E70>=AZ$2,$AB70/($E70-2009),0)+IF($F70>=AZ$2,$AC70/($F70-2009),0)+IF($G70>=AZ$2,$AD70/($G70-2009),0)+IF($H70>=AZ$2,$AE70/($H70-2009),0)+IF($I70>=AZ$2,$AF70/($I70-2009),0)+IF($J70>=AZ$2,$AG70/($J70-2009),0)+IF($K70>=AZ$2,$AH70/($K70-2009),0)+IF($L70>=AZ$2,$AI70/($L70-2009),0)+IF($M70>=AZ$2,$AJ70/($M70-2009),0)+IF($N70>=AZ$2,$AK70/($N70-2009),0)+IF($O70>=AZ$2,$AL70/($O70-2009),0)+IF($P70>=AZ$2,$AM70/($P70-2009),0)+IF($Q70>=AZ$2,$AN70/($Q70-2009),0)+IF($R70>=AZ$2,$AO70/($R70-2009),0)+IF($S70>=AZ$2,$AP70/($S70-2009),0)+IF($T70>=AZ$2,$AQ70/($T70-2009),0)+IF($U70>=AZ$2,$AR70/($U70-2009),0)+IF($V70>=AZ$2,$AS70/($V70-2009),0)+IF($W70>=AZ$2,$AT70/($W70-2009),0)+IF($X70>=AZ$2,$AU70/($X70-2009),0)+IF($Y70>=AZ$2,$AV70/($Y70-2009),0) ->  | BI70: 0 | BJ70: 0 | BK70: 0 | BL70: 0 | BM70: 0 | BN70: 0 | BO70: 0 | BP70: 0 | BQ70: 0 | BR70: 0 | BS70: 0 | BT70: 0 | BU70: 0 | BV70: 0 | BW70: 0 | BX70: 0 | BY70: 0 | BZ70: 0 | CA70: 0 | CB70: 0 | CC70: 0 | CD70: 0 | CE70: 0 | CF70: 0 | CG70: 0 | CH70: 0 | CI70: 0 | CJ70: 0 | CK70: 0 | CL70: 0 | CM70: 0 | CN70: 0 | CO70: 0 | CP70: 0 | CQ70: 0 | CR70: 0 | CS70: 0 | CT70: 0 | CU70: 0 | CV70: 0 | CW70: 0 | CX70: 0 | CY70: 0 | CZ70: 0 | DA70: 0 | DB70: 0 | DC70: 0 | DD70: 0 | DE70: 0 | DF70: 0 | DG70: 0 | DH70: 0 | DI70: 0 | DJ70: 0 | DK70: 0 | DL70: 0 | DM70: 0 | DN70: 0 | DO70: 0 | DP70: 0 | DQ70: 0 | DR70: 0 | DS70: 0 | DT70: 0 | DU70: 0 | DV70: 0 | DW70: 0 | DX70: 0 | DY70: 0 | DZ70: 0 | EA70: 0 | EB70: 0 | EC70: 0 | ED70: 0 | EE70: 0 | EF70: 0 | EG70: 0 | EH70: 0 | EI70: 0 | EJ70: 0 | EK70: 0 | EL70: 0 | EM70: 0 | EN70: 0 | EO70: 0 | EP70: 0 | EQ70: 0 | ER70: 0 | ES70: 0 | ET70: 0 | EU70: 0
A71: Renseanlæg 2 | Z71: =SUM(Z72) -> 0 | AW71: =+SUM(AW72,AW75,AW100,AW125) ->  | AY71: =SUM(AY72+AY75+AY100+AY125) ->  | AZ71: =SUM(AZ72+AZ75+AZ100+AZ125) ->  | DL71: =SUM(DL72+DL75+DL100+DL125) -> 
A72: Mindre renseanlæg | Z72: =SUM(Z73) -> 0 | AW72: =SUM(AW73) ->  | AY72: =SUM(AY73:AY74) ->  | AZ72: =SUM(AZ73:AZ74) ->  | DL72: =SUM(DL73:DL74) -> 
A73: =+Genanskaffelsespriser!$B$5 -> Mindre renseanlæg < 5.000 PE uden mulighed for opdeling | B73: PE | C73: =Genanskaffelsespriser!$E$5 -> 40 | D73: =D$3+$C73+Produktionsanlæg!#REF! ->  | E73: =E$3+$C73+Produktionsanlæg!#REF! ->  | F73: =F$3+$C73+Produktionsanlæg!#REF! ->  | G73: =G$3+$C73+Produktionsanlæg!#REF! ->  | H73: =H$3+$C73+Produktionsanlæg!#REF! ->  | I73: =I$3+$C73+Produktionsanlæg!#REF! ->  | J73: =J$3+$C73+Produktionsanlæg!#REF! ->  | K73: =K$3+$C73+Produktionsanlæg!#REF! ->  | L73: =L$3+$C73+Produktionsanlæg!#REF! ->  | M73: =M$3+$C73+Produktionsanlæg!#REF! ->  | N73: =N$3+$C73+Produktionsanlæg!#REF! ->  | O73: =O$3+$C73+Produktionsanlæg!#REF! ->  | P73: =P$3+$C73+Produktionsanlæg!#REF! ->  | Q73: =Q$3+$C73+Produktionsanlæg!#REF! ->  | R73: =R$3+$C73+Produktionsanlæg!#REF! ->  | S73: =S$3+$C73+Produktionsanlæg!#REF! ->  | T73: =T$3+$C73+Produktionsanlæg!#REF! ->  | U73: =U$3+$C73+Produktionsanlæg!#REF! ->  | V73: =V$3+$C73+Produktionsanlæg!#REF! ->  | W73: =W$3+$C73+Produktionsanlæg!#REF! ->  | X73: =X$3+$C73+Produktionsanlæg!#REF! ->  | Y73: =Y$3+$C73+Produktionsanlæg!#REF! ->  | Z73: 0 | AA73: =Produktionsanlæg!#REF! ->  | AB73: =Produktionsanlæg!#REF! ->  | AC73: =Produktionsanlæg!#REF! ->  | AD73: =Produktionsanlæg!#REF! ->  | AE73: =Produktionsanlæg!#REF! ->  | AF73: =Produktionsanlæg!#REF! ->  | AG73: =Produktionsanlæg!#REF! ->  | AH73: =Produktionsanlæg!#REF! ->  | AI73: =Produktionsanlæg!#REF! ->  | AJ73: =Produktionsanlæg!#REF! ->  | AK73: =Produktionsanlæg!#REF! ->  | AL73: =Produktionsanlæg!#REF! ->  | AM73: =Produktionsanlæg!#REF! ->  | AN73: =Produktionsanlæg!#REF! ->  | AO73: =Produktionsanlæg!#REF! ->  | AP73: =Produktionsanlæg!#REF! ->  | AQ73: =Produktionsanlæg!#REF! ->  | AR73: =Produktionsanlæg!#REF! ->  | AS73: =Produktionsanlæg!#REF! ->  | AT73: =Produktionsanlæg!#REF! ->  | AU73: =Produktionsanlæg!#REF! ->  | AV73: =Produktionsanlæg!#REF! ->  | AW73: =+SUM(AA73:AV73) ->  | AX73: =SUM(#REF!) ->  | AY73: =IF($D73>=AY$2,$AA73/($D73-2009),0)+IF($E73>=AY$2,$AB73/($E73-2009),0)+IF($F73>=AY$2,$AC73/($F73-2009),0)+IF($G73>=AY$2,$AD73/($G73-2009),0)+IF($H73>=AY$2,$AE73/($H73-2009),0)+IF($I73>=AY$2,$AF73/($I73-2009),0)+IF($J73>=AY$2,$AG73/($J73-2009),0)+IF($K73>=AY$2,$AH73/($K73-2009),0)+IF($L73>=AY$2,$AI73/($L73-2009),0)+IF($M73>=AY$2,$AJ73/($M73-2009),0)+IF($N73>=AY$2,$AK73/($N73-2009),0)+IF($O73>=AY$2,$AL73/($O73-2009),0)+IF($P73>=AY$2,$AM73/($P73-2009),0)+IF($Q73>=AY$2,$AN73/($Q73-2009),0)+IF($R73>=AY$2,$AO73/($R73-2009),0)+IF($S73>=AY$2,$AP73/($S73-2009),0)+IF($T73>=AY$2,$AQ73/($T73-2009),0)+IF($U73>=AY$2,$AR73/($U73-2009),0)+IF($V73>=AY$2,$AS73/($V73-2009),0)+IF($W73>=AY$2,$AT73/($W73-2009),0)+IF($X73>=AY$2,$AU73/($X73-2009),0)+IF($Y73>=AY$2,$AV73/($Y73-2009),0) ->  | DK73: =IF($D73>=DK$2,$AA73/($D73-2009),0)+IF($E73>=DK$2,$AB73/($E73-2009),0)+IF($F73>=DK$2,$AC73/($F73-2009),0)+IF($G73>=DK$2,$AD73/($G73-2009),0)+IF($H73>=DK$2,$AE73/($H73-2009),0)+IF($I73>=DK$2,$AF73/($I73-2009),0)+IF($J73>=DK$2,$AG73/($J73-2009),0)+IF($K73>=DK$2,$AH73/($K73-2009),0)+IF($L73>=DK$2,$AI73/($L73-2009),0)+IF($M73>=DK$2,$AJ73/($M73-2009),0)+IF($N73>=DK$2,$AK73/($N73-2009),0)+IF($O73>=DK$2,$AL73/($O73-2009),0)+IF($P73>=DK$2,$AM73/($P73-2009),0)+IF($Q73>=DK$2,$AN73/($Q73-2009),0)+IF($R73>=DK$2,$AO73/($R73-2009),0)+IF($S73>=DK$2,$AP73/($S73-2009),0)+IF($T73>=DK$2,$AQ73/($T73-2009),0)+IF($U73>=DK$2,$AR73/($U73-2009),0)+IF($V73>=DK$2,$AS73/($V73-2009),0)+IF($W73>=DK$2,$AT73/($W73-2009),0)+IF($X73>=DK$2,$AU73/($X73-2009),0)+IF($Y73>=DK$2,$AV73/($Y73-2009),0) -> 
A74: Levetidsforlængelse | B74: år | C74: - | Z74: 0
A75: Renseanlæg >= 5.000 PE, Vandbehandling | Z75: 0 | AW75: =SUM(AW76:AW99) ->  | AX75: =SUM(#REF!) ->  | AY75: =SUM(AY76:AY99) ->  | AZ75: =SUM(AZ76:AZ99) ->  | DL75: =SUM(DL76:DL99) -> 
A76: =+Genanskaffelsespriser!$B$7 -> Indløb med riste, Konstruktioner | B76: PE | C76: =Genanskaffelsespriser!$E$7 -> 60 | D76: =D$3+$C76+Produktionsanlæg!#REF! ->  | E76: =E$3+$C76+Produktionsanlæg!#REF! ->  | F76: =F$3+$C76+Produktionsanlæg!#REF! ->  | G76: =G$3+$C76+Produktionsanlæg!#REF! ->  | H76: =H$3+$C76+Produktionsanlæg!#REF! ->  | I76: =I$3+$C76+Produktionsanlæg!#REF! ->  | J76: =J$3+$C76+Produktionsanlæg!#REF! ->  | K76: =K$3+$C76+Produktionsanlæg!#REF! ->  | L76: =L$3+$C76+Produktionsanlæg!#REF! ->  | M76: =M$3+$C76+Produktionsanlæg!#REF! ->  | N76: =N$3+$C76+Produktionsanlæg!#REF! ->  | O76: =O$3+$C76+Produktionsanlæg!#REF! ->  | P76: =P$3+$C76+Produktionsanlæg!#REF! ->  | Q76: =Q$3+$C76+Produktionsanlæg!#REF! ->  | R76: =R$3+$C76+Produktionsanlæg!#REF! ->  | S76: =S$3+$C76+Produktionsanlæg!#REF! ->  | T76: =T$3+$C76+Produktionsanlæg!#REF! ->  | U76: =U$3+$C76+Produktionsanlæg!#REF! ->  | V76: =V$3+$C76+Produktionsanlæg!#REF! ->  | W76: =W$3+$C76+Produktionsanlæg!#REF! ->  | X76: =X$3+$C76+Produktionsanlæg!#REF! ->  | Y76: =Y$3+$C76+Produktionsanlæg!#REF! ->  | Z76: 0 | AA76: =Produktionsanlæg!#REF! ->  | AB76: =Produktionsanlæg!#REF! ->  | AC76: =Produktionsanlæg!#REF! ->  | AD76: =Produktionsanlæg!#REF! ->  | AE76: =Produktionsanlæg!#REF! ->  | AF76: =Produktionsanlæg!#REF! ->  | AG76: =Produktionsanlæg!#REF! ->  | AH76: =Produktionsanlæg!#REF! ->  | AI76: =Produktionsanlæg!#REF! ->  | AJ76: =Produktionsanlæg!#REF! ->  | AK76: =Produktionsanlæg!#REF! ->  | AL76: =Produktionsanlæg!#REF! ->  | AM76: =Produktionsanlæg!#REF! ->  | AN76: =Produktionsanlæg!#REF! ->  | AO76: =Produktionsanlæg!#REF! ->  | AP76: =Produktionsanlæg!#REF! ->  | AQ76: =Produktionsanlæg!#REF! ->  | AR76: =Produktionsanlæg!#REF! ->  | AS76: =Produktionsanlæg!#REF! ->  | AT76: =Produktionsanlæg!#REF! ->  | AU76: =Produktionsanlæg!#REF! ->  | AV76: =Produktionsanlæg!#REF! ->  | AW76: =+SUM(AA76:AV76) ->  | AX76: =SUM(#REF!) ->  | AY76: =IF($D76>=AY$2,$AA76/($D76-2009),0)+IF($E76>=AY$2,$AB76/($E76-2009),0)+IF($F76>=AY$2,$AC76/($F76-2009),0)+IF($G76>=AY$2,$AD76/($G76-2009),0)+IF($H76>=AY$2,$AE76/($H76-2009),0)+IF($I76>=AY$2,$AF76/($I76-2009),0)+IF($J76>=AY$2,$AG76/($J76-2009),0)+IF($K76>=AY$2,$AH76/($K76-2009),0)+IF($L76>=AY$2,$AI76/($L76-2009),0)+IF($M76>=AY$2,$AJ76/($M76-2009),0)+IF($N76>=AY$2,$AK76/($N76-2009),0)+IF($O76>=AY$2,$AL76/($O76-2009),0)+IF($P76>=AY$2,$AM76/($P76-2009),0)+IF($Q76>=AY$2,$AN76/($Q76-2009),0)+IF($R76>=AY$2,$AO76/($R76-2009),0)+IF($S76>=AY$2,$AP76/($S76-2009),0)+IF($T76>=AY$2,$AQ76/($T76-2009),0)+IF($U76>=AY$2,$AR76/($U76-2009),0)+IF($V76>=AY$2,$AS76/($V76-2009),0)+IF($W76>=AY$2,$AT76/($W76-2009),0)+IF($X76>=AY$2,$AU76/($X76-2009),0)+IF($Y76>=AY$2,$AV76/($Y76-2009),0) ->  | AZ76: =IF($D76>=AZ$2,$AA76/($D76-2009),0)+IF($E76>=AZ$2,$AB76/($E76-2009),0)+IF($F76>=AZ$2,$AC76/($F76-2009),0)+IF($G76>=AZ$2,$AD76/($G76-2009),0)+IF($H76>=AZ$2,$AE76/($H76-2009),0)+IF($I76>=AZ$2,$AF76/($I76-2009),0)+IF($J76>=AZ$2,$AG76/($J76-2009),0)+IF($K76>=AZ$2,$AH76/($K76-2009),0)+IF($L76>=AZ$2,$AI76/($L76-2009),0)+IF($M76>=AZ$2,$AJ76/($M76-2009),0)+IF($N76>=AZ$2,$AK76/($N76-2009),0)+IF($O76>=AZ$2,$AL76/($O76-2009),0)+IF($P76>=AZ$2,$AM76/($P76-2009),0)+IF($Q76>=AZ$2,$AN76/($Q76-2009),0)+IF($R76>=AZ$2,$AO76/($R76-2009),0)+IF($S76>=AZ$2,$AP76/($S76-2009),0)+IF($T76>=AZ$2,$AQ76/($T76-2009),0)+IF($U76>=AZ$2,$AR76/($U76-2009),0)+IF($V76>=AZ$2,$AS76/($V76-2009),0)+IF($W76>=AZ$2,$AT76/($W76-2009),0)+IF($X76>=AZ$2,$AU76/($X76-2009),0)+IF($Y76>=AZ$2,$AV76/($Y76-2009),0) ->  | DL76: =IF($D76>=DL$2,$AA76/($D76-2009),0)+IF($E76>=DL$2,$AB76/($E76-2009),0)+IF($F76>=DL$2,$AC76/($F76-2009),0)+IF($G76>=DL$2,$AD76/($G76-2009),0)+IF($H76>=DL$2,$AE76/($H76-2009),0)+IF($I76>=DL$2,$AF76/($I76-2009),0)+IF($J76>=DL$2,$AG76/($J76-2009),0)+IF($K76>=DL$2,$AH76/($K76-2009),0)+IF($L76>=DL$2,$AI76/($L76-2009),0)+IF($M76>=DL$2,$AJ76/($M76-2009),0)+IF($N76>=DL$2,$AK76/($N76-2009),0)+IF($O76>=DL$2,$AL76/($O76-2009),0)+IF($P76>=DL$2,$AM76/($P76-2009),0)+IF($Q76>=DL$2,$AN76/($Q76-2009),0)+IF($R76>=DL$2,$AO76/($R76-2009),0)+IF($S76>=DL$2,$AP76/($S76-2009),0)+IF($T76>=DL$2,$AQ76/($T76-2009),0)+IF($U76>=DL$2,$AR76/($U76-2009),0)+IF($V76>=DL$2,$AS76/($V76-2009),0)+IF($W76>=DL$2,$AT76/($W76-2009),0)+IF($X76>=DL$2,$AU76/($X76-2009),0)+IF($Y76>=DL$2,$AV76/($Y76-2009),0) -> 
A77: Levetidsforlængelse | B77: år | C77: - | Z77: 0
A78: =+Genanskaffelsespriser!$B$8 -> Indløb med riste, Mek/EL | B78: PE | C78: =Genanskaffelsespriser!$E$8 -> 20 | D78: =D$3+$C78 -> 1925 | E78: =E$3+$C78 -> 1935 | F78: 1945 | G78: 1955 | H78: 1965 | I78: 1975 | J78: 1985 | K78: 1995 | L78: 2002 | M78: 2007 | N78: 2012 | O78: 2017 | P78: 2020 | Q78: 2021 | R78: 2022 | S78: 2023 | T78: 2024 | U78: 2025 | V78: 2026 | W78: 2027 | X78: 2028 | Y78: 2029 | Z78: 0 | AA78: =Produktionsanlæg!#REF! ->  | AB78: =Produktionsanlæg!#REF! ->  | AC78: =Produktionsanlæg!#REF! ->  | AD78: =Produktionsanlæg!#REF! ->  | AE78: =Produktionsanlæg!#REF! ->  | AF78: =Produktionsanlæg!#REF! ->  | AG78: =Produktionsanlæg!#REF! ->  | AH78: =Produktionsanlæg!#REF! ->  | AI78: =Produktionsanlæg!#REF! ->  | AJ78: =Produktionsanlæg!#REF! ->  | AK78: =Produktionsanlæg!#REF! ->  | AL78: =Produktionsanlæg!#REF! ->  | AM78: =Produktionsanlæg!#REF! ->  | AN78: =Produktionsanlæg!#REF! ->  | AO78: =Produktionsanlæg!#REF! ->  | AP78: =Produktionsanlæg!#REF! ->  | AQ78: =Produktionsanlæg!#REF! ->  | AR78: =Produktionsanlæg!#REF! ->  | AS78: =Produktionsanlæg!#REF! ->  | AT78: =Produktionsanlæg!#REF! ->  | AU78: =Produktionsanlæg!#REF! ->  | AV78: =Produktionsanlæg!#REF! ->  | AW78: =+SUM(AA78:AV78) ->  | AX78: =SUM(#REF!) ->  | AY78: =IF($D78>=AY$2,$AA78/($D78-2009),0)+IF($E78>=AY$2,$AB78/($E78-2009),0)+IF($F78>=AY$2,$AC78/($F78-2009),0)+IF($G78>=AY$2,$AD78/($G78-2009),0)+IF($H78>=AY$2,$AE78/($H78-2009),0)+IF($I78>=AY$2,$AF78/($I78-2009),0)+IF($J78>=AY$2,$AG78/($J78-2009),0)+IF($K78>=AY$2,$AH78/($K78-2009),0)+IF($L78>=AY$2,$AI78/($L78-2009),0)+IF($M78>=AY$2,$AJ78/($M78-2009),0)+IF($N78>=AY$2,$AK78/($N78-2009),0)+IF($O78>=AY$2,$AL78/($O78-2009),0)+IF($P78>=AY$2,$AM78/($P78-2009),0)+IF($Q78>=AY$2,$AN78/($Q78-2009),0)+IF($R78>=AY$2,$AO78/($R78-2009),0)+IF($S78>=AY$2,$AP78/($S78-2009),0)+IF($T78>=AY$2,$AQ78/($T78-2009),0)+IF($U78>=AY$2,$AR78/($U78-2009),0)+IF($V78>=AY$2,$AS78/($V78-2009),0)+IF($W78>=AY$2,$AT78/($W78-2009),0)+IF($X78>=AY$2,$AU78/($X78-2009),0)+IF($Y78>=AY$2,$AV78/($Y78-2009),0) ->  | AZ78: =IF($D78>=AZ$2,$AA78/($D78-2009),0)+IF($E78>=AZ$2,$AB78/($E78-2009),0)+IF($F78>=AZ$2,$AC78/($F78-2009),0)+IF($G78>=AZ$2,$AD78/($G78-2009),0)+IF($H78>=AZ$2,$AE78/($H78-2009),0)+IF($I78>=AZ$2,$AF78/($I78-2009),0)+IF($J78>=AZ$2,$AG78/($J78-2009),0)+IF($K78>=AZ$2,$AH78/($K78-2009),0)+IF($L78>=AZ$2,$AI78/($L78-2009),0)+IF($M78>=AZ$2,$AJ78/($M78-2009),0)+IF($N78>=AZ$2,$AK78/($N78-2009),0)+IF($O78>=AZ$2,$AL78/($O78-2009),0)+IF($P78>=AZ$2,$AM78/($P78-2009),0)+IF($Q78>=AZ$2,$AN78/($Q78-2009),0)+IF($R78>=AZ$2,$AO78/($R78-2009),0)+IF($S78>=AZ$2,$AP78/($S78-2009),0)+IF($T78>=AZ$2,$AQ78/($T78-2009),0)+IF($U78>=AZ$2,$AR78/($U78-2009),0)+IF($V78>=AZ$2,$AS78/($V78-2009),0)+IF($W78>=AZ$2,$AT78/($W78-2009),0)+IF($X78>=AZ$2,$AU78/($X78-2009),0)+IF($Y78>=AZ$2,$AV78/($Y78-2009),0) ->  | BS78: 0 | BT78: 0 | BU78: 0 | BV78: 0 | BW78: 0 | BX78: 0 | BY78: 0 | BZ78: 0 | CA78: 0 | CB78: 0 | CC78: 0 | CD78: 0 | CE78: 0 | CF78: 0 | CG78: 0 | CH78: 0 | CI78: 0 | CJ78: 0 | CK78: 0 | CL78: 0 | CM78: 0 | CN78: 0 | CO78: 0 | CP78: 0 | CQ78: 0 | CR78: 0 | CS78: 0 | CT78: 0 | CU78: 0 | CV78: 0 | CW78: 0 | CX78: 0 | CY78: 0 | CZ78: 0 | DA78: 0 | DB78: 0 | DC78: 0 | DD78: 0 | DE78: 0 | DF78: 0 | DG78: 0 | DH78: 0 | DI78: 0 | DJ78: 0 | DK78: 0 | DL78: =IF($D78>=DL$2,$AA78/($D78-2009),0)+IF($E78>=DL$2,$AB78/($E78-2009),0)+IF($F78>=DL$2,$AC78/($F78-2009),0)+IF($G78>=DL$2,$AD78/($G78-2009),0)+IF($H78>=DL$2,$AE78/($H78-2009),0)+IF($I78>=DL$2,$AF78/($I78-2009),0)+IF($J78>=DL$2,$AG78/($J78-2009),0)+IF($K78>=DL$2,$AH78/($K78-2009),0)+IF($L78>=DL$2,$AI78/($L78-2009),0)+IF($M78>=DL$2,$AJ78/($M78-2009),0)+IF($N78>=DL$2,$AK78/($N78-2009),0)+IF($O78>=DL$2,$AL78/($O78-2009),0)+IF($P78>=DL$2,$AM78/($P78-2009),0)+IF($Q78>=DL$2,$AN78/($Q78-2009),0)+IF($R78>=DL$2,$AO78/($R78-2009),0)+IF($S78>=DL$2,$AP78/($S78-2009),0)+IF($T78>=DL$2,$AQ78/($T78-2009),0)+IF($U78>=DL$2,$AR78/($U78-2009),0)+IF($V78>=DL$2,$AS78/($V78-2009),0)+IF($W78>=DL$2,$AT78/($W78-2009),0)+IF($X78>=DL$2,$AU78/($X78-2009),0)+IF($Y78>=DL$2,$AV78/($Y78-2009),0) -> 0 | DM78: 0 | DN78: 0 | DO78: 0 | DP78: 0 | DQ78: 0 | DR78: 0 | DS78: 0 | DT78: 0 | DU78: 0 | DV78: 0 | DW78: 0 | DX78: 0 | DY78: 0 | DZ78: 0 | EA78: 0 | EB78: 0 | EC78: 0 | ED78: 0 | EE78: 0 | EF78: 0 | EG78: 0 | EH78: 0 | EI78: 0 | EJ78: 0 | EK78: 0 | EL78: 0 | EM78: 0 | EN78: 0 | EO78: 0 | EP78: 0 | EQ78: 0 | ER78: 0 | ES78: 0 | ET78: 0 | EU78: 0
A79: =+Genanskaffelsespriser!$B$9 -> Indløb med riste, SRO | B79: PE | C79: =Genanskaffelsespriser!$E$9 -> 10 | D79: =D$3+$C79 -> 1915 | E79: 1925 | F79: 1935 | G79: 1945 | H79: 1955 | I79: 1965 | J79: 1975 | K79: 1985 | L79: 1992 | M79: 1997 | N79: 2002 | O79: 2007 | P79: 2010 | Q79: 2011 | R79: 2012 | S79: 2013 | T79: 2014 | U79: 2015 | V79: 2016 | W79: 2017 | X79: 2018 | Y79: 2019 | Z79: 0 | AA79: =Produktionsanlæg!#REF! ->  | AB79: =Produktionsanlæg!#REF! ->  | AC79: =Produktionsanlæg!#REF! ->  | AD79: =Produktionsanlæg!#REF! ->  | AE79: =Produktionsanlæg!#REF! ->  | AF79: =Produktionsanlæg!#REF! ->  | AG79: =Produktionsanlæg!#REF! ->  | AH79: =Produktionsanlæg!#REF! ->  | AI79: =Produktionsanlæg!#REF! ->  | AJ79: =Produktionsanlæg!#REF! ->  | AK79: =Produktionsanlæg!#REF! ->  | AL79: =Produktionsanlæg!#REF! ->  | AM79: =Produktionsanlæg!#REF! ->  | AN79: =Produktionsanlæg!#REF! ->  | AO79: =Produktionsanlæg!#REF! ->  | AP79: =Produktionsanlæg!#REF! ->  | AQ79: =Produktionsanlæg!#REF! ->  | AR79: =Produktionsanlæg!#REF! ->  | AS79: =Produktionsanlæg!#REF! ->  | AT79: =Produktionsanlæg!#REF! ->  | AU79: =Produktionsanlæg!#REF! ->  | AV79: =Produktionsanlæg!#REF! ->  | AW79: =+SUM(AA79:AV79) ->  | AX79: =SUM(#REF!) ->  | AY79: =IF($D79>=AY$2,$AA79/($D79-2009),0)+IF($E79>=AY$2,$AB79/($E79-2009),0)+IF($F79>=AY$2,$AC79/($F79-2009),0)+IF($G79>=AY$2,$AD79/($G79-2009),0)+IF($H79>=AY$2,$AE79/($H79-2009),0)+IF($I79>=AY$2,$AF79/($I79-2009),0)+IF($J79>=AY$2,$AG79/($J79-2009),0)+IF($K79>=AY$2,$AH79/($K79-2009),0)+IF($L79>=AY$2,$AI79/($L79-2009),0)+IF($M79>=AY$2,$AJ79/($M79-2009),0)+IF($N79>=AY$2,$AK79/($N79-2009),0)+IF($O79>=AY$2,$AL79/($O79-2009),0)+IF($P79>=AY$2,$AM79/($P79-2009),0)+IF($Q79>=AY$2,$AN79/($Q79-2009),0)+IF($R79>=AY$2,$AO79/($R79-2009),0)+IF($S79>=AY$2,$AP79/($S79-2009),0)+IF($T79>=AY$2,$AQ79/($T79-2009),0)+IF($U79>=AY$2,$AR79/($U79-2009),0)+IF($V79>=AY$2,$AS79/($V79-2009),0)+IF($W79>=AY$2,$AT79/($W79-2009),0)+IF($X79>=AY$2,$AU79/($X79-2009),0)+IF($Y79>=AY$2,$AV79/($Y79-2009),0) ->  | BI79: 0 | BJ79: 0 | BK79: 0 | BL79: 0 | BM79: 0 | BN79: 0 | BO79: 0 | BP79: 0 | BQ79: 0 | BR79: 0 | BS79: 0 | BT79: 0 | BU79: 0 | BV79: 0 | BW79: 0 | BX79: 0 | BY79: 0 | BZ79: 0 | CA79: 0 | CB79: 0 | CC79: 0 | CD79: 0 | CE79: 0 | CF79: 0 | CG79: 0 | CH79: 0 | CI79: 0 | CJ79: 0 | CK79: 0 | CL79: 0 | CM79: 0 | CN79: 0 | CO79: 0 | CP79: 0 | CQ79: 0 | CR79: 0 | CS79: 0 | CT79: 0 | CU79: 0 | CV79: 0 | CW79: 0 | CX79: 0 | CY79: 0 | CZ79: 0 | DA79: 0 | DB79: 0 | DC79: 0 | DD79: 0 | DE79: 0 | DF79: 0 | DG79: 0 | DH79: 0 | DI79: 0 | DJ79: 0 | DK79: 0 | DL79: 0 | DM79: 0 | DN79: 0 | DO79: 0 | DP79: 0 | DQ79: 0 | DR79: 0 | DS79: 0 | DT79: 0 | DU79: 0 | DV79: 0 | DW79: 0 | DX79: 0 | DY79: 0 | DZ79: 0 | EA79: 0 | EB79: 0 | EC79: 0 | ED79: 0 | EE79: 0 | EF79: 0 | EG79: 0 | EH79: 0 | EI79: 0 | EJ79: 0 | EK79: 0 | EL79: 0 | EM79: 0 | EN79: 0 | EO79: 0 | EP79: 0 | EQ79: 0 | ER79: 0 | ES79: 0 | ET79: 0 | EU79: 0
A80: =+Genanskaffelsespriser!$B$10 -> Sand- og fedtfang, Kontruktioner | B80: PE | C80: =Genanskaffelsespriser!$E$10 -> 60 | D80: =D$3+$C80+Produktionsanlæg!#REF! ->  | E80: =E$3+$C80+Produktionsanlæg!#REF! ->  | F80: =F$3+$C80+Produktionsanlæg!#REF! ->  | G80: =G$3+$C80+Produktionsanlæg!#REF! ->  | H80: =H$3+$C80+Produktionsanlæg!#REF! ->  | I80: =I$3+$C80+Produktionsanlæg!#REF! ->  | J80: =J$3+$C80+Produktionsanlæg!#REF! ->  | K80: =K$3+$C80+Produktionsanlæg!#REF! ->  | L80: =L$3+$C80+Produktionsanlæg!#REF! ->  | M80: =M$3+$C80+Produktionsanlæg!#REF! ->  | N80: =N$3+$C80+Produktionsanlæg!#REF! ->  | O80: =O$3+$C80+Produktionsanlæg!#REF! ->  | P80: =P$3+$C80+Produktionsanlæg!#REF! ->  | Q80: =Q$3+$C80+Produktionsanlæg!#REF! ->  | R80: =R$3+$C80+Produktionsanlæg!#REF! ->  | S80: =S$3+$C80+Produktionsanlæg!#REF! ->  | T80: =T$3+$C80+Produktionsanlæg!#REF! ->  | U80: =U$3+$C80+Produktionsanlæg!#REF! ->  | V80: =V$3+$C80+Produktionsanlæg!#REF! ->  | W80: =W$3+$C80+Produktionsanlæg!#REF! ->  | X80: =X$3+$C80+Produktionsanlæg!#REF! ->  | Y80: =Y$3+$C80+Produktionsanlæg!#REF! ->  | Z80: 0 | AA80: =Produktionsanlæg!#REF! ->  | AB80: =Produktionsanlæg!#REF! ->  | AC80: =Produktionsanlæg!#REF! ->  | AD80: =Produktionsanlæg!#REF! ->  | AE80: =Produktionsanlæg!#REF! ->  | AF80: =Produktionsanlæg!#REF! ->  | AG80: =Produktionsanlæg!#REF! ->  | AH80: =Produktionsanlæg!#REF! ->  | AI80: =Produktionsanlæg!#REF! ->  | AJ80: =Produktionsanlæg!#REF! ->  | AK80: =Produktionsanlæg!#REF! ->  | AL80: =Produktionsanlæg!#REF! ->  | AM80: =Produktionsanlæg!#REF! ->  | AN80: =Produktionsanlæg!#REF! ->  | AO80: =Produktionsanlæg!#REF! ->  | AP80: =Produktionsanlæg!#REF! ->  | AQ80: =Produktionsanlæg!#REF! ->  | AR80: =Produktionsanlæg!#REF! ->  | AS80: =Produktionsanlæg!#REF! ->  | AT80: =Produktionsanlæg!#REF! ->  | AU80: =Produktionsanlæg!#REF! ->  | AV80: =Produktionsanlæg!#REF! ->  | AW80: =+SUM(AA80:AV80) ->  | AX80: =SUM(#REF!) ->  | AY80: =IF($D80>=AY$2,$AA80/($D80-2009),0)+IF($E80>=AY$2,$AB80/($E80-2009),0)+IF($F80>=AY$2,$AC80/($F80-2009),0)+IF($G80>=AY$2,$AD80/($G80-2009),0)+IF($H80>=AY$2,$AE80/($H80-2009),0)+IF($I80>=AY$2,$AF80/($I80-2009),0)+IF($J80>=AY$2,$AG80/($J80-2009),0)+IF($K80>=AY$2,$AH80/($K80-2009),0)+IF($L80>=AY$2,$AI80/($L80-2009),0)+IF($M80>=AY$2,$AJ80/($M80-2009),0)+IF($N80>=AY$2,$AK80/($N80-2009),0)+IF($O80>=AY$2,$AL80/($O80-2009),0)+IF($P80>=AY$2,$AM80/($P80-2009),0)+IF($Q80>=AY$2,$AN80/($Q80-2009),0)+IF($R80>=AY$2,$AO80/($R80-2009),0)+IF($S80>=AY$2,$AP80/($S80-2009),0)+IF($T80>=AY$2,$AQ80/($T80-2009),0)+IF($U80>=AY$2,$AR80/($U80-2009),0)+IF($V80>=AY$2,$AS80/($V80-2009),0)+IF($W80>=AY$2,$AT80/($W80-2009),0)+IF($X80>=AY$2,$AU80/($X80-2009),0)+IF($Y80>=AY$2,$AV80/($Y80-2009),0) -> 
A81: Levetidsforlængelse | B81: år | C81: - | Z81: 0
